Workbook

Sheet Comparison (hidden)
A1: Greensboro city | B1: =IF(COUNTBLANK(A1),"",IF(RIGHT(A1,6)="County","County","Place")) -> Place | H1: Counts | K1: Internal QA/QC
A2: Guilford County | B2: =IF(COUNTBLANK(A2),"",IF(RIGHT(A2,6)="County","County","Place")) -> County | H2: Block Groups | I2: =COUNTA(Data_ACS_2022_BG_Calculated!C:C)-2 -> 20 | K2: Median Household Income is same on Community Overview Profile and Health Indicators Profile | L2: ='Community Overview Profile'!DA16='Health Indicators Profile'!DA4 -> TRUE
H3: Place | I3: =COUNTIF($B$1:$B$102,$H3) -> 1
C4: Year: | D4: 2022 | H4: County | I4: =COUNTIF($B$1:$B$102,$H4) -> 1
C5: Last Modified: | D5: 2024-04-05 | H5: State | I5: =COUNTIF($B$1:$B$102,$H5) -> 1
B66: =IF(COUNTBLANK(A66),"",IF(RIGHT(A66,6)="County","County","Place")) -> 
A102: North Carolina | B102: State
A103: DSA | B103: DSA

Sheet Start
D4: Select Block Groups and Census Tracts from the Study Area
G7: =CONCATENATE(" Table contains ",COUNTA(Data_ACS_2022_BG_Calculated!C:C)-2," Block Groups") -> Table contains 20 Block Groups
G9: =CONCATENATE(" Table contains ",COUNTA(Data_2008_2022_BG_Comparison!C:C)-2," Block Groups") -> Table contains 20 Block Groups
G11: =CONCATENATE(" Table contains ",COUNTA(Data_ACS_2022_BG_Complete!C:C)-2," Block Groups") -> Table contains 20 Block Groups
G13: =CONCATENATE(" Table contains ",COUNTA(Data_ACS_2022_Tract_Calculated!C:C)-2," Census Tracts") -> Table contains 8 Census Tracts
D16: Select Places and Counties for Comparison
D17: Below, select the Places and Counties to be included in the demographic tables as a point of comparison.
D18: Places
H19: Your Selections
E20: Greensboro city
D24: Counties
E26: Guilford County
D31: Prepare Demographic Tables
D32: After study area data has been added (Step A) and comparison geographies have been selected (Step B), click the button below to format output tables to fit your data.

Sheet Population Change
B1: Population Change - 2008 to 2022
B2: Historical ACS data is used to compare population changes from 2008 to 2022. The tables are linked to the Data tabs and will automatically populate once the Data tabs are completed. Once complete, you can copy the table and source directly into your report.
B5: Geography 2020 | C5: ACS 2008-2012 Population* | D5: ACS 2013-2017 Population | E5: ACS 2018-2022 Population | F5: Difference | G5: Percent Change | H5: Annualized Growth Rate
B6: =IF(Data_2008_2022_BG_Comparison!I3="","",(CONCATENATE("CT ", Data_2008_2022_BG_Comparison!I3,", BG ",Data_2008_2022_BG_Comparison!J3))) -> CT 108, BG 1 | C6: =Data_2008_2022_BG_Comparison!K3 -> 778 | D6: =Data_2008_2022_BG_Comparison!L3 -> 1113 | E6: =Data_2008_2022_BG_Comparison!M3 -> 959 | F6: =IFERROR(E6-C6,"N/A") -> 181 | G6: =IF(C6+E6=0,"",IFERROR(F6/C6,"N/A")) -> 0.2326478149 | H6: =IF(C6+E6=0,"",IFERROR((E6/C6)^(1/10)-1,"N/A")) -> 0.02113673728
B7: =IF(Data_2008_2022_BG_Comparison!I4="","",(CONCATENATE("CT ", Data_2008_2022_BG_Comparison!I4,", BG ",Data_2008_2022_BG_Comparison!J4))) -> CT 108, BG 2 | C7: =Data_2008_2022_BG_Comparison!K4 -> 359.508112 | D7: =Data_2008_2022_BG_Comparison!L4 -> 597.422453 | E7: =Data_2008_2022_BG_Comparison!M4 -> 277 | F7: =IFERROR(E7-C7,"N/A") -> -82.508112 | G7: =IF(C7+E7=0,"",IFERROR(F7/C7,"N/A")) -> -0.2295027824 | H7: =IF(C7+E7=0,"",IFERROR((E7/C7)^(1/10)-1,"N/A")) -> -0.0257349855
B8: =IF(Data_2008_2022_BG_Comparison!I5="","",(CONCATENATE("CT ", Data_2008_2022_BG_Comparison!I5,", BG ",Data_2008_2022_BG_Comparison!J5))) -> CT 108, BG 3 | C8: =Data_2008_2022_BG_Comparison!K5 -> 799.491888 | D8: =Data_2008_2022_BG_Comparison!L5 -> 1328.577547 | E8: =Data_2008_2022_BG_Comparison!M5 -> 1875 | F8: 1075.508112 | G8: 1.345239555 | H8: 0.08897703465
B9: =IF(Data_2008_2022_BG_Comparison!I6="","",(CONCATENATE("CT ", Data_2008_2022_BG_Comparison!I6,", BG ",Data_2008_2022_BG_Comparison!J6))) -> CT 110, BG 1 | C9: =Data_2008_2022_BG_Comparison!K6 -> 538 | D9: =Data_2008_2022_BG_Comparison!L6 -> 911 | E9: =Data_2008_2022_BG_Comparison!M6 -> 786 | F9: 248 | G9: 0.4609665428 | H9: 0.03863756767
B10: =IF(Data_2008_2022_BG_Comparison!I7="","",(CONCATENATE("CT ", Data_2008_2022_BG_Comparison!I7,", BG ",Data_2008_2022_BG_Comparison!J7))) -> CT 110, BG 2 | C10: =Data_2008_2022_BG_Comparison!K7 -> 3282 | D10: =Data_2008_2022_BG_Comparison!L7 -> 4164 | E10: =Data_2008_2022_BG_Comparison!M7 -> 4617 | F10: 1335 | G10: 0.4067641682 | H10: 0.0347182993
B11: =IF(Data_2008_2022_BG_Comparison!I8="","",(CONCATENATE("CT ", Data_2008_2022_BG_Comparison!I8,", BG ",Data_2008_2022_BG_Comparison!J8))) -> CT 111.01, BG 1 | C11: =Data_2008_2022_BG_Comparison!K8 -> 633.842822 | D11: =Data_2008_2022_BG_Comparison!L8 -> 534.322763 | E11: =Data_2008_2022_BG_Comparison!M8 -> 564 | F11: -69.842822 | G11: -0.1101894974 | H11: -0.01160679114
B12: =IF(Data_2008_2022_BG_Comparison!I9="","",(CONCATENATE("CT ", Data_2008_2022_BG_Comparison!I9,", BG ",Data_2008_2022_BG_Comparison!J9))) -> CT 111.01, BG 2 | C12: =Data_2008_2022_BG_Comparison!K9 -> 996.312745 | D12: =Data_2008_2022_BG_Comparison!L9 -> 1143.937024 | E12: =Data_2008_2022_BG_Comparison!M9 -> 971 | F12: -25.312745 | G12: -0.02540642497 | H12: -0.002570165555
B13: =IF(Data_2008_2022_BG_Comparison!I10="","",(CONCATENATE("CT ", Data_2008_2022_BG_Comparison!I10,", BG ",Data_2008_2022_BG_Comparison!J10))) -> CT 111.01, BG 3 | C13: =Data_2008_2022_BG_Comparison!K10 -> 630.411393 | D13: =Data_2008_2022_BG_Comparison!L10 -> 696.22844 | E13: =Data_2008_2022_BG_Comparison!M10 -> 495 | F13: -135.411393 | G13: -0.2147984546 | H13: -0.02389145523
B14: =IF(Data_2008_2022_BG_Comparison!I11="","",(CONCATENATE("CT ", Data_2008_2022_BG_Comparison!I11,", BG ",Data_2008_2022_BG_Comparison!J11))) -> CT 111.01, BG 4 | C14: =Data_2008_2022_BG_Comparison!K11 -> 2190.433039 | D14: =Data_2008_2022_BG_Comparison!L11 -> 1846.511773 | E14: =Data_2008_2022_BG_Comparison!M11 -> 1891 | F14: -299.433039 | G14: -0.1367003847 | H14: -0.01459183894
B15: =IF(Data_2008_2022_BG_Comparison!I12="","",(CONCATENATE("CT ", Data_2008_2022_BG_Comparison!I12,", BG ",Data_2008_2022_BG_Comparison!J12))) -> CT 111.02, BG 1 | C15: =Data_2008_2022_BG_Comparison!K12 -> 1424.811133 | D15: =Data_2008_2022_BG_Comparison!L12 -> 1283.06163 | E15: =Data_2008_2022_BG_Comparison!M12 -> 1056 | F15: -368.811133 | G15: -0.2588491376 | H15: -0.02951090037
B16: =IF(Data_2008_2022_BG_Comparison!I13="","",(CONCATENATE("CT ", Data_2008_2022_BG_Comparison!I13,", BG ",Data_2008_2022_BG_Comparison!J13))) -> CT 111.02, BG 2 | C16: =Data_2008_2022_BG_Comparison!K13 -> 1795.188867 | D16: =Data_2008_2022_BG_Comparison!L13 -> 1341.93837 | E16: =Data_2008_2022_BG_Comparison!M13 -> 1255 | F16: -540.188867 | G16: -0.3009092118 | H16: -0.03516431449
B17: =IF(Data_2008_2022_BG_Comparison!I14="","",(CONCATENATE("CT ", Data_2008_2022_BG_Comparison!I14,", BG ",Data_2008_2022_BG_Comparison!J14))) -> CT 112.01, BG 1 | C17: =Data_2008_2022_BG_Comparison!K14 -> 1425.224464 | D17: =Data_2008_2022_BG_Comparison!L14 -> 1269.691376 | E17: =Data_2008_2022_BG_Comparison!M14 -> 1811 | F17: 385.775536 | G17: 0.2706770377 | H17: 0.02424421142
B18: =IF(Data_2008_2022_BG_Comparison!I15="","",(CONCATENATE("CT ", Data_2008_2022_BG_Comparison!I15,", BG ",Data_2008_2022_BG_Comparison!J15))) -> CT 112.01, BG 2 | C18: =Data_2008_2022_BG_Comparison!K15 -> 885.444834 | D18: =Data_2008_2022_BG_Comparison!L15 -> 776.221832 | E18: =Data_2008_2022_BG_Comparison!M15 -> 1389 | F18: 503.555166 | G18: 0.5687030368 | H18: 0.04605392586
B19: =IF(Data_2008_2022_BG_Comparison!I16="","",(CONCATENATE("CT ", Data_2008_2022_BG_Comparison!I16,", BG ",Data_2008_2022_BG_Comparison!J16))) -> CT 112.02, BG 1 | C19: =Data_2008_2022_BG_Comparison!K16 -> 883.459345 | D19: =Data_2008_2022_BG_Comparison!L16 -> 1572.115861 | E19: =Data_2008_2022_BG_Comparison!M16 -> 1462 | F19: 578.540655 | G19: 0.6548582663 | H19: 0.05166175457
B20: =IF(Data_2008_2022_BG_Comparison!I17="","",(CONCATENATE("CT ", Data_2008_2022_BG_Comparison!I17,", BG ",Data_2008_2022_BG_Comparison!J17))) -> CT 112.02, BG 2 | C20: =Data_2008_2022_BG_Comparison!K17 -> 1570.871357 | D20: =Data_2008_2022_BG_Comparison!L17 -> 2309.970931 | E20: =Data_2008_2022_BG_Comparison!M17 -> 1583 | F20: 12.128643 | G20: 0.007720965148 | H20: 0.000769426961
B21: =IF(Data_2008_2022_BG_Comparison!I18="","",(CONCATENATE("CT ", Data_2008_2022_BG_Comparison!I18,", BG ",Data_2008_2022_BG_Comparison!J18))) -> CT 127.07, BG 1 | C21: =Data_2008_2022_BG_Comparison!K18 -> 992 | D21: =Data_2008_2022_BG_Comparison!L18 -> 862 | E21: =Data_2008_2022_BG_Comparison!M18 -> 1313 | F21: 321 | G21: 0.3235887097 | H21: 0.02843134641
B22: =IF(Data_2008_2022_BG_Comparison!I19="","",(CONCATENATE("CT ", Data_2008_2022_BG_Comparison!I19,", BG ",Data_2008_2022_BG_Comparison!J19))) -> CT 127.07, BG 2 | C22: =Data_2008_2022_BG_Comparison!K19 -> 1064 | D22: =Data_2008_2022_BG_Comparison!L19 -> 1943 | E22: =Data_2008_2022_BG_Comparison!M19 -> 1334 | F22: 270 | G22: 0.2537593985 | H22: 0.02287230554
B23: =IF(Data_2008_2022_BG_Comparison!I20="","",(CONCATENATE("CT ", Data_2008_2022_BG_Comparison!I20,", BG ",Data_2008_2022_BG_Comparison!J20))) -> CT 128.03, BG 1 | C23: =Data_2008_2022_BG_Comparison!K20 -> 2917 | D23: =Data_2008_2022_BG_Comparison!L20 -> 2741 | E23: =Data_2008_2022_BG_Comparison!M20 -> 2999 | F23: 82 | G23: 0.02811107302 | H23: 0.002776167323
B24: =IF(Data_2008_2022_BG_Comparison!I21="","",(CONCATENATE("CT ", Data_2008_2022_BG_Comparison!I21,", BG ",Data_2008_2022_BG_Comparison!J21))) -> CT 128.03, BG 2 | C24: =Data_2008_2022_BG_Comparison!K21 -> 2376.285944 | D24: =Data_2008_2022_BG_Comparison!L21 -> 3335.420464 | E24: =Data_2008_2022_BG_Comparison!M21 -> 3827 | F24: 1450.714056 | G24: 0.6104964176 | H24: 0.04880796364
B25: =IF(Data_2008_2022_BG_Comparison!I22="","",(CONCATENATE("CT ", Data_2008_2022_BG_Comparison!I22,", BG ",Data_2008_2022_BG_Comparison!J22))) -> CT 128.03, BG 3 | C25: =Data_2008_2022_BG_Comparison!K22 -> 1758.666239 | D25: =Data_2008_2022_BG_Comparison!L22 -> 2468.512419 | E25: =Data_2008_2022_BG_Comparison!M22 -> 2513 | F25: 754.333761 | G25: 0.4289237743 | H25: 0.03633676686
B26: =IF(Data_2008_2022_BG_Comparison!I23="","",(CONCATENATE("CT ", Data_2008_2022_BG_Comparison!I23,", BG ",Data_2008_2022_BG_Comparison!J23))) ->  | C26: =Data_2008_2022_BG_Comparison!K23 -> 0 | D26: =Data_2008_2022_BG_Comparison!L23 -> 0 | E26: =Data_2008_2022_BG_Comparison!M23 -> 0 | F26: 0
B27: =IF(Data_2008_2022_BG_Comparison!I24="","",(CONCATENATE("CT ", Data_2008_2022_BG_Comparison!I24,", BG ",Data_2008_2022_BG_Comparison!J24))) ->  | C27: =Data_2008_2022_BG_Comparison!K24 -> 0 | D27: =Data_2008_2022_BG_Comparison!L24 -> 0 | E27: =Data_2008_2022_BG_Comparison!M24 -> 0 | F27: 0
B28: =IF(Data_2008_2022_BG_Comparison!I25="","",(CONCATENATE("CT ", Data_2008_2022_BG_Comparison!I25,", BG ",Data_2008_2022_BG_Comparison!J25))) ->  | C28: =Data_2008_2022_BG_Comparison!K25 -> 0 | D28: =Data_2008_2022_BG_Comparison!L25 -> 0 | E28: =Data_2008_2022_BG_Comparison!M25 -> 0 | F28: 0
B29: =IF(Data_2008_2022_BG_Comparison!I26="","",(CONCATENATE("CT ", Data_2008_2022_BG_Comparison!I26,", BG ",Data_2008_2022_BG_Comparison!J26))) ->  | C29: =Data_2008_2022_BG_Comparison!K26 -> 0 | D29: =Data_2008_2022_BG_Comparison!L26 -> 0 | E29: =Data_2008_2022_BG_Comparison!M26 -> 0 | F29: 0
B30: =IF(Data_2008_2022_BG_Comparison!I27="","",(CONCATENATE("CT ", Data_2008_2022_BG_Comparison!I27,", BG ",Data_2008_2022_BG_Comparison!J27))) ->  | C30: =Data_2008_2022_BG_Comparison!K27 -> 0 | D30: =Data_2008_2022_BG_Comparison!L27 -> 0 | E30: =Data_2008_2022_BG_Comparison!M27 -> 0 | F30: 0
B31: =IF(Data_2008_2022_BG_Comparison!I28="","",(CONCATENATE("CT ", Data_2008_2022_BG_Comparison!I28,", BG ",Data_2008_2022_BG_Comparison!J28))) ->  | C31: =Data_2008_2022_BG_Comparison!K28 -> 0 | D31: =Data_2008_2022_BG_Comparison!L28 -> 0 | E31: =Data_2008_2022_BG_Comparison!M28 -> 0 | F31: 0
B32: =IF(Data_2008_2022_BG_Comparison!I29="","",(CONCATENATE("CT ", Data_2008_2022_BG_Comparison!I29,", BG ",Data_2008_2022_BG_Comparison!J29))) ->  | C32: =Data_2008_2022_BG_Comparison!K29 -> 0 | D32: =Data_2008_2022_BG_Comparison!L29 -> 0 | E32: =Data_2008_2022_BG_Comparison!M29 -> 0 | F32: 0
B33: =IF(Data_2008_2022_BG_Comparison!I30="","",(CONCATENATE("CT ", Data_2008_2022_BG_Comparison!I30,", BG ",Data_2008_2022_BG_Comparison!J30))) ->  | C33: =Data_2008_2022_BG_Comparison!K30 -> 0 | D33: =Data_2008_2022_BG_Comparison!L30 -> 0 | E33: =Data_2008_2022_BG_Comparison!M30 -> 0 | F33: 0
B34: =IF(Data_2008_2022_BG_Comparison!I31="","",(CONCATENATE("CT ", Data_2008_2022_BG_Comparison!I31,", BG ",Data_2008_2022_BG_Comparison!J31))) ->  | C34: =Data_2008_2022_BG_Comparison!K31 -> 0 | D34: =Data_2008_2022_BG_Comparison!L31 -> 0 | E34: =Data_2008_2022_BG_Comparison!M31 -> 0 | F34: 0
B35: =IF(Data_2008_2022_BG_Comparison!I32="","",(CONCATENATE("CT ", Data_2008_2022_BG_Comparison!I32,", BG ",Data_2008_2022_BG_Comparison!J32))) ->  | C35: =Data_2008_2022_BG_Comparison!K32 -> 0 | D35: =Data_2008_2022_BG_Comparison!L32 -> 0 | E35: =Data_2008_2022_BG_Comparison!M32 -> 0 | F35: 0
B36: =IF(Data_2008_2022_BG_Comparison!I33="","",(CONCATENATE("CT ", Data_2008_2022_BG_Comparison!I33,", BG ",Data_2008_2022_BG_Comparison!J33))) ->  | C36: =Data_2008_2022_BG_Comparison!K33 -> 0 | D36: =Data_2008_2022_BG_Comparison!L33 -> 0 | E36: =Data_2008_2022_BG_Comparison!M33 -> 0 | F36: 0
B37: =IF(Data_2008_2022_BG_Comparison!I34="","",(CONCATENATE("CT ", Data_2008_2022_BG_Comparison!I34,", BG ",Data_2008_2022_BG_Comparison!J34))) ->  | C37: =Data_2008_2022_BG_Comparison!K34 -> 0 | D37: =Data_2008_2022_BG_Comparison!L34 -> 0 | E37: =Data_2008_2022_BG_Comparison!M34 -> 0 | F37: 0
B38: =IF(Data_2008_2022_BG_Comparison!I35="","",(CONCATENATE("CT ", Data_2008_2022_BG_Comparison!I35,", BG ",Data_2008_2022_BG_Comparison!J35))) ->  | C38: =Data_2008_2022_BG_Comparison!K35 -> 0 | D38: =Data_2008_2022_BG_Comparison!L35 -> 0 | E38: =Data_2008_2022_BG_Comparison!M35 -> 0 | F38: 0
B39: =IF(Data_2008_2022_BG_Comparison!I36="","",(CONCATENATE("CT ", Data_2008_2022_BG_Comparison!I36,", BG ",Data_2008_2022_BG_Comparison!J36))) ->  | C39: =Data_2008_2022_BG_Comparison!K36 -> 0 | D39: =Data_2008_2022_BG_Comparison!L36 -> 0 | E39: =Data_2008_2022_BG_Comparison!M36 -> 0 | F39: 0
B40: =IF(Data_2008_2022_BG_Comparison!I37="","",(CONCATENATE("CT ", Data_2008_2022_BG_Comparison!I37,", BG ",Data_2008_2022_BG_Comparison!J37))) ->  | C40: =Data_2008_2022_BG_Comparison!K37 -> 0 | D40: =Data_2008_2022_BG_Comparison!L37 -> 0 | E40: =Data_2008_2022_BG_Comparison!M37 -> 0 | F40: 0
B41: =IF(Data_2008_2022_BG_Comparison!I38="","",(CONCATENATE("CT ", Data_2008_2022_BG_Comparison!I38,", BG ",Data_2008_2022_BG_Comparison!J38))) ->  | C41: =Data_2008_2022_BG_Comparison!K38 -> 0 | D41: =Data_2008_2022_BG_Comparison!L38 -> 0 | E41: =Data_2008_2022_BG_Comparison!M38 -> 0 | F41: 0
B42: =IF(Data_2008_2022_BG_Comparison!I39="","",(CONCATENATE("CT ", Data_2008_2022_BG_Comparison!I39,", BG ",Data_2008_2022_BG_Comparison!J39))) ->  | C42: =Data_2008_2022_BG_Comparison!K39 -> 0 | D42: =Data_2008_2022_BG_Comparison!L39 -> 0 | E42: =Data_2008_2022_BG_Comparison!M39 -> 0 | F42: 0
B43: =IF(Data_2008_2022_BG_Comparison!I40="","",(CONCATENATE("CT ", Data_2008_2022_BG_Comparison!I40,", BG ",Data_2008_2022_BG_Comparison!J40))) ->  | C43: =Data_2008_2022_BG_Comparison!K40 -> 0 | D43: =Data_2008_2022_BG_Comparison!L40 -> 0 | E43: =Data_2008_2022_BG_Comparison!M40 -> 0 | F43: 0
B44: =IF(Data_2008_2022_BG_Comparison!I41="","",(CONCATENATE("CT ", Data_2008_2022_BG_Comparison!I41,", BG ",Data_2008_2022_BG_Comparison!J41))) ->  | C44: =Data_2008_2022_BG_Comparison!K41 -> 0 | D44: =Data_2008_2022_BG_Comparison!L41 -> 0 | E44: =Data_2008_2022_BG_Comparison!M41 -> 0 | F44: 0
B45: =IF(Data_2008_2022_BG_Comparison!I42="","",(CONCATENATE("CT ", Data_2008_2022_BG_Comparison!I42,", BG ",Data_2008_2022_BG_Comparison!J42))) ->  | C45: =Data_2008_2022_BG_Comparison!K42 -> 0 | D45: =Data_2008_2022_BG_Comparison!L42 -> 0 | E45: =Data_2008_2022_BG_Comparison!M42 -> 0 | F45: 0
B46: =IF(Data_2008_2022_BG_Comparison!I43="","",(CONCATENATE("CT ", Data_2008_2022_BG_Comparison!I43,", BG ",Data_2008_2022_BG_Comparison!J43))) ->  | C46: =Data_2008_2022_BG_Comparison!K43 -> 0 | D46: =Data_2008_2022_BG_Comparison!L43 -> 0 | E46: =Data_2008_2022_BG_Comparison!M43 -> 0 | F46: 0
B47: =IF(Data_2008_2022_BG_Comparison!I44="","",(CONCATENATE("CT ", Data_2008_2022_BG_Comparison!I44,", BG ",Data_2008_2022_BG_Comparison!J44))) ->  | C47: =Data_2008_2022_BG_Comparison!K44 -> 0 | D47: =Data_2008_2022_BG_Comparison!L44 -> 0 | E47: =Data_2008_2022_BG_Comparison!M44 -> 0 | F47: 0
B48: =IF(Data_2008_2022_BG_Comparison!I45="","",(CONCATENATE("CT ", Data_2008_2022_BG_Comparison!I45,", BG ",Data_2008_2022_BG_Comparison!J45))) ->  | C48: =Data_2008_2022_BG_Comparison!K45 -> 0 | D48: =Data_2008_2022_BG_Comparison!L45 -> 0 | E48: =Data_2008_2022_BG_Comparison!M45 -> 0 | F48: 0
B49: =IF(Data_2008_2022_BG_Comparison!I46="","",(CONCATENATE("CT ", Data_2008_2022_BG_Comparison!I46,", BG ",Data_2008_2022_BG_Comparison!J46))) ->  | C49: =Data_2008_2022_BG_Comparison!K46 -> 0 | D49: =Data_2008_2022_BG_Comparison!L46 -> 0 | E49: =Data_2008_2022_BG_Comparison!M46 -> 0 | F49: 0
B50: =IF(Data_2008_2022_BG_Comparison!I47="","",(CONCATENATE("CT ", Data_2008_2022_BG_Comparison!I47,", BG ",Data_2008_2022_BG_Comparison!J47))) ->  | C50: =Data_2008_2022_BG_Comparison!K47 -> 0 | D50: =Data_2008_2022_BG_Comparison!L47 -> 0 | E50: =Data_2008_2022_BG_Comparison!M47 -> 0 | F50: 0
B51: =IF(Data_2008_2022_BG_Comparison!I48="","",(CONCATENATE("CT ", Data_2008_2022_BG_Comparison!I48,", BG ",Data_2008_2022_BG_Comparison!J48))) ->  | C51: =Data_2008_2022_BG_Comparison!K48 -> 0 | D51: =Data_2008_2022_BG_Comparison!L48 -> 0 | E51: =Data_2008_2022_BG_Comparison!M48 -> 0 | F51: 0
B52: =IF(Data_2008_2022_BG_Comparison!I49="","",(CONCATENATE("CT ", Data_2008_2022_BG_Comparison!I49,", BG ",Data_2008_2022_BG_Comparison!J49))) ->  | C52: =Data_2008_2022_BG_Comparison!K49 -> 0 | D52: =Data_2008_2022_BG_Comparison!L49 -> 0 | E52: =Data_2008_2022_BG_Comparison!M49 -> 0 | F52: 0
B53: =IF(Data_2008_2022_BG_Comparison!I50="","",(CONCATENATE("CT ", Data_2008_2022_BG_Comparison!I50,", BG ",Data_2008_2022_BG_Comparison!J50))) ->  | C53: =Data_2008_2022_BG_Comparison!K50 -> 0 | D53: =Data_2008_2022_BG_Comparison!L50 -> 0 | E53: =Data_2008_2022_BG_Comparison!M50 -> 0 | F53: 0
B54: =IF(Data_2008_2022_BG_Comparison!I51="","",(CONCATENATE("CT ", Data_2008_2022_BG_Comparison!I51,", BG ",Data_2008_2022_BG_Comparison!J51))) ->  | C54: =Data_2008_2022_BG_Comparison!K51 -> 0 | D54: =Data_2008_2022_BG_Comparison!L51 -> 0 | E54: =Data_2008_2022_BG_Comparison!M51 -> 0 | F54: 0
B55: =IF(Data_2008_2022_BG_Comparison!I52="","",(CONCATENATE("CT ", Data_2008_2022_BG_Comparison!I52,", BG ",Data_2008_2022_BG_Comparison!J52))) ->  | C55: =Data_2008_2022_BG_Comparison!K52 -> 0 | D55: =Data_2008_2022_BG_Comparison!L52 -> 0 | E55: =Data_2008_2022_BG_Comparison!M52 -> 0 | F55: 0
B56: =IF(Data_2008_2022_BG_Comparison!I53="","",(CONCATENATE("CT ", Data_2008_2022_BG_Comparison!I53,", BG ",Data_2008_2022_BG_Comparison!J53))) ->  | C56: =Data_2008_2022_BG_Comparison!K53 -> 0 | D56: =Data_2008_2022_BG_Comparison!L53 -> 0 | E56: =Data_2008_2022_BG_Comparison!M53 -> 0 | F56: 0
B57: =IF(Data_2008_2022_BG_Comparison!I54="","",(CONCATENATE("CT ", Data_2008_2022_BG_Comparison!I54,", BG ",Data_2008_2022_BG_Comparison!J54))) ->  | C57: =Data_2008_2022_BG_Comparison!K54 -> 0 | D57: =Data_2008_2022_BG_Comparison!L54 -> 0 | E57: =Data_2008_2022_BG_Comparison!M54 -> 0 | F57: 0
B58: =IF(Data_2008_2022_BG_Comparison!I55="","",(CONCATENATE("CT ", Data_2008_2022_BG_Comparison!I55,", BG ",Data_2008_2022_BG_Comparison!J55))) ->  | C58: =Data_2008_2022_BG_Comparison!K55 -> 0 | D58: =Data_2008_2022_BG_Comparison!L55 -> 0 | E58: =Data_2008_2022_BG_Comparison!M55 -> 0 | F58: 0
B59: =IF(Data_2008_2022_BG_Comparison!I56="","",(CONCATENATE("CT ", Data_2008_2022_BG_Comparison!I56,", BG ",Data_2008_2022_BG_Comparison!J56))) ->  | C59: =Data_2008_2022_BG_Comparison!K56 -> 0 | D59: =Data_2008_2022_BG_Comparison!L56 -> 0 | E59: =Data_2008_2022_BG_Comparison!M56 -> 0 | F59: 0
B60: =IF(Data_2008_2022_BG_Comparison!I57="","",(CONCATENATE("CT ", Data_2008_2022_BG_Comparison!I57,", BG ",Data_2008_2022_BG_Comparison!J57))) ->  | C60: =Data_2008_2022_BG_Comparison!K57 -> 0 | D60: =Data_2008_2022_BG_Comparison!L57 -> 0 | E60: =Data_2008_2022_BG_Comparison!M57 -> 0 | F60: 0
B61: =IF(Data_2008_2022_BG_Comparison!I58="","",(CONCATENATE("CT ", Data_2008_2022_BG_Comparison!I58,", BG ",Data_2008_2022_BG_Comparison!J58))) ->  | C61: =Data_2008_2022_BG_Comparison!K58 -> 0 | D61: =Data_2008_2022_BG_Comparison!L58 -> 0 | E61: =Data_2008_2022_BG_Comparison!M58 -> 0 | F61: 0
B62: =IF(Data_2008_2022_BG_Comparison!I59="","",(CONCATENATE("CT ", Data_2008_2022_BG_Comparison!I59,", BG ",Data_2008_2022_BG_Comparison!J59))) ->  | C62: =Data_2008_2022_BG_Comparison!K59 -> 0 | D62: =Data_2008_2022_BG_Comparison!L59 -> 0 | E62: =Data_2008_2022_BG_Comparison!M59 -> 0 | F62: 0
B63: =IF(Data_2008_2022_BG_Comparison!I60="","",(CONCATENATE("CT ", Data_2008_2022_BG_Comparison!I60,", BG ",Data_2008_2022_BG_Comparison!J60))) ->  | C63: =Data_2008_2022_BG_Comparison!K60 -> 0 | D63: =Data_2008_2022_BG_Comparison!L60 -> 0 | E63: =Data_2008_2022_BG_Comparison!M60 -> 0 | F63: 0
B64: =IF(Data_2008_2022_BG_Comparison!I61="","",(CONCATENATE("CT ", Data_2008_2022_BG_Comparison!I61,", BG ",Data_2008_2022_BG_Comparison!J61))) ->  | C64: =Data_2008_2022_BG_Comparison!K61 -> 0 | D64: =Data_2008_2022_BG_Comparison!L61 -> 0 | E64: =Data_2008_2022_BG_Comparison!M61 -> 0 | F64: 0
B65: =IF(Data_2008_2022_BG_Comparison!I62="","",(CONCATENATE("CT ", Data_2008_2022_BG_Comparison!I62,", BG ",Data_2008_2022_BG_Comparison!J62))) ->  | C65: =Data_2008_2022_BG_Comparison!K62 -> 0 | D65: =Data_2008_2022_BG_Comparison!L62 -> 0 | E65: =Data_2008_2022_BG_Comparison!M62 -> 0 | F65: 0
B66: =IF(Data_2008_2022_BG_Comparison!I63="","",(CONCATENATE("CT ", Data_2008_2022_BG_Comparison!I63,", BG ",Data_2008_2022_BG_Comparison!J63))) ->  | C66: =Data_2008_2022_BG_Comparison!K63 -> 0 | D66: =Data_2008_2022_BG_Comparison!L63 -> 0 | E66: =Data_2008_2022_BG_Comparison!M63 -> 0 | F66: 0
B67: =IF(Data_2008_2022_BG_Comparison!I64="","",(CONCATENATE("CT ", Data_2008_2022_BG_Comparison!I64,", BG ",Data_2008_2022_BG_Comparison!J64))) ->  | C67: =Data_2008_2022_BG_Comparison!K64 -> 0 | D67: =Data_2008_2022_BG_Comparison!L64 -> 0 | E67: =Data_2008_2022_BG_Comparison!M64 -> 0 | F67: 0
B68: =IF(Data_2008_2022_BG_Comparison!I65="","",(CONCATENATE("CT ", Data_2008_2022_BG_Comparison!I65,", BG ",Data_2008_2022_BG_Comparison!J65))) ->  | C68: =Data_2008_2022_BG_Comparison!K65 -> 0 | D68: =Data_2008_2022_BG_Comparison!L65 -> 0 | E68: =Data_2008_2022_BG_Comparison!M65 -> 0 | F68: 0
B69: =IF(Data_2008_2022_BG_Comparison!I66="","",(CONCATENATE("CT ", Data_2008_2022_BG_Comparison!I66,", BG ",Data_2008_2022_BG_Comparison!J66))) ->  | C69: =Data_2008_2022_BG_Comparison!K66 -> 0 | D69: =Data_2008_2022_BG_Comparison!L66 -> 0 | E69: =Data_2008_2022_BG_Comparison!M66 -> 0 | F69: 0
B70: =IF(Data_2008_2022_BG_Comparison!I67="","",(CONCATENATE("CT ", Data_2008_2022_BG_Comparison!I67,", BG ",Data_2008_2022_BG_Comparison!J67))) ->  | C70: =Data_2008_2022_BG_Comparison!K67 -> 0 | D70: =Data_2008_2022_BG_Comparison!L67 -> 0 | E70: =Data_2008_2022_BG_Comparison!M67 -> 0 | F70: 0
B71: =IF(Data_2008_2022_BG_Comparison!I68="","",(CONCATENATE("CT ", Data_2008_2022_BG_Comparison!I68,", BG ",Data_2008_2022_BG_Comparison!J68))) ->  | C71: =Data_2008_2022_BG_Comparison!K68 -> 0 | D71: =Data_2008_2022_BG_Comparison!L68 -> 0 | E71: =Data_2008_2022_BG_Comparison!M68 -> 0 | F71: =IFERROR(E71-C71,"N/A") -> 0 | G71: =IF(C71+E71=0,"",IFERROR(F71/C71,"N/A")) ->  | H71: =IF(C71+E71=0,"",IFERROR((E71/C71)^(1/10)-1,"N/A")) -> 
B72: =IF(Data_2008_2022_BG_Comparison!I69="","",(CONCATENATE("CT ", Data_2008_2022_BG_Comparison!I69,", BG ",Data_2008_2022_BG_Comparison!J69))) ->  | C72: =Data_2008_2022_BG_Comparison!K69 -> 0 | D72: =Data_2008_2022_BG_Comparison!L69 -> 0 | E72: =Data_2008_2022_BG_Comparison!M69 -> 0 | F72: 0
B73: =IF(Data_2008_2022_BG_Comparison!I70="","",(CONCATENATE("CT ", Data_2008_2022_BG_Comparison!I70,", BG ",Data_2008_2022_BG_Comparison!J70))) ->  | C73: =Data_2008_2022_BG_Comparison!K70 -> 0 | D73: =Data_2008_2022_BG_Comparison!L70 -> 0 | E73: =Data_2008_2022_BG_Comparison!M70 -> 0 | F73: 0
B74: =IF(Data_2008_2022_BG_Comparison!I71="","",(CONCATENATE("CT ", Data_2008_2022_BG_Comparison!I71,", BG ",Data_2008_2022_BG_Comparison!J71))) ->  | C74: =Data_2008_2022_BG_Comparison!K71 -> 0 | D74: =Data_2008_2022_BG_Comparison!L71 -> 0 | E74: =Data_2008_2022_BG_Comparison!M71 -> 0 | F74: 0
B75: =IF(Data_2008_2022_BG_Comparison!I72="","",(CONCATENATE("CT ", Data_2008_2022_BG_Comparison!I72,", BG ",Data_2008_2022_BG_Comparison!J72))) ->  | C75: =Data_2008_2022_BG_Comparison!K72 -> 0 | D75: =Data_2008_2022_BG_Comparison!L72 -> 0 | E75: =Data_2008_2022_BG_Comparison!M72 -> 0 | F75: 0
B76: =IF(Data_2008_2022_BG_Comparison!I73="","",(CONCATENATE("CT ", Data_2008_2022_BG_Comparison!I73,", BG ",Data_2008_2022_BG_Comparison!J73))) ->  | C76: =Data_2008_2022_BG_Comparison!K73 -> 0 | D76: =Data_2008_2022_BG_Comparison!L73 -> 0 | E76: =Data_2008_2022_BG_Comparison!M73 -> 0 | F76: 0
B77: =IF(Data_2008_2022_BG_Comparison!I74="","",(CONCATENATE("CT ", Data_2008_2022_BG_Comparison!I74,", BG ",Data_2008_2022_BG_Comparison!J74))) ->  | C77: =Data_2008_2022_BG_Comparison!K74 -> 0 | D77: =Data_2008_2022_BG_Comparison!L74 -> 0 | E77: =Data_2008_2022_BG_Comparison!M74 -> 0 | F77: 0
B78: =IF(Data_2008_2022_BG_Comparison!I75="","",(CONCATENATE("CT ", Data_2008_2022_BG_Comparison!I75,", BG ",Data_2008_2022_BG_Comparison!J75))) ->  | C78: =Data_2008_2022_BG_Comparison!K75 -> 0 | D78: =Data_2008_2022_BG_Comparison!L75 -> 0 | E78: =Data_2008_2022_BG_Comparison!M75 -> 0 | F78: 0
B79: =IF(Data_2008_2022_BG_Comparison!I76="","",(CONCATENATE("CT ", Data_2008_2022_BG_Comparison!I76,", BG ",Data_2008_2022_BG_Comparison!J76))) ->  | C79: =Data_2008_2022_BG_Comparison!K76 -> 0 | D79: =Data_2008_2022_BG_Comparison!L76 -> 0 | E79: =Data_2008_2022_BG_Comparison!M76 -> 0 | F79: 0
B80: =IF(Data_2008_2022_BG_Comparison!I77="","",(CONCATENATE("CT ", Data_2008_2022_BG_Comparison!I77,", BG ",Data_2008_2022_BG_Comparison!J77))) ->  | C80: =Data_2008_2022_BG_Comparison!K77 -> 0 | D80: =Data_2008_2022_BG_Comparison!L77 -> 0 | E80: =Data_2008_2022_BG_Comparison!M77 -> 0 | F80: 0
B81: =IF(Data_2008_2022_BG_Comparison!I78="","",(CONCATENATE("CT ", Data_2008_2022_BG_Comparison!I78,", BG ",Data_2008_2022_BG_Comparison!J78))) ->  | C81: =Data_2008_2022_BG_Comparison!K78 -> 0 | D81: =Data_2008_2022_BG_Comparison!L78 -> 0 | E81: =Data_2008_2022_BG_Comparison!M78 -> 0 | F81: 0
B82: =IF(Data_2008_2022_BG_Comparison!I79="","",(CONCATENATE("CT ", Data_2008_2022_BG_Comparison!I79,", BG ",Data_2008_2022_BG_Comparison!J79))) ->  | C82: =Data_2008_2022_BG_Comparison!K79 -> 0 | D82: =Data_2008_2022_BG_Comparison!L79 -> 0 | E82: =Data_2008_2022_BG_Comparison!M79 -> 0 | F82: 0
B83: =IF(Data_2008_2022_BG_Comparison!I80="","",(CONCATENATE("CT ", Data_2008_2022_BG_Comparison!I80,", BG ",Data_2008_2022_BG_Comparison!J80))) ->  | C83: =Data_2008_2022_BG_Comparison!K80 -> 0 | D83: =Data_2008_2022_BG_Comparison!L80 -> 0 | E83: =Data_2008_2022_BG_Comparison!M80 -> 0 | F83: 0
B84: =IF(Data_2008_2022_BG_Comparison!I81="","",(CONCATENATE("CT ", Data_2008_2022_BG_Comparison!I81,", BG ",Data_2008_2022_BG_Comparison!J81))) ->  | C84: =Data_2008_2022_BG_Comparison!K81 -> 0 | D84: =Data_2008_2022_BG_Comparison!L81 -> 0 | E84: =Data_2008_2022_BG_Comparison!M81 -> 0 | F84: 0
B85: =IF(Data_2008_2022_BG_Comparison!I82="","",(CONCATENATE("CT ", Data_2008_2022_BG_Comparison!I82,", BG ",Data_2008_2022_BG_Comparison!J82))) ->  | C85: =Data_2008_2022_BG_Comparison!K82 -> 0 | D85: =Data_2008_2022_BG_Comparison!L82 -> 0 | E85: =Data_2008_2022_BG_Comparison!M82 -> 0 | F85: 0
B86: =IF(Data_2008_2022_BG_Comparison!I83="","",(CONCATENATE("CT ", Data_2008_2022_BG_Comparison!I83,", BG ",Data_2008_2022_BG_Comparison!J83))) ->  | C86: =Data_2008_2022_BG_Comparison!K83 -> 0 | D86: =Data_2008_2022_BG_Comparison!L83 -> 0 | E86: =Data_2008_2022_BG_Comparison!M83 -> 0 | F86: 0
B87: =IF(Data_2008_2022_BG_Comparison!I84="","",(CONCATENATE("CT ", Data_2008_2022_BG_Comparison!I84,", BG ",Data_2008_2022_BG_Comparison!J84))) ->  | C87: =Data_2008_2022_BG_Comparison!K84 -> 0 | D87: =Data_2008_2022_BG_Comparison!L84 -> 0 | E87: =Data_2008_2022_BG_Comparison!M84 -> 0 | F87: 0
B88: =IF(Data_2008_2022_BG_Comparison!I85="","",(CONCATENATE("CT ", Data_2008_2022_BG_Comparison!I85,", BG ",Data_2008_2022_BG_Comparison!J85))) ->  | C88: =Data_2008_2022_BG_Comparison!K85 -> 0 | D88: =Data_2008_2022_BG_Comparison!L85 -> 0 | E88: =Data_2008_2022_BG_Comparison!M85 -> 0 | F88: 0
B89: =IF(Data_2008_2022_BG_Comparison!I86="","",(CONCATENATE("CT ", Data_2008_2022_BG_Comparison!I86,", BG ",Data_2008_2022_BG_Comparison!J86))) ->  | C89: =Data_2008_2022_BG_Comparison!K86 -> 0 | D89: =Data_2008_2022_BG_Comparison!L86 -> 0 | E89: =Data_2008_2022_BG_Comparison!M86 -> 0 | F89: 0
B90: =IF(Data_2008_2022_BG_Comparison!I87="","",(CONCATENATE("CT ", Data_2008_2022_BG_Comparison!I87,", BG ",Data_2008_2022_BG_Comparison!J87))) ->  | C90: =Data_2008_2022_BG_Comparison!K87 -> 0 | D90: =Data_2008_2022_BG_Comparison!L87 -> 0 | E90: =Data_2008_2022_BG_Comparison!M87 -> 0 | F90: 0
B91: =IF(Data_2008_2022_BG_Comparison!I88="","",(CONCATENATE("CT ", Data_2008_2022_BG_Comparison!I88,", BG ",Data_2008_2022_BG_Comparison!J88))) ->  | C91: =Data_2008_2022_BG_Comparison!K88 -> 0 | D91: =Data_2008_2022_BG_Comparison!L88 -> 0 | E91: =Data_2008_2022_BG_Comparison!M88 -> 0 | F91: 0
B92: =IF(Data_2008_2022_BG_Comparison!I89="","",(CONCATENATE("CT ", Data_2008_2022_BG_Comparison!I89,", BG ",Data_2008_2022_BG_Comparison!J89))) ->  | C92: =Data_2008_2022_BG_Comparison!K89 -> 0 | D92: =Data_2008_2022_BG_Comparison!L89 -> 0 | E92: =Data_2008_2022_BG_Comparison!M89 -> 0 | F92: 0
B93: =IF(Data_2008_2022_BG_Comparison!I90="","",(CONCATENATE("CT ", Data_2008_2022_BG_Comparison!I90,", BG ",Data_2008_2022_BG_Comparison!J90))) ->  | C93: =Data_2008_2022_BG_Comparison!K90 -> 0 | D93: =Data_2008_2022_BG_Comparison!L90 -> 0 | E93: =Data_2008_2022_BG_Comparison!M90 -> 0 | F93: 0
B94: =IF(Data_2008_2022_BG_Comparison!I91="","",(CONCATENATE("CT ", Data_2008_2022_BG_Comparison!I91,", BG ",Data_2008_2022_BG_Comparison!J91))) ->  | C94: =Data_2008_2022_BG_Comparison!K91 -> 0 | D94: =Data_2008_2022_BG_Comparison!L91 -> 0 | E94: =Data_2008_2022_BG_Comparison!M91 -> 0 | F94: 0
B95: =IF(Data_2008_2022_BG_Comparison!I92="","",(CONCATENATE("CT ", Data_2008_2022_BG_Comparison!I92,", BG ",Data_2008_2022_BG_Comparison!J92))) ->  | C95: =Data_2008_2022_BG_Comparison!K92 -> 0 | D95: =Data_2008_2022_BG_Comparison!L92 -> 0 | E95: =Data_2008_2022_BG_Comparison!M92 -> 0 | F95: 0
B96: =IF(Data_2008_2022_BG_Comparison!I93="","",(CONCATENATE("CT ", Data_2008_2022_BG_Comparison!I93,", BG ",Data_2008_2022_BG_Comparison!J93))) ->  | C96: =Data_2008_2022_BG_Comparison!K93 -> 0 | D96: =Data_2008_2022_BG_Comparison!L93 -> 0 | E96: =Data_2008_2022_BG_Comparison!M93 -> 0 | F96: 0
B97: =IF(Data_2008_2022_BG_Comparison!I94="","",(CONCATENATE("CT ", Data_2008_2022_BG_Comparison!I94,", BG ",Data_2008_2022_BG_Comparison!J94))) ->  | C97: =Data_2008_2022_BG_Comparison!K94 -> 0 | D97: =Data_2008_2022_BG_Comparison!L94 -> 0 | E97: =Data_2008_2022_BG_Comparison!M94 -> 0 | F97: 0
B98: =IF(Data_2008_2022_BG_Comparison!I95="","",(CONCATENATE("CT ", Data_2008_2022_BG_Comparison!I95,", BG ",Data_2008_2022_BG_Comparison!J95))) ->  | C98: =Data_2008_2022_BG_Comparison!K95 -> 0 | D98: =Data_2008_2022_BG_Comparison!L95 -> 0 | E98: =Data_2008_2022_BG_Comparison!M95 -> 0 | F98: 0
B99: =IF(Data_2008_2022_BG_Comparison!I96="","",(CONCATENATE("CT ", Data_2008_2022_BG_Comparison!I96,", BG ",Data_2008_2022_BG_Comparison!J96))) ->  | C99: =Data_2008_2022_BG_Comparison!K96 -> 0 | D99: =Data_2008_2022_BG_Comparison!L96 -> 0 | E99: =Data_2008_2022_BG_Comparison!M96 -> 0 | F99: 0
B100: =IF(Data_2008_2022_BG_Comparison!I97="","",(CONCATENATE("CT ", Data_2008_2022_BG_Comparison!I97,", BG ",Data_2008_2022_BG_Comparison!J97))) ->  | C100: =Data_2008_2022_BG_Comparison!K97 -> 0 | D100: =Data_2008_2022_BG_Comparison!L97 -> 0 | E100: =Data_2008_2022_BG_Comparison!M97 -> 0 | F100: 0
B101: =IF(Data_2008_2022_BG_Comparison!I98="","",(CONCATENATE("CT ", Data_2008_2022_BG_Comparison!I98,", BG ",Data_2008_2022_BG_Comparison!J98))) ->  | C101: =Data_2008_2022_BG_Comparison!K98 -> 0 | D101: =Data_2008_2022_BG_Comparison!L98 -> 0 | E101: =Data_2008_2022_BG_Comparison!M98 -> 0 | F101: 0
B102: =IF(Data_2008_2022_BG_Comparison!I99="","",(CONCATENATE("CT ", Data_2008_2022_BG_Comparison!I99,", BG ",Data_2008_2022_BG_Comparison!J99))) ->  | C102: =Data_2008_2022_BG_Comparison!K99 -> 0 | D102: =Data_2008_2022_BG_Comparison!L99 -> 0 | E102: =Data_2008_2022_BG_Comparison!M99 -> 0 | F102: 0
B103: =IF(Data_2008_2022_BG_Comparison!I100="","",(CONCATENATE("CT ", Data_2008_2022_BG_Comparison!I100,", BG ",Data_2008_2022_BG_Comparison!J100))) ->  | C103: =Data_2008_2022_BG_Comparison!K100 -> 0 | D103: =Data_2008_2022_BG_Comparison!L100 -> 0 | E103: =Data_2008_2022_BG_Comparison!M100 -> 0 | F103: 0
B104: =IF(Data_2008_2022_BG_Comparison!I101="","",(CONCATENATE("CT ", Data_2008_2022_BG_Comparison!I101,", BG ",Data_2008_2022_BG_Comparison!J101))) ->  | C104: =Data_2008_2022_BG_Comparison!K101 -> 0 | D104: =Data_2008_2022_BG_Comparison!L101 -> 0 | E104: =Data_2008_2022_BG_Comparison!M101 -> 0 | F104: 0
B105: =IF(Data_2008_2022_BG_Comparison!I102="","",(CONCATENATE("CT ", Data_2008_2022_BG_Comparison!I102,", BG ",Data_2008_2022_BG_Comparison!J102))) ->  | C105: =Data_2008_2022_BG_Comparison!K102 -> 0 | D105: =Data_2008_2022_BG_Comparison!L102 -> 0 | E105: =Data_2008_2022_BG_Comparison!M102 -> 0 | F105: 0
B106: =IF(Data_2008_2022_BG_Comparison!I103="","",(CONCATENATE("CT ", Data_2008_2022_BG_Comparison!I103,", BG ",Data_2008_2022_BG_Comparison!J103))) ->  | C106: =Data_2008_2022_BG_Comparison!K103 -> 0 | D106: =Data_2008_2022_BG_Comparison!L103 -> 0 | E106: =Data_2008_2022_BG_Comparison!M103 -> 0 | F106: 0
B107: =IF(Data_2008_2022_BG_Comparison!I104="","",(CONCATENATE("CT ", Data_2008_2022_BG_Comparison!I104,", BG ",Data_2008_2022_BG_Comparison!J104))) ->  | C107: =Data_2008_2022_BG_Comparison!K104 -> 0 | D107: =Data_2008_2022_BG_Comparison!L104 -> 0 | E107: =Data_2008_2022_BG_Comparison!M104 -> 0 | F107: 0
B108: =IF(Data_2008_2022_BG_Comparison!I105="","",(CONCATENATE("CT ", Data_2008_2022_BG_Comparison!I105,", BG ",Data_2008_2022_BG_Comparison!J105))) ->  | C108: =Data_2008_2022_BG_Comparison!K105 -> 0 | D108: =Data_2008_2022_BG_Comparison!L105 -> 0 | E108: =Data_2008_2022_BG_Comparison!M105 -> 0 | F108: 0
B109: =IF(Data_2008_2022_BG_Comparison!I106="","",(CONCATENATE("CT ", Data_2008_2022_BG_Comparison!I106,", BG ",Data_2008_2022_BG_Comparison!J106))) ->  | C109: =Data_2008_2022_BG_Comparison!K106 -> 0 | D109: =Data_2008_2022_BG_Comparison!L106 -> 0 | E109: =Data_2008_2022_BG_Comparison!M106 -> 0 | F109: 0
B110: =IF(Data_2008_2022_BG_Comparison!I107="","",(CONCATENATE("CT ", Data_2008_2022_BG_Comparison!I107,", BG ",Data_2008_2022_BG_Comparison!J107))) ->  | C110: =Data_2008_2022_BG_Comparison!K107 -> 0 | D110: =Data_2008_2022_BG_Comparison!L107 -> 0 | E110: =Data_2008_2022_BG_Comparison!M107 -> 0 | F110: 0
B111: =IF(Data_2008_2022_BG_Comparison!I108="","",(CONCATENATE("CT ", Data_2008_2022_BG_Comparison!I108,", BG ",Data_2008_2022_BG_Comparison!J108))) ->  | C111: =Data_2008_2022_BG_Comparison!K108 -> 0 | D111: =Data_2008_2022_BG_Comparison!L108 -> 0 | E111: =Data_2008_2022_BG_Comparison!M108 -> 0 | F111: 0
B112: =IF(Data_2008_2022_BG_Comparison!I109="","",(CONCATENATE("CT ", Data_2008_2022_BG_Comparison!I109,", BG ",Data_2008_2022_BG_Comparison!J109))) ->  | C112: =Data_2008_2022_BG_Comparison!K109 -> 0 | D112: =Data_2008_2022_BG_Comparison!L109 -> 0 | E112: =Data_2008_2022_BG_Comparison!M109 -> 0 | F112: 0
B113: =IF(Data_2008_2022_BG_Comparison!I110="","",(CONCATENATE("CT ", Data_2008_2022_BG_Comparison!I110,", BG ",Data_2008_2022_BG_Comparison!J110))) ->  | C113: =Data_2008_2022_BG_Comparison!K110 -> 0 | D113: =Data_2008_2022_BG_Comparison!L110 -> 0 | E113: =Data_2008_2022_BG_Comparison!M110 -> 0 | F113: 0
B114: =IF(Data_2008_2022_BG_Comparison!I111="","",(CONCATENATE("CT ", Data_2008_2022_BG_Comparison!I111,", BG ",Data_2008_2022_BG_Comparison!J111))) ->  | C114: =Data_2008_2022_BG_Comparison!K111 -> 0 | D114: =Data_2008_2022_BG_Comparison!L111 -> 0 | E114: =Data_2008_2022_BG_Comparison!M111 -> 0 | F114: 0
B115: =IF(Data_2008_2022_BG_Comparison!I112="","",(CONCATENATE("CT ", Data_2008_2022_BG_Comparison!I112,", BG ",Data_2008_2022_BG_Comparison!J112))) ->  | C115: =Data_2008_2022_BG_Comparison!K112 -> 0 | D115: =Data_2008_2022_BG_Comparison!L112 -> 0 | E115: =Data_2008_2022_BG_Comparison!M112 -> 0 | F115: 0
B116: =IF(Data_2008_2022_BG_Comparison!I113="","",(CONCATENATE("CT ", Data_2008_2022_BG_Comparison!I113,", BG ",Data_2008_2022_BG_Comparison!J113))) ->  | C116: =Data_2008_2022_BG_Comparison!K113 -> 0 | D116: =Data_2008_2022_BG_Comparison!L113 -> 0 | E116: =Data_2008_2022_BG_Comparison!M113 -> 0 | F116: 0
B117: =IF(Data_2008_2022_BG_Comparison!I114="","",(CONCATENATE("CT ", Data_2008_2022_BG_Comparison!I114,", BG ",Data_2008_2022_BG_Comparison!J114))) ->  | C117: =Data_2008_2022_BG_Comparison!K114 -> 0 | D117: =Data_2008_2022_BG_Comparison!L114 -> 0 | E117: =Data_2008_2022_BG_Comparison!M114 -> 0 | F117: 0
B118: =IF(Data_2008_2022_BG_Comparison!I115="","",(CONCATENATE("CT ", Data_2008_2022_BG_Comparison!I115,", BG ",Data_2008_2022_BG_Comparison!J115))) ->  | C118: =Data_2008_2022_BG_Comparison!K115 -> 0 | D118: =Data_2008_2022_BG_Comparison!L115 -> 0 | E118: =Data_2008_2022_BG_Comparison!M115 -> 0 | F118: 0
B119: =IF(Data_2008_2022_BG_Comparison!I116="","",(CONCATENATE("CT ", Data_2008_2022_BG_Comparison!I116,", BG ",Data_2008_2022_BG_Comparison!J116))) ->  | C119: =Data_2008_2022_BG_Comparison!K116 -> 0 | D119: =Data_2008_2022_BG_Comparison!L116 -> 0 | E119: =Data_2008_2022_BG_Comparison!M116 -> 0 | F119: 0
B120: =IF(Data_2008_2022_BG_Comparison!I117="","",(CONCATENATE("CT ", Data_2008_2022_BG_Comparison!I117,", BG ",Data_2008_2022_BG_Comparison!J117))) ->  | C120: =Data_2008_2022_BG_Comparison!K117 -> 0 | D120: =Data_2008_2022_BG_Comparison!L117 -> 0 | E120: =Data_2008_2022_BG_Comparison!M117 -> 0 | F120: 0
B121: =IF(Data_2008_2022_BG_Comparison!I118="","",(CONCATENATE("CT ", Data_2008_2022_BG_Comparison!I118,", BG ",Data_2008_2022_BG_Comparison!J118))) ->  | C121: =Data_2008_2022_BG_Comparison!K118 -> 0 | D121: =Data_2008_2022_BG_Comparison!L118 -> 0 | E121: =Data_2008_2022_BG_Comparison!M118 -> 0 | F121: 0
B122: =IF(Data_2008_2022_BG_Comparison!I119="","",(CONCATENATE("CT ", Data_2008_2022_BG_Comparison!I119,", BG ",Data_2008_2022_BG_Comparison!J119))) ->  | C122: =Data_2008_2022_BG_Comparison!K119 -> 0 | D122: =Data_2008_2022_BG_Comparison!L119 -> 0 | E122: =Data_2008_2022_BG_Comparison!M119 -> 0 | F122: 0
B123: =IF(Data_2008_2022_BG_Comparison!I120="","",(CONCATENATE("CT ", Data_2008_2022_BG_Comparison!I120,", BG ",Data_2008_2022_BG_Comparison!J120))) ->  | C123: =Data_2008_2022_BG_Comparison!K120 -> 0 | D123: =Data_2008_2022_BG_Comparison!L120 -> 0 | E123: =Data_2008_2022_BG_Comparison!M120 -> 0 | F123: 0
B124: =IF(Data_2008_2022_BG_Comparison!I121="","",(CONCATENATE("CT ", Data_2008_2022_BG_Comparison!I121,", BG ",Data_2008_2022_BG_Comparison!J121))) ->  | C124: =Data_2008_2022_BG_Comparison!K121 -> 0 | D124: =Data_2008_2022_BG_Comparison!L121 -> 0 | E124: =Data_2008_2022_BG_Comparison!M121 -> 0 | F124: 0
B125: =IF(Data_2008_2022_BG_Comparison!I122="","",(CONCATENATE("CT ", Data_2008_2022_BG_Comparison!I122,", BG ",Data_2008_2022_BG_Comparison!J122))) ->  | C125: =Data_2008_2022_BG_Comparison!K122 -> 0 | D125: =Data_2008_2022_BG_Comparison!L122 -> 0 | E125: =Data_2008_2022_BG_Comparison!M122 -> 0 | F125: 0
B126: =IF(Data_2008_2022_BG_Comparison!I123="","",(CONCATENATE("CT ", Data_2008_2022_BG_Comparison!I123,", BG ",Data_2008_2022_BG_Comparison!J123))) ->  | C126: =Data_2008_2022_BG_Comparison!K123 -> 0 | D126: =Data_2008_2022_BG_Comparison!L123 -> 0 | E126: =Data_2008_2022_BG_Comparison!M123 -> 0 | F126: 0
B127: =IF(Data_2008_2022_BG_Comparison!I124="","",(CONCATENATE("CT ", Data_2008_2022_BG_Comparison!I124,", BG ",Data_2008_2022_BG_Comparison!J124))) ->  | C127: =Data_2008_2022_BG_Comparison!K124 -> 0 | D127: =Data_2008_2022_BG_Comparison!L124 -> 0 | E127: =Data_2008_2022_BG_Comparison!M124 -> 0 | F127: 0
B128: =IF(Data_2008_2022_BG_Comparison!I125="","",(CONCATENATE("CT ", Data_2008_2022_BG_Comparison!I125,", BG ",Data_2008_2022_BG_Comparison!J125))) ->  | C128: =Data_2008_2022_BG_Comparison!K125 -> 0 | D128: =Data_2008_2022_BG_Comparison!L125 -> 0 | E128: =Data_2008_2022_BG_Comparison!M125 -> 0 | F128: 0
B129: =IF(Data_2008_2022_BG_Comparison!I126="","",(CONCATENATE("CT ", Data_2008_2022_BG_Comparison!I126,", BG ",Data_2008_2022_BG_Comparison!J126))) ->  | C129: =Data_2008_2022_BG_Comparison!K126 -> 0 | D129: =Data_2008_2022_BG_Comparison!L126 -> 0 | E129: =Data_2008_2022_BG_Comparison!M126 -> 0 | F129: 0
B130: =IF(Data_2008_2022_BG_Comparison!I127="","",(CONCATENATE("CT ", Data_2008_2022_BG_Comparison!I127,", BG ",Data_2008_2022_BG_Comparison!J127))) ->  | C130: =Data_2008_2022_BG_Comparison!K127 -> 0 | D130: =Data_2008_2022_BG_Comparison!L127 -> 0 | E130: =Data_2008_2022_BG_Comparison!M127 -> 0 | F130: 0
B131: =IF(Data_2008_2022_BG_Comparison!I128="","",(CONCATENATE("CT ", Data_2008_2022_BG_Comparison!I128,", BG ",Data_2008_2022_BG_Comparison!J128))) ->  | C131: =Data_2008_2022_BG_Comparison!K128 -> 0 | D131: =Data_2008_2022_BG_Comparison!L128 -> 0 | E131: =Data_2008_2022_BG_Comparison!M128 -> 0 | F131: 0
B132: =IF(Data_2008_2022_BG_Comparison!I129="","",(CONCATENATE("CT ", Data_2008_2022_BG_Comparison!I129,", BG ",Data_2008_2022_BG_Comparison!J129))) ->  | C132: =Data_2008_2022_BG_Comparison!K129 -> 0 | D132: =Data_2008_2022_BG_Comparison!L129 -> 0 | E132: =Data_2008_2022_BG_Comparison!M129 -> 0 | F132: 0
B133: =IF(Data_2008_2022_BG_Comparison!I130="","",(CONCATENATE("CT ", Data_2008_2022_BG_Comparison!I130,", BG ",Data_2008_2022_BG_Comparison!J130))) ->  | C133: =Data_2008_2022_BG_Comparison!K130 -> 0 | D133: =Data_2008_2022_BG_Comparison!L130 -> 0 | E133: =Data_2008_2022_BG_Comparison!M130 -> 0 | F133: 0
B134: =IF(Data_2008_2022_BG_Comparison!I131="","",(CONCATENATE("CT ", Data_2008_2022_BG_Comparison!I131,", BG ",Data_2008_2022_BG_Comparison!J131))) ->  | C134: =Data_2008_2022_BG_Comparison!K131 -> 0 | D134: =Data_2008_2022_BG_Comparison!L131 -> 0 | E134: =Data_2008_2022_BG_Comparison!M131 -> 0 | F134: 0
B135: =IF(Data_2008_2022_BG_Comparison!I132="","",(CONCATENATE("CT ", Data_2008_2022_BG_Comparison!I132,", BG ",Data_2008_2022_BG_Comparison!J132))) ->  | C135: =Data_2008_2022_BG_Comparison!K132 -> 0 | D135: =Data_2008_2022_BG_Comparison!L132 -> 0 | E135: =Data_2008_2022_BG_Comparison!M132 -> 0 | F135: =IFERROR(E135-C135,"N/A") -> 0 | G135: =IF(C135+E135=0,"",IFERROR(F135/C135,"N/A")) ->  | H135: =IF(C135+E135=0,"",IFERROR((E135/C135)^(1/10)-1,"N/A")) -> 
B136: =IF(Data_2008_2022_BG_Comparison!I133="","",(CONCATENATE("CT ", Data_2008_2022_BG_Comparison!I133,", BG ",Data_2008_2022_BG_Comparison!J133))) ->  | C136: =Data_2008_2022_BG_Comparison!K133 -> 0 | D136: =Data_2008_2022_BG_Comparison!L133 -> 0 | E136: =Data_2008_2022_BG_Comparison!M133 -> 0 | F136: 0
B137: =IF(Data_2008_2022_BG_Comparison!I134="","",(CONCATENATE("CT ", Data_2008_2022_BG_Comparison!I134,", BG ",Data_2008_2022_BG_Comparison!J134))) ->  | C137: =Data_2008_2022_BG_Comparison!K134 -> 0 | D137: =Data_2008_2022_BG_Comparison!L134 -> 0 | E137: =Data_2008_2022_BG_Comparison!M134 -> 0 | F137: 0
B138: =IF(Data_2008_2022_BG_Comparison!I135="","",(CONCATENATE("CT ", Data_2008_2022_BG_Comparison!I135,", BG ",Data_2008_2022_BG_Comparison!J135))) ->  | C138: =Data_2008_2022_BG_Comparison!K135 -> 0 | D138: =Data_2008_2022_BG_Comparison!L135 -> 0 | E138: =Data_2008_2022_BG_Comparison!M135 -> 0 | F138: 0
B139: =IF(Data_2008_2022_BG_Comparison!I136="","",(CONCATENATE("CT ", Data_2008_2022_BG_Comparison!I136,", BG ",Data_2008_2022_BG_Comparison!J136))) ->  | C139: =Data_2008_2022_BG_Comparison!K136 -> 0 | D139: =Data_2008_2022_BG_Comparison!L136 -> 0 | E139: =Data_2008_2022_BG_Comparison!M136 -> 0 | F139: 0
B140: =IF(Data_2008_2022_BG_Comparison!I137="","",(CONCATENATE("CT ", Data_2008_2022_BG_Comparison!I137,", BG ",Data_2008_2022_BG_Comparison!J137))) ->  | C140: =Data_2008_2022_BG_Comparison!K137 -> 0 | D140: =Data_2008_2022_BG_Comparison!L137 -> 0 | E140: =Data_2008_2022_BG_Comparison!M137 -> 0 | F140: 0
B141: =IF(Data_2008_2022_BG_Comparison!I138="","",(CONCATENATE("CT ", Data_2008_2022_BG_Comparison!I138,", BG ",Data_2008_2022_BG_Comparison!J138))) ->  | C141: =Data_2008_2022_BG_Comparison!K138 -> 0 | D141: =Data_2008_2022_BG_Comparison!L138 -> 0 | E141: =Data_2008_2022_BG_Comparison!M138 -> 0 | F141: 0
B142: =IF(Data_2008_2022_BG_Comparison!I139="","",(CONCATENATE("CT ", Data_2008_2022_BG_Comparison!I139,", BG ",Data_2008_2022_BG_Comparison!J139))) ->  | C142: =Data_2008_2022_BG_Comparison!K139 -> 0 | D142: =Data_2008_2022_BG_Comparison!L139 -> 0 | E142: =Data_2008_2022_BG_Comparison!M139 -> 0 | F142: 0
B143: =IF(Data_2008_2022_BG_Comparison!I140="","",(CONCATENATE("CT ", Data_2008_2022_BG_Comparison!I140,", BG ",Data_2008_2022_BG_Comparison!J140))) ->  | C143: =Data_2008_2022_BG_Comparison!K140 -> 0 | D143: =Data_2008_2022_BG_Comparison!L140 -> 0 | E143: =Data_2008_2022_BG_Comparison!M140 -> 0 | F143: 0
B144: =IF(Data_2008_2022_BG_Comparison!I141="","",(CONCATENATE("CT ", Data_2008_2022_BG_Comparison!I141,", BG ",Data_2008_2022_BG_Comparison!J141))) ->  | C144: =Data_2008_2022_BG_Comparison!K141 -> 0 | D144: =Data_2008_2022_BG_Comparison!L141 -> 0 | E144: =Data_2008_2022_BG_Comparison!M141 -> 0 | F144: 0
B145: =IF(Data_2008_2022_BG_Comparison!I142="","",(CONCATENATE("CT ", Data_2008_2022_BG_Comparison!I142,", BG ",Data_2008_2022_BG_Comparison!J142))) ->  | C145: =Data_2008_2022_BG_Comparison!K142 -> 0 | D145: =Data_2008_2022_BG_Comparison!L142 -> 0 | E145: =Data_2008_2022_BG_Comparison!M142 -> 0 | F145: 0
B146: =IF(Data_2008_2022_BG_Comparison!I143="","",(CONCATENATE("CT ", Data_2008_2022_BG_Comparison!I143,", BG ",Data_2008_2022_BG_Comparison!J143))) ->  | C146: =Data_2008_2022_BG_Comparison!K143 -> 0 | D146: =Data_2008_2022_BG_Comparison!L143 -> 0 | E146: =Data_2008_2022_BG_Comparison!M143 -> 0 | F146: 0
B147: =IF(Data_2008_2022_BG_Comparison!I144="","",(CONCATENATE("CT ", Data_2008_2022_BG_Comparison!I144,", BG ",Data_2008_2022_BG_Comparison!J144))) ->  | C147: =Data_2008_2022_BG_Comparison!K144 -> 0 | D147: =Data_2008_2022_BG_Comparison!L144 -> 0 | E147: =Data_2008_2022_BG_Comparison!M144 -> 0 | F147: 0
B148: =IF(Data_2008_2022_BG_Comparison!I145="","",(CONCATENATE("CT ", Data_2008_2022_BG_Comparison!I145,", BG ",Data_2008_2022_BG_Comparison!J145))) ->  | C148: =Data_2008_2022_BG_Comparison!K145 -> 0 | D148: =Data_2008_2022_BG_Comparison!L145 -> 0 | E148: =Data_2008_2022_BG_Comparison!M145 -> 0 | F148: 0
B149: =IF(Data_2008_2022_BG_Comparison!I146="","",(CONCATENATE("CT ", Data_2008_2022_BG_Comparison!I146,", BG ",Data_2008_2022_BG_Comparison!J146))) ->  | C149: =Data_2008_2022_BG_Comparison!K146 -> 0 | D149: =Data_2008_2022_BG_Comparison!L146 -> 0 | E149: =Data_2008_2022_BG_Comparison!M146 -> 0 | F149: 0
B150: =IF(Data_2008_2022_BG_Comparison!I147="","",(CONCATENATE("CT ", Data_2008_2022_BG_Comparison!I147,", BG ",Data_2008_2022_BG_Comparison!J147))) ->  | C150: =Data_2008_2022_BG_Comparison!K147 -> 0 | D150: =Data_2008_2022_BG_Comparison!L147 -> 0 | E150: =Data_2008_2022_BG_Comparison!M147 -> 0 | F150: 0
B151: =IF(Data_2008_2022_BG_Comparison!I148="","",(CONCATENATE("CT ", Data_2008_2022_BG_Comparison!I148,", BG ",Data_2008_2022_BG_Comparison!J148))) ->  | C151: =Data_2008_2022_BG_Comparison!K148 -> 0 | D151: =Data_2008_2022_BG_Comparison!L148 -> 0 | E151: =Data_2008_2022_BG_Comparison!M148 -> 0 | F151: 0
B152: =IF(Data_2008_2022_BG_Comparison!I149="","",(CONCATENATE("CT ", Data_2008_2022_BG_Comparison!I149,", BG ",Data_2008_2022_BG_Comparison!J149))) ->  | C152: =Data_2008_2022_BG_Comparison!K149 -> 0 | D152: =Data_2008_2022_BG_Comparison!L149 -> 0 | E152: =Data_2008_2022_BG_Comparison!M149 -> 0 | F152: 0
B153: =IF(Data_2008_2022_BG_Comparison!I150="","",(CONCATENATE("CT ", Data_2008_2022_BG_Comparison!I150,", BG ",Data_2008_2022_BG_Comparison!J150))) ->  | C153: =Data_2008_2022_BG_Comparison!K150 -> 0 | D153: =Data_2008_2022_BG_Comparison!L150 -> 0 | E153: =Data_2008_2022_BG_Comparison!M150 -> 0 | F153: 0
B154: =IF(Data_2008_2022_BG_Comparison!I151="","",(CONCATENATE("CT ", Data_2008_2022_BG_Comparison!I151,", BG ",Data_2008_2022_BG_Comparison!J151))) ->  | C154: =Data_2008_2022_BG_Comparison!K151 -> 0 | D154: =Data_2008_2022_BG_Comparison!L151 -> 0 | E154: =Data_2008_2022_BG_Comparison!M151 -> 0 | F154: 0
B155: =IF(Data_2008_2022_BG_Comparison!I152="","",(CONCATENATE("CT ", Data_2008_2022_BG_Comparison!I152,", BG ",Data_2008_2022_BG_Comparison!J152))) ->  | C155: =Data_2008_2022_BG_Comparison!K152 -> 0 | D155: =Data_2008_2022_BG_Comparison!L152 -> 0 | E155: =Data_2008_2022_BG_Comparison!M152 -> 0 | F155: 0
B156: =IF(Data_2008_2022_BG_Comparison!I153="","",(CONCATENATE("CT ", Data_2008_2022_BG_Comparison!I153,", BG ",Data_2008_2022_BG_Comparison!J153))) ->  | C156: =Data_2008_2022_BG_Comparison!K153 -> 0 | D156: =Data_2008_2022_BG_Comparison!L153 -> 0 | E156: =Data_2008_2022_BG_Comparison!M153 -> 0 | F156: 0
B157: =IF(Data_2008_2022_BG_Comparison!I154="","",(CONCATENATE("CT ", Data_2008_2022_BG_Comparison!I154,", BG ",Data_2008_2022_BG_Comparison!J154))) ->  | C157: =Data_2008_2022_BG_Comparison!K154 -> 0 | D157: =Data_2008_2022_BG_Comparison!L154 -> 0 | E157: =Data_2008_2022_BG_Comparison!M154 -> 0 | F157: 0
B158: =IF(Data_2008_2022_BG_Comparison!I155="","",(CONCATENATE("CT ", Data_2008_2022_BG_Comparison!I155,", BG ",Data_2008_2022_BG_Comparison!J155))) ->  | C158: =Data_2008_2022_BG_Comparison!K155 -> 0 | D158: =Data_2008_2022_BG_Comparison!L155 -> 0 | E158: =Data_2008_2022_BG_Comparison!M155 -> 0 | F158: 0
B159: =IF(Data_2008_2022_BG_Comparison!I156="","",(CONCATENATE("CT ", Data_2008_2022_BG_Comparison!I156,", BG ",Data_2008_2022_BG_Comparison!J156))) ->  | C159: =Data_2008_2022_BG_Comparison!K156 -> 0 | D159: =Data_2008_2022_BG_Comparison!L156 -> 0 | E159: =Data_2008_2022_BG_Comparison!M156 -> 0 | F159: 0
B160: =IF(Data_2008_2022_BG_Comparison!I157="","",(CONCATENATE("CT ", Data_2008_2022_BG_Comparison!I157,", BG ",Data_2008_2022_BG_Comparison!J157))) ->  | C160: =Data_2008_2022_BG_Comparison!K157 -> 0 | D160: =Data_2008_2022_BG_Comparison!L157 -> 0 | E160: =Data_2008_2022_BG_Comparison!M157 -> 0 | F160: 0
B161: =IF(Data_2008_2022_BG_Comparison!I158="","",(CONCATENATE("CT ", Data_2008_2022_BG_Comparison!I158,", BG ",Data_2008_2022_BG_Comparison!J158))) ->  | C161: =Data_2008_2022_BG_Comparison!K158 -> 0 | D161: =Data_2008_2022_BG_Comparison!L158 -> 0 | E161: =Data_2008_2022_BG_Comparison!M158 -> 0 | F161: 0
B162: =IF(Data_2008_2022_BG_Comparison!I159="","",(CONCATENATE("CT ", Data_2008_2022_BG_Comparison!I159,", BG ",Data_2008_2022_BG_Comparison!J159))) ->  | C162: =Data_2008_2022_BG_Comparison!K159 -> 0 | D162: =Data_2008_2022_BG_Comparison!L159 -> 0 | E162: =Data_2008_2022_BG_Comparison!M159 -> 0 | F162: 0
B163: =IF(Data_2008_2022_BG_Comparison!I160="","",(CONCATENATE("CT ", Data_2008_2022_BG_Comparison!I160,", BG ",Data_2008_2022_BG_Comparison!J160))) ->  | C163: =Data_2008_2022_BG_Comparison!K160 -> 0 | D163: =Data_2008_2022_BG_Comparison!L160 -> 0 | E163: =Data_2008_2022_BG_Comparison!M160 -> 0 | F163: 0
B164: =IF(Data_2008_2022_BG_Comparison!I161="","",(CONCATENATE("CT ", Data_2008_2022_BG_Comparison!I161,", BG ",Data_2008_2022_BG_Comparison!J161))) ->  | C164: =Data_2008_2022_BG_Comparison!K161 -> 0 | D164: =Data_2008_2022_BG_Comparison!L161 -> 0 | E164: =Data_2008_2022_BG_Comparison!M161 -> 0 | F164: 0
B165: =IF(Data_2008_2022_BG_Comparison!I162="","",(CONCATENATE("CT ", Data_2008_2022_BG_Comparison!I162,", BG ",Data_2008_2022_BG_Comparison!J162))) ->  | C165: =Data_2008_2022_BG_Comparison!K162 -> 0 | D165: =Data_2008_2022_BG_Comparison!L162 -> 0 | E165: =Data_2008_2022_BG_Comparison!M162 -> 0 | F165: 0
B166: =IF(Data_2008_2022_BG_Comparison!I163="","",(CONCATENATE("CT ", Data_2008_2022_BG_Comparison!I163,", BG ",Data_2008_2022_BG_Comparison!J163))) ->  | C166: =Data_2008_2022_BG_Comparison!K163 -> 0 | D166: =Data_2008_2022_BG_Comparison!L163 -> 0 | E166: =Data_2008_2022_BG_Comparison!M163 -> 0 | F166: 0
B167: =IF(Data_2008_2022_BG_Comparison!I164="","",(CONCATENATE("CT ", Data_2008_2022_BG_Comparison!I164,", BG ",Data_2008_2022_BG_Comparison!J164))) ->  | C167: =Data_2008_2022_BG_Comparison!K164 -> 0 | D167: =Data_2008_2022_BG_Comparison!L164 -> 0 | E167: =Data_2008_2022_BG_Comparison!M164 -> 0 | F167: 0
B168: =IF(Data_2008_2022_BG_Comparison!I165="","",(CONCATENATE("CT ", Data_2008_2022_BG_Comparison!I165,", BG ",Data_2008_2022_BG_Comparison!J165))) ->  | C168: =Data_2008_2022_BG_Comparison!K165 -> 0 | D168: =Data_2008_2022_BG_Comparison!L165 -> 0 | E168: =Data_2008_2022_BG_Comparison!M165 -> 0 | F168: 0
B169: =IF(Data_2008_2022_BG_Comparison!I166="","",(CONCATENATE("CT ", Data_2008_2022_BG_Comparison!I166,", BG ",Data_2008_2022_BG_Comparison!J166))) ->  | C169: =Data_2008_2022_BG_Comparison!K166 -> 0 | D169: =Data_2008_2022_BG_Comparison!L166 -> 0 | E169: =Data_2008_2022_BG_Comparison!M166 -> 0 | F169: 0
B170: =IF(Data_2008_2022_BG_Comparison!I167="","",(CONCATENATE("CT ", Data_2008_2022_BG_Comparison!I167,", BG ",Data_2008_2022_BG_Comparison!J167))) ->  | C170: =Data_2008_2022_BG_Comparison!K167 -> 0 | D170: =Data_2008_2022_BG_Comparison!L167 -> 0 | E170: =Data_2008_2022_BG_Comparison!M167 -> 0 | F170: 0
B171: =IF(Data_2008_2022_BG_Comparison!I168="","",(CONCATENATE("CT ", Data_2008_2022_BG_Comparison!I168,", BG ",Data_2008_2022_BG_Comparison!J168))) ->  | C171: =Data_2008_2022_BG_Comparison!K168 -> 0 | D171: =Data_2008_2022_BG_Comparison!L168 -> 0 | E171: =Data_2008_2022_BG_Comparison!M168 -> 0 | F171: 0
B172: =IF(Data_2008_2022_BG_Comparison!I169="","",(CONCATENATE("CT ", Data_2008_2022_BG_Comparison!I169,", BG ",Data_2008_2022_BG_Comparison!J169))) ->  | C172: =Data_2008_2022_BG_Comparison!K169 -> 0 | D172: =Data_2008_2022_BG_Comparison!L169 -> 0 | E172: =Data_2008_2022_BG_Comparison!M169 -> 0 | F172: 0
B173: =IF(Data_2008_2022_BG_Comparison!I170="","",(CONCATENATE("CT ", Data_2008_2022_BG_Comparison!I170,", BG ",Data_2008_2022_BG_Comparison!J170))) ->  | C173: =Data_2008_2022_BG_Comparison!K170 -> 0 | D173: =Data_2008_2022_BG_Comparison!L170 -> 0 | E173: =Data_2008_2022_BG_Comparison!M170 -> 0 | F173: 0
B174: =IF(Data_2008_2022_BG_Comparison!I171="","",(CONCATENATE("CT ", Data_2008_2022_BG_Comparison!I171,", BG ",Data_2008_2022_BG_Comparison!J171))) ->  | C174: =Data_2008_2022_BG_Comparison!K171 -> 0 | D174: =Data_2008_2022_BG_Comparison!L171 -> 0 | E174: =Data_2008_2022_BG_Comparison!M171 -> 0 | F174: 0
B175: =IF(Data_2008_2022_BG_Comparison!I172="","",(CONCATENATE("CT ", Data_2008_2022_BG_Comparison!I172,", BG ",Data_2008_2022_BG_Comparison!J172))) ->  | C175: =Data_2008_2022_BG_Comparison!K172 -> 0 | D175: =Data_2008_2022_BG_Comparison!L172 -> 0 | E175: =Data_2008_2022_BG_Comparison!M172 -> 0 | F175: 0
B176: =IF(Data_2008_2022_BG_Comparison!I173="","",(CONCATENATE("CT ", Data_2008_2022_BG_Comparison!I173,", BG ",Data_2008_2022_BG_Comparison!J173))) ->  | C176: =Data_2008_2022_BG_Comparison!K173 -> 0 | D176: =Data_2008_2022_BG_Comparison!L173 -> 0 | E176: =Data_2008_2022_BG_Comparison!M173 -> 0 | F176: 0
B177: =IF(Data_2008_2022_BG_Comparison!I174="","",(CONCATENATE("CT ", Data_2008_2022_BG_Comparison!I174,", BG ",Data_2008_2022_BG_Comparison!J174))) ->  | C177: =Data_2008_2022_BG_Comparison!K174 -> 0 | D177: =Data_2008_2022_BG_Comparison!L174 -> 0 | E177: =Data_2008_2022_BG_Comparison!M174 -> 0 | F177: 0
B178: =IF(Data_2008_2022_BG_Comparison!I175="","",(CONCATENATE("CT ", Data_2008_2022_BG_Comparison!I175,", BG ",Data_2008_2022_BG_Comparison!J175))) ->  | C178: =Data_2008_2022_BG_Comparison!K175 -> 0 | D178: =Data_2008_2022_BG_Comparison!L175 -> 0 | E178: =Data_2008_2022_BG_Comparison!M175 -> 0 | F178: 0
B179: =IF(Data_2008_2022_BG_Comparison!I176="","",(CONCATENATE("CT ", Data_2008_2022_BG_Comparison!I176,", BG ",Data_2008_2022_BG_Comparison!J176))) ->  | C179: =Data_2008_2022_BG_Comparison!K176 -> 0 | D179: =Data_2008_2022_BG_Comparison!L176 -> 0 | E179: =Data_2008_2022_BG_Comparison!M176 -> 0 | F179: 0
B180: =IF(Data_2008_2022_BG_Comparison!I177="","",(CONCATENATE("CT ", Data_2008_2022_BG_Comparison!I177,", BG ",Data_2008_2022_BG_Comparison!J177))) ->  | C180: =Data_2008_2022_BG_Comparison!K177 -> 0 | D180: =Data_2008_2022_BG_Comparison!L177 -> 0 | E180: =Data_2008_2022_BG_Comparison!M177 -> 0 | F180: 0
B181: =IF(Data_2008_2022_BG_Comparison!I178="","",(CONCATENATE("CT ", Data_2008_2022_BG_Comparison!I178,", BG ",Data_2008_2022_BG_Comparison!J178))) ->  | C181: =Data_2008_2022_BG_Comparison!K178 -> 0 | D181: =Data_2008_2022_BG_Comparison!L178 -> 0 | E181: =Data_2008_2022_BG_Comparison!M178 -> 0 | F181: 0
B182: =IF(Data_2008_2022_BG_Comparison!I179="","",(CONCATENATE("CT ", Data_2008_2022_BG_Comparison!I179,", BG ",Data_2008_2022_BG_Comparison!J179))) ->  | C182: =Data_2008_2022_BG_Comparison!K179 -> 0 | D182: =Data_2008_2022_BG_Comparison!L179 -> 0 | E182: =Data_2008_2022_BG_Comparison!M179 -> 0 | F182: 0
B183: =IF(Data_2008_2022_BG_Comparison!I180="","",(CONCATENATE("CT ", Data_2008_2022_BG_Comparison!I180,", BG ",Data_2008_2022_BG_Comparison!J180))) ->  | C183: =Data_2008_2022_BG_Comparison!K180 -> 0 | D183: =Data_2008_2022_BG_Comparison!L180 -> 0 | E183: =Data_2008_2022_BG_Comparison!M180 -> 0 | F183: 0
B184: =IF(Data_2008_2022_BG_Comparison!I181="","",(CONCATENATE("CT ", Data_2008_2022_BG_Comparison!I181,", BG ",Data_2008_2022_BG_Comparison!J181))) ->  | C184: =Data_2008_2022_BG_Comparison!K181 -> 0 | D184: =Data_2008_2022_BG_Comparison!L181 -> 0 | E184: =Data_2008_2022_BG_Comparison!M181 -> 0 | F184: 0
B185: =IF(Data_2008_2022_BG_Comparison!I182="","",(CONCATENATE("CT ", Data_2008_2022_BG_Comparison!I182,", BG ",Data_2008_2022_BG_Comparison!J182))) ->  | C185: =Data_2008_2022_BG_Comparison!K182 -> 0 | D185: =Data_2008_2022_BG_Comparison!L182 -> 0 | E185: =Data_2008_2022_BG_Comparison!M182 -> 0 | F185: 0
B186: =IF(Data_2008_2022_BG_Comparison!I183="","",(CONCATENATE("CT ", Data_2008_2022_BG_Comparison!I183,", BG ",Data_2008_2022_BG_Comparison!J183))) ->  | C186: =Data_2008_2022_BG_Comparison!K183 -> 0 | D186: =Data_2008_2022_BG_Comparison!L183 -> 0 | E186: =Data_2008_2022_BG_Comparison!M183 -> 0 | F186: 0
B187: =IF(Data_2008_2022_BG_Comparison!I184="","",(CONCATENATE("CT ", Data_2008_2022_BG_Comparison!I184,", BG ",Data_2008_2022_BG_Comparison!J184))) ->  | C187: =Data_2008_2022_BG_Comparison!K184 -> 0 | D187: =Data_2008_2022_BG_Comparison!L184 -> 0 | E187: =Data_2008_2022_BG_Comparison!M184 -> 0 | F187: 0
B188: =IF(Data_2008_2022_BG_Comparison!I185="","",(CONCATENATE("CT ", Data_2008_2022_BG_Comparison!I185,", BG ",Data_2008_2022_BG_Comparison!J185))) ->  | C188: =Data_2008_2022_BG_Comparison!K185 -> 0 | D188: =Data_2008_2022_BG_Comparison!L185 -> 0 | E188: =Data_2008_2022_BG_Comparison!M185 -> 0 | F188: 0
B189: =IF(Data_2008_2022_BG_Comparison!I186="","",(CONCATENATE("CT ", Data_2008_2022_BG_Comparison!I186,", BG ",Data_2008_2022_BG_Comparison!J186))) ->  | C189: =Data_2008_2022_BG_Comparison!K186 -> 0 | D189: =Data_2008_2022_BG_Comparison!L186 -> 0 | E189: =Data_2008_2022_BG_Comparison!M186 -> 0 | F189: 0
B190: =IF(Data_2008_2022_BG_Comparison!I187="","",(CONCATENATE("CT ", Data_2008_2022_BG_Comparison!I187,", BG ",Data_2008_2022_BG_Comparison!J187))) ->  | C190: =Data_2008_2022_BG_Comparison!K187 -> 0 | D190: =Data_2008_2022_BG_Comparison!L187 -> 0 | E190: =Data_2008_2022_BG_Comparison!M187 -> 0 | F190: 0
B191: =IF(Data_2008_2022_BG_Comparison!I188="","",(CONCATENATE("CT ", Data_2008_2022_BG_Comparison!I188,", BG ",Data_2008_2022_BG_Comparison!J188))) ->  | C191: =Data_2008_2022_BG_Comparison!K188 -> 0 | D191: =Data_2008_2022_BG_Comparison!L188 -> 0 | E191: =Data_2008_2022_BG_Comparison!M188 -> 0 | F191: 0
B192: =IF(Data_2008_2022_BG_Comparison!I189="","",(CONCATENATE("CT ", Data_2008_2022_BG_Comparison!I189,", BG ",Data_2008_2022_BG_Comparison!J189))) ->  | C192: =Data_2008_2022_BG_Comparison!K189 -> 0 | D192: =Data_2008_2022_BG_Comparison!L189 -> 0 | E192: =Data_2008_2022_BG_Comparison!M189 -> 0 | F192: 0
B193: =IF(Data_2008_2022_BG_Comparison!I190="","",(CONCATENATE("CT ", Data_2008_2022_BG_Comparison!I190,", BG ",Data_2008_2022_BG_Comparison!J190))) ->  | C193: =Data_2008_2022_BG_Comparison!K190 -> 0 | D193: =Data_2008_2022_BG_Comparison!L190 -> 0 | E193: =Data_2008_2022_BG_Comparison!M190 -> 0 | F193: 0
B194: =IF(Data_2008_2022_BG_Comparison!I191="","",(CONCATENATE("CT ", Data_2008_2022_BG_Comparison!I191,", BG ",Data_2008_2022_BG_Comparison!J191))) ->  | C194: =Data_2008_2022_BG_Comparison!K191 -> 0 | D194: =Data_2008_2022_BG_Comparison!L191 -> 0 | E194: =Data_2008_2022_BG_Comparison!M191 -> 0 | F194: 0
B195: =IF(Data_2008_2022_BG_Comparison!I192="","",(CONCATENATE("CT ", Data_2008_2022_BG_Comparison!I192,", BG ",Data_2008_2022_BG_Comparison!J192))) ->  | C195: =Data_2008_2022_BG_Comparison!K192 -> 0 | D195: =Data_2008_2022_BG_Comparison!L192 -> 0 | E195: =Data_2008_2022_BG_Comparison!M192 -> 0 | F195: 0
B196: =IF(Data_2008_2022_BG_Comparison!I193="","",(CONCATENATE("CT ", Data_2008_2022_BG_Comparison!I193,", BG ",Data_2008_2022_BG_Comparison!J193))) ->  | C196: =Data_2008_2022_BG_Comparison!K193 -> 0 | D196: =Data_2008_2022_BG_Comparison!L193 -> 0 | E196: =Data_2008_2022_BG_Comparison!M193 -> 0 | F196: 0
B197: =IF(Data_2008_2022_BG_Comparison!I194="","",(CONCATENATE("CT ", Data_2008_2022_BG_Comparison!I194,", BG ",Data_2008_2022_BG_Comparison!J194))) ->  | C197: =Data_2008_2022_BG_Comparison!K194 -> 0 | D197: =Data_2008_2022_BG_Comparison!L194 -> 0 | E197: =Data_2008_2022_BG_Comparison!M194 -> 0 | F197: 0
B198: =IF(Data_2008_2022_BG_Comparison!I195="","",(CONCATENATE("CT ", Data_2008_2022_BG_Comparison!I195,", BG ",Data_2008_2022_BG_Comparison!J195))) ->  | C198: =Data_2008_2022_BG_Comparison!K195 -> 0 | D198: =Data_2008_2022_BG_Comparison!L195 -> 0 | E198: =Data_2008_2022_BG_Comparison!M195 -> 0 | F198: 0
B199: =IF(Data_2008_2022_BG_Comparison!I196="","",(CONCATENATE("CT ", Data_2008_2022_BG_Comparison!I196,", BG ",Data_2008_2022_BG_Comparison!J196))) ->  | C199: =Data_2008_2022_BG_Comparison!K196 -> 0 | D199: =Data_2008_2022_BG_Comparison!L196 -> 0 | E199: =Data_2008_2022_BG_Comparison!M196 -> 0 | F199: =IFERROR(E199-C199,"N/A") -> 0 | G199: =IF(C199+E199=0,"",IFERROR(F199/C199,"N/A")) ->  | H199: =IF(C199+E199=0,"",IFERROR((E199/C199)^(1/10)-1,"N/A")) -> 
B200: =IF(Data_2008_2022_BG_Comparison!I197="","",(CONCATENATE("CT ", Data_2008_2022_BG_Comparison!I197,", BG ",Data_2008_2022_BG_Comparison!J197))) ->  | C200: =Data_2008_2022_BG_Comparison!K197 -> 0 | D200: =Data_2008_2022_BG_Comparison!L197 -> 0 | E200: =Data_2008_2022_BG_Comparison!M197 -> 0 | F200: 0
B201: =IF(Data_2008_2022_BG_Comparison!I198="","",(CONCATENATE("CT ", Data_2008_2022_BG_Comparison!I198,", BG ",Data_2008_2022_BG_Comparison!J198))) ->  | C201: =Data_2008_2022_BG_Comparison!K198 -> 0 | D201: =Data_2008_2022_BG_Comparison!L198 -> 0 | E201: =Data_2008_2022_BG_Comparison!M198 -> 0 | F201: 0
B202: =IF(Data_2008_2022_BG_Comparison!I199="","",(CONCATENATE("CT ", Data_2008_2022_BG_Comparison!I199,", BG ",Data_2008_2022_BG_Comparison!J199))) ->  | C202: =Data_2008_2022_BG_Comparison!K199 -> 0 | D202: =Data_2008_2022_BG_Comparison!L199 -> 0 | E202: =Data_2008_2022_BG_Comparison!M199 -> 0 | F202: 0
... 115 more rows

Sheet Race
B1: Race
B2: The ACS Census data should be used to describe the racial composition of the demographic study area (DSA). The tables are linked to the Data tabs and will automatically populate once the Data tabs are completed. Once complete, you can copy the table and source directly into your report.
B4: Geography | C4: Total Population | D4: White | F4: Black or African American | H4: American Indian and Alaska Native Alone | J4: Asian | L4: Native Hawaiian/Pacific Islander | N4: Some Other Race | P4: Two or More Races | R4: Total Non-White
D5: # | E5: % | F5: # | G5: % | H5: # | I5: % | J5: # | K5: % | L5: # | M5: % | N5: # | O5: % | P5: # | Q5: % | R5: # | S5: %
B6: =IF(Data_ACS_2022_BG_Calculated!I3="","",(CONCATENATE("CT ", Data_ACS_2022_BG_Calculated!I3,", BG ",Data_ACS_2022_BG_Calculated!J3))) -> CT 108, BG 1 | C6: =Data_ACS_2022_BG_Calculated!L3 -> 959 | D6: =Data_ACS_2022_BG_Calculated!M3 -> 850 | E6: =IFERROR(D6/$C6,"") -> 0.8863399374 | F6: =Data_ACS_2022_BG_Calculated!O3 -> 99 | G6: =IFERROR(F6/$C6,"") -> 0.1032325339 | H6: =Data_ACS_2022_BG_Calculated!Q3 -> 4 | I6: =IFERROR(H6/$C6,"") -> 0.00417101147 | J6: =Data_ACS_2022_BG_Calculated!S3 -> 0 | K6: =IFERROR(J6/$C6,"") -> 0 | L6: =Data_ACS_2022_BG_Calculated!U3 -> 0 | M6: =IFERROR(L6/$C6,"") -> 0 | N6: =Data_ACS_2022_BG_Calculated!W3 -> 0 | O6: =IFERROR(N6/$C6,"") -> 0 | P6: =Data_ACS_2022_BG_Calculated!Y3 -> 6 | Q6: =IFERROR(P6/$C6,"") -> 0.006256517205 | R6: =SUM(F6,H6,J6,L6,N6,P6) -> 109 | S6: =IFERROR(R6/$C6,"") -> 0.1136600626 | T6: =SUM(R6:R8)/SUM(C6:C8) -> 0.3526197364
B7: =IF(Data_ACS_2022_BG_Calculated!I4="","",(CONCATENATE("CT ", Data_ACS_2022_BG_Calculated!I4,", BG ",Data_ACS_2022_BG_Calculated!J4))) -> CT 108, BG 2 | C7: =Data_ACS_2022_BG_Calculated!L4 -> 277 | D7: =Data_ACS_2022_BG_Calculated!M4 -> 201 | E7: =IFERROR(D7/$C7,"") -> 0.725631769 | F7: =Data_ACS_2022_BG_Calculated!O4 -> 64 | G7: =IFERROR(F7/$C7,"") -> 0.2310469314 | H7: =Data_ACS_2022_BG_Calculated!Q4 -> 12 | I7: =IFERROR(H7/$C7,"") -> 0.04332129964 | J7: =Data_ACS_2022_BG_Calculated!S4 -> 0 | K7: =IFERROR(J7/$C7,"") -> 0 | L7: =Data_ACS_2022_BG_Calculated!U4 -> 0 | M7: =IFERROR(L7/$C7,"") -> 0 | N7: =Data_ACS_2022_BG_Calculated!W4 -> 0 | O7: =IFERROR(N7/$C7,"") -> 0 | P7: =Data_ACS_2022_BG_Calculated!Y4 -> 0 | Q7: =IFERROR(P7/$C7,"") -> 0 | R7: =SUM(F7,H7,J7,L7,N7,P7) -> 76 | S7: =IFERROR(R7/$C7,"") -> 0.274368231
B8: =IF(Data_ACS_2022_BG_Calculated!I5="","",(CONCATENATE("CT ", Data_ACS_2022_BG_Calculated!I5,", BG ",Data_ACS_2022_BG_Calculated!J5))) -> CT 108, BG 3 | C8: =Data_ACS_2022_BG_Calculated!L5 -> 1875 | D8: =Data_ACS_2022_BG_Calculated!M5 -> 963 | E8: 0.5136 | F8: =Data_ACS_2022_BG_Calculated!O5 -> 750 | G8: 0.4 | H8: =Data_ACS_2022_BG_Calculated!Q5 -> 44 | I8: 0.02346666667 | J8: =Data_ACS_2022_BG_Calculated!S5 -> 0 | K8: 0 | L8: =Data_ACS_2022_BG_Calculated!U5 -> 0 | M8: 0 | N8: =Data_ACS_2022_BG_Calculated!W5 -> 23 | O8: 0.01226666667 | P8: =Data_ACS_2022_BG_Calculated!Y5 -> 95 | Q8: 0.05066666667 | R8: =SUM(F8,H8,J8,L8,N8,P8) -> 912 | S8: 0.4864
B9: =IF(Data_ACS_2022_BG_Calculated!I6="","",(CONCATENATE("CT ", Data_ACS_2022_BG_Calculated!I6,", BG ",Data_ACS_2022_BG_Calculated!J6))) -> CT 110, BG 1 | C9: =Data_ACS_2022_BG_Calculated!L6 -> 786 | D9: =Data_ACS_2022_BG_Calculated!M6 -> 45 | E9: 0.0572519084 | F9: =Data_ACS_2022_BG_Calculated!O6 -> 527 | G9: 0.6704834606 | H9: =Data_ACS_2022_BG_Calculated!Q6 -> 4 | I9: 0.005089058524 | J9: =Data_ACS_2022_BG_Calculated!S6 -> 0 | K9: 0 | L9: =Data_ACS_2022_BG_Calculated!U6 -> 0 | M9: 0 | N9: =Data_ACS_2022_BG_Calculated!W6 -> 210 | O9: 0.2671755725 | P9: =Data_ACS_2022_BG_Calculated!Y6 -> 0 | Q9: 0 | R9: 741 | S9: 0.9427480916 | T9: =SUM(R9:R10)/SUM(C9:C10) -> 0.8102905793
B10: =IF(Data_ACS_2022_BG_Calculated!I7="","",(CONCATENATE("CT ", Data_ACS_2022_BG_Calculated!I7,", BG ",Data_ACS_2022_BG_Calculated!J7))) -> CT 110, BG 2 | C10: =Data_ACS_2022_BG_Calculated!L7 -> 4617 | D10: =Data_ACS_2022_BG_Calculated!M7 -> 980 | E10: 0.2122590427 | F10: =Data_ACS_2022_BG_Calculated!O7 -> 3429 | G10: 0.7426900585 | H10: =Data_ACS_2022_BG_Calculated!Q7 -> 0 | I10: 0 | J10: =Data_ACS_2022_BG_Calculated!S7 -> 47 | K10: 0.01017977041 | L10: =Data_ACS_2022_BG_Calculated!U7 -> 0 | M10: 0 | N10: =Data_ACS_2022_BG_Calculated!W7 -> 14 | O10: 0.003032272038 | P10: =Data_ACS_2022_BG_Calculated!Y7 -> 147 | Q10: 0.0318388564 | R10: 3637 | S10: 0.7877409573
B11: =IF(Data_ACS_2022_BG_Calculated!I8="","",(CONCATENATE("CT ", Data_ACS_2022_BG_Calculated!I8,", BG ",Data_ACS_2022_BG_Calculated!J8))) -> CT 111.01, BG 1 | C11: =Data_ACS_2022_BG_Calculated!L8 -> 564 | D11: =Data_ACS_2022_BG_Calculated!M8 -> 4 | E11: 0.007092198582 | F11: =Data_ACS_2022_BG_Calculated!O8 -> 413 | G11: 0.7322695035 | H11: =Data_ACS_2022_BG_Calculated!Q8 -> 0 | I11: 0 | J11: =Data_ACS_2022_BG_Calculated!S8 -> 41 | K11: 0.07269503546 | L11: =Data_ACS_2022_BG_Calculated!U8 -> 0 | M11: 0 | N11: =Data_ACS_2022_BG_Calculated!W8 -> 74 | O11: 0.1312056738 | P11: =Data_ACS_2022_BG_Calculated!Y8 -> 32 | Q11: 0.05673758865 | R11: 560 | S11: 0.9929078014 | T11: =SUM(R11:R14)/SUM(C11:C14) -> 0.856669217
B12: =IF(Data_ACS_2022_BG_Calculated!I9="","",(CONCATENATE("CT ", Data_ACS_2022_BG_Calculated!I9,", BG ",Data_ACS_2022_BG_Calculated!J9))) -> CT 111.01, BG 2 | C12: =Data_ACS_2022_BG_Calculated!L9 -> 971 | D12: =Data_ACS_2022_BG_Calculated!M9 -> 31 | E12: 0.03192584964 | F12: =Data_ACS_2022_BG_Calculated!O9 -> 894 | G12: 0.920700309 | H12: =Data_ACS_2022_BG_Calculated!Q9 -> 0 | I12: 0 | J12: =Data_ACS_2022_BG_Calculated!S9 -> 18 | K12: 0.01853759011 | L12: =Data_ACS_2022_BG_Calculated!U9 -> 0 | M12: 0 | N12: =Data_ACS_2022_BG_Calculated!W9 -> 28 | O12: 0.02883625129 | P12: =Data_ACS_2022_BG_Calculated!Y9 -> 0 | Q12: 0 | R12: 940 | S12: 0.9680741504
B13: =IF(Data_ACS_2022_BG_Calculated!I10="","",(CONCATENATE("CT ", Data_ACS_2022_BG_Calculated!I10,", BG ",Data_ACS_2022_BG_Calculated!J10))) -> CT 111.01, BG 3 | C13: =Data_ACS_2022_BG_Calculated!L10 -> 495 | D13: =Data_ACS_2022_BG_Calculated!M10 -> 35 | E13: 0.07070707071 | F13: =Data_ACS_2022_BG_Calculated!O10 -> 385 | G13: 0.7777777778 | H13: =Data_ACS_2022_BG_Calculated!Q10 -> 49 | I13: 0.09898989899 | J13: =Data_ACS_2022_BG_Calculated!S10 -> 0 | K13: 0 | L13: =Data_ACS_2022_BG_Calculated!U10 -> 0 | M13: 0 | N13: =Data_ACS_2022_BG_Calculated!W10 -> 8 | O13: 0.01616161616 | P13: =Data_ACS_2022_BG_Calculated!Y10 -> 18 | Q13: 0.03636363636 | R13: 460 | S13: 0.9292929293
B14: =IF(Data_ACS_2022_BG_Calculated!I11="","",(CONCATENATE("CT ", Data_ACS_2022_BG_Calculated!I11,", BG ",Data_ACS_2022_BG_Calculated!J11))) -> CT 111.01, BG 4 | C14: =Data_ACS_2022_BG_Calculated!L11 -> 1891 | D14: =Data_ACS_2022_BG_Calculated!M11 -> 492 | E14: 0.260179799 | F14: =Data_ACS_2022_BG_Calculated!O11 -> 1311 | G14: 0.6932839767 | H14: =Data_ACS_2022_BG_Calculated!Q11 -> 0 | I14: 0 | J14: =Data_ACS_2022_BG_Calculated!S11 -> 0 | K14: 0 | L14: =Data_ACS_2022_BG_Calculated!U11 -> 0 | M14: 0 | N14: =Data_ACS_2022_BG_Calculated!W11 -> 38 | O14: 0.02009518773 | P14: =Data_ACS_2022_BG_Calculated!Y11 -> 50 | Q14: 0.02644103649 | R14: =SUM(F14,H14,J14,L14,N14,P14) -> 1399 | S14: 0.739820201
B15: =IF(Data_ACS_2022_BG_Calculated!I12="","",(CONCATENATE("CT ", Data_ACS_2022_BG_Calculated!I12,", BG ",Data_ACS_2022_BG_Calculated!J12))) -> CT 111.02, BG 1 | C15: =Data_ACS_2022_BG_Calculated!L12 -> 1056 | D15: =Data_ACS_2022_BG_Calculated!M12 -> 0 | E15: 0 | F15: =Data_ACS_2022_BG_Calculated!O12 -> 921 | G15: 0.8721590909 | H15: =Data_ACS_2022_BG_Calculated!Q12 -> 100 | I15: 0.0946969697 | J15: =Data_ACS_2022_BG_Calculated!S12 -> 0 | K15: 0 | L15: =Data_ACS_2022_BG_Calculated!U12 -> 0 | M15: 0 | N15: =Data_ACS_2022_BG_Calculated!W12 -> 35 | O15: 0.03314393939 | P15: =Data_ACS_2022_BG_Calculated!Y12 -> 0 | Q15: 0 | R15: =SUM(F15,H15,J15,L15,N15,P15) -> 1056 | S15: 1 | T15: =SUM(R15:R16)/SUM(C15:C16) -> 0.9554305495
B16: =IF(Data_ACS_2022_BG_Calculated!I13="","",(CONCATENATE("CT ", Data_ACS_2022_BG_Calculated!I13,", BG ",Data_ACS_2022_BG_Calculated!J13))) -> CT 111.02, BG 2 | C16: =Data_ACS_2022_BG_Calculated!L13 -> 1255 | D16: =Data_ACS_2022_BG_Calculated!M13 -> 103 | E16: 0.08207171315 | F16: =Data_ACS_2022_BG_Calculated!O13 -> 994 | G16: 0.7920318725 | H16: =Data_ACS_2022_BG_Calculated!Q13 -> 0 | I16: 0 | J16: =Data_ACS_2022_BG_Calculated!S13 -> 0 | K16: 0 | L16: =Data_ACS_2022_BG_Calculated!U13 -> 0 | M16: 0 | N16: =Data_ACS_2022_BG_Calculated!W13 -> 0 | O16: 0 | P16: =Data_ACS_2022_BG_Calculated!Y13 -> 158 | Q16: 0.1258964143 | R16: 1152 | S16: 0.9179282869
B17: =IF(Data_ACS_2022_BG_Calculated!I14="","",(CONCATENATE("CT ", Data_ACS_2022_BG_Calculated!I14,", BG ",Data_ACS_2022_BG_Calculated!J14))) -> CT 112.01, BG 1 | C17: =Data_ACS_2022_BG_Calculated!L14 -> 1811 | D17: =Data_ACS_2022_BG_Calculated!M14 -> 255 | E17: 0.1408061844 | F17: =Data_ACS_2022_BG_Calculated!O14 -> 1503 | G17: 0.8299282165 | H17: =Data_ACS_2022_BG_Calculated!Q14 -> 0 | I17: 0 | J17: =Data_ACS_2022_BG_Calculated!S14 -> 48 | K17: 0.02650469354 | L17: =Data_ACS_2022_BG_Calculated!U14 -> 0 | M17: 0 | N17: =Data_ACS_2022_BG_Calculated!W14 -> 5 | O17: 0.002760905577 | P17: =Data_ACS_2022_BG_Calculated!Y14 -> 0 | Q17: 0 | R17: 1556 | S17: 0.8591938156 | T17: =SUM(R17:R18)/SUM(C17:C18) -> 0.71375
B18: =IF(Data_ACS_2022_BG_Calculated!I15="","",(CONCATENATE("CT ", Data_ACS_2022_BG_Calculated!I15,", BG ",Data_ACS_2022_BG_Calculated!J15))) -> CT 112.01, BG 2 | C18: =Data_ACS_2022_BG_Calculated!L15 -> 1389 | D18: =Data_ACS_2022_BG_Calculated!M15 -> 661 | E18: 0.4758819294 | F18: =Data_ACS_2022_BG_Calculated!O15 -> 672 | G18: 0.4838012959 | H18: =Data_ACS_2022_BG_Calculated!Q15 -> 0 | I18: 0 | J18: =Data_ACS_2022_BG_Calculated!S15 -> 5 | K18: 0.003599712023 | L18: =Data_ACS_2022_BG_Calculated!U15 -> 0 | M18: 0 | N18: =Data_ACS_2022_BG_Calculated!W15 -> 0 | O18: 0 | P18: =Data_ACS_2022_BG_Calculated!Y15 -> 51 | Q18: 0.03671706263 | R18: 728 | S18: 0.5241180706
B19: =IF(Data_ACS_2022_BG_Calculated!I16="","",(CONCATENATE("CT ", Data_ACS_2022_BG_Calculated!I16,", BG ",Data_ACS_2022_BG_Calculated!J16))) -> CT 112.02, BG 1 | C19: =Data_ACS_2022_BG_Calculated!L16 -> 1462 | D19: =Data_ACS_2022_BG_Calculated!M16 -> 66 | E19: 0.04514363885 | F19: =Data_ACS_2022_BG_Calculated!O16 -> 1281 | G19: 0.8761969904 | H19: =Data_ACS_2022_BG_Calculated!Q16 -> 0 | I19: 0 | J19: =Data_ACS_2022_BG_Calculated!S16 -> 0 | K19: 0 | L19: =Data_ACS_2022_BG_Calculated!U16 -> 0 | M19: 0 | N19: =Data_ACS_2022_BG_Calculated!W16 -> 66 | O19: 0.04514363885 | P19: =Data_ACS_2022_BG_Calculated!Y16 -> 49 | Q19: 0.03351573187 | R19: 1396 | S19: 0.9548563611 | T19: =SUM(R19:R20)/SUM(C19:C20) -> 0.9349753695
B20: =IF(Data_ACS_2022_BG_Calculated!I17="","",(CONCATENATE("CT ", Data_ACS_2022_BG_Calculated!I17,", BG ",Data_ACS_2022_BG_Calculated!J17))) -> CT 112.02, BG 2 | C20: =Data_ACS_2022_BG_Calculated!L17 -> 1583 | D20: =Data_ACS_2022_BG_Calculated!M17 -> 132 | E20: 0.08338597599 | F20: =Data_ACS_2022_BG_Calculated!O17 -> 1243 | G20: 0.7852179406 | H20: =Data_ACS_2022_BG_Calculated!Q17 -> 0 | I20: 0 | J20: =Data_ACS_2022_BG_Calculated!S17 -> 0 | K20: 0 | L20: =Data_ACS_2022_BG_Calculated!U17 -> 0 | M20: 0 | N20: =Data_ACS_2022_BG_Calculated!W17 -> 0 | O20: 0 | P20: =Data_ACS_2022_BG_Calculated!Y17 -> 208 | Q20: 0.1313960834 | R20: 1451 | S20: 0.916614024
B21: =IF(Data_ACS_2022_BG_Calculated!I18="","",(CONCATENATE("CT ", Data_ACS_2022_BG_Calculated!I18,", BG ",Data_ACS_2022_BG_Calculated!J18))) -> CT 127.07, BG 1 | C21: =Data_ACS_2022_BG_Calculated!L18 -> 1313 | D21: =Data_ACS_2022_BG_Calculated!M18 -> 187 | E21: 0.1424219345 | F21: =Data_ACS_2022_BG_Calculated!O18 -> 1054 | G21: 0.8027418126 | H21: =Data_ACS_2022_BG_Calculated!Q18 -> 51 | I21: 0.03884234577 | J21: =Data_ACS_2022_BG_Calculated!S18 -> 0 | K21: 0 | L21: =Data_ACS_2022_BG_Calculated!U18 -> 0 | M21: 0 | N21: =Data_ACS_2022_BG_Calculated!W18 -> 17 | O21: 0.01294744859 | P21: =Data_ACS_2022_BG_Calculated!Y18 -> 4 | Q21: 0.003046458492 | R21: =SUM(F21,H21,J21,L21,N21,P21) -> 1126 | S21: 0.8575780655 | T21: =SUM(R21:R22)/SUM(C21:C22) -> 0.888553079
B22: =IF(Data_ACS_2022_BG_Calculated!I19="","",(CONCATENATE("CT ", Data_ACS_2022_BG_Calculated!I19,", BG ",Data_ACS_2022_BG_Calculated!J19))) -> CT 127.07, BG 2 | C22: =Data_ACS_2022_BG_Calculated!L19 -> 1334 | D22: =Data_ACS_2022_BG_Calculated!M19 -> 108 | E22: 0.08095952024 | F22: =Data_ACS_2022_BG_Calculated!O19 -> 769 | G22: 0.5764617691 | H22: =Data_ACS_2022_BG_Calculated!Q19 -> 12 | I22: 0.008995502249 | J22: =Data_ACS_2022_BG_Calculated!S19 -> 0 | K22: 0 | L22: =Data_ACS_2022_BG_Calculated!U19 -> 0 | M22: 0 | N22: =Data_ACS_2022_BG_Calculated!W19 -> 373 | O22: 0.2796101949 | P22: =Data_ACS_2022_BG_Calculated!Y19 -> 72 | Q22: 0.05397301349 | R22: =SUM(F22,H22,J22,L22,N22,P22) -> 1226 | S22: 0.9190404798
B23: =IF(Data_ACS_2022_BG_Calculated!I20="","",(CONCATENATE("CT ", Data_ACS_2022_BG_Calculated!I20,", BG ",Data_ACS_2022_BG_Calculated!J20))) -> CT 128.03, BG 1 | C23: =Data_ACS_2022_BG_Calculated!L20 -> 2999 | D23: =Data_ACS_2022_BG_Calculated!M20 -> 375 | E23: 0.1250416806 | F23: =Data_ACS_2022_BG_Calculated!O20 -> 2294 | G23: 0.7649216405 | H23: =Data_ACS_2022_BG_Calculated!Q20 -> 119 | I23: 0.0396798933 | J23: =Data_ACS_2022_BG_Calculated!S20 -> 0 | K23: 0 | L23: =Data_ACS_2022_BG_Calculated!U20 -> 0 | M23: 0 | N23: =Data_ACS_2022_BG_Calculated!W20 -> 169 | O23: 0.05635211737 | P23: =Data_ACS_2022_BG_Calculated!Y20 -> 42 | Q23: 0.01400466822 | R23: 2624 | S23: 0.8749583194 | T23: =SUM(R23:R25)/SUM(C23:C25) -> 0.8470928365
B24: =IF(Data_ACS_2022_BG_Calculated!I21="","",(CONCATENATE("CT ", Data_ACS_2022_BG_Calculated!I21,", BG ",Data_ACS_2022_BG_Calculated!J21))) -> CT 128.03, BG 2 | C24: =Data_ACS_2022_BG_Calculated!L21 -> 3827 | D24: =Data_ACS_2022_BG_Calculated!M21 -> 663 | E24: 0.1732427489 | F24: =Data_ACS_2022_BG_Calculated!O21 -> 2960 | G24: 0.7734517899 | H24: =Data_ACS_2022_BG_Calculated!Q21 -> 0 | I24: 0 | J24: =Data_ACS_2022_BG_Calculated!S21 -> 0 | K24: 0 | L24: =Data_ACS_2022_BG_Calculated!U21 -> 0 | M24: 0 | N24: =Data_ACS_2022_BG_Calculated!W21 -> 0 | O24: 0 | P24: =Data_ACS_2022_BG_Calculated!Y21 -> 204 | Q24: 0.0533054612 | R24: 3164 | S24: 0.8267572511
B25: =IF(Data_ACS_2022_BG_Calculated!I22="","",(CONCATENATE("CT ", Data_ACS_2022_BG_Calculated!I22,", BG ",Data_ACS_2022_BG_Calculated!J22))) -> CT 128.03, BG 3 | C25: =Data_ACS_2022_BG_Calculated!L22 -> 2513 | D25: =Data_ACS_2022_BG_Calculated!M22 -> 390 | E25: 0.1551929964 | F25: =Data_ACS_2022_BG_Calculated!O22 -> 1094 | G25: 0.4353362515 | H25: =Data_ACS_2022_BG_Calculated!Q22 -> 0 | I25: 0 | J25: =Data_ACS_2022_BG_Calculated!S22 -> 278 | K25: 0.1106247513 | L25: =Data_ACS_2022_BG_Calculated!U22 -> 0 | M25: 0 | N25: =Data_ACS_2022_BG_Calculated!W22 -> 0 | O25: 0 | P25: =Data_ACS_2022_BG_Calculated!Y22 -> 751 | Q25: 0.2988460008 | R25: 2123 | S25: 0.8448070036
B26: =IF(Data_ACS_2022_BG_Calculated!I23="","",(CONCATENATE("CT ", Data_ACS_2022_BG_Calculated!I23,", BG ",Data_ACS_2022_BG_Calculated!J23))) ->  | C26: =Data_ACS_2022_BG_Calculated!L23 -> 0 | D26: =Data_ACS_2022_BG_Calculated!M23 -> 0 | F26: =Data_ACS_2022_BG_Calculated!O23 -> 0 | H26: =Data_ACS_2022_BG_Calculated!Q23 -> 0 | J26: =Data_ACS_2022_BG_Calculated!S23 -> 0 | L26: =Data_ACS_2022_BG_Calculated!U23 -> 0 | N26: =Data_ACS_2022_BG_Calculated!W23 -> 0 | P26: =Data_ACS_2022_BG_Calculated!Y23 -> 0 | R26: 0
B27: =IF(Data_ACS_2022_BG_Calculated!I24="","",(CONCATENATE("CT ", Data_ACS_2022_BG_Calculated!I24,", BG ",Data_ACS_2022_BG_Calculated!J24))) ->  | C27: =Data_ACS_2022_BG_Calculated!L24 -> 0 | D27: =Data_ACS_2022_BG_Calculated!M24 -> 0 | F27: =Data_ACS_2022_BG_Calculated!O24 -> 0 | H27: =Data_ACS_2022_BG_Calculated!Q24 -> 0 | J27: =Data_ACS_2022_BG_Calculated!S24 -> 0 | L27: =Data_ACS_2022_BG_Calculated!U24 -> 0 | N27: =Data_ACS_2022_BG_Calculated!W24 -> 0 | P27: =Data_ACS_2022_BG_Calculated!Y24 -> 0 | R27: 0
B28: =IF(Data_ACS_2022_BG_Calculated!I25="","",(CONCATENATE("CT ", Data_ACS_2022_BG_Calculated!I25,", BG ",Data_ACS_2022_BG_Calculated!J25))) ->  | C28: =Data_ACS_2022_BG_Calculated!L25 -> 0 | D28: =Data_ACS_2022_BG_Calculated!M25 -> 0 | F28: =Data_ACS_2022_BG_Calculated!O25 -> 0 | H28: =Data_ACS_2022_BG_Calculated!Q25 -> 0 | J28: =Data_ACS_2022_BG_Calculated!S25 -> 0 | L28: =Data_ACS_2022_BG_Calculated!U25 -> 0 | N28: =Data_ACS_2022_BG_Calculated!W25 -> 0 | P28: =Data_ACS_2022_BG_Calculated!Y25 -> 0 | R28: 0
B29: =IF(Data_ACS_2022_BG_Calculated!I26="","",(CONCATENATE("CT ", Data_ACS_2022_BG_Calculated!I26,", BG ",Data_ACS_2022_BG_Calculated!J26))) ->  | C29: =Data_ACS_2022_BG_Calculated!L26 -> 0 | D29: =Data_ACS_2022_BG_Calculated!M26 -> 0 | E29: =IFERROR(D29/$C29,"") ->  | F29: =Data_ACS_2022_BG_Calculated!O26 -> 0 | G29: =IFERROR(F29/$C29,"") ->  | H29: =Data_ACS_2022_BG_Calculated!Q26 -> 0 | I29: =IFERROR(H29/$C29,"") ->  | J29: =Data_ACS_2022_BG_Calculated!S26 -> 0 | K29: =IFERROR(J29/$C29,"") ->  | L29: =Data_ACS_2022_BG_Calculated!U26 -> 0 | M29: =IFERROR(L29/$C29,"") ->  | N29: =Data_ACS_2022_BG_Calculated!W26 -> 0 | O29: =IFERROR(N29/$C29,"") ->  | P29: =Data_ACS_2022_BG_Calculated!Y26 -> 0 | Q29: =IFERROR(P29/$C29,"") ->  | R29: =SUM(F29,H29,J29,L29,N29,P29) -> 0 | S29: =IFERROR(R29/$C29,"") -> 
B30: =IF(Data_ACS_2022_BG_Calculated!I27="","",(CONCATENATE("CT ", Data_ACS_2022_BG_Calculated!I27,", BG ",Data_ACS_2022_BG_Calculated!J27))) ->  | C30: =Data_ACS_2022_BG_Calculated!L27 -> 0 | D30: =Data_ACS_2022_BG_Calculated!M27 -> 0 | F30: =Data_ACS_2022_BG_Calculated!O27 -> 0 | H30: =Data_ACS_2022_BG_Calculated!Q27 -> 0 | J30: =Data_ACS_2022_BG_Calculated!S27 -> 0 | L30: =Data_ACS_2022_BG_Calculated!U27 -> 0 | N30: =Data_ACS_2022_BG_Calculated!W27 -> 0 | P30: =Data_ACS_2022_BG_Calculated!Y27 -> 0 | R30: 0
B31: =IF(Data_ACS_2022_BG_Calculated!I28="","",(CONCATENATE("CT ", Data_ACS_2022_BG_Calculated!I28,", BG ",Data_ACS_2022_BG_Calculated!J28))) ->  | C31: =Data_ACS_2022_BG_Calculated!L28 -> 0 | D31: =Data_ACS_2022_BG_Calculated!M28 -> 0 | F31: =Data_ACS_2022_BG_Calculated!O28 -> 0 | H31: =Data_ACS_2022_BG_Calculated!Q28 -> 0 | J31: =Data_ACS_2022_BG_Calculated!S28 -> 0 | L31: =Data_ACS_2022_BG_Calculated!U28 -> 0 | N31: =Data_ACS_2022_BG_Calculated!W28 -> 0 | P31: =Data_ACS_2022_BG_Calculated!Y28 -> 0 | R31: 0
B32: =IF(Data_ACS_2022_BG_Calculated!I29="","",(CONCATENATE("CT ", Data_ACS_2022_BG_Calculated!I29,", BG ",Data_ACS_2022_BG_Calculated!J29))) ->  | C32: =Data_ACS_2022_BG_Calculated!L29 -> 0 | D32: =Data_ACS_2022_BG_Calculated!M29 -> 0 | F32: =Data_ACS_2022_BG_Calculated!O29 -> 0 | H32: =Data_ACS_2022_BG_Calculated!Q29 -> 0 | J32: =Data_ACS_2022_BG_Calculated!S29 -> 0 | L32: =Data_ACS_2022_BG_Calculated!U29 -> 0 | N32: =Data_ACS_2022_BG_Calculated!W29 -> 0 | P32: =Data_ACS_2022_BG_Calculated!Y29 -> 0 | R32: 0
B33: =IF(Data_ACS_2022_BG_Calculated!I30="","",(CONCATENATE("CT ", Data_ACS_2022_BG_Calculated!I30,", BG ",Data_ACS_2022_BG_Calculated!J30))) ->  | C33: =Data_ACS_2022_BG_Calculated!L30 -> 0 | D33: =Data_ACS_2022_BG_Calculated!M30 -> 0 | F33: =Data_ACS_2022_BG_Calculated!O30 -> 0 | H33: =Data_ACS_2022_BG_Calculated!Q30 -> 0 | J33: =Data_ACS_2022_BG_Calculated!S30 -> 0 | L33: =Data_ACS_2022_BG_Calculated!U30 -> 0 | N33: =Data_ACS_2022_BG_Calculated!W30 -> 0 | P33: =Data_ACS_2022_BG_Calculated!Y30 -> 0 | R33: 0
B34: =IF(Data_ACS_2022_BG_Calculated!I31="","",(CONCATENATE("CT ", Data_ACS_2022_BG_Calculated!I31,", BG ",Data_ACS_2022_BG_Calculated!J31))) ->  | C34: =Data_ACS_2022_BG_Calculated!L31 -> 0 | D34: =Data_ACS_2022_BG_Calculated!M31 -> 0 | F34: =Data_ACS_2022_BG_Calculated!O31 -> 0 | H34: =Data_ACS_2022_BG_Calculated!Q31 -> 0 | J34: =Data_ACS_2022_BG_Calculated!S31 -> 0 | L34: =Data_ACS_2022_BG_Calculated!U31 -> 0 | N34: =Data_ACS_2022_BG_Calculated!W31 -> 0 | P34: =Data_ACS_2022_BG_Calculated!Y31 -> 0 | R34: 0
B35: =IF(Data_ACS_2022_BG_Calculated!I32="","",(CONCATENATE("CT ", Data_ACS_2022_BG_Calculated!I32,", BG ",Data_ACS_2022_BG_Calculated!J32))) ->  | C35: =Data_ACS_2022_BG_Calculated!L32 -> 0 | D35: =Data_ACS_2022_BG_Calculated!M32 -> 0 | F35: =Data_ACS_2022_BG_Calculated!O32 -> 0 | H35: =Data_ACS_2022_BG_Calculated!Q32 -> 0 | J35: =Data_ACS_2022_BG_Calculated!S32 -> 0 | L35: =Data_ACS_2022_BG_Calculated!U32 -> 0 | N35: =Data_ACS_2022_BG_Calculated!W32 -> 0 | P35: =Data_ACS_2022_BG_Calculated!Y32 -> 0 | R35: 0
B36: =IF(Data_ACS_2022_BG_Calculated!I33="","",(CONCATENATE("CT ", Data_ACS_2022_BG_Calculated!I33,", BG ",Data_ACS_2022_BG_Calculated!J33))) ->  | C36: =Data_ACS_2022_BG_Calculated!L33 -> 0 | D36: =Data_ACS_2022_BG_Calculated!M33 -> 0 | F36: =Data_ACS_2022_BG_Calculated!O33 -> 0 | H36: =Data_ACS_2022_BG_Calculated!Q33 -> 0 | J36: =Data_ACS_2022_BG_Calculated!S33 -> 0 | L36: =Data_ACS_2022_BG_Calculated!U33 -> 0 | N36: =Data_ACS_2022_BG_Calculated!W33 -> 0 | P36: =Data_ACS_2022_BG_Calculated!Y33 -> 0 | R36: 0
B37: =IF(Data_ACS_2022_BG_Calculated!I34="","",(CONCATENATE("CT ", Data_ACS_2022_BG_Calculated!I34,", BG ",Data_ACS_2022_BG_Calculated!J34))) ->  | C37: =Data_ACS_2022_BG_Calculated!L34 -> 0 | D37: =Data_ACS_2022_BG_Calculated!M34 -> 0 | F37: =Data_ACS_2022_BG_Calculated!O34 -> 0 | H37: =Data_ACS_2022_BG_Calculated!Q34 -> 0 | J37: =Data_ACS_2022_BG_Calculated!S34 -> 0 | L37: =Data_ACS_2022_BG_Calculated!U34 -> 0 | N37: =Data_ACS_2022_BG_Calculated!W34 -> 0 | P37: =Data_ACS_2022_BG_Calculated!Y34 -> 0 | R37: 0
B38: =IF(Data_ACS_2022_BG_Calculated!I35="","",(CONCATENATE("CT ", Data_ACS_2022_BG_Calculated!I35,", BG ",Data_ACS_2022_BG_Calculated!J35))) ->  | C38: =Data_ACS_2022_BG_Calculated!L35 -> 0 | D38: =Data_ACS_2022_BG_Calculated!M35 -> 0 | F38: =Data_ACS_2022_BG_Calculated!O35 -> 0 | H38: =Data_ACS_2022_BG_Calculated!Q35 -> 0 | J38: =Data_ACS_2022_BG_Calculated!S35 -> 0 | L38: =Data_ACS_2022_BG_Calculated!U35 -> 0 | N38: =Data_ACS_2022_BG_Calculated!W35 -> 0 | P38: =Data_ACS_2022_BG_Calculated!Y35 -> 0 | R38: 0
B39: =IF(Data_ACS_2022_BG_Calculated!I36="","",(CONCATENATE("CT ", Data_ACS_2022_BG_Calculated!I36,", BG ",Data_ACS_2022_BG_Calculated!J36))) ->  | C39: =Data_ACS_2022_BG_Calculated!L36 -> 0 | D39: =Data_ACS_2022_BG_Calculated!M36 -> 0 | F39: =Data_ACS_2022_BG_Calculated!O36 -> 0 | H39: =Data_ACS_2022_BG_Calculated!Q36 -> 0 | J39: =Data_ACS_2022_BG_Calculated!S36 -> 0 | L39: =Data_ACS_2022_BG_Calculated!U36 -> 0 | N39: =Data_ACS_2022_BG_Calculated!W36 -> 0 | P39: =Data_ACS_2022_BG_Calculated!Y36 -> 0 | R39: 0
B40: =IF(Data_ACS_2022_BG_Calculated!I37="","",(CONCATENATE("CT ", Data_ACS_2022_BG_Calculated!I37,", BG ",Data_ACS_2022_BG_Calculated!J37))) ->  | C40: =Data_ACS_2022_BG_Calculated!L37 -> 0 | D40: =Data_ACS_2022_BG_Calculated!M37 -> 0 | F40: =Data_ACS_2022_BG_Calculated!O37 -> 0 | H40: =Data_ACS_2022_BG_Calculated!Q37 -> 0 | J40: =Data_ACS_2022_BG_Calculated!S37 -> 0 | L40: =Data_ACS_2022_BG_Calculated!U37 -> 0 | N40: =Data_ACS_2022_BG_Calculated!W37 -> 0 | P40: =Data_ACS_2022_BG_Calculated!Y37 -> 0 | R40: 0
B41: =IF(Data_ACS_2022_BG_Calculated!I38="","",(CONCATENATE("CT ", Data_ACS_2022_BG_Calculated!I38,", BG ",Data_ACS_2022_BG_Calculated!J38))) ->  | C41: =Data_ACS_2022_BG_Calculated!L38 -> 0 | D41: =Data_ACS_2022_BG_Calculated!M38 -> 0 | F41: =Data_ACS_2022_BG_Calculated!O38 -> 0 | H41: =Data_ACS_2022_BG_Calculated!Q38 -> 0 | J41: =Data_ACS_2022_BG_Calculated!S38 -> 0 | L41: =Data_ACS_2022_BG_Calculated!U38 -> 0 | N41: =Data_ACS_2022_BG_Calculated!W38 -> 0 | P41: =Data_ACS_2022_BG_Calculated!Y38 -> 0 | R41: 0
B42: =IF(Data_ACS_2022_BG_Calculated!I39="","",(CONCATENATE("CT ", Data_ACS_2022_BG_Calculated!I39,", BG ",Data_ACS_2022_BG_Calculated!J39))) ->  | C42: =Data_ACS_2022_BG_Calculated!L39 -> 0 | D42: =Data_ACS_2022_BG_Calculated!M39 -> 0 | F42: =Data_ACS_2022_BG_Calculated!O39 -> 0 | H42: =Data_ACS_2022_BG_Calculated!Q39 -> 0 | J42: =Data_ACS_2022_BG_Calculated!S39 -> 0 | L42: =Data_ACS_2022_BG_Calculated!U39 -> 0 | N42: =Data_ACS_2022_BG_Calculated!W39 -> 0 | P42: =Data_ACS_2022_BG_Calculated!Y39 -> 0 | R42: 0
B43: =IF(Data_ACS_2022_BG_Calculated!I40="","",(CONCATENATE("CT ", Data_ACS_2022_BG_Calculated!I40,", BG ",Data_ACS_2022_BG_Calculated!J40))) ->  | C43: =Data_ACS_2022_BG_Calculated!L40 -> 0 | D43: =Data_ACS_2022_BG_Calculated!M40 -> 0 | F43: =Data_ACS_2022_BG_Calculated!O40 -> 0 | H43: =Data_ACS_2022_BG_Calculated!Q40 -> 0 | J43: =Data_ACS_2022_BG_Calculated!S40 -> 0 | L43: =Data_ACS_2022_BG_Calculated!U40 -> 0 | N43: =Data_ACS_2022_BG_Calculated!W40 -> 0 | P43: =Data_ACS_2022_BG_Calculated!Y40 -> 0 | R43: 0
B44: =IF(Data_ACS_2022_BG_Calculated!I41="","",(CONCATENATE("CT ", Data_ACS_2022_BG_Calculated!I41,", BG ",Data_ACS_2022_BG_Calculated!J41))) ->  | C44: =Data_ACS_2022_BG_Calculated!L41 -> 0 | D44: =Data_ACS_2022_BG_Calculated!M41 -> 0 | F44: =Data_ACS_2022_BG_Calculated!O41 -> 0 | H44: =Data_ACS_2022_BG_Calculated!Q41 -> 0 | J44: =Data_ACS_2022_BG_Calculated!S41 -> 0 | L44: =Data_ACS_2022_BG_Calculated!U41 -> 0 | N44: =Data_ACS_2022_BG_Calculated!W41 -> 0 | P44: =Data_ACS_2022_BG_Calculated!Y41 -> 0 | R44: 0
B45: =IF(Data_ACS_2022_BG_Calculated!I42="","",(CONCATENATE("CT ", Data_ACS_2022_BG_Calculated!I42,", BG ",Data_ACS_2022_BG_Calculated!J42))) ->  | C45: =Data_ACS_2022_BG_Calculated!L42 -> 0 | D45: =Data_ACS_2022_BG_Calculated!M42 -> 0 | F45: =Data_ACS_2022_BG_Calculated!O42 -> 0 | H45: =Data_ACS_2022_BG_Calculated!Q42 -> 0 | J45: =Data_ACS_2022_BG_Calculated!S42 -> 0 | L45: =Data_ACS_2022_BG_Calculated!U42 -> 0 | N45: =Data_ACS_2022_BG_Calculated!W42 -> 0 | P45: =Data_ACS_2022_BG_Calculated!Y42 -> 0 | R45: 0
B46: =IF(Data_ACS_2022_BG_Calculated!I43="","",(CONCATENATE("CT ", Data_ACS_2022_BG_Calculated!I43,", BG ",Data_ACS_2022_BG_Calculated!J43))) ->  | C46: =Data_ACS_2022_BG_Calculated!L43 -> 0 | D46: =Data_ACS_2022_BG_Calculated!M43 -> 0 | F46: =Data_ACS_2022_BG_Calculated!O43 -> 0 | H46: =Data_ACS_2022_BG_Calculated!Q43 -> 0 | J46: =Data_ACS_2022_BG_Calculated!S43 -> 0 | L46: =Data_ACS_2022_BG_Calculated!U43 -> 0 | N46: =Data_ACS_2022_BG_Calculated!W43 -> 0 | P46: =Data_ACS_2022_BG_Calculated!Y43 -> 0 | R46: 0
B47: =IF(Data_ACS_2022_BG_Calculated!I44="","",(CONCATENATE("CT ", Data_ACS_2022_BG_Calculated!I44,", BG ",Data_ACS_2022_BG_Calculated!J44))) ->  | C47: =Data_ACS_2022_BG_Calculated!L44 -> 0 | D47: =Data_ACS_2022_BG_Calculated!M44 -> 0 | F47: =Data_ACS_2022_BG_Calculated!O44 -> 0 | H47: =Data_ACS_2022_BG_Calculated!Q44 -> 0 | J47: =Data_ACS_2022_BG_Calculated!S44 -> 0 | L47: =Data_ACS_2022_BG_Calculated!U44 -> 0 | N47: =Data_ACS_2022_BG_Calculated!W44 -> 0 | P47: =Data_ACS_2022_BG_Calculated!Y44 -> 0 | R47: 0
B48: =IF(Data_ACS_2022_BG_Calculated!I45="","",(CONCATENATE("CT ", Data_ACS_2022_BG_Calculated!I45,", BG ",Data_ACS_2022_BG_Calculated!J45))) ->  | C48: =Data_ACS_2022_BG_Calculated!L45 -> 0 | D48: =Data_ACS_2022_BG_Calculated!M45 -> 0 | F48: =Data_ACS_2022_BG_Calculated!O45 -> 0 | H48: =Data_ACS_2022_BG_Calculated!Q45 -> 0 | J48: =Data_ACS_2022_BG_Calculated!S45 -> 0 | L48: =Data_ACS_2022_BG_Calculated!U45 -> 0 | N48: =Data_ACS_2022_BG_Calculated!W45 -> 0 | P48: =Data_ACS_2022_BG_Calculated!Y45 -> 0 | R48: 0
B49: =IF(Data_ACS_2022_BG_Calculated!I46="","",(CONCATENATE("CT ", Data_ACS_2022_BG_Calculated!I46,", BG ",Data_ACS_2022_BG_Calculated!J46))) ->  | C49: =Data_ACS_2022_BG_Calculated!L46 -> 0 | D49: =Data_ACS_2022_BG_Calculated!M46 -> 0 | F49: =Data_ACS_2022_BG_Calculated!O46 -> 0 | H49: =Data_ACS_2022_BG_Calculated!Q46 -> 0 | J49: =Data_ACS_2022_BG_Calculated!S46 -> 0 | L49: =Data_ACS_2022_BG_Calculated!U46 -> 0 | N49: =Data_ACS_2022_BG_Calculated!W46 -> 0 | P49: =Data_ACS_2022_BG_Calculated!Y46 -> 0 | R49: 0
B50: =IF(Data_ACS_2022_BG_Calculated!I47="","",(CONCATENATE("CT ", Data_ACS_2022_BG_Calculated!I47,", BG ",Data_ACS_2022_BG_Calculated!J47))) ->  | C50: =Data_ACS_2022_BG_Calculated!L47 -> 0 | D50: =Data_ACS_2022_BG_Calculated!M47 -> 0 | F50: =Data_ACS_2022_BG_Calculated!O47 -> 0 | H50: =Data_ACS_2022_BG_Calculated!Q47 -> 0 | J50: =Data_ACS_2022_BG_Calculated!S47 -> 0 | L50: =Data_ACS_2022_BG_Calculated!U47 -> 0 | N50: =Data_ACS_2022_BG_Calculated!W47 -> 0 | P50: =Data_ACS_2022_BG_Calculated!Y47 -> 0 | R50: 0
B51: =IF(Data_ACS_2022_BG_Calculated!I48="","",(CONCATENATE("CT ", Data_ACS_2022_BG_Calculated!I48,", BG ",Data_ACS_2022_BG_Calculated!J48))) ->  | C51: =Data_ACS_2022_BG_Calculated!L48 -> 0 | D51: =Data_ACS_2022_BG_Calculated!M48 -> 0 | F51: =Data_ACS_2022_BG_Calculated!O48 -> 0 | H51: =Data_ACS_2022_BG_Calculated!Q48 -> 0 | J51: =Data_ACS_2022_BG_Calculated!S48 -> 0 | L51: =Data_ACS_2022_BG_Calculated!U48 -> 0 | N51: =Data_ACS_2022_BG_Calculated!W48 -> 0 | P51: =Data_ACS_2022_BG_Calculated!Y48 -> 0 | R51: 0
B52: =IF(Data_ACS_2022_BG_Calculated!I49="","",(CONCATENATE("CT ", Data_ACS_2022_BG_Calculated!I49,", BG ",Data_ACS_2022_BG_Calculated!J49))) ->  | C52: =Data_ACS_2022_BG_Calculated!L49 -> 0 | D52: =Data_ACS_2022_BG_Calculated!M49 -> 0 | F52: =Data_ACS_2022_BG_Calculated!O49 -> 0 | H52: =Data_ACS_2022_BG_Calculated!Q49 -> 0 | J52: =Data_ACS_2022_BG_Calculated!S49 -> 0 | L52: =Data_ACS_2022_BG_Calculated!U49 -> 0 | N52: =Data_ACS_2022_BG_Calculated!W49 -> 0 | P52: =Data_ACS_2022_BG_Calculated!Y49 -> 0 | R52: 0
B53: =IF(Data_ACS_2022_BG_Calculated!I50="","",(CONCATENATE("CT ", Data_ACS_2022_BG_Calculated!I50,", BG ",Data_ACS_2022_BG_Calculated!J50))) ->  | C53: =Data_ACS_2022_BG_Calculated!L50 -> 0 | D53: =Data_ACS_2022_BG_Calculated!M50 -> 0 | F53: =Data_ACS_2022_BG_Calculated!O50 -> 0 | H53: =Data_ACS_2022_BG_Calculated!Q50 -> 0 | J53: =Data_ACS_2022_BG_Calculated!S50 -> 0 | L53: =Data_ACS_2022_BG_Calculated!U50 -> 0 | N53: =Data_ACS_2022_BG_Calculated!W50 -> 0 | P53: =Data_ACS_2022_BG_Calculated!Y50 -> 0 | R53: 0
B54: =IF(Data_ACS_2022_BG_Calculated!I51="","",(CONCATENATE("CT ", Data_ACS_2022_BG_Calculated!I51,", BG ",Data_ACS_2022_BG_Calculated!J51))) ->  | C54: =Data_ACS_2022_BG_Calculated!L51 -> 0 | D54: =Data_ACS_2022_BG_Calculated!M51 -> 0 | F54: =Data_ACS_2022_BG_Calculated!O51 -> 0 | H54: =Data_ACS_2022_BG_Calculated!Q51 -> 0 | J54: =Data_ACS_2022_BG_Calculated!S51 -> 0 | L54: =Data_ACS_2022_BG_Calculated!U51 -> 0 | N54: =Data_ACS_2022_BG_Calculated!W51 -> 0 | P54: =Data_ACS_2022_BG_Calculated!Y51 -> 0 | R54: 0
B55: =IF(Data_ACS_2022_BG_Calculated!I52="","",(CONCATENATE("CT ", Data_ACS_2022_BG_Calculated!I52,", BG ",Data_ACS_2022_BG_Calculated!J52))) ->  | C55: =Data_ACS_2022_BG_Calculated!L52 -> 0 | D55: =Data_ACS_2022_BG_Calculated!M52 -> 0 | F55: =Data_ACS_2022_BG_Calculated!O52 -> 0 | H55: =Data_ACS_2022_BG_Calculated!Q52 -> 0 | J55: =Data_ACS_2022_BG_Calculated!S52 -> 0 | L55: =Data_ACS_2022_BG_Calculated!U52 -> 0 | N55: =Data_ACS_2022_BG_Calculated!W52 -> 0 | P55: =Data_ACS_2022_BG_Calculated!Y52 -> 0 | R55: 0
B56: =IF(Data_ACS_2022_BG_Calculated!I53="","",(CONCATENATE("CT ", Data_ACS_2022_BG_Calculated!I53,", BG ",Data_ACS_2022_BG_Calculated!J53))) ->  | C56: =Data_ACS_2022_BG_Calculated!L53 -> 0 | D56: =Data_ACS_2022_BG_Calculated!M53 -> 0 | F56: =Data_ACS_2022_BG_Calculated!O53 -> 0 | H56: =Data_ACS_2022_BG_Calculated!Q53 -> 0 | J56: =Data_ACS_2022_BG_Calculated!S53 -> 0 | L56: =Data_ACS_2022_BG_Calculated!U53 -> 0 | N56: =Data_ACS_2022_BG_Calculated!W53 -> 0 | P56: =Data_ACS_2022_BG_Calculated!Y53 -> 0 | R56: 0
B57: =IF(Data_ACS_2022_BG_Calculated!I54="","",(CONCATENATE("CT ", Data_ACS_2022_BG_Calculated!I54,", BG ",Data_ACS_2022_BG_Calculated!J54))) ->  | C57: =Data_ACS_2022_BG_Calculated!L54 -> 0 | D57: =Data_ACS_2022_BG_Calculated!M54 -> 0 | F57: =Data_ACS_2022_BG_Calculated!O54 -> 0 | H57: =Data_ACS_2022_BG_Calculated!Q54 -> 0 | J57: =Data_ACS_2022_BG_Calculated!S54 -> 0 | L57: =Data_ACS_2022_BG_Calculated!U54 -> 0 | N57: =Data_ACS_2022_BG_Calculated!W54 -> 0 | P57: =Data_ACS_2022_BG_Calculated!Y54 -> 0 | R57: 0
B58: =IF(Data_ACS_2022_BG_Calculated!I55="","",(CONCATENATE("CT ", Data_ACS_2022_BG_Calculated!I55,", BG ",Data_ACS_2022_BG_Calculated!J55))) ->  | C58: =Data_ACS_2022_BG_Calculated!L55 -> 0 | D58: =Data_ACS_2022_BG_Calculated!M55 -> 0 | F58: =Data_ACS_2022_BG_Calculated!O55 -> 0 | H58: =Data_ACS_2022_BG_Calculated!Q55 -> 0 | J58: =Data_ACS_2022_BG_Calculated!S55 -> 0 | L58: =Data_ACS_2022_BG_Calculated!U55 -> 0 | N58: =Data_ACS_2022_BG_Calculated!W55 -> 0 | P58: =Data_ACS_2022_BG_Calculated!Y55 -> 0 | R58: 0
B59: =IF(Data_ACS_2022_BG_Calculated!I56="","",(CONCATENATE("CT ", Data_ACS_2022_BG_Calculated!I56,", BG ",Data_ACS_2022_BG_Calculated!J56))) ->  | C59: =Data_ACS_2022_BG_Calculated!L56 -> 0 | D59: =Data_ACS_2022_BG_Calculated!M56 -> 0 | F59: =Data_ACS_2022_BG_Calculated!O56 -> 0 | H59: =Data_ACS_2022_BG_Calculated!Q56 -> 0 | J59: =Data_ACS_2022_BG_Calculated!S56 -> 0 | L59: =Data_ACS_2022_BG_Calculated!U56 -> 0 | N59: =Data_ACS_2022_BG_Calculated!W56 -> 0 | P59: =Data_ACS_2022_BG_Calculated!Y56 -> 0 | R59: 0
B60: =IF(Data_ACS_2022_BG_Calculated!I57="","",(CONCATENATE("CT ", Data_ACS_2022_BG_Calculated!I57,", BG ",Data_ACS_2022_BG_Calculated!J57))) ->  | C60: =Data_ACS_2022_BG_Calculated!L57 -> 0 | D60: =Data_ACS_2022_BG_Calculated!M57 -> 0 | F60: =Data_ACS_2022_BG_Calculated!O57 -> 0 | H60: =Data_ACS_2022_BG_Calculated!Q57 -> 0 | J60: =Data_ACS_2022_BG_Calculated!S57 -> 0 | L60: =Data_ACS_2022_BG_Calculated!U57 -> 0 | N60: =Data_ACS_2022_BG_Calculated!W57 -> 0 | P60: =Data_ACS_2022_BG_Calculated!Y57 -> 0 | R60: 0
B61: =IF(Data_ACS_2022_BG_Calculated!I58="","",(CONCATENATE("CT ", Data_ACS_2022_BG_Calculated!I58,", BG ",Data_ACS_2022_BG_Calculated!J58))) ->  | C61: =Data_ACS_2022_BG_Calculated!L58 -> 0 | D61: =Data_ACS_2022_BG_Calculated!M58 -> 0 | F61: =Data_ACS_2022_BG_Calculated!O58 -> 0 | H61: =Data_ACS_2022_BG_Calculated!Q58 -> 0 | J61: =Data_ACS_2022_BG_Calculated!S58 -> 0 | L61: =Data_ACS_2022_BG_Calculated!U58 -> 0 | N61: =Data_ACS_2022_BG_Calculated!W58 -> 0 | P61: =Data_ACS_2022_BG_Calculated!Y58 -> 0 | R61: 0
B62: =IF(Data_ACS_2022_BG_Calculated!I59="","",(CONCATENATE("CT ", Data_ACS_2022_BG_Calculated!I59,", BG ",Data_ACS_2022_BG_Calculated!J59))) ->  | C62: =Data_ACS_2022_BG_Calculated!L59 -> 0 | D62: =Data_ACS_2022_BG_Calculated!M59 -> 0 | F62: =Data_ACS_2022_BG_Calculated!O59 -> 0 | H62: =Data_ACS_2022_BG_Calculated!Q59 -> 0 | J62: =Data_ACS_2022_BG_Calculated!S59 -> 0 | L62: =Data_ACS_2022_BG_Calculated!U59 -> 0 | N62: =Data_ACS_2022_BG_Calculated!W59 -> 0 | P62: =Data_ACS_2022_BG_Calculated!Y59 -> 0 | R62: 0
B63: =IF(Data_ACS_2022_BG_Calculated!I60="","",(CONCATENATE("CT ", Data_ACS_2022_BG_Calculated!I60,", BG ",Data_ACS_2022_BG_Calculated!J60))) ->  | C63: =Data_ACS_2022_BG_Calculated!L60 -> 0 | D63: =Data_ACS_2022_BG_Calculated!M60 -> 0 | F63: =Data_ACS_2022_BG_Calculated!O60 -> 0 | H63: =Data_ACS_2022_BG_Calculated!Q60 -> 0 | J63: =Data_ACS_2022_BG_Calculated!S60 -> 0 | L63: =Data_ACS_2022_BG_Calculated!U60 -> 0 | N63: =Data_ACS_2022_BG_Calculated!W60 -> 0 | P63: =Data_ACS_2022_BG_Calculated!Y60 -> 0 | R63: 0
B64: =IF(Data_ACS_2022_BG_Calculated!I61="","",(CONCATENATE("CT ", Data_ACS_2022_BG_Calculated!I61,", BG ",Data_ACS_2022_BG_Calculated!J61))) ->  | C64: =Data_ACS_2022_BG_Calculated!L61 -> 0 | D64: =Data_ACS_2022_BG_Calculated!M61 -> 0 | F64: =Data_ACS_2022_BG_Calculated!O61 -> 0 | H64: =Data_ACS_2022_BG_Calculated!Q61 -> 0 | J64: =Data_ACS_2022_BG_Calculated!S61 -> 0 | L64: =Data_ACS_2022_BG_Calculated!U61 -> 0 | N64: =Data_ACS_2022_BG_Calculated!W61 -> 0 | P64: =Data_ACS_2022_BG_Calculated!Y61 -> 0 | R64: 0
B65: =IF(Data_ACS_2022_BG_Calculated!I62="","",(CONCATENATE("CT ", Data_ACS_2022_BG_Calculated!I62,", BG ",Data_ACS_2022_BG_Calculated!J62))) ->  | C65: =Data_ACS_2022_BG_Calculated!L62 -> 0 | D65: =Data_ACS_2022_BG_Calculated!M62 -> 0 | F65: =Data_ACS_2022_BG_Calculated!O62 -> 0 | H65: =Data_ACS_2022_BG_Calculated!Q62 -> 0 | J65: =Data_ACS_2022_BG_Calculated!S62 -> 0 | L65: =Data_ACS_2022_BG_Calculated!U62 -> 0 | N65: =Data_ACS_2022_BG_Calculated!W62 -> 0 | P65: =Data_ACS_2022_BG_Calculated!Y62 -> 0 | R65: 0
B66: =IF(Data_ACS_2022_BG_Calculated!I63="","",(CONCATENATE("CT ", Data_ACS_2022_BG_Calculated!I63,", BG ",Data_ACS_2022_BG_Calculated!J63))) ->  | C66: =Data_ACS_2022_BG_Calculated!L63 -> 0 | D66: =Data_ACS_2022_BG_Calculated!M63 -> 0 | F66: =Data_ACS_2022_BG_Calculated!O63 -> 0 | H66: =Data_ACS_2022_BG_Calculated!Q63 -> 0 | J66: =Data_ACS_2022_BG_Calculated!S63 -> 0 | L66: =Data_ACS_2022_BG_Calculated!U63 -> 0 | N66: =Data_ACS_2022_BG_Calculated!W63 -> 0 | P66: =Data_ACS_2022_BG_Calculated!Y63 -> 0 | R66: 0
B67: =IF(Data_ACS_2022_BG_Calculated!I64="","",(CONCATENATE("CT ", Data_ACS_2022_BG_Calculated!I64,", BG ",Data_ACS_2022_BG_Calculated!J64))) ->  | C67: =Data_ACS_2022_BG_Calculated!L64 -> 0 | D67: =Data_ACS_2022_BG_Calculated!M64 -> 0 | F67: =Data_ACS_2022_BG_Calculated!O64 -> 0 | H67: =Data_ACS_2022_BG_Calculated!Q64 -> 0 | J67: =Data_ACS_2022_BG_Calculated!S64 -> 0 | L67: =Data_ACS_2022_BG_Calculated!U64 -> 0 | N67: =Data_ACS_2022_BG_Calculated!W64 -> 0 | P67: =Data_ACS_2022_BG_Calculated!Y64 -> 0 | R67: 0
B68: =IF(Data_ACS_2022_BG_Calculated!I65="","",(CONCATENATE("CT ", Data_ACS_2022_BG_Calculated!I65,", BG ",Data_ACS_2022_BG_Calculated!J65))) ->  | C68: =Data_ACS_2022_BG_Calculated!L65 -> 0 | D68: =Data_ACS_2022_BG_Calculated!M65 -> 0 | F68: =Data_ACS_2022_BG_Calculated!O65 -> 0 | H68: =Data_ACS_2022_BG_Calculated!Q65 -> 0 | J68: =Data_ACS_2022_BG_Calculated!S65 -> 0 | L68: =Data_ACS_2022_BG_Calculated!U65 -> 0 | N68: =Data_ACS_2022_BG_Calculated!W65 -> 0 | P68: =Data_ACS_2022_BG_Calculated!Y65 -> 0 | R68: 0
B69: =IF(Data_ACS_2022_BG_Calculated!I66="","",(CONCATENATE("CT ", Data_ACS_2022_BG_Calculated!I66,", BG ",Data_ACS_2022_BG_Calculated!J66))) ->  | C69: =Data_ACS_2022_BG_Calculated!L66 -> 0 | D69: =Data_ACS_2022_BG_Calculated!M66 -> 0 | F69: =Data_ACS_2022_BG_Calculated!O66 -> 0 | H69: =Data_ACS_2022_BG_Calculated!Q66 -> 0 | J69: =Data_ACS_2022_BG_Calculated!S66 -> 0 | L69: =Data_ACS_2022_BG_Calculated!U66 -> 0 | N69: =Data_ACS_2022_BG_Calculated!W66 -> 0 | P69: =Data_ACS_2022_BG_Calculated!Y66 -> 0 | R69: 0
B70: =IF(Data_ACS_2022_BG_Calculated!I67="","",(CONCATENATE("CT ", Data_ACS_2022_BG_Calculated!I67,", BG ",Data_ACS_2022_BG_Calculated!J67))) ->  | C70: =Data_ACS_2022_BG_Calculated!L67 -> 0 | D70: =Data_ACS_2022_BG_Calculated!M67 -> 0 | F70: =Data_ACS_2022_BG_Calculated!O67 -> 0 | H70: =Data_ACS_2022_BG_Calculated!Q67 -> 0 | J70: =Data_ACS_2022_BG_Calculated!S67 -> 0 | L70: =Data_ACS_2022_BG_Calculated!U67 -> 0 | N70: =Data_ACS_2022_BG_Calculated!W67 -> 0 | P70: =Data_ACS_2022_BG_Calculated!Y67 -> 0 | R70: 0
B71: =IF(Data_ACS_2022_BG_Calculated!I68="","",(CONCATENATE("CT ", Data_ACS_2022_BG_Calculated!I68,", BG ",Data_ACS_2022_BG_Calculated!J68))) ->  | C71: =Data_ACS_2022_BG_Calculated!L68 -> 0 | D71: =Data_ACS_2022_BG_Calculated!M68 -> 0 | F71: =Data_ACS_2022_BG_Calculated!O68 -> 0 | H71: =Data_ACS_2022_BG_Calculated!Q68 -> 0 | J71: =Data_ACS_2022_BG_Calculated!S68 -> 0 | L71: =Data_ACS_2022_BG_Calculated!U68 -> 0 | N71: =Data_ACS_2022_BG_Calculated!W68 -> 0 | P71: =Data_ACS_2022_BG_Calculated!Y68 -> 0 | R71: 0
B72: =IF(Data_ACS_2022_BG_Calculated!I69="","",(CONCATENATE("CT ", Data_ACS_2022_BG_Calculated!I69,", BG ",Data_ACS_2022_BG_Calculated!J69))) ->  | C72: =Data_ACS_2022_BG_Calculated!L69 -> 0 | D72: =Data_ACS_2022_BG_Calculated!M69 -> 0 | F72: =Data_ACS_2022_BG_Calculated!O69 -> 0 | H72: =Data_ACS_2022_BG_Calculated!Q69 -> 0 | J72: =Data_ACS_2022_BG_Calculated!S69 -> 0 | L72: =Data_ACS_2022_BG_Calculated!U69 -> 0 | N72: =Data_ACS_2022_BG_Calculated!W69 -> 0 | P72: =Data_ACS_2022_BG_Calculated!Y69 -> 0 | R72: 0
B73: =IF(Data_ACS_2022_BG_Calculated!I70="","",(CONCATENATE("CT ", Data_ACS_2022_BG_Calculated!I70,", BG ",Data_ACS_2022_BG_Calculated!J70))) ->  | C73: =Data_ACS_2022_BG_Calculated!L70 -> 0 | D73: =Data_ACS_2022_BG_Calculated!M70 -> 0 | F73: =Data_ACS_2022_BG_Calculated!O70 -> 0 | H73: =Data_ACS_2022_BG_Calculated!Q70 -> 0 | J73: =Data_ACS_2022_BG_Calculated!S70 -> 0 | L73: =Data_ACS_2022_BG_Calculated!U70 -> 0 | N73: =Data_ACS_2022_BG_Calculated!W70 -> 0 | P73: =Data_ACS_2022_BG_Calculated!Y70 -> 0 | R73: 0
B74: =IF(Data_ACS_2022_BG_Calculated!I71="","",(CONCATENATE("CT ", Data_ACS_2022_BG_Calculated!I71,", BG ",Data_ACS_2022_BG_Calculated!J71))) ->  | C74: =Data_ACS_2022_BG_Calculated!L71 -> 0 | D74: =Data_ACS_2022_BG_Calculated!M71 -> 0 | F74: =Data_ACS_2022_BG_Calculated!O71 -> 0 | H74: =Data_ACS_2022_BG_Calculated!Q71 -> 0 | J74: =Data_ACS_2022_BG_Calculated!S71 -> 0 | L74: =Data_ACS_2022_BG_Calculated!U71 -> 0 | N74: =Data_ACS_2022_BG_Calculated!W71 -> 0 | P74: =Data_ACS_2022_BG_Calculated!Y71 -> 0 | R74: 0
B75: =IF(Data_ACS_2022_BG_Calculated!I72="","",(CONCATENATE("CT ", Data_ACS_2022_BG_Calculated!I72,", BG ",Data_ACS_2022_BG_Calculated!J72))) ->  | C75: =Data_ACS_2022_BG_Calculated!L72 -> 0 | D75: =Data_ACS_2022_BG_Calculated!M72 -> 0 | F75: =Data_ACS_2022_BG_Calculated!O72 -> 0 | H75: =Data_ACS_2022_BG_Calculated!Q72 -> 0 | J75: =Data_ACS_2022_BG_Calculated!S72 -> 0 | L75: =Data_ACS_2022_BG_Calculated!U72 -> 0 | N75: =Data_ACS_2022_BG_Calculated!W72 -> 0 | P75: =Data_ACS_2022_BG_Calculated!Y72 -> 0 | R75: 0
B76: =IF(Data_ACS_2022_BG_Calculated!I73="","",(CONCATENATE("CT ", Data_ACS_2022_BG_Calculated!I73,", BG ",Data_ACS_2022_BG_Calculated!J73))) ->  | C76: =Data_ACS_2022_BG_Calculated!L73 -> 0 | D76: =Data_ACS_2022_BG_Calculated!M73 -> 0 | F76: =Data_ACS_2022_BG_Calculated!O73 -> 0 | H76: =Data_ACS_2022_BG_Calculated!Q73 -> 0 | J76: =Data_ACS_2022_BG_Calculated!S73 -> 0 | L76: =Data_ACS_2022_BG_Calculated!U73 -> 0 | N76: =Data_ACS_2022_BG_Calculated!W73 -> 0 | P76: =Data_ACS_2022_BG_Calculated!Y73 -> 0 | R76: 0
B77: =IF(Data_ACS_2022_BG_Calculated!I74="","",(CONCATENATE("CT ", Data_ACS_2022_BG_Calculated!I74,", BG ",Data_ACS_2022_BG_Calculated!J74))) ->  | C77: =Data_ACS_2022_BG_Calculated!L74 -> 0 | D77: =Data_ACS_2022_BG_Calculated!M74 -> 0 | F77: =Data_ACS_2022_BG_Calculated!O74 -> 0 | H77: =Data_ACS_2022_BG_Calculated!Q74 -> 0 | J77: =Data_ACS_2022_BG_Calculated!S74 -> 0 | L77: =Data_ACS_2022_BG_Calculated!U74 -> 0 | N77: =Data_ACS_2022_BG_Calculated!W74 -> 0 | P77: =Data_ACS_2022_BG_Calculated!Y74 -> 0 | R77: 0
B78: =IF(Data_ACS_2022_BG_Calculated!I75="","",(CONCATENATE("CT ", Data_ACS_2022_BG_Calculated!I75,", BG ",Data_ACS_2022_BG_Calculated!J75))) ->  | C78: =Data_ACS_2022_BG_Calculated!L75 -> 0 | D78: =Data_ACS_2022_BG_Calculated!M75 -> 0 | F78: =Data_ACS_2022_BG_Calculated!O75 -> 0 | H78: =Data_ACS_2022_BG_Calculated!Q75 -> 0 | J78: =Data_ACS_2022_BG_Calculated!S75 -> 0 | L78: =Data_ACS_2022_BG_Calculated!U75 -> 0 | N78: =Data_ACS_2022_BG_Calculated!W75 -> 0 | P78: =Data_ACS_2022_BG_Calculated!Y75 -> 0 | R78: 0
B79: =IF(Data_ACS_2022_BG_Calculated!I76="","",(CONCATENATE("CT ", Data_ACS_2022_BG_Calculated!I76,", BG ",Data_ACS_2022_BG_Calculated!J76))) ->  | C79: =Data_ACS_2022_BG_Calculated!L76 -> 0 | D79: =Data_ACS_2022_BG_Calculated!M76 -> 0 | F79: =Data_ACS_2022_BG_Calculated!O76 -> 0 | H79: =Data_ACS_2022_BG_Calculated!Q76 -> 0 | J79: =Data_ACS_2022_BG_Calculated!S76 -> 0 | L79: =Data_ACS_2022_BG_Calculated!U76 -> 0 | N79: =Data_ACS_2022_BG_Calculated!W76 -> 0 | P79: =Data_ACS_2022_BG_Calculated!Y76 -> 0 | R79: 0
B80: =IF(Data_ACS_2022_BG_Calculated!I77="","",(CONCATENATE("CT ", Data_ACS_2022_BG_Calculated!I77,", BG ",Data_ACS_2022_BG_Calculated!J77))) ->  | C80: =Data_ACS_2022_BG_Calculated!L77 -> 0 | D80: =Data_ACS_2022_BG_Calculated!M77 -> 0 | F80: =Data_ACS_2022_BG_Calculated!O77 -> 0 | H80: =Data_ACS_2022_BG_Calculated!Q77 -> 0 | J80: =Data_ACS_2022_BG_Calculated!S77 -> 0 | L80: =Data_ACS_2022_BG_Calculated!U77 -> 0 | N80: =Data_ACS_2022_BG_Calculated!W77 -> 0 | P80: =Data_ACS_2022_BG_Calculated!Y77 -> 0 | R80: 0
B81: =IF(Data_ACS_2022_BG_Calculated!I78="","",(CONCATENATE("CT ", Data_ACS_2022_BG_Calculated!I78,", BG ",Data_ACS_2022_BG_Calculated!J78))) ->  | C81: =Data_ACS_2022_BG_Calculated!L78 -> 0 | D81: =Data_ACS_2022_BG_Calculated!M78 -> 0 | F81: =Data_ACS_2022_BG_Calculated!O78 -> 0 | H81: =Data_ACS_2022_BG_Calculated!Q78 -> 0 | J81: =Data_ACS_2022_BG_Calculated!S78 -> 0 | L81: =Data_ACS_2022_BG_Calculated!U78 -> 0 | N81: =Data_ACS_2022_BG_Calculated!W78 -> 0 | P81: =Data_ACS_2022_BG_Calculated!Y78 -> 0 | R81: 0
B82: =IF(Data_ACS_2022_BG_Calculated!I79="","",(CONCATENATE("CT ", Data_ACS_2022_BG_Calculated!I79,", BG ",Data_ACS_2022_BG_Calculated!J79))) ->  | C82: =Data_ACS_2022_BG_Calculated!L79 -> 0 | D82: =Data_ACS_2022_BG_Calculated!M79 -> 0 | F82: =Data_ACS_2022_BG_Calculated!O79 -> 0 | H82: =Data_ACS_2022_BG_Calculated!Q79 -> 0 | J82: =Data_ACS_2022_BG_Calculated!S79 -> 0 | L82: =Data_ACS_2022_BG_Calculated!U79 -> 0 | N82: =Data_ACS_2022_BG_Calculated!W79 -> 0 | P82: =Data_ACS_2022_BG_Calculated!Y79 -> 0 | R82: 0
B83: =IF(Data_ACS_2022_BG_Calculated!I80="","",(CONCATENATE("CT ", Data_ACS_2022_BG_Calculated!I80,", BG ",Data_ACS_2022_BG_Calculated!J80))) ->  | C83: =Data_ACS_2022_BG_Calculated!L80 -> 0 | D83: =Data_ACS_2022_BG_Calculated!M80 -> 0 | F83: =Data_ACS_2022_BG_Calculated!O80 -> 0 | H83: =Data_ACS_2022_BG_Calculated!Q80 -> 0 | J83: =Data_ACS_2022_BG_Calculated!S80 -> 0 | L83: =Data_ACS_2022_BG_Calculated!U80 -> 0 | N83: =Data_ACS_2022_BG_Calculated!W80 -> 0 | P83: =Data_ACS_2022_BG_Calculated!Y80 -> 0 | R83: 0
B84: =IF(Data_ACS_2022_BG_Calculated!I81="","",(CONCATENATE("CT ", Data_ACS_2022_BG_Calculated!I81,", BG ",Data_ACS_2022_BG_Calculated!J81))) ->  | C84: =Data_ACS_2022_BG_Calculated!L81 -> 0 | D84: =Data_ACS_2022_BG_Calculated!M81 -> 0 | F84: =Data_ACS_2022_BG_Calculated!O81 -> 0 | H84: =Data_ACS_2022_BG_Calculated!Q81 -> 0 | J84: =Data_ACS_2022_BG_Calculated!S81 -> 0 | L84: =Data_ACS_2022_BG_Calculated!U81 -> 0 | N84: =Data_ACS_2022_BG_Calculated!W81 -> 0 | P84: =Data_ACS_2022_BG_Calculated!Y81 -> 0 | R84: 0
B85: =IF(Data_ACS_2022_BG_Calculated!I82="","",(CONCATENATE("CT ", Data_ACS_2022_BG_Calculated!I82,", BG ",Data_ACS_2022_BG_Calculated!J82))) ->  | C85: =Data_ACS_2022_BG_Calculated!L82 -> 0 | D85: =Data_ACS_2022_BG_Calculated!M82 -> 0 | F85: =Data_ACS_2022_BG_Calculated!O82 -> 0 | H85: =Data_ACS_2022_BG_Calculated!Q82 -> 0 | J85: =Data_ACS_2022_BG_Calculated!S82 -> 0 | L85: =Data_ACS_2022_BG_Calculated!U82 -> 0 | N85: =Data_ACS_2022_BG_Calculated!W82 -> 0 | P85: =Data_ACS_2022_BG_Calculated!Y82 -> 0 | R85: 0
B86: =IF(Data_ACS_2022_BG_Calculated!I83="","",(CONCATENATE("CT ", Data_ACS_2022_BG_Calculated!I83,", BG ",Data_ACS_2022_BG_Calculated!J83))) ->  | C86: =Data_ACS_2022_BG_Calculated!L83 -> 0 | D86: =Data_ACS_2022_BG_Calculated!M83 -> 0 | F86: =Data_ACS_2022_BG_Calculated!O83 -> 0 | H86: =Data_ACS_2022_BG_Calculated!Q83 -> 0 | J86: =Data_ACS_2022_BG_Calculated!S83 -> 0 | L86: =Data_ACS_2022_BG_Calculated!U83 -> 0 | N86: =Data_ACS_2022_BG_Calculated!W83 -> 0 | P86: =Data_ACS_2022_BG_Calculated!Y83 -> 0 | R86: 0
B87: =IF(Data_ACS_2022_BG_Calculated!I84="","",(CONCATENATE("CT ", Data_ACS_2022_BG_Calculated!I84,", BG ",Data_ACS_2022_BG_Calculated!J84))) ->  | C87: =Data_ACS_2022_BG_Calculated!L84 -> 0 | D87: =Data_ACS_2022_BG_Calculated!M84 -> 0 | F87: =Data_ACS_2022_BG_Calculated!O84 -> 0 | H87: =Data_ACS_2022_BG_Calculated!Q84 -> 0 | J87: =Data_ACS_2022_BG_Calculated!S84 -> 0 | L87: =Data_ACS_2022_BG_Calculated!U84 -> 0 | N87: =Data_ACS_2022_BG_Calculated!W84 -> 0 | P87: =Data_ACS_2022_BG_Calculated!Y84 -> 0 | R87: 0
B88: =IF(Data_ACS_2022_BG_Calculated!I85="","",(CONCATENATE("CT ", Data_ACS_2022_BG_Calculated!I85,", BG ",Data_ACS_2022_BG_Calculated!J85))) ->  | C88: =Data_ACS_2022_BG_Calculated!L85 -> 0 | D88: =Data_ACS_2022_BG_Calculated!M85 -> 0 | F88: =Data_ACS_2022_BG_Calculated!O85 -> 0 | H88: =Data_ACS_2022_BG_Calculated!Q85 -> 0 | J88: =Data_ACS_2022_BG_Calculated!S85 -> 0 | L88: =Data_ACS_2022_BG_Calculated!U85 -> 0 | N88: =Data_ACS_2022_BG_Calculated!W85 -> 0 | P88: =Data_ACS_2022_BG_Calculated!Y85 -> 0 | R88: 0
B89: =IF(Data_ACS_2022_BG_Calculated!I86="","",(CONCATENATE("CT ", Data_ACS_2022_BG_Calculated!I86,", BG ",Data_ACS_2022_BG_Calculated!J86))) ->  | C89: =Data_ACS_2022_BG_Calculated!L86 -> 0 | D89: =Data_ACS_2022_BG_Calculated!M86 -> 0 | F89: =Data_ACS_2022_BG_Calculated!O86 -> 0 | H89: =Data_ACS_2022_BG_Calculated!Q86 -> 0 | J89: =Data_ACS_2022_BG_Calculated!S86 -> 0 | L89: =Data_ACS_2022_BG_Calculated!U86 -> 0 | N89: =Data_ACS_2022_BG_Calculated!W86 -> 0 | P89: =Data_ACS_2022_BG_Calculated!Y86 -> 0 | R89: 0
B90: =IF(Data_ACS_2022_BG_Calculated!I87="","",(CONCATENATE("CT ", Data_ACS_2022_BG_Calculated!I87,", BG ",Data_ACS_2022_BG_Calculated!J87))) ->  | C90: =Data_ACS_2022_BG_Calculated!L87 -> 0 | D90: =Data_ACS_2022_BG_Calculated!M87 -> 0 | F90: =Data_ACS_2022_BG_Calculated!O87 -> 0 | H90: =Data_ACS_2022_BG_Calculated!Q87 -> 0 | J90: =Data_ACS_2022_BG_Calculated!S87 -> 0 | L90: =Data_ACS_2022_BG_Calculated!U87 -> 0 | N90: =Data_ACS_2022_BG_Calculated!W87 -> 0 | P90: =Data_ACS_2022_BG_Calculated!Y87 -> 0 | R90: 0
B91: =IF(Data_ACS_2022_BG_Calculated!I88="","",(CONCATENATE("CT ", Data_ACS_2022_BG_Calculated!I88,", BG ",Data_ACS_2022_BG_Calculated!J88))) ->  | C91: =Data_ACS_2022_BG_Calculated!L88 -> 0 | D91: =Data_ACS_2022_BG_Calculated!M88 -> 0 | F91: =Data_ACS_2022_BG_Calculated!O88 -> 0 | H91: =Data_ACS_2022_BG_Calculated!Q88 -> 0 | J91: =Data_ACS_2022_BG_Calculated!S88 -> 0 | L91: =Data_ACS_2022_BG_Calculated!U88 -> 0 | N91: =Data_ACS_2022_BG_Calculated!W88 -> 0 | P91: =Data_ACS_2022_BG_Calculated!Y88 -> 0 | R91: 0
B92: =IF(Data_ACS_2022_BG_Calculated!I89="","",(CONCATENATE("CT ", Data_ACS_2022_BG_Calculated!I89,", BG ",Data_ACS_2022_BG_Calculated!J89))) ->  | C92: =Data_ACS_2022_BG_Calculated!L89 -> 0 | D92: =Data_ACS_2022_BG_Calculated!M89 -> 0 | F92: =Data_ACS_2022_BG_Calculated!O89 -> 0 | H92: =Data_ACS_2022_BG_Calculated!Q89 -> 0 | J92: =Data_ACS_2022_BG_Calculated!S89 -> 0 | L92: =Data_ACS_2022_BG_Calculated!U89 -> 0 | N92: =Data_ACS_2022_BG_Calculated!W89 -> 0 | P92: =Data_ACS_2022_BG_Calculated!Y89 -> 0 | R92: 0
B93: =IF(Data_ACS_2022_BG_Calculated!I90="","",(CONCATENATE("CT ", Data_ACS_2022_BG_Calculated!I90,", BG ",Data_ACS_2022_BG_Calculated!J90))) ->  | C93: =Data_ACS_2022_BG_Calculated!L90 -> 0 | D93: =Data_ACS_2022_BG_Calculated!M90 -> 0 | E93: =IFERROR(D93/$C93,"") ->  | F93: =Data_ACS_2022_BG_Calculated!O90 -> 0 | G93: =IFERROR(F93/$C93,"") ->  | H93: =Data_ACS_2022_BG_Calculated!Q90 -> 0 | I93: =IFERROR(H93/$C93,"") ->  | J93: =Data_ACS_2022_BG_Calculated!S90 -> 0 | K93: =IFERROR(J93/$C93,"") ->  | L93: =Data_ACS_2022_BG_Calculated!U90 -> 0 | M93: =IFERROR(L93/$C93,"") ->  | N93: =Data_ACS_2022_BG_Calculated!W90 -> 0 | O93: =IFERROR(N93/$C93,"") ->  | P93: =Data_ACS_2022_BG_Calculated!Y90 -> 0 | Q93: =IFERROR(P93/$C93,"") ->  | R93: =SUM(F93,H93,J93,L93,N93,P93) -> 0 | S93: =IFERROR(R93/$C93,"") -> 
B94: =IF(Data_ACS_2022_BG_Calculated!I91="","",(CONCATENATE("CT ", Data_ACS_2022_BG_Calculated!I91,", BG ",Data_ACS_2022_BG_Calculated!J91))) ->  | C94: =Data_ACS_2022_BG_Calculated!L91 -> 0 | D94: =Data_ACS_2022_BG_Calculated!M91 -> 0 | F94: =Data_ACS_2022_BG_Calculated!O91 -> 0 | H94: =Data_ACS_2022_BG_Calculated!Q91 -> 0 | J94: =Data_ACS_2022_BG_Calculated!S91 -> 0 | L94: =Data_ACS_2022_BG_Calculated!U91 -> 0 | N94: =Data_ACS_2022_BG_Calculated!W91 -> 0 | P94: =Data_ACS_2022_BG_Calculated!Y91 -> 0 | R94: 0
B95: =IF(Data_ACS_2022_BG_Calculated!I92="","",(CONCATENATE("CT ", Data_ACS_2022_BG_Calculated!I92,", BG ",Data_ACS_2022_BG_Calculated!J92))) ->  | C95: =Data_ACS_2022_BG_Calculated!L92 -> 0 | D95: =Data_ACS_2022_BG_Calculated!M92 -> 0 | F95: =Data_ACS_2022_BG_Calculated!O92 -> 0 | H95: =Data_ACS_2022_BG_Calculated!Q92 -> 0 | J95: =Data_ACS_2022_BG_Calculated!S92 -> 0 | L95: =Data_ACS_2022_BG_Calculated!U92 -> 0 | N95: =Data_ACS_2022_BG_Calculated!W92 -> 0 | P95: =Data_ACS_2022_BG_Calculated!Y92 -> 0 | R95: 0
B96: =IF(Data_ACS_2022_BG_Calculated!I93="","",(CONCATENATE("CT ", Data_ACS_2022_BG_Calculated!I93,", BG ",Data_ACS_2022_BG_Calculated!J93))) ->  | C96: =Data_ACS_2022_BG_Calculated!L93 -> 0 | D96: =Data_ACS_2022_BG_Calculated!M93 -> 0 | F96: =Data_ACS_2022_BG_Calculated!O93 -> 0 | H96: =Data_ACS_2022_BG_Calculated!Q93 -> 0 | J96: =Data_ACS_2022_BG_Calculated!S93 -> 0 | L96: =Data_ACS_2022_BG_Calculated!U93 -> 0 | N96: =Data_ACS_2022_BG_Calculated!W93 -> 0 | P96: =Data_ACS_2022_BG_Calculated!Y93 -> 0 | R96: 0
B97: =IF(Data_ACS_2022_BG_Calculated!I94="","",(CONCATENATE("CT ", Data_ACS_2022_BG_Calculated!I94,", BG ",Data_ACS_2022_BG_Calculated!J94))) ->  | C97: =Data_ACS_2022_BG_Calculated!L94 -> 0 | D97: =Data_ACS_2022_BG_Calculated!M94 -> 0 | F97: =Data_ACS_2022_BG_Calculated!O94 -> 0 | H97: =Data_ACS_2022_BG_Calculated!Q94 -> 0 | J97: =Data_ACS_2022_BG_Calculated!S94 -> 0 | L97: =Data_ACS_2022_BG_Calculated!U94 -> 0 | N97: =Data_ACS_2022_BG_Calculated!W94 -> 0 | P97: =Data_ACS_2022_BG_Calculated!Y94 -> 0 | R97: 0
B98: =IF(Data_ACS_2022_BG_Calculated!I95="","",(CONCATENATE("CT ", Data_ACS_2022_BG_Calculated!I95,", BG ",Data_ACS_2022_BG_Calculated!J95))) ->  | C98: =Data_ACS_2022_BG_Calculated!L95 -> 0 | D98: =Data_ACS_2022_BG_Calculated!M95 -> 0 | F98: =Data_ACS_2022_BG_Calculated!O95 -> 0 | H98: =Data_ACS_2022_BG_Calculated!Q95 -> 0 | J98: =Data_ACS_2022_BG_Calculated!S95 -> 0 | L98: =Data_ACS_2022_BG_Calculated!U95 -> 0 | N98: =Data_ACS_2022_BG_Calculated!W95 -> 0 | P98: =Data_ACS_2022_BG_Calculated!Y95 -> 0 | R98: 0
B99: =IF(Data_ACS_2022_BG_Calculated!I96="","",(CONCATENATE("CT ", Data_ACS_2022_BG_Calculated!I96,", BG ",Data_ACS_2022_BG_Calculated!J96))) ->  | C99: =Data_ACS_2022_BG_Calculated!L96 -> 0 | D99: =Data_ACS_2022_BG_Calculated!M96 -> 0 | F99: =Data_ACS_2022_BG_Calculated!O96 -> 0 | H99: =Data_ACS_2022_BG_Calculated!Q96 -> 0 | J99: =Data_ACS_2022_BG_Calculated!S96 -> 0 | L99: =Data_ACS_2022_BG_Calculated!U96 -> 0 | N99: =Data_ACS_2022_BG_Calculated!W96 -> 0 | P99: =Data_ACS_2022_BG_Calculated!Y96 -> 0 | R99: 0
B100: =IF(Data_ACS_2022_BG_Calculated!I97="","",(CONCATENATE("CT ", Data_ACS_2022_BG_Calculated!I97,", BG ",Data_ACS_2022_BG_Calculated!J97))) ->  | C100: =Data_ACS_2022_BG_Calculated!L97 -> 0 | D100: =Data_ACS_2022_BG_Calculated!M97 -> 0 | F100: =Data_ACS_2022_BG_Calculated!O97 -> 0 | H100: =Data_ACS_2022_BG_Calculated!Q97 -> 0 | J100: =Data_ACS_2022_BG_Calculated!S97 -> 0 | L100: =Data_ACS_2022_BG_Calculated!U97 -> 0 | N100: =Data_ACS_2022_BG_Calculated!W97 -> 0 | P100: =Data_ACS_2022_BG_Calculated!Y97 -> 0 | R100: 0
B101: =IF(Data_ACS_2022_BG_Calculated!I98="","",(CONCATENATE("CT ", Data_ACS_2022_BG_Calculated!I98,", BG ",Data_ACS_2022_BG_Calculated!J98))) ->  | C101: =Data_ACS_2022_BG_Calculated!L98 -> 0 | D101: =Data_ACS_2022_BG_Calculated!M98 -> 0 | F101: =Data_ACS_2022_BG_Calculated!O98 -> 0 | H101: =Data_ACS_2022_BG_Calculated!Q98 -> 0 | J101: =Data_ACS_2022_BG_Calculated!S98 -> 0 | L101: =Data_ACS_2022_BG_Calculated!U98 -> 0 | N101: =Data_ACS_2022_BG_Calculated!W98 -> 0 | P101: =Data_ACS_2022_BG_Calculated!Y98 -> 0 | R101: 0
B102: =IF(Data_ACS_2022_BG_Calculated!I99="","",(CONCATENATE("CT ", Data_ACS_2022_BG_Calculated!I99,", BG ",Data_ACS_2022_BG_Calculated!J99))) ->  | C102: =Data_ACS_2022_BG_Calculated!L99 -> 0 | D102: =Data_ACS_2022_BG_Calculated!M99 -> 0 | F102: =Data_ACS_2022_BG_Calculated!O99 -> 0 | H102: =Data_ACS_2022_BG_Calculated!Q99 -> 0 | J102: =Data_ACS_2022_BG_Calculated!S99 -> 0 | L102: =Data_ACS_2022_BG_Calculated!U99 -> 0 | N102: =Data_ACS_2022_BG_Calculated!W99 -> 0 | P102: =Data_ACS_2022_BG_Calculated!Y99 -> 0 | R102: 0
B103: =IF(Data_ACS_2022_BG_Calculated!I100="","",(CONCATENATE("CT ", Data_ACS_2022_BG_Calculated!I100,", BG ",Data_ACS_2022_BG_Calculated!J100))) ->  | C103: =Data_ACS_2022_BG_Calculated!L100 -> 0 | D103: =Data_ACS_2022_BG_Calculated!M100 -> 0 | F103: =Data_ACS_2022_BG_Calculated!O100 -> 0 | H103: =Data_ACS_2022_BG_Calculated!Q100 -> 0 | J103: =Data_ACS_2022_BG_Calculated!S100 -> 0 | L103: =Data_ACS_2022_BG_Calculated!U100 -> 0 | N103: =Data_ACS_2022_BG_Calculated!W100 -> 0 | P103: =Data_ACS_2022_BG_Calculated!Y100 -> 0 | R103: 0
B104: =IF(Data_ACS_2022_BG_Calculated!I101="","",(CONCATENATE("CT ", Data_ACS_2022_BG_Calculated!I101,", BG ",Data_ACS_2022_BG_Calculated!J101))) ->  | C104: =Data_ACS_2022_BG_Calculated!L101 -> 0 | D104: =Data_ACS_2022_BG_Calculated!M101 -> 0 | F104: =Data_ACS_2022_BG_Calculated!O101 -> 0 | H104: =Data_ACS_2022_BG_Calculated!Q101 -> 0 | J104: =Data_ACS_2022_BG_Calculated!S101 -> 0 | L104: =Data_ACS_2022_BG_Calculated!U101 -> 0 | N104: =Data_ACS_2022_BG_Calculated!W101 -> 0 | P104: =Data_ACS_2022_BG_Calculated!Y101 -> 0 | R104: 0
B105: =IF(Data_ACS_2022_BG_Calculated!I102="","",(CONCATENATE("CT ", Data_ACS_2022_BG_Calculated!I102,", BG ",Data_ACS_2022_BG_Calculated!J102))) ->  | C105: =Data_ACS_2022_BG_Calculated!L102 -> 0 | D105: =Data_ACS_2022_BG_Calculated!M102 -> 0 | F105: =Data_ACS_2022_BG_Calculated!O102 -> 0 | H105: =Data_ACS_2022_BG_Calculated!Q102 -> 0 | J105: =Data_ACS_2022_BG_Calculated!S102 -> 0 | L105: =Data_ACS_2022_BG_Calculated!U102 -> 0 | N105: =Data_ACS_2022_BG_Calculated!W102 -> 0 | P105: =Data_ACS_2022_BG_Calculated!Y102 -> 0 | R105: 0
B106: =IF(Data_ACS_2022_BG_Calculated!I103="","",(CONCATENATE("CT ", Data_ACS_2022_BG_Calculated!I103,", BG ",Data_ACS_2022_BG_Calculated!J103))) ->  | C106: =Data_ACS_2022_BG_Calculated!L103 -> 0 | D106: =Data_ACS_2022_BG_Calculated!M103 -> 0 | F106: =Data_ACS_2022_BG_Calculated!O103 -> 0 | H106: =Data_ACS_2022_BG_Calculated!Q103 -> 0 | J106: =Data_ACS_2022_BG_Calculated!S103 -> 0 | L106: =Data_ACS_2022_BG_Calculated!U103 -> 0 | N106: =Data_ACS_2022_BG_Calculated!W103 -> 0 | P106: =Data_ACS_2022_BG_Calculated!Y103 -> 0 | R106: 0
B107: =IF(Data_ACS_2022_BG_Calculated!I104="","",(CONCATENATE("CT ", Data_ACS_2022_BG_Calculated!I104,", BG ",Data_ACS_2022_BG_Calculated!J104))) ->  | C107: =Data_ACS_2022_BG_Calculated!L104 -> 0 | D107: =Data_ACS_2022_BG_Calculated!M104 -> 0 | F107: =Data_ACS_2022_BG_Calculated!O104 -> 0 | H107: =Data_ACS_2022_BG_Calculated!Q104 -> 0 | J107: =Data_ACS_2022_BG_Calculated!S104 -> 0 | L107: =Data_ACS_2022_BG_Calculated!U104 -> 0 | N107: =Data_ACS_2022_BG_Calculated!W104 -> 0 | P107: =Data_ACS_2022_BG_Calculated!Y104 -> 0 | R107: 0
B108: =IF(Data_ACS_2022_BG_Calculated!I105="","",(CONCATENATE("CT ", Data_ACS_2022_BG_Calculated!I105,", BG ",Data_ACS_2022_BG_Calculated!J105))) ->  | C108: =Data_ACS_2022_BG_Calculated!L105 -> 0 | D108: =Data_ACS_2022_BG_Calculated!M105 -> 0 | F108: =Data_ACS_2022_BG_Calculated!O105 -> 0 | H108: =Data_ACS_2022_BG_Calculated!Q105 -> 0 | J108: =Data_ACS_2022_BG_Calculated!S105 -> 0 | L108: =Data_ACS_2022_BG_Calculated!U105 -> 0 | N108: =Data_ACS_2022_BG_Calculated!W105 -> 0 | P108: =Data_ACS_2022_BG_Calculated!Y105 -> 0 | R108: 0
B109: =IF(Data_ACS_2022_BG_Calculated!I106="","",(CONCATENATE("CT ", Data_ACS_2022_BG_Calculated!I106,", BG ",Data_ACS_2022_BG_Calculated!J106))) ->  | C109: =Data_ACS_2022_BG_Calculated!L106 -> 0 | D109: =Data_ACS_2022_BG_Calculated!M106 -> 0 | F109: =Data_ACS_2022_BG_Calculated!O106 -> 0 | H109: =Data_ACS_2022_BG_Calculated!Q106 -> 0 | J109: =Data_ACS_2022_BG_Calculated!S106 -> 0 | L109: =Data_ACS_2022_BG_Calculated!U106 -> 0 | N109: =Data_ACS_2022_BG_Calculated!W106 -> 0 | P109: =Data_ACS_2022_BG_Calculated!Y106 -> 0 | R109: 0
B110: =IF(Data_ACS_2022_BG_Calculated!I107="","",(CONCATENATE("CT ", Data_ACS_2022_BG_Calculated!I107,", BG ",Data_ACS_2022_BG_Calculated!J107))) ->  | C110: =Data_ACS_2022_BG_Calculated!L107 -> 0 | D110: =Data_ACS_2022_BG_Calculated!M107 -> 0 | F110: =Data_ACS_2022_BG_Calculated!O107 -> 0 | H110: =Data_ACS_2022_BG_Calculated!Q107 -> 0 | J110: =Data_ACS_2022_BG_Calculated!S107 -> 0 | L110: =Data_ACS_2022_BG_Calculated!U107 -> 0 | N110: =Data_ACS_2022_BG_Calculated!W107 -> 0 | P110: =Data_ACS_2022_BG_Calculated!Y107 -> 0 | R110: 0
B111: =IF(Data_ACS_2022_BG_Calculated!I108="","",(CONCATENATE("CT ", Data_ACS_2022_BG_Calculated!I108,", BG ",Data_ACS_2022_BG_Calculated!J108))) ->  | C111: =Data_ACS_2022_BG_Calculated!L108 -> 0 | D111: =Data_ACS_2022_BG_Calculated!M108 -> 0 | F111: =Data_ACS_2022_BG_Calculated!O108 -> 0 | H111: =Data_ACS_2022_BG_Calculated!Q108 -> 0 | J111: =Data_ACS_2022_BG_Calculated!S108 -> 0 | L111: =Data_ACS_2022_BG_Calculated!U108 -> 0 | N111: =Data_ACS_2022_BG_Calculated!W108 -> 0 | P111: =Data_ACS_2022_BG_Calculated!Y108 -> 0 | R111: 0
B112: =IF(Data_ACS_2022_BG_Calculated!I109="","",(CONCATENATE("CT ", Data_ACS_2022_BG_Calculated!I109,", BG ",Data_ACS_2022_BG_Calculated!J109))) ->  | C112: =Data_ACS_2022_BG_Calculated!L109 -> 0 | D112: =Data_ACS_2022_BG_Calculated!M109 -> 0 | F112: =Data_ACS_2022_BG_Calculated!O109 -> 0 | H112: =Data_ACS_2022_BG_Calculated!Q109 -> 0 | J112: =Data_ACS_2022_BG_Calculated!S109 -> 0 | L112: =Data_ACS_2022_BG_Calculated!U109 -> 0 | N112: =Data_ACS_2022_BG_Calculated!W109 -> 0 | P112: =Data_ACS_2022_BG_Calculated!Y109 -> 0 | R112: 0
B113: =IF(Data_ACS_2022_BG_Calculated!I110="","",(CONCATENATE("CT ", Data_ACS_2022_BG_Calculated!I110,", BG ",Data_ACS_2022_BG_Calculated!J110))) ->  | C113: =Data_ACS_2022_BG_Calculated!L110 -> 0 | D113: =Data_ACS_2022_BG_Calculated!M110 -> 0 | F113: =Data_ACS_2022_BG_Calculated!O110 -> 0 | H113: =Data_ACS_2022_BG_Calculated!Q110 -> 0 | J113: =Data_ACS_2022_BG_Calculated!S110 -> 0 | L113: =Data_ACS_2022_BG_Calculated!U110 -> 0 | N113: =Data_ACS_2022_BG_Calculated!W110 -> 0 | P113: =Data_ACS_2022_BG_Calculated!Y110 -> 0 | R113: 0
B114: =IF(Data_ACS_2022_BG_Calculated!I111="","",(CONCATENATE("CT ", Data_ACS_2022_BG_Calculated!I111,", BG ",Data_ACS_2022_BG_Calculated!J111))) ->  | C114: =Data_ACS_2022_BG_Calculated!L111 -> 0 | D114: =Data_ACS_2022_BG_Calculated!M111 -> 0 | F114: =Data_ACS_2022_BG_Calculated!O111 -> 0 | H114: =Data_ACS_2022_BG_Calculated!Q111 -> 0 | J114: =Data_ACS_2022_BG_Calculated!S111 -> 0 | L114: =Data_ACS_2022_BG_Calculated!U111 -> 0 | N114: =Data_ACS_2022_BG_Calculated!W111 -> 0 | P114: =Data_ACS_2022_BG_Calculated!Y111 -> 0 | R114: 0
B115: =IF(Data_ACS_2022_BG_Calculated!I112="","",(CONCATENATE("CT ", Data_ACS_2022_BG_Calculated!I112,", BG ",Data_ACS_2022_BG_Calculated!J112))) ->  | C115: =Data_ACS_2022_BG_Calculated!L112 -> 0 | D115: =Data_ACS_2022_BG_Calculated!M112 -> 0 | F115: =Data_ACS_2022_BG_Calculated!O112 -> 0 | H115: =Data_ACS_2022_BG_Calculated!Q112 -> 0 | J115: =Data_ACS_2022_BG_Calculated!S112 -> 0 | L115: =Data_ACS_2022_BG_Calculated!U112 -> 0 | N115: =Data_ACS_2022_BG_Calculated!W112 -> 0 | P115: =Data_ACS_2022_BG_Calculated!Y112 -> 0 | R115: 0
B116: =IF(Data_ACS_2022_BG_Calculated!I113="","",(CONCATENATE("CT ", Data_ACS_2022_BG_Calculated!I113,", BG ",Data_ACS_2022_BG_Calculated!J113))) ->  | C116: =Data_ACS_2022_BG_Calculated!L113 -> 0 | D116: =Data_ACS_2022_BG_Calculated!M113 -> 0 | F116: =Data_ACS_2022_BG_Calculated!O113 -> 0 | H116: =Data_ACS_2022_BG_Calculated!Q113 -> 0 | J116: =Data_ACS_2022_BG_Calculated!S113 -> 0 | L116: =Data_ACS_2022_BG_Calculated!U113 -> 0 | N116: =Data_ACS_2022_BG_Calculated!W113 -> 0 | P116: =Data_ACS_2022_BG_Calculated!Y113 -> 0 | R116: 0
B117: =IF(Data_ACS_2022_BG_Calculated!I114="","",(CONCATENATE("CT ", Data_ACS_2022_BG_Calculated!I114,", BG ",Data_ACS_2022_BG_Calculated!J114))) ->  | C117: =Data_ACS_2022_BG_Calculated!L114 -> 0 | D117: =Data_ACS_2022_BG_Calculated!M114 -> 0 | F117: =Data_ACS_2022_BG_Calculated!O114 -> 0 | H117: =Data_ACS_2022_BG_Calculated!Q114 -> 0 | J117: =Data_ACS_2022_BG_Calculated!S114 -> 0 | L117: =Data_ACS_2022_BG_Calculated!U114 -> 0 | N117: =Data_ACS_2022_BG_Calculated!W114 -> 0 | P117: =Data_ACS_2022_BG_Calculated!Y114 -> 0 | R117: 0
B118: =IF(Data_ACS_2022_BG_Calculated!I115="","",(CONCATENATE("CT ", Data_ACS_2022_BG_Calculated!I115,", BG ",Data_ACS_2022_BG_Calculated!J115))) ->  | C118: =Data_ACS_2022_BG_Calculated!L115 -> 0 | D118: =Data_ACS_2022_BG_Calculated!M115 -> 0 | F118: =Data_ACS_2022_BG_Calculated!O115 -> 0 | H118: =Data_ACS_2022_BG_Calculated!Q115 -> 0 | J118: =Data_ACS_2022_BG_Calculated!S115 -> 0 | L118: =Data_ACS_2022_BG_Calculated!U115 -> 0 | N118: =Data_ACS_2022_BG_Calculated!W115 -> 0 | P118: =Data_ACS_2022_BG_Calculated!Y115 -> 0 | R118: 0
B119: =IF(Data_ACS_2022_BG_Calculated!I116="","",(CONCATENATE("CT ", Data_ACS_2022_BG_Calculated!I116,", BG ",Data_ACS_2022_BG_Calculated!J116))) ->  | C119: =Data_ACS_2022_BG_Calculated!L116 -> 0 | D119: =Data_ACS_2022_BG_Calculated!M116 -> 0 | F119: =Data_ACS_2022_BG_Calculated!O116 -> 0 | H119: =Data_ACS_2022_BG_Calculated!Q116 -> 0 | J119: =Data_ACS_2022_BG_Calculated!S116 -> 0 | L119: =Data_ACS_2022_BG_Calculated!U116 -> 0 | N119: =Data_ACS_2022_BG_Calculated!W116 -> 0 | P119: =Data_ACS_2022_BG_Calculated!Y116 -> 0 | R119: 0
B120: =IF(Data_ACS_2022_BG_Calculated!I117="","",(CONCATENATE("CT ", Data_ACS_2022_BG_Calculated!I117,", BG ",Data_ACS_2022_BG_Calculated!J117))) ->  | C120: =Data_ACS_2022_BG_Calculated!L117 -> 0 | D120: =Data_ACS_2022_BG_Calculated!M117 -> 0 | F120: =Data_ACS_2022_BG_Calculated!O117 -> 0 | H120: =Data_ACS_2022_BG_Calculated!Q117 -> 0 | J120: =Data_ACS_2022_BG_Calculated!S117 -> 0 | L120: =Data_ACS_2022_BG_Calculated!U117 -> 0 | N120: =Data_ACS_2022_BG_Calculated!W117 -> 0 | P120: =Data_ACS_2022_BG_Calculated!Y117 -> 0 | R120: 0
B121: =IF(Data_ACS_2022_BG_Calculated!I118="","",(CONCATENATE("CT ", Data_ACS_2022_BG_Calculated!I118,", BG ",Data_ACS_2022_BG_Calculated!J118))) ->  | C121: =Data_ACS_2022_BG_Calculated!L118 -> 0 | D121: =Data_ACS_2022_BG_Calculated!M118 -> 0 | F121: =Data_ACS_2022_BG_Calculated!O118 -> 0 | H121: =Data_ACS_2022_BG_Calculated!Q118 -> 0 | J121: =Data_ACS_2022_BG_Calculated!S118 -> 0 | L121: =Data_ACS_2022_BG_Calculated!U118 -> 0 | N121: =Data_ACS_2022_BG_Calculated!W118 -> 0 | P121: =Data_ACS_2022_BG_Calculated!Y118 -> 0 | R121: 0
B122: =IF(Data_ACS_2022_BG_Calculated!I119="","",(CONCATENATE("CT ", Data_ACS_2022_BG_Calculated!I119,", BG ",Data_ACS_2022_BG_Calculated!J119))) ->  | C122: =Data_ACS_2022_BG_Calculated!L119 -> 0 | D122: =Data_ACS_2022_BG_Calculated!M119 -> 0 | F122: =Data_ACS_2022_BG_Calculated!O119 -> 0 | H122: =Data_ACS_2022_BG_Calculated!Q119 -> 0 | J122: =Data_ACS_2022_BG_Calculated!S119 -> 0 | L122: =Data_ACS_2022_BG_Calculated!U119 -> 0 | N122: =Data_ACS_2022_BG_Calculated!W119 -> 0 | P122: =Data_ACS_2022_BG_Calculated!Y119 -> 0 | R122: 0
B123: =IF(Data_ACS_2022_BG_Calculated!I120="","",(CONCATENATE("CT ", Data_ACS_2022_BG_Calculated!I120,", BG ",Data_ACS_2022_BG_Calculated!J120))) ->  | C123: =Data_ACS_2022_BG_Calculated!L120 -> 0 | D123: =Data_ACS_2022_BG_Calculated!M120 -> 0 | F123: =Data_ACS_2022_BG_Calculated!O120 -> 0 | H123: =Data_ACS_2022_BG_Calculated!Q120 -> 0 | J123: =Data_ACS_2022_BG_Calculated!S120 -> 0 | L123: =Data_ACS_2022_BG_Calculated!U120 -> 0 | N123: =Data_ACS_2022_BG_Calculated!W120 -> 0 | P123: =Data_ACS_2022_BG_Calculated!Y120 -> 0 | R123: 0
B124: =IF(Data_ACS_2022_BG_Calculated!I121="","",(CONCATENATE("CT ", Data_ACS_2022_BG_Calculated!I121,", BG ",Data_ACS_2022_BG_Calculated!J121))) ->  | C124: =Data_ACS_2022_BG_Calculated!L121 -> 0 | D124: =Data_ACS_2022_BG_Calculated!M121 -> 0 | F124: =Data_ACS_2022_BG_Calculated!O121 -> 0 | H124: =Data_ACS_2022_BG_Calculated!Q121 -> 0 | J124: =Data_ACS_2022_BG_Calculated!S121 -> 0 | L124: =Data_ACS_2022_BG_Calculated!U121 -> 0 | N124: =Data_ACS_2022_BG_Calculated!W121 -> 0 | P124: =Data_ACS_2022_BG_Calculated!Y121 -> 0 | R124: 0
B125: =IF(Data_ACS_2022_BG_Calculated!I122="","",(CONCATENATE("CT ", Data_ACS_2022_BG_Calculated!I122,", BG ",Data_ACS_2022_BG_Calculated!J122))) ->  | C125: =Data_ACS_2022_BG_Calculated!L122 -> 0 | D125: =Data_ACS_2022_BG_Calculated!M122 -> 0 | F125: =Data_ACS_2022_BG_Calculated!O122 -> 0 | H125: =Data_ACS_2022_BG_Calculated!Q122 -> 0 | J125: =Data_ACS_2022_BG_Calculated!S122 -> 0 | L125: =Data_ACS_2022_BG_Calculated!U122 -> 0 | N125: =Data_ACS_2022_BG_Calculated!W122 -> 0 | P125: =Data_ACS_2022_BG_Calculated!Y122 -> 0 | R125: 0
B126: =IF(Data_ACS_2022_BG_Calculated!I123="","",(CONCATENATE("CT ", Data_ACS_2022_BG_Calculated!I123,", BG ",Data_ACS_2022_BG_Calculated!J123))) ->  | C126: =Data_ACS_2022_BG_Calculated!L123 -> 0 | D126: =Data_ACS_2022_BG_Calculated!M123 -> 0 | F126: =Data_ACS_2022_BG_Calculated!O123 -> 0 | H126: =Data_ACS_2022_BG_Calculated!Q123 -> 0 | J126: =Data_ACS_2022_BG_Calculated!S123 -> 0 | L126: =Data_ACS_2022_BG_Calculated!U123 -> 0 | N126: =Data_ACS_2022_BG_Calculated!W123 -> 0 | P126: =Data_ACS_2022_BG_Calculated!Y123 -> 0 | R126: 0
B127: =IF(Data_ACS_2022_BG_Calculated!I124="","",(CONCATENATE("CT ", Data_ACS_2022_BG_Calculated!I124,", BG ",Data_ACS_2022_BG_Calculated!J124))) ->  | C127: =Data_ACS_2022_BG_Calculated!L124 -> 0 | D127: =Data_ACS_2022_BG_Calculated!M124 -> 0 | F127: =Data_ACS_2022_BG_Calculated!O124 -> 0 | H127: =Data_ACS_2022_BG_Calculated!Q124 -> 0 | J127: =Data_ACS_2022_BG_Calculated!S124 -> 0 | L127: =Data_ACS_2022_BG_Calculated!U124 -> 0 | N127: =Data_ACS_2022_BG_Calculated!W124 -> 0 | P127: =Data_ACS_2022_BG_Calculated!Y124 -> 0 | R127: 0
B128: =IF(Data_ACS_2022_BG_Calculated!I125="","",(CONCATENATE("CT ", Data_ACS_2022_BG_Calculated!I125,", BG ",Data_ACS_2022_BG_Calculated!J125))) ->  | C128: =Data_ACS_2022_BG_Calculated!L125 -> 0 | D128: =Data_ACS_2022_BG_Calculated!M125 -> 0 | F128: =Data_ACS_2022_BG_Calculated!O125 -> 0 | H128: =Data_ACS_2022_BG_Calculated!Q125 -> 0 | J128: =Data_ACS_2022_BG_Calculated!S125 -> 0 | L128: =Data_ACS_2022_BG_Calculated!U125 -> 0 | N128: =Data_ACS_2022_BG_Calculated!W125 -> 0 | P128: =Data_ACS_2022_BG_Calculated!Y125 -> 0 | R128: 0
B129: =IF(Data_ACS_2022_BG_Calculated!I126="","",(CONCATENATE("CT ", Data_ACS_2022_BG_Calculated!I126,", BG ",Data_ACS_2022_BG_Calculated!J126))) ->  | C129: =Data_ACS_2022_BG_Calculated!L126 -> 0 | D129: =Data_ACS_2022_BG_Calculated!M126 -> 0 | F129: =Data_ACS_2022_BG_Calculated!O126 -> 0 | H129: =Data_ACS_2022_BG_Calculated!Q126 -> 0 | J129: =Data_ACS_2022_BG_Calculated!S126 -> 0 | L129: =Data_ACS_2022_BG_Calculated!U126 -> 0 | N129: =Data_ACS_2022_BG_Calculated!W126 -> 0 | P129: =Data_ACS_2022_BG_Calculated!Y126 -> 0 | R129: 0
B130: =IF(Data_ACS_2022_BG_Calculated!I127="","",(CONCATENATE("CT ", Data_ACS_2022_BG_Calculated!I127,", BG ",Data_ACS_2022_BG_Calculated!J127))) ->  | C130: =Data_ACS_2022_BG_Calculated!L127 -> 0 | D130: =Data_ACS_2022_BG_Calculated!M127 -> 0 | F130: =Data_ACS_2022_BG_Calculated!O127 -> 0 | H130: =Data_ACS_2022_BG_Calculated!Q127 -> 0 | J130: =Data_ACS_2022_BG_Calculated!S127 -> 0 | L130: =Data_ACS_2022_BG_Calculated!U127 -> 0 | N130: =Data_ACS_2022_BG_Calculated!W127 -> 0 | P130: =Data_ACS_2022_BG_Calculated!Y127 -> 0 | R130: 0
B131: =IF(Data_ACS_2022_BG_Calculated!I128="","",(CONCATENATE("CT ", Data_ACS_2022_BG_Calculated!I128,", BG ",Data_ACS_2022_BG_Calculated!J128))) ->  | C131: =Data_ACS_2022_BG_Calculated!L128 -> 0 | D131: =Data_ACS_2022_BG_Calculated!M128 -> 0 | F131: =Data_ACS_2022_BG_Calculated!O128 -> 0 | H131: =Data_ACS_2022_BG_Calculated!Q128 -> 0 | J131: =Data_ACS_2022_BG_Calculated!S128 -> 0 | L131: =Data_ACS_2022_BG_Calculated!U128 -> 0 | N131: =Data_ACS_2022_BG_Calculated!W128 -> 0 | P131: =Data_ACS_2022_BG_Calculated!Y128 -> 0 | R131: 0
B132: =IF(Data_ACS_2022_BG_Calculated!I129="","",(CONCATENATE("CT ", Data_ACS_2022_BG_Calculated!I129,", BG ",Data_ACS_2022_BG_Calculated!J129))) ->  | C132: =Data_ACS_2022_BG_Calculated!L129 -> 0 | D132: =Data_ACS_2022_BG_Calculated!M129 -> 0 | F132: =Data_ACS_2022_BG_Calculated!O129 -> 0 | H132: =Data_ACS_2022_BG_Calculated!Q129 -> 0 | J132: =Data_ACS_2022_BG_Calculated!S129 -> 0 | L132: =Data_ACS_2022_BG_Calculated!U129 -> 0 | N132: =Data_ACS_2022_BG_Calculated!W129 -> 0 | P132: =Data_ACS_2022_BG_Calculated!Y129 -> 0 | R132: 0
B133: =IF(Data_ACS_2022_BG_Calculated!I130="","",(CONCATENATE("CT ", Data_ACS_2022_BG_Calculated!I130,", BG ",Data_ACS_2022_BG_Calculated!J130))) ->  | C133: =Data_ACS_2022_BG_Calculated!L130 -> 0 | D133: =Data_ACS_2022_BG_Calculated!M130 -> 0 | F133: =Data_ACS_2022_BG_Calculated!O130 -> 0 | H133: =Data_ACS_2022_BG_Calculated!Q130 -> 0 | J133: =Data_ACS_2022_BG_Calculated!S130 -> 0 | L133: =Data_ACS_2022_BG_Calculated!U130 -> 0 | N133: =Data_ACS_2022_BG_Calculated!W130 -> 0 | P133: =Data_ACS_2022_BG_Calculated!Y130 -> 0 | R133: 0
B134: =IF(Data_ACS_2022_BG_Calculated!I131="","",(CONCATENATE("CT ", Data_ACS_2022_BG_Calculated!I131,", BG ",Data_ACS_2022_BG_Calculated!J131))) ->  | C134: =Data_ACS_2022_BG_Calculated!L131 -> 0 | D134: =Data_ACS_2022_BG_Calculated!M131 -> 0 | F134: =Data_ACS_2022_BG_Calculated!O131 -> 0 | H134: =Data_ACS_2022_BG_Calculated!Q131 -> 0 | J134: =Data_ACS_2022_BG_Calculated!S131 -> 0 | L134: =Data_ACS_2022_BG_Calculated!U131 -> 0 | N134: =Data_ACS_2022_BG_Calculated!W131 -> 0 | P134: =Data_ACS_2022_BG_Calculated!Y131 -> 0 | R134: 0
B135: =IF(Data_ACS_2022_BG_Calculated!I132="","",(CONCATENATE("CT ", Data_ACS_2022_BG_Calculated!I132,", BG ",Data_ACS_2022_BG_Calculated!J132))) ->  | C135: =Data_ACS_2022_BG_Calculated!L132 -> 0 | D135: =Data_ACS_2022_BG_Calculated!M132 -> 0 | F135: =Data_ACS_2022_BG_Calculated!O132 -> 0 | H135: =Data_ACS_2022_BG_Calculated!Q132 -> 0 | J135: =Data_ACS_2022_BG_Calculated!S132 -> 0 | L135: =Data_ACS_2022_BG_Calculated!U132 -> 0 | N135: =Data_ACS_2022_BG_Calculated!W132 -> 0 | P135: =Data_ACS_2022_BG_Calculated!Y132 -> 0 | R135: 0
B136: =IF(Data_ACS_2022_BG_Calculated!I133="","",(CONCATENATE("CT ", Data_ACS_2022_BG_Calculated!I133,", BG ",Data_ACS_2022_BG_Calculated!J133))) ->  | C136: =Data_ACS_2022_BG_Calculated!L133 -> 0 | D136: =Data_ACS_2022_BG_Calculated!M133 -> 0 | F136: =Data_ACS_2022_BG_Calculated!O133 -> 0 | H136: =Data_ACS_2022_BG_Calculated!Q133 -> 0 | J136: =Data_ACS_2022_BG_Calculated!S133 -> 0 | L136: =Data_ACS_2022_BG_Calculated!U133 -> 0 | N136: =Data_ACS_2022_BG_Calculated!W133 -> 0 | P136: =Data_ACS_2022_BG_Calculated!Y133 -> 0 | R136: 0
B137: =IF(Data_ACS_2022_BG_Calculated!I134="","",(CONCATENATE("CT ", Data_ACS_2022_BG_Calculated!I134,", BG ",Data_ACS_2022_BG_Calculated!J134))) ->  | C137: =Data_ACS_2022_BG_Calculated!L134 -> 0 | D137: =Data_ACS_2022_BG_Calculated!M134 -> 0 | F137: =Data_ACS_2022_BG_Calculated!O134 -> 0 | H137: =Data_ACS_2022_BG_Calculated!Q134 -> 0 | J137: =Data_ACS_2022_BG_Calculated!S134 -> 0 | L137: =Data_ACS_2022_BG_Calculated!U134 -> 0 | N137: =Data_ACS_2022_BG_Calculated!W134 -> 0 | P137: =Data_ACS_2022_BG_Calculated!Y134 -> 0 | R137: 0
B138: =IF(Data_ACS_2022_BG_Calculated!I135="","",(CONCATENATE("CT ", Data_ACS_2022_BG_Calculated!I135,", BG ",Data_ACS_2022_BG_Calculated!J135))) ->  | C138: =Data_ACS_2022_BG_Calculated!L135 -> 0 | D138: =Data_ACS_2022_BG_Calculated!M135 -> 0 | F138: =Data_ACS_2022_BG_Calculated!O135 -> 0 | H138: =Data_ACS_2022_BG_Calculated!Q135 -> 0 | J138: =Data_ACS_2022_BG_Calculated!S135 -> 0 | L138: =Data_ACS_2022_BG_Calculated!U135 -> 0 | N138: =Data_ACS_2022_BG_Calculated!W135 -> 0 | P138: =Data_ACS_2022_BG_Calculated!Y135 -> 0 | R138: 0
B139: =IF(Data_ACS_2022_BG_Calculated!I136="","",(CONCATENATE("CT ", Data_ACS_2022_BG_Calculated!I136,", BG ",Data_ACS_2022_BG_Calculated!J136))) ->  | C139: =Data_ACS_2022_BG_Calculated!L136 -> 0 | D139: =Data_ACS_2022_BG_Calculated!M136 -> 0 | F139: =Data_ACS_2022_BG_Calculated!O136 -> 0 | H139: =Data_ACS_2022_BG_Calculated!Q136 -> 0 | J139: =Data_ACS_2022_BG_Calculated!S136 -> 0 | L139: =Data_ACS_2022_BG_Calculated!U136 -> 0 | N139: =Data_ACS_2022_BG_Calculated!W136 -> 0 | P139: =Data_ACS_2022_BG_Calculated!Y136 -> 0 | R139: 0
B140: =IF(Data_ACS_2022_BG_Calculated!I137="","",(CONCATENATE("CT ", Data_ACS_2022_BG_Calculated!I137,", BG ",Data_ACS_2022_BG_Calculated!J137))) ->  | C140: =Data_ACS_2022_BG_Calculated!L137 -> 0 | D140: =Data_ACS_2022_BG_Calculated!M137 -> 0 | F140: =Data_ACS_2022_BG_Calculated!O137 -> 0 | H140: =Data_ACS_2022_BG_Calculated!Q137 -> 0 | J140: =Data_ACS_2022_BG_Calculated!S137 -> 0 | L140: =Data_ACS_2022_BG_Calculated!U137 -> 0 | N140: =Data_ACS_2022_BG_Calculated!W137 -> 0 | P140: =Data_ACS_2022_BG_Calculated!Y137 -> 0 | R140: 0
B141: =IF(Data_ACS_2022_BG_Calculated!I138="","",(CONCATENATE("CT ", Data_ACS_2022_BG_Calculated!I138,", BG ",Data_ACS_2022_BG_Calculated!J138))) ->  | C141: =Data_ACS_2022_BG_Calculated!L138 -> 0 | D141: =Data_ACS_2022_BG_Calculated!M138 -> 0 | F141: =Data_ACS_2022_BG_Calculated!O138 -> 0 | H141: =Data_ACS_2022_BG_Calculated!Q138 -> 0 | J141: =Data_ACS_2022_BG_Calculated!S138 -> 0 | L141: =Data_ACS_2022_BG_Calculated!U138 -> 0 | N141: =Data_ACS_2022_BG_Calculated!W138 -> 0 | P141: =Data_ACS_2022_BG_Calculated!Y138 -> 0 | R141: 0
B142: =IF(Data_ACS_2022_BG_Calculated!I139="","",(CONCATENATE("CT ", Data_ACS_2022_BG_Calculated!I139,", BG ",Data_ACS_2022_BG_Calculated!J139))) ->  | C142: =Data_ACS_2022_BG_Calculated!L139 -> 0 | D142: =Data_ACS_2022_BG_Calculated!M139 -> 0 | F142: =Data_ACS_2022_BG_Calculated!O139 -> 0 | H142: =Data_ACS_2022_BG_Calculated!Q139 -> 0 | J142: =Data_ACS_2022_BG_Calculated!S139 -> 0 | L142: =Data_ACS_2022_BG_Calculated!U139 -> 0 | N142: =Data_ACS_2022_BG_Calculated!W139 -> 0 | P142: =Data_ACS_2022_BG_Calculated!Y139 -> 0 | R142: 0
B143: =IF(Data_ACS_2022_BG_Calculated!I140="","",(CONCATENATE("CT ", Data_ACS_2022_BG_Calculated!I140,", BG ",Data_ACS_2022_BG_Calculated!J140))) ->  | C143: =Data_ACS_2022_BG_Calculated!L140 -> 0 | D143: =Data_ACS_2022_BG_Calculated!M140 -> 0 | F143: =Data_ACS_2022_BG_Calculated!O140 -> 0 | H143: =Data_ACS_2022_BG_Calculated!Q140 -> 0 | J143: =Data_ACS_2022_BG_Calculated!S140 -> 0 | L143: =Data_ACS_2022_BG_Calculated!U140 -> 0 | N143: =Data_ACS_2022_BG_Calculated!W140 -> 0 | P143: =Data_ACS_2022_BG_Calculated!Y140 -> 0 | R143: 0
B144: =IF(Data_ACS_2022_BG_Calculated!I141="","",(CONCATENATE("CT ", Data_ACS_2022_BG_Calculated!I141,", BG ",Data_ACS_2022_BG_Calculated!J141))) ->  | C144: =Data_ACS_2022_BG_Calculated!L141 -> 0 | D144: =Data_ACS_2022_BG_Calculated!M141 -> 0 | F144: =Data_ACS_2022_BG_Calculated!O141 -> 0 | H144: =Data_ACS_2022_BG_Calculated!Q141 -> 0 | J144: =Data_ACS_2022_BG_Calculated!S141 -> 0 | L144: =Data_ACS_2022_BG_Calculated!U141 -> 0 | N144: =Data_ACS_2022_BG_Calculated!W141 -> 0 | P144: =Data_ACS_2022_BG_Calculated!Y141 -> 0 | R144: 0
B145: =IF(Data_ACS_2022_BG_Calculated!I142="","",(CONCATENATE("CT ", Data_ACS_2022_BG_Calculated!I142,", BG ",Data_ACS_2022_BG_Calculated!J142))) ->  | C145: =Data_ACS_2022_BG_Calculated!L142 -> 0 | D145: =Data_ACS_2022_BG_Calculated!M142 -> 0 | F145: =Data_ACS_2022_BG_Calculated!O142 -> 0 | H145: =Data_ACS_2022_BG_Calculated!Q142 -> 0 | J145: =Data_ACS_2022_BG_Calculated!S142 -> 0 | L145: =Data_ACS_2022_BG_Calculated!U142 -> 0 | N145: =Data_ACS_2022_BG_Calculated!W142 -> 0 | P145: =Data_ACS_2022_BG_Calculated!Y142 -> 0 | R145: 0
B146: =IF(Data_ACS_2022_BG_Calculated!I143="","",(CONCATENATE("CT ", Data_ACS_2022_BG_Calculated!I143,", BG ",Data_ACS_2022_BG_Calculated!J143))) ->  | C146: =Data_ACS_2022_BG_Calculated!L143 -> 0 | D146: =Data_ACS_2022_BG_Calculated!M143 -> 0 | F146: =Data_ACS_2022_BG_Calculated!O143 -> 0 | H146: =Data_ACS_2022_BG_Calculated!Q143 -> 0 | J146: =Data_ACS_2022_BG_Calculated!S143 -> 0 | L146: =Data_ACS_2022_BG_Calculated!U143 -> 0 | N146: =Data_ACS_2022_BG_Calculated!W143 -> 0 | P146: =Data_ACS_2022_BG_Calculated!Y143 -> 0 | R146: 0
B147: =IF(Data_ACS_2022_BG_Calculated!I144="","",(CONCATENATE("CT ", Data_ACS_2022_BG_Calculated!I144,", BG ",Data_ACS_2022_BG_Calculated!J144))) ->  | C147: =Data_ACS_2022_BG_Calculated!L144 -> 0 | D147: =Data_ACS_2022_BG_Calculated!M144 -> 0 | F147: =Data_ACS_2022_BG_Calculated!O144 -> 0 | H147: =Data_ACS_2022_BG_Calculated!Q144 -> 0 | J147: =Data_ACS_2022_BG_Calculated!S144 -> 0 | L147: =Data_ACS_2022_BG_Calculated!U144 -> 0 | N147: =Data_ACS_2022_BG_Calculated!W144 -> 0 | P147: =Data_ACS_2022_BG_Calculated!Y144 -> 0 | R147: 0
B148: =IF(Data_ACS_2022_BG_Calculated!I145="","",(CONCATENATE("CT ", Data_ACS_2022_BG_Calculated!I145,", BG ",Data_ACS_2022_BG_Calculated!J145))) ->  | C148: =Data_ACS_2022_BG_Calculated!L145 -> 0 | D148: =Data_ACS_2022_BG_Calculated!M145 -> 0 | F148: =Data_ACS_2022_BG_Calculated!O145 -> 0 | H148: =Data_ACS_2022_BG_Calculated!Q145 -> 0 | J148: =Data_ACS_2022_BG_Calculated!S145 -> 0 | L148: =Data_ACS_2022_BG_Calculated!U145 -> 0 | N148: =Data_ACS_2022_BG_Calculated!W145 -> 0 | P148: =Data_ACS_2022_BG_Calculated!Y145 -> 0 | R148: 0
B149: =IF(Data_ACS_2022_BG_Calculated!I146="","",(CONCATENATE("CT ", Data_ACS_2022_BG_Calculated!I146,", BG ",Data_ACS_2022_BG_Calculated!J146))) ->  | C149: =Data_ACS_2022_BG_Calculated!L146 -> 0 | D149: =Data_ACS_2022_BG_Calculated!M146 -> 0 | F149: =Data_ACS_2022_BG_Calculated!O146 -> 0 | H149: =Data_ACS_2022_BG_Calculated!Q146 -> 0 | J149: =Data_ACS_2022_BG_Calculated!S146 -> 0 | L149: =Data_ACS_2022_BG_Calculated!U146 -> 0 | N149: =Data_ACS_2022_BG_Calculated!W146 -> 0 | P149: =Data_ACS_2022_BG_Calculated!Y146 -> 0 | R149: 0
B150: =IF(Data_ACS_2022_BG_Calculated!I147="","",(CONCATENATE("CT ", Data_ACS_2022_BG_Calculated!I147,", BG ",Data_ACS_2022_BG_Calculated!J147))) ->  | C150: =Data_ACS_2022_BG_Calculated!L147 -> 0 | D150: =Data_ACS_2022_BG_Calculated!M147 -> 0 | F150: =Data_ACS_2022_BG_Calculated!O147 -> 0 | H150: =Data_ACS_2022_BG_Calculated!Q147 -> 0 | J150: =Data_ACS_2022_BG_Calculated!S147 -> 0 | L150: =Data_ACS_2022_BG_Calculated!U147 -> 0 | N150: =Data_ACS_2022_BG_Calculated!W147 -> 0 | P150: =Data_ACS_2022_BG_Calculated!Y147 -> 0 | R150: 0
B151: =IF(Data_ACS_2022_BG_Calculated!I148="","",(CONCATENATE("CT ", Data_ACS_2022_BG_Calculated!I148,", BG ",Data_ACS_2022_BG_Calculated!J148))) ->  | C151: =Data_ACS_2022_BG_Calculated!L148 -> 0 | D151: =Data_ACS_2022_BG_Calculated!M148 -> 0 | F151: =Data_ACS_2022_BG_Calculated!O148 -> 0 | H151: =Data_ACS_2022_BG_Calculated!Q148 -> 0 | J151: =Data_ACS_2022_BG_Calculated!S148 -> 0 | L151: =Data_ACS_2022_BG_Calculated!U148 -> 0 | N151: =Data_ACS_2022_BG_Calculated!W148 -> 0 | P151: =Data_ACS_2022_BG_Calculated!Y148 -> 0 | R151: 0
B152: =IF(Data_ACS_2022_BG_Calculated!I149="","",(CONCATENATE("CT ", Data_ACS_2022_BG_Calculated!I149,", BG ",Data_ACS_2022_BG_Calculated!J149))) ->  | C152: =Data_ACS_2022_BG_Calculated!L149 -> 0 | D152: =Data_ACS_2022_BG_Calculated!M149 -> 0 | F152: =Data_ACS_2022_BG_Calculated!O149 -> 0 | H152: =Data_ACS_2022_BG_Calculated!Q149 -> 0 | J152: =Data_ACS_2022_BG_Calculated!S149 -> 0 | L152: =Data_ACS_2022_BG_Calculated!U149 -> 0 | N152: =Data_ACS_2022_BG_Calculated!W149 -> 0 | P152: =Data_ACS_2022_BG_Calculated!Y149 -> 0 | R152: 0
B153: =IF(Data_ACS_2022_BG_Calculated!I150="","",(CONCATENATE("CT ", Data_ACS_2022_BG_Calculated!I150,", BG ",Data_ACS_2022_BG_Calculated!J150))) ->  | C153: =Data_ACS_2022_BG_Calculated!L150 -> 0 | D153: =Data_ACS_2022_BG_Calculated!M150 -> 0 | F153: =Data_ACS_2022_BG_Calculated!O150 -> 0 | H153: =Data_ACS_2022_BG_Calculated!Q150 -> 0 | J153: =Data_ACS_2022_BG_Calculated!S150 -> 0 | L153: =Data_ACS_2022_BG_Calculated!U150 -> 0 | N153: =Data_ACS_2022_BG_Calculated!W150 -> 0 | P153: =Data_ACS_2022_BG_Calculated!Y150 -> 0 | R153: 0
B154: =IF(Data_ACS_2022_BG_Calculated!I151="","",(CONCATENATE("CT ", Data_ACS_2022_BG_Calculated!I151,", BG ",Data_ACS_2022_BG_Calculated!J151))) ->  | C154: =Data_ACS_2022_BG_Calculated!L151 -> 0 | D154: =Data_ACS_2022_BG_Calculated!M151 -> 0 | F154: =Data_ACS_2022_BG_Calculated!O151 -> 0 | H154: =Data_ACS_2022_BG_Calculated!Q151 -> 0 | J154: =Data_ACS_2022_BG_Calculated!S151 -> 0 | L154: =Data_ACS_2022_BG_Calculated!U151 -> 0 | N154: =Data_ACS_2022_BG_Calculated!W151 -> 0 | P154: =Data_ACS_2022_BG_Calculated!Y151 -> 0 | R154: 0
B155: =IF(Data_ACS_2022_BG_Calculated!I152="","",(CONCATENATE("CT ", Data_ACS_2022_BG_Calculated!I152,", BG ",Data_ACS_2022_BG_Calculated!J152))) ->  | C155: =Data_ACS_2022_BG_Calculated!L152 -> 0 | D155: =Data_ACS_2022_BG_Calculated!M152 -> 0 | F155: =Data_ACS_2022_BG_Calculated!O152 -> 0 | H155: =Data_ACS_2022_BG_Calculated!Q152 -> 0 | J155: =Data_ACS_2022_BG_Calculated!S152 -> 0 | L155: =Data_ACS_2022_BG_Calculated!U152 -> 0 | N155: =Data_ACS_2022_BG_Calculated!W152 -> 0 | P155: =Data_ACS_2022_BG_Calculated!Y152 -> 0 | R155: 0
B156: =IF(Data_ACS_2022_BG_Calculated!I153="","",(CONCATENATE("CT ", Data_ACS_2022_BG_Calculated!I153,", BG ",Data_ACS_2022_BG_Calculated!J153))) ->  | C156: =Data_ACS_2022_BG_Calculated!L153 -> 0 | D156: =Data_ACS_2022_BG_Calculated!M153 -> 0 | F156: =Data_ACS_2022_BG_Calculated!O153 -> 0 | H156: =Data_ACS_2022_BG_Calculated!Q153 -> 0 | J156: =Data_ACS_2022_BG_Calculated!S153 -> 0 | L156: =Data_ACS_2022_BG_Calculated!U153 -> 0 | N156: =Data_ACS_2022_BG_Calculated!W153 -> 0 | P156: =Data_ACS_2022_BG_Calculated!Y153 -> 0 | R156: 0
B157: =IF(Data_ACS_2022_BG_Calculated!I154="","",(CONCATENATE("CT ", Data_ACS_2022_BG_Calculated!I154,", BG ",Data_ACS_2022_BG_Calculated!J154))) ->  | C157: =Data_ACS_2022_BG_Calculated!L154 -> 0 | D157: =Data_ACS_2022_BG_Calculated!M154 -> 0 | E157: =IFERROR(D157/$C157,"") ->  | F157: =Data_ACS_2022_BG_Calculated!O154 -> 0 | G157: =IFERROR(F157/$C157,"") ->  | H157: =Data_ACS_2022_BG_Calculated!Q154 -> 0 | I157: =IFERROR(H157/$C157,"") ->  | J157: =Data_ACS_2022_BG_Calculated!S154 -> 0 | K157: =IFERROR(J157/$C157,"") ->  | L157: =Data_ACS_2022_BG_Calculated!U154 -> 0 | M157: =IFERROR(L157/$C157,"") ->  | N157: =Data_ACS_2022_BG_Calculated!W154 -> 0 | O157: =IFERROR(N157/$C157,"") ->  | P157: =Data_ACS_2022_BG_Calculated!Y154 -> 0 | Q157: =IFERROR(P157/$C157,"") ->  | R157: =SUM(F157,H157,J157,L157,N157,P157) -> 0 | S157: =IFERROR(R157/$C157,"") -> 
B158: =IF(Data_ACS_2022_BG_Calculated!I155="","",(CONCATENATE("CT ", Data_ACS_2022_BG_Calculated!I155,", BG ",Data_ACS_2022_BG_Calculated!J155))) ->  | C158: =Data_ACS_2022_BG_Calculated!L155 -> 0 | D158: =Data_ACS_2022_BG_Calculated!M155 -> 0 | F158: =Data_ACS_2022_BG_Calculated!O155 -> 0 | H158: =Data_ACS_2022_BG_Calculated!Q155 -> 0 | J158: =Data_ACS_2022_BG_Calculated!S155 -> 0 | L158: =Data_ACS_2022_BG_Calculated!U155 -> 0 | N158: =Data_ACS_2022_BG_Calculated!W155 -> 0 | P158: =Data_ACS_2022_BG_Calculated!Y155 -> 0 | R158: 0
B159: =IF(Data_ACS_2022_BG_Calculated!I156="","",(CONCATENATE("CT ", Data_ACS_2022_BG_Calculated!I156,", BG ",Data_ACS_2022_BG_Calculated!J156))) ->  | C159: =Data_ACS_2022_BG_Calculated!L156 -> 0 | D159: =Data_ACS_2022_BG_Calculated!M156 -> 0 | F159: =Data_ACS_2022_BG_Calculated!O156 -> 0 | H159: =Data_ACS_2022_BG_Calculated!Q156 -> 0 | J159: =Data_ACS_2022_BG_Calculated!S156 -> 0 | L159: =Data_ACS_2022_BG_Calculated!U156 -> 0 | N159: =Data_ACS_2022_BG_Calculated!W156 -> 0 | P159: =Data_ACS_2022_BG_Calculated!Y156 -> 0 | R159: 0
B160: =IF(Data_ACS_2022_BG_Calculated!I157="","",(CONCATENATE("CT ", Data_ACS_2022_BG_Calculated!I157,", BG ",Data_ACS_2022_BG_Calculated!J157))) ->  | C160: =Data_ACS_2022_BG_Calculated!L157 -> 0 | D160: =Data_ACS_2022_BG_Calculated!M157 -> 0 | F160: =Data_ACS_2022_BG_Calculated!O157 -> 0 | H160: =Data_ACS_2022_BG_Calculated!Q157 -> 0 | J160: =Data_ACS_2022_BG_Calculated!S157 -> 0 | L160: =Data_ACS_2022_BG_Calculated!U157 -> 0 | N160: =Data_ACS_2022_BG_Calculated!W157 -> 0 | P160: =Data_ACS_2022_BG_Calculated!Y157 -> 0 | R160: 0
B161: =IF(Data_ACS_2022_BG_Calculated!I158="","",(CONCATENATE("CT ", Data_ACS_2022_BG_Calculated!I158,", BG ",Data_ACS_2022_BG_Calculated!J158))) ->  | C161: =Data_ACS_2022_BG_Calculated!L158 -> 0 | D161: =Data_ACS_2022_BG_Calculated!M158 -> 0 | F161: =Data_ACS_2022_BG_Calculated!O158 -> 0 | H161: =Data_ACS_2022_BG_Calculated!Q158 -> 0 | J161: =Data_ACS_2022_BG_Calculated!S158 -> 0 | L161: =Data_ACS_2022_BG_Calculated!U158 -> 0 | N161: =Data_ACS_2022_BG_Calculated!W158 -> 0 | P161: =Data_ACS_2022_BG_Calculated!Y158 -> 0 | R161: 0
B162: =IF(Data_ACS_2022_BG_Calculated!I159="","",(CONCATENATE("CT ", Data_ACS_2022_BG_Calculated!I159,", BG ",Data_ACS_2022_BG_Calculated!J159))) ->  | C162: =Data_ACS_2022_BG_Calculated!L159 -> 0 | D162: =Data_ACS_2022_BG_Calculated!M159 -> 0 | F162: =Data_ACS_2022_BG_Calculated!O159 -> 0 | H162: =Data_ACS_2022_BG_Calculated!Q159 -> 0 | J162: =Data_ACS_2022_BG_Calculated!S159 -> 0 | L162: =Data_ACS_2022_BG_Calculated!U159 -> 0 | N162: =Data_ACS_2022_BG_Calculated!W159 -> 0 | P162: =Data_ACS_2022_BG_Calculated!Y159 -> 0 | R162: 0
B163: =IF(Data_ACS_2022_BG_Calculated!I160="","",(CONCATENATE("CT ", Data_ACS_2022_BG_Calculated!I160,", BG ",Data_ACS_2022_BG_Calculated!J160))) ->  | C163: =Data_ACS_2022_BG_Calculated!L160 -> 0 | D163: =Data_ACS_2022_BG_Calculated!M160 -> 0 | F163: =Data_ACS_2022_BG_Calculated!O160 -> 0 | H163: =Data_ACS_2022_BG_Calculated!Q160 -> 0 | J163: =Data_ACS_2022_BG_Calculated!S160 -> 0 | L163: =Data_ACS_2022_BG_Calculated!U160 -> 0 | N163: =Data_ACS_2022_BG_Calculated!W160 -> 0 | P163: =Data_ACS_2022_BG_Calculated!Y160 -> 0 | R163: 0
B164: =IF(Data_ACS_2022_BG_Calculated!I161="","",(CONCATENATE("CT ", Data_ACS_2022_BG_Calculated!I161,", BG ",Data_ACS_2022_BG_Calculated!J161))) ->  | C164: =Data_ACS_2022_BG_Calculated!L161 -> 0 | D164: =Data_ACS_2022_BG_Calculated!M161 -> 0 | F164: =Data_ACS_2022_BG_Calculated!O161 -> 0 | H164: =Data_ACS_2022_BG_Calculated!Q161 -> 0 | J164: =Data_ACS_2022_BG_Calculated!S161 -> 0 | L164: =Data_ACS_2022_BG_Calculated!U161 -> 0 | N164: =Data_ACS_2022_BG_Calculated!W161 -> 0 | P164: =Data_ACS_2022_BG_Calculated!Y161 -> 0 | R164: 0
B165: =IF(Data_ACS_2022_BG_Calculated!I162="","",(CONCATENATE("CT ", Data_ACS_2022_BG_Calculated!I162,", BG ",Data_ACS_2022_BG_Calculated!J162))) ->  | C165: =Data_ACS_2022_BG_Calculated!L162 -> 0 | D165: =Data_ACS_2022_BG_Calculated!M162 -> 0 | F165: =Data_ACS_2022_BG_Calculated!O162 -> 0 | H165: =Data_ACS_2022_BG_Calculated!Q162 -> 0 | J165: =Data_ACS_2022_BG_Calculated!S162 -> 0 | L165: =Data_ACS_2022_BG_Calculated!U162 -> 0 | N165: =Data_ACS_2022_BG_Calculated!W162 -> 0 | P165: =Data_ACS_2022_BG_Calculated!Y162 -> 0 | R165: 0
B166: =IF(Data_ACS_2022_BG_Calculated!I163="","",(CONCATENATE("CT ", Data_ACS_2022_BG_Calculated!I163,", BG ",Data_ACS_2022_BG_Calculated!J163))) ->  | C166: =Data_ACS_2022_BG_Calculated!L163 -> 0 | D166: =Data_ACS_2022_BG_Calculated!M163 -> 0 | F166: =Data_ACS_2022_BG_Calculated!O163 -> 0 | H166: =Data_ACS_2022_BG_Calculated!Q163 -> 0 | J166: =Data_ACS_2022_BG_Calculated!S163 -> 0 | L166: =Data_ACS_2022_BG_Calculated!U163 -> 0 | N166: =Data_ACS_2022_BG_Calculated!W163 -> 0 | P166: =Data_ACS_2022_BG_Calculated!Y163 -> 0 | R166: 0
B167: =IF(Data_ACS_2022_BG_Calculated!I164="","",(CONCATENATE("CT ", Data_ACS_2022_BG_Calculated!I164,", BG ",Data_ACS_2022_BG_Calculated!J164))) ->  | C167: =Data_ACS_2022_BG_Calculated!L164 -> 0 | D167: =Data_ACS_2022_BG_Calculated!M164 -> 0 | F167: =Data_ACS_2022_BG_Calculated!O164 -> 0 | H167: =Data_ACS_2022_BG_Calculated!Q164 -> 0 | J167: =Data_ACS_2022_BG_Calculated!S164 -> 0 | L167: =Data_ACS_2022_BG_Calculated!U164 -> 0 | N167: =Data_ACS_2022_BG_Calculated!W164 -> 0 | P167: =Data_ACS_2022_BG_Calculated!Y164 -> 0 | R167: 0
B168: =IF(Data_ACS_2022_BG_Calculated!I165="","",(CONCATENATE("CT ", Data_ACS_2022_BG_Calculated!I165,", BG ",Data_ACS_2022_BG_Calculated!J165))) ->  | C168: =Data_ACS_2022_BG_Calculated!L165 -> 0 | D168: =Data_ACS_2022_BG_Calculated!M165 -> 0 | F168: =Data_ACS_2022_BG_Calculated!O165 -> 0 | H168: =Data_ACS_2022_BG_Calculated!Q165 -> 0 | J168: =Data_ACS_2022_BG_Calculated!S165 -> 0 | L168: =Data_ACS_2022_BG_Calculated!U165 -> 0 | N168: =Data_ACS_2022_BG_Calculated!W165 -> 0 | P168: =Data_ACS_2022_BG_Calculated!Y165 -> 0 | R168: 0
B169: =IF(Data_ACS_2022_BG_Calculated!I166="","",(CONCATENATE("CT ", Data_ACS_2022_BG_Calculated!I166,", BG ",Data_ACS_2022_BG_Calculated!J166))) ->  | C169: =Data_ACS_2022_BG_Calculated!L166 -> 0 | D169: =Data_ACS_2022_BG_Calculated!M166 -> 0 | F169: =Data_ACS_2022_BG_Calculated!O166 -> 0 | H169: =Data_ACS_2022_BG_Calculated!Q166 -> 0 | J169: =Data_ACS_2022_BG_Calculated!S166 -> 0 | L169: =Data_ACS_2022_BG_Calculated!U166 -> 0 | N169: =Data_ACS_2022_BG_Calculated!W166 -> 0 | P169: =Data_ACS_2022_BG_Calculated!Y166 -> 0 | R169: 0
B170: =IF(Data_ACS_2022_BG_Calculated!I167="","",(CONCATENATE("CT ", Data_ACS_2022_BG_Calculated!I167,", BG ",Data_ACS_2022_BG_Calculated!J167))) ->  | C170: =Data_ACS_2022_BG_Calculated!L167 -> 0 | D170: =Data_ACS_2022_BG_Calculated!M167 -> 0 | F170: =Data_ACS_2022_BG_Calculated!O167 -> 0 | H170: =Data_ACS_2022_BG_Calculated!Q167 -> 0 | J170: =Data_ACS_2022_BG_Calculated!S167 -> 0 | L170: =Data_ACS_2022_BG_Calculated!U167 -> 0 | N170: =Data_ACS_2022_BG_Calculated!W167 -> 0 | P170: =Data_ACS_2022_BG_Calculated!Y167 -> 0 | R170: 0
B171: =IF(Data_ACS_2022_BG_Calculated!I168="","",(CONCATENATE("CT ", Data_ACS_2022_BG_Calculated!I168,", BG ",Data_ACS_2022_BG_Calculated!J168))) ->  | C171: =Data_ACS_2022_BG_Calculated!L168 -> 0 | D171: =Data_ACS_2022_BG_Calculated!M168 -> 0 | F171: =Data_ACS_2022_BG_Calculated!O168 -> 0 | H171: =Data_ACS_2022_BG_Calculated!Q168 -> 0 | J171: =Data_ACS_2022_BG_Calculated!S168 -> 0 | L171: =Data_ACS_2022_BG_Calculated!U168 -> 0 | N171: =Data_ACS_2022_BG_Calculated!W168 -> 0 | P171: =Data_ACS_2022_BG_Calculated!Y168 -> 0 | R171: 0
B172: =IF(Data_ACS_2022_BG_Calculated!I169="","",(CONCATENATE("CT ", Data_ACS_2022_BG_Calculated!I169,", BG ",Data_ACS_2022_BG_Calculated!J169))) ->  | C172: =Data_ACS_2022_BG_Calculated!L169 -> 0 | D172: =Data_ACS_2022_BG_Calculated!M169 -> 0 | F172: =Data_ACS_2022_BG_Calculated!O169 -> 0 | H172: =Data_ACS_2022_BG_Calculated!Q169 -> 0 | J172: =Data_ACS_2022_BG_Calculated!S169 -> 0 | L172: =Data_ACS_2022_BG_Calculated!U169 -> 0 | N172: =Data_ACS_2022_BG_Calculated!W169 -> 0 | P172: =Data_ACS_2022_BG_Calculated!Y169 -> 0 | R172: 0
B173: =IF(Data_ACS_2022_BG_Calculated!I170="","",(CONCATENATE("CT ", Data_ACS_2022_BG_Calculated!I170,", BG ",Data_ACS_2022_BG_Calculated!J170))) ->  | C173: =Data_ACS_2022_BG_Calculated!L170 -> 0 | D173: =Data_ACS_2022_BG_Calculated!M170 -> 0 | F173: =Data_ACS_2022_BG_Calculated!O170 -> 0 | H173: =Data_ACS_2022_BG_Calculated!Q170 -> 0 | J173: =Data_ACS_2022_BG_Calculated!S170 -> 0 | L173: =Data_ACS_2022_BG_Calculated!U170 -> 0 | N173: =Data_ACS_2022_BG_Calculated!W170 -> 0 | P173: =Data_ACS_2022_BG_Calculated!Y170 -> 0 | R173: 0
B174: =IF(Data_ACS_2022_BG_Calculated!I171="","",(CONCATENATE("CT ", Data_ACS_2022_BG_Calculated!I171,", BG ",Data_ACS_2022_BG_Calculated!J171))) ->  | C174: =Data_ACS_2022_BG_Calculated!L171 -> 0 | D174: =Data_ACS_2022_BG_Calculated!M171 -> 0 | F174: =Data_ACS_2022_BG_Calculated!O171 -> 0 | H174: =Data_ACS_2022_BG_Calculated!Q171 -> 0 | J174: =Data_ACS_2022_BG_Calculated!S171 -> 0 | L174: =Data_ACS_2022_BG_Calculated!U171 -> 0 | N174: =Data_ACS_2022_BG_Calculated!W171 -> 0 | P174: =Data_ACS_2022_BG_Calculated!Y171 -> 0 | R174: 0
B175: =IF(Data_ACS_2022_BG_Calculated!I172="","",(CONCATENATE("CT ", Data_ACS_2022_BG_Calculated!I172,", BG ",Data_ACS_2022_BG_Calculated!J172))) ->  | C175: =Data_ACS_2022_BG_Calculated!L172 -> 0 | D175: =Data_ACS_2022_BG_Calculated!M172 -> 0 | F175: =Data_ACS_2022_BG_Calculated!O172 -> 0 | H175: =Data_ACS_2022_BG_Calculated!Q172 -> 0 | J175: =Data_ACS_2022_BG_Calculated!S172 -> 0 | L175: =Data_ACS_2022_BG_Calculated!U172 -> 0 | N175: =Data_ACS_2022_BG_Calculated!W172 -> 0 | P175: =Data_ACS_2022_BG_Calculated!Y172 -> 0 | R175: 0
B176: =IF(Data_ACS_2022_BG_Calculated!I173="","",(CONCATENATE("CT ", Data_ACS_2022_BG_Calculated!I173,", BG ",Data_ACS_2022_BG_Calculated!J173))) ->  | C176: =Data_ACS_2022_BG_Calculated!L173 -> 0 | D176: =Data_ACS_2022_BG_Calculated!M173 -> 0 | F176: =Data_ACS_2022_BG_Calculated!O173 -> 0 | H176: =Data_ACS_2022_BG_Calculated!Q173 -> 0 | J176: =Data_ACS_2022_BG_Calculated!S173 -> 0 | L176: =Data_ACS_2022_BG_Calculated!U173 -> 0 | N176: =Data_ACS_2022_BG_Calculated!W173 -> 0 | P176: =Data_ACS_2022_BG_Calculated!Y173 -> 0 | R176: 0
B177: =IF(Data_ACS_2022_BG_Calculated!I174="","",(CONCATENATE("CT ", Data_ACS_2022_BG_Calculated!I174,", BG ",Data_ACS_2022_BG_Calculated!J174))) ->  | C177: =Data_ACS_2022_BG_Calculated!L174 -> 0 | D177: =Data_ACS_2022_BG_Calculated!M174 -> 0 | F177: =Data_ACS_2022_BG_Calculated!O174 -> 0 | H177: =Data_ACS_2022_BG_Calculated!Q174 -> 0 | J177: =Data_ACS_2022_BG_Calculated!S174 -> 0 | L177: =Data_ACS_2022_BG_Calculated!U174 -> 0 | N177: =Data_ACS_2022_BG_Calculated!W174 -> 0 | P177: =Data_ACS_2022_BG_Calculated!Y174 -> 0 | R177: 0
B178: =IF(Data_ACS_2022_BG_Calculated!I175="","",(CONCATENATE("CT ", Data_ACS_2022_BG_Calculated!I175,", BG ",Data_ACS_2022_BG_Calculated!J175))) ->  | C178: =Data_ACS_2022_BG_Calculated!L175 -> 0 | D178: =Data_ACS_2022_BG_Calculated!M175 -> 0 | F178: =Data_ACS_2022_BG_Calculated!O175 -> 0 | H178: =Data_ACS_2022_BG_Calculated!Q175 -> 0 | J178: =Data_ACS_2022_BG_Calculated!S175 -> 0 | L178: =Data_ACS_2022_BG_Calculated!U175 -> 0 | N178: =Data_ACS_2022_BG_Calculated!W175 -> 0 | P178: =Data_ACS_2022_BG_Calculated!Y175 -> 0 | R178: 0
B179: =IF(Data_ACS_2022_BG_Calculated!I176="","",(CONCATENATE("CT ", Data_ACS_2022_BG_Calculated!I176,", BG ",Data_ACS_2022_BG_Calculated!J176))) ->  | C179: =Data_ACS_2022_BG_Calculated!L176 -> 0 | D179: =Data_ACS_2022_BG_Calculated!M176 -> 0 | F179: =Data_ACS_2022_BG_Calculated!O176 -> 0 | H179: =Data_ACS_2022_BG_Calculated!Q176 -> 0 | J179: =Data_ACS_2022_BG_Calculated!S176 -> 0 | L179: =Data_ACS_2022_BG_Calculated!U176 -> 0 | N179: =Data_ACS_2022_BG_Calculated!W176 -> 0 | P179: =Data_ACS_2022_BG_Calculated!Y176 -> 0 | R179: 0
B180: =IF(Data_ACS_2022_BG_Calculated!I177="","",(CONCATENATE("CT ", Data_ACS_2022_BG_Calculated!I177,", BG ",Data_ACS_2022_BG_Calculated!J177))) ->  | C180: =Data_ACS_2022_BG_Calculated!L177 -> 0 | D180: =Data_ACS_2022_BG_Calculated!M177 -> 0 | F180: =Data_ACS_2022_BG_Calculated!O177 -> 0 | H180: =Data_ACS_2022_BG_Calculated!Q177 -> 0 | J180: =Data_ACS_2022_BG_Calculated!S177 -> 0 | L180: =Data_ACS_2022_BG_Calculated!U177 -> 0 | N180: =Data_ACS_2022_BG_Calculated!W177 -> 0 | P180: =Data_ACS_2022_BG_Calculated!Y177 -> 0 | R180: 0
B181: =IF(Data_ACS_2022_BG_Calculated!I178="","",(CONCATENATE("CT ", Data_ACS_2022_BG_Calculated!I178,", BG ",Data_ACS_2022_BG_Calculated!J178))) ->  | C181: =Data_ACS_2022_BG_Calculated!L178 -> 0 | D181: =Data_ACS_2022_BG_Calculated!M178 -> 0 | F181: =Data_ACS_2022_BG_Calculated!O178 -> 0 | H181: =Data_ACS_2022_BG_Calculated!Q178 -> 0 | J181: =Data_ACS_2022_BG_Calculated!S178 -> 0 | L181: =Data_ACS_2022_BG_Calculated!U178 -> 0 | N181: =Data_ACS_2022_BG_Calculated!W178 -> 0 | P181: =Data_ACS_2022_BG_Calculated!Y178 -> 0 | R181: 0
B182: =IF(Data_ACS_2022_BG_Calculated!I179="","",(CONCATENATE("CT ", Data_ACS_2022_BG_Calculated!I179,", BG ",Data_ACS_2022_BG_Calculated!J179))) ->  | C182: =Data_ACS_2022_BG_Calculated!L179 -> 0 | D182: =Data_ACS_2022_BG_Calculated!M179 -> 0 | F182: =Data_ACS_2022_BG_Calculated!O179 -> 0 | H182: =Data_ACS_2022_BG_Calculated!Q179 -> 0 | J182: =Data_ACS_2022_BG_Calculated!S179 -> 0 | L182: =Data_ACS_2022_BG_Calculated!U179 -> 0 | N182: =Data_ACS_2022_BG_Calculated!W179 -> 0 | P182: =Data_ACS_2022_BG_Calculated!Y179 -> 0 | R182: 0
B183: =IF(Data_ACS_2022_BG_Calculated!I180="","",(CONCATENATE("CT ", Data_ACS_2022_BG_Calculated!I180,", BG ",Data_ACS_2022_BG_Calculated!J180))) ->  | C183: =Data_ACS_2022_BG_Calculated!L180 -> 0 | D183: =Data_ACS_2022_BG_Calculated!M180 -> 0 | F183: =Data_ACS_2022_BG_Calculated!O180 -> 0 | H183: =Data_ACS_2022_BG_Calculated!Q180 -> 0 | J183: =Data_ACS_2022_BG_Calculated!S180 -> 0 | L183: =Data_ACS_2022_BG_Calculated!U180 -> 0 | N183: =Data_ACS_2022_BG_Calculated!W180 -> 0 | P183: =Data_ACS_2022_BG_Calculated!Y180 -> 0 | R183: 0
B184: =IF(Data_ACS_2022_BG_Calculated!I181="","",(CONCATENATE("CT ", Data_ACS_2022_BG_Calculated!I181,", BG ",Data_ACS_2022_BG_Calculated!J181))) ->  | C184: =Data_ACS_2022_BG_Calculated!L181 -> 0 | D184: =Data_ACS_2022_BG_Calculated!M181 -> 0 | F184: =Data_ACS_2022_BG_Calculated!O181 -> 0 | H184: =Data_ACS_2022_BG_Calculated!Q181 -> 0 | J184: =Data_ACS_2022_BG_Calculated!S181 -> 0 | L184: =Data_ACS_2022_BG_Calculated!U181 -> 0 | N184: =Data_ACS_2022_BG_Calculated!W181 -> 0 | P184: =Data_ACS_2022_BG_Calculated!Y181 -> 0 | R184: 0
B185: =IF(Data_ACS_2022_BG_Calculated!I182="","",(CONCATENATE("CT ", Data_ACS_2022_BG_Calculated!I182,", BG ",Data_ACS_2022_BG_Calculated!J182))) ->  | C185: =Data_ACS_2022_BG_Calculated!L182 -> 0 | D185: =Data_ACS_2022_BG_Calculated!M182 -> 0 | F185: =Data_ACS_2022_BG_Calculated!O182 -> 0 | H185: =Data_ACS_2022_BG_Calculated!Q182 -> 0 | J185: =Data_ACS_2022_BG_Calculated!S182 -> 0 | L185: =Data_ACS_2022_BG_Calculated!U182 -> 0 | N185: =Data_ACS_2022_BG_Calculated!W182 -> 0 | P185: =Data_ACS_2022_BG_Calculated!Y182 -> 0 | R185: 0
B186: =IF(Data_ACS_2022_BG_Calculated!I183="","",(CONCATENATE("CT ", Data_ACS_2022_BG_Calculated!I183,", BG ",Data_ACS_2022_BG_Calculated!J183))) ->  | C186: =Data_ACS_2022_BG_Calculated!L183 -> 0 | D186: =Data_ACS_2022_BG_Calculated!M183 -> 0 | F186: =Data_ACS_2022_BG_Calculated!O183 -> 0 | H186: =Data_ACS_2022_BG_Calculated!Q183 -> 0 | J186: =Data_ACS_2022_BG_Calculated!S183 -> 0 | L186: =Data_ACS_2022_BG_Calculated!U183 -> 0 | N186: =Data_ACS_2022_BG_Calculated!W183 -> 0 | P186: =Data_ACS_2022_BG_Calculated!Y183 -> 0 | R186: 0
B187: =IF(Data_ACS_2022_BG_Calculated!I184="","",(CONCATENATE("CT ", Data_ACS_2022_BG_Calculated!I184,", BG ",Data_ACS_2022_BG_Calculated!J184))) ->  | C187: =Data_ACS_2022_BG_Calculated!L184 -> 0 | D187: =Data_ACS_2022_BG_Calculated!M184 -> 0 | F187: =Data_ACS_2022_BG_Calculated!O184 -> 0 | H187: =Data_ACS_2022_BG_Calculated!Q184 -> 0 | J187: =Data_ACS_2022_BG_Calculated!S184 -> 0 | L187: =Data_ACS_2022_BG_Calculated!U184 -> 0 | N187: =Data_ACS_2022_BG_Calculated!W184 -> 0 | P187: =Data_ACS_2022_BG_Calculated!Y184 -> 0 | R187: 0
B188: =IF(Data_ACS_2022_BG_Calculated!I185="","",(CONCATENATE("CT ", Data_ACS_2022_BG_Calculated!I185,", BG ",Data_ACS_2022_BG_Calculated!J185))) ->  | C188: =Data_ACS_2022_BG_Calculated!L185 -> 0 | D188: =Data_ACS_2022_BG_Calculated!M185 -> 0 | F188: =Data_ACS_2022_BG_Calculated!O185 -> 0 | H188: =Data_ACS_2022_BG_Calculated!Q185 -> 0 | J188: =Data_ACS_2022_BG_Calculated!S185 -> 0 | L188: =Data_ACS_2022_BG_Calculated!U185 -> 0 | N188: =Data_ACS_2022_BG_Calculated!W185 -> 0 | P188: =Data_ACS_2022_BG_Calculated!Y185 -> 0 | R188: 0
B189: =IF(Data_ACS_2022_BG_Calculated!I186="","",(CONCATENATE("CT ", Data_ACS_2022_BG_Calculated!I186,", BG ",Data_ACS_2022_BG_Calculated!J186))) ->  | C189: =Data_ACS_2022_BG_Calculated!L186 -> 0 | D189: =Data_ACS_2022_BG_Calculated!M186 -> 0 | F189: =Data_ACS_2022_BG_Calculated!O186 -> 0 | H189: =Data_ACS_2022_BG_Calculated!Q186 -> 0 | J189: =Data_ACS_2022_BG_Calculated!S186 -> 0 | L189: =Data_ACS_2022_BG_Calculated!U186 -> 0 | N189: =Data_ACS_2022_BG_Calculated!W186 -> 0 | P189: =Data_ACS_2022_BG_Calculated!Y186 -> 0 | R189: 0
B190: =IF(Data_ACS_2022_BG_Calculated!I187="","",(CONCATENATE("CT ", Data_ACS_2022_BG_Calculated!I187,", BG ",Data_ACS_2022_BG_Calculated!J187))) ->  | C190: =Data_ACS_2022_BG_Calculated!L187 -> 0 | D190: =Data_ACS_2022_BG_Calculated!M187 -> 0 | F190: =Data_ACS_2022_BG_Calculated!O187 -> 0 | H190: =Data_ACS_2022_BG_Calculated!Q187 -> 0 | J190: =Data_ACS_2022_BG_Calculated!S187 -> 0 | L190: =Data_ACS_2022_BG_Calculated!U187 -> 0 | N190: =Data_ACS_2022_BG_Calculated!W187 -> 0 | P190: =Data_ACS_2022_BG_Calculated!Y187 -> 0 | R190: 0
B191: =IF(Data_ACS_2022_BG_Calculated!I188="","",(CONCATENATE("CT ", Data_ACS_2022_BG_Calculated!I188,", BG ",Data_ACS_2022_BG_Calculated!J188))) ->  | C191: =Data_ACS_2022_BG_Calculated!L188 -> 0 | D191: =Data_ACS_2022_BG_Calculated!M188 -> 0 | F191: =Data_ACS_2022_BG_Calculated!O188 -> 0 | H191: =Data_ACS_2022_BG_Calculated!Q188 -> 0 | J191: =Data_ACS_2022_BG_Calculated!S188 -> 0 | L191: =Data_ACS_2022_BG_Calculated!U188 -> 0 | N191: =Data_ACS_2022_BG_Calculated!W188 -> 0 | P191: =Data_ACS_2022_BG_Calculated!Y188 -> 0 | R191: 0
B192: =IF(Data_ACS_2022_BG_Calculated!I189="","",(CONCATENATE("CT ", Data_ACS_2022_BG_Calculated!I189,", BG ",Data_ACS_2022_BG_Calculated!J189))) ->  | C192: =Data_ACS_2022_BG_Calculated!L189 -> 0 | D192: =Data_ACS_2022_BG_Calculated!M189 -> 0 | F192: =Data_ACS_2022_BG_Calculated!O189 -> 0 | H192: =Data_ACS_2022_BG_Calculated!Q189 -> 0 | J192: =Data_ACS_2022_BG_Calculated!S189 -> 0 | L192: =Data_ACS_2022_BG_Calculated!U189 -> 0 | N192: =Data_ACS_2022_BG_Calculated!W189 -> 0 | P192: =Data_ACS_2022_BG_Calculated!Y189 -> 0 | R192: 0
B193: =IF(Data_ACS_2022_BG_Calculated!I190="","",(CONCATENATE("CT ", Data_ACS_2022_BG_Calculated!I190,", BG ",Data_ACS_2022_BG_Calculated!J190))) ->  | C193: =Data_ACS_2022_BG_Calculated!L190 -> 0 | D193: =Data_ACS_2022_BG_Calculated!M190 -> 0 | F193: =Data_ACS_2022_BG_Calculated!O190 -> 0 | H193: =Data_ACS_2022_BG_Calculated!Q190 -> 0 | J193: =Data_ACS_2022_BG_Calculated!S190 -> 0 | L193: =Data_ACS_2022_BG_Calculated!U190 -> 0 | N193: =Data_ACS_2022_BG_Calculated!W190 -> 0 | P193: =Data_ACS_2022_BG_Calculated!Y190 -> 0 | R193: 0
B194: =IF(Data_ACS_2022_BG_Calculated!I191="","",(CONCATENATE("CT ", Data_ACS_2022_BG_Calculated!I191,", BG ",Data_ACS_2022_BG_Calculated!J191))) ->  | C194: =Data_ACS_2022_BG_Calculated!L191 -> 0 | D194: =Data_ACS_2022_BG_Calculated!M191 -> 0 | F194: =Data_ACS_2022_BG_Calculated!O191 -> 0 | H194: =Data_ACS_2022_BG_Calculated!Q191 -> 0 | J194: =Data_ACS_2022_BG_Calculated!S191 -> 0 | L194: =Data_ACS_2022_BG_Calculated!U191 -> 0 | N194: =Data_ACS_2022_BG_Calculated!W191 -> 0 | P194: =Data_ACS_2022_BG_Calculated!Y191 -> 0 | R194: 0
B195: =IF(Data_ACS_2022_BG_Calculated!I192="","",(CONCATENATE("CT ", Data_ACS_2022_BG_Calculated!I192,", BG ",Data_ACS_2022_BG_Calculated!J192))) ->  | C195: =Data_ACS_2022_BG_Calculated!L192 -> 0 | D195: =Data_ACS_2022_BG_Calculated!M192 -> 0 | F195: =Data_ACS_2022_BG_Calculated!O192 -> 0 | H195: =Data_ACS_2022_BG_Calculated!Q192 -> 0 | J195: =Data_ACS_2022_BG_Calculated!S192 -> 0 | L195: =Data_ACS_2022_BG_Calculated!U192 -> 0 | N195: =Data_ACS_2022_BG_Calculated!W192 -> 0 | P195: =Data_ACS_2022_BG_Calculated!Y192 -> 0 | R195: 0
B196: =IF(Data_ACS_2022_BG_Calculated!I193="","",(CONCATENATE("CT ", Data_ACS_2022_BG_Calculated!I193,", BG ",Data_ACS_2022_BG_Calculated!J193))) ->  | C196: =Data_ACS_2022_BG_Calculated!L193 -> 0 | D196: =Data_ACS_2022_BG_Calculated!M193 -> 0 | F196: =Data_ACS_2022_BG_Calculated!O193 -> 0 | H196: =Data_ACS_2022_BG_Calculated!Q193 -> 0 | J196: =Data_ACS_2022_BG_Calculated!S193 -> 0 | L196: =Data_ACS_2022_BG_Calculated!U193 -> 0 | N196: =Data_ACS_2022_BG_Calculated!W193 -> 0 | P196: =Data_ACS_2022_BG_Calculated!Y193 -> 0 | R196: 0
B197: =IF(Data_ACS_2022_BG_Calculated!I194="","",(CONCATENATE("CT ", Data_ACS_2022_BG_Calculated!I194,", BG ",Data_ACS_2022_BG_Calculated!J194))) ->  | C197: =Data_ACS_2022_BG_Calculated!L194 -> 0 | D197: =Data_ACS_2022_BG_Calculated!M194 -> 0 | F197: =Data_ACS_2022_BG_Calculated!O194 -> 0 | H197: =Data_ACS_2022_BG_Calculated!Q194 -> 0 | J197: =Data_ACS_2022_BG_Calculated!S194 -> 0 | L197: =Data_ACS_2022_BG_Calculated!U194 -> 0 | N197: =Data_ACS_2022_BG_Calculated!W194 -> 0 | P197: =Data_ACS_2022_BG_Calculated!Y194 -> 0 | R197: 0
B198: =IF(Data_ACS_2022_BG_Calculated!I195="","",(CONCATENATE("CT ", Data_ACS_2022_BG_Calculated!I195,", BG ",Data_ACS_2022_BG_Calculated!J195))) ->  | C198: =Data_ACS_2022_BG_Calculated!L195 -> 0 | D198: =Data_ACS_2022_BG_Calculated!M195 -> 0 | F198: =Data_ACS_2022_BG_Calculated!O195 -> 0 | H198: =Data_ACS_2022_BG_Calculated!Q195 -> 0 | J198: =Data_ACS_2022_BG_Calculated!S195 -> 0 | L198: =Data_ACS_2022_BG_Calculated!U195 -> 0 | N198: =Data_ACS_2022_BG_Calculated!W195 -> 0 | P198: =Data_ACS_2022_BG_Calculated!Y195 -> 0 | R198: 0
B199: =IF(Data_ACS_2022_BG_Calculated!I196="","",(CONCATENATE("CT ", Data_ACS_2022_BG_Calculated!I196,", BG ",Data_ACS_2022_BG_Calculated!J196))) ->  | C199: =Data_ACS_2022_BG_Calculated!L196 -> 0 | D199: =Data_ACS_2022_BG_Calculated!M196 -> 0 | F199: =Data_ACS_2022_BG_Calculated!O196 -> 0 | H199: =Data_ACS_2022_BG_Calculated!Q196 -> 0 | J199: =Data_ACS_2022_BG_Calculated!S196 -> 0 | L199: =Data_ACS_2022_BG_Calculated!U196 -> 0 | N199: =Data_ACS_2022_BG_Calculated!W196 -> 0 | P199: =Data_ACS_2022_BG_Calculated!Y196 -> 0 | R199: 0
B200: =IF(Data_ACS_2022_BG_Calculated!I197="","",(CONCATENATE("CT ", Data_ACS_2022_BG_Calculated!I197,", BG ",Data_ACS_2022_BG_Calculated!J197))) ->  | C200: =Data_ACS_2022_BG_Calculated!L197 -> 0 | D200: =Data_ACS_2022_BG_Calculated!M197 -> 0 | F200: =Data_ACS_2022_BG_Calculated!O197 -> 0 | H200: =Data_ACS_2022_BG_Calculated!Q197 -> 0 | J200: =Data_ACS_2022_BG_Calculated!S197 -> 0 | L200: =Data_ACS_2022_BG_Calculated!U197 -> 0 | N200: =Data_ACS_2022_BG_Calculated!W197 -> 0 | P200: =Data_ACS_2022_BG_Calculated!Y197 -> 0 | R200: 0
B201: =IF(Data_ACS_2022_BG_Calculated!I198="","",(CONCATENATE("CT ", Data_ACS_2022_BG_Calculated!I198,", BG ",Data_ACS_2022_BG_Calculated!J198))) ->  | C201: =Data_ACS_2022_BG_Calculated!L198 -> 0 | D201: =Data_ACS_2022_BG_Calculated!M198 -> 0 | F201: =Data_ACS_2022_BG_Calculated!O198 -> 0 | H201: =Data_ACS_2022_BG_Calculated!Q198 -> 0 | J201: =Data_ACS_2022_BG_Calculated!S198 -> 0 | L201: =Data_ACS_2022_BG_Calculated!U198 -> 0 | N201: =Data_ACS_2022_BG_Calculated!W198 -> 0 | P201: =Data_ACS_2022_BG_Calculated!Y198 -> 0 | R201: 0
... 120 more rows

Sheet HispanicLatino
B1: Hispanic or Latino Population
B2: The ACS Census data should be used to calculate the Hispanic or Latino populations. The tables are linked to the Data tabs and will automatically populate once the Data tabs are completed. Once complete, you can copy the table and source directly into your report.
B4: Geography | C4: Total Population | D4: Hispanic | F4: Not Hispanic
D5: # | E5: % | F5: # | G5: %
B6: =IF(Data_ACS_2022_BG_Calculated!I3="","",(CONCATENATE("CT ", Data_ACS_2022_BG_Calculated!I3,", BG ",Data_ACS_2022_BG_Calculated!J3))) -> CT 108, BG 1 | C6: =Data_ACS_2022_BG_Calculated!AC3 -> 959 | D6: =C6-F6 -> 0 | E6: =IFERROR(D6/C6,"") -> 0 | F6: =Data_ACS_2022_BG_Calculated!AF3 -> 959 | G6: =IFERROR(F6/C6,"") -> 1
B7: =IF(Data_ACS_2022_BG_Calculated!I4="","",(CONCATENATE("CT ", Data_ACS_2022_BG_Calculated!I4,", BG ",Data_ACS_2022_BG_Calculated!J4))) -> CT 108, BG 2 | C7: =Data_ACS_2022_BG_Calculated!AC4 -> 277 | D7: =C7-F7 -> 0 | E7: =IFERROR(D7/C7,"") -> 0 | F7: =Data_ACS_2022_BG_Calculated!AF4 -> 277 | G7: =IFERROR(F7/C7,"") -> 1
B8: =IF(Data_ACS_2022_BG_Calculated!I5="","",(CONCATENATE("CT ", Data_ACS_2022_BG_Calculated!I5,", BG ",Data_ACS_2022_BG_Calculated!J5))) -> CT 108, BG 3 | C8: =Data_ACS_2022_BG_Calculated!AC5 -> 1875 | D8: 63 | E8: 0.0336 | F8: =Data_ACS_2022_BG_Calculated!AF5 -> 1812 | G8: 0.9664
B9: =IF(Data_ACS_2022_BG_Calculated!I6="","",(CONCATENATE("CT ", Data_ACS_2022_BG_Calculated!I6,", BG ",Data_ACS_2022_BG_Calculated!J6))) -> CT 110, BG 1 | C9: =Data_ACS_2022_BG_Calculated!AC6 -> 786 | D9: 210 | E9: 0.2671755725 | F9: =Data_ACS_2022_BG_Calculated!AF6 -> 576 | G9: 0.7328244275
B10: =IF(Data_ACS_2022_BG_Calculated!I7="","",(CONCATENATE("CT ", Data_ACS_2022_BG_Calculated!I7,", BG ",Data_ACS_2022_BG_Calculated!J7))) -> CT 110, BG 2 | C10: =Data_ACS_2022_BG_Calculated!AC7 -> 4617 | D10: 186 | E10: 0.04028589994 | F10: =Data_ACS_2022_BG_Calculated!AF7 -> 4431 | G10: 0.9597141001
B11: =IF(Data_ACS_2022_BG_Calculated!I8="","",(CONCATENATE("CT ", Data_ACS_2022_BG_Calculated!I8,", BG ",Data_ACS_2022_BG_Calculated!J8))) -> CT 111.01, BG 1 | C11: =Data_ACS_2022_BG_Calculated!AC8 -> 564 | D11: 106 | E11: 0.1879432624 | F11: =Data_ACS_2022_BG_Calculated!AF8 -> 458 | G11: 0.8120567376
B12: =IF(Data_ACS_2022_BG_Calculated!I9="","",(CONCATENATE("CT ", Data_ACS_2022_BG_Calculated!I9,", BG ",Data_ACS_2022_BG_Calculated!J9))) -> CT 111.01, BG 2 | C12: =Data_ACS_2022_BG_Calculated!AC9 -> 971 | D12: 28 | E12: 0.02883625129 | F12: =Data_ACS_2022_BG_Calculated!AF9 -> 943 | G12: 0.9711637487
B13: =IF(Data_ACS_2022_BG_Calculated!I10="","",(CONCATENATE("CT ", Data_ACS_2022_BG_Calculated!I10,", BG ",Data_ACS_2022_BG_Calculated!J10))) -> CT 111.01, BG 3 | C13: =Data_ACS_2022_BG_Calculated!AC10 -> 495 | D13: 8 | E13: 0.01616161616 | F13: =Data_ACS_2022_BG_Calculated!AF10 -> 487 | G13: 0.9838383838
B14: =IF(Data_ACS_2022_BG_Calculated!I11="","",(CONCATENATE("CT ", Data_ACS_2022_BG_Calculated!I11,", BG ",Data_ACS_2022_BG_Calculated!J11))) -> CT 111.01, BG 4 | C14: =Data_ACS_2022_BG_Calculated!AC11 -> 1891 | D14: 380 | E14: 0.2009518773 | F14: =Data_ACS_2022_BG_Calculated!AF11 -> 1511 | G14: 0.7990481227
B15: =IF(Data_ACS_2022_BG_Calculated!I12="","",(CONCATENATE("CT ", Data_ACS_2022_BG_Calculated!I12,", BG ",Data_ACS_2022_BG_Calculated!J12))) -> CT 111.02, BG 1 | C15: =Data_ACS_2022_BG_Calculated!AC12 -> 1056 | D15: 0 | E15: 0 | F15: =Data_ACS_2022_BG_Calculated!AF12 -> 1056 | G15: 1
B16: =IF(Data_ACS_2022_BG_Calculated!I13="","",(CONCATENATE("CT ", Data_ACS_2022_BG_Calculated!I13,", BG ",Data_ACS_2022_BG_Calculated!J13))) -> CT 111.02, BG 2 | C16: =Data_ACS_2022_BG_Calculated!AC13 -> 1255 | D16: 184 | E16: 0.1466135458 | F16: =Data_ACS_2022_BG_Calculated!AF13 -> 1071 | G16: 0.8533864542
B17: =IF(Data_ACS_2022_BG_Calculated!I14="","",(CONCATENATE("CT ", Data_ACS_2022_BG_Calculated!I14,", BG ",Data_ACS_2022_BG_Calculated!J14))) -> CT 112.01, BG 1 | C17: =Data_ACS_2022_BG_Calculated!AC14 -> 1811 | D17: 33 | E17: 0.01822197681 | F17: =Data_ACS_2022_BG_Calculated!AF14 -> 1778 | G17: 0.9817780232
B18: =IF(Data_ACS_2022_BG_Calculated!I15="","",(CONCATENATE("CT ", Data_ACS_2022_BG_Calculated!I15,", BG ",Data_ACS_2022_BG_Calculated!J15))) -> CT 112.01, BG 2 | C18: =Data_ACS_2022_BG_Calculated!AC15 -> 1389 | D18: 14 | E18: 0.01007919366 | F18: =Data_ACS_2022_BG_Calculated!AF15 -> 1375 | G18: 0.9899208063
B19: =IF(Data_ACS_2022_BG_Calculated!I16="","",(CONCATENATE("CT ", Data_ACS_2022_BG_Calculated!I16,", BG ",Data_ACS_2022_BG_Calculated!J16))) -> CT 112.02, BG 1 | C19: =Data_ACS_2022_BG_Calculated!AC16 -> 1462 | D19: 115 | E19: 0.07865937073 | F19: =Data_ACS_2022_BG_Calculated!AF16 -> 1347 | G19: 0.9213406293
B20: =IF(Data_ACS_2022_BG_Calculated!I17="","",(CONCATENATE("CT ", Data_ACS_2022_BG_Calculated!I17,", BG ",Data_ACS_2022_BG_Calculated!J17))) -> CT 112.02, BG 2 | C20: =Data_ACS_2022_BG_Calculated!AC17 -> 1583 | D20: 301 | E20: 0.1901452937 | F20: =Data_ACS_2022_BG_Calculated!AF17 -> 1282 | G20: 0.8098547063
B21: =IF(Data_ACS_2022_BG_Calculated!I18="","",(CONCATENATE("CT ", Data_ACS_2022_BG_Calculated!I18,", BG ",Data_ACS_2022_BG_Calculated!J18))) -> CT 127.07, BG 1 | C21: =Data_ACS_2022_BG_Calculated!AC18 -> 1313 | D21: 131 | E21: 0.09977151561 | F21: =Data_ACS_2022_BG_Calculated!AF18 -> 1182 | G21: 0.9002284844
B22: =IF(Data_ACS_2022_BG_Calculated!I19="","",(CONCATENATE("CT ", Data_ACS_2022_BG_Calculated!I19,", BG ",Data_ACS_2022_BG_Calculated!J19))) -> CT 127.07, BG 2 | C22: =Data_ACS_2022_BG_Calculated!AC19 -> 1334 | D22: 470 | E22: 0.3523238381 | F22: =Data_ACS_2022_BG_Calculated!AF19 -> 864 | G22: 0.6476761619
B23: =IF(Data_ACS_2022_BG_Calculated!I20="","",(CONCATENATE("CT ", Data_ACS_2022_BG_Calculated!I20,", BG ",Data_ACS_2022_BG_Calculated!J20))) -> CT 128.03, BG 1 | C23: =Data_ACS_2022_BG_Calculated!AC20 -> 2999 | D23: 169 | E23: 0.05635211737 | F23: =Data_ACS_2022_BG_Calculated!AF20 -> 2830 | G23: 0.9436478826
B24: =IF(Data_ACS_2022_BG_Calculated!I21="","",(CONCATENATE("CT ", Data_ACS_2022_BG_Calculated!I21,", BG ",Data_ACS_2022_BG_Calculated!J21))) -> CT 128.03, BG 2 | C24: =Data_ACS_2022_BG_Calculated!AC21 -> 3827 | D24: 87 | E24: 0.02273321139 | F24: =Data_ACS_2022_BG_Calculated!AF21 -> 3740 | G24: 0.9772667886
B25: =IF(Data_ACS_2022_BG_Calculated!I22="","",(CONCATENATE("CT ", Data_ACS_2022_BG_Calculated!I22,", BG ",Data_ACS_2022_BG_Calculated!J22))) -> CT 128.03, BG 3 | C25: =Data_ACS_2022_BG_Calculated!AC22 -> 2513 | D25: 666 | E25: 0.2650218862 | F25: =Data_ACS_2022_BG_Calculated!AF22 -> 1847 | G25: 0.7349781138
B26: =IF(Data_ACS_2022_BG_Calculated!I23="","",(CONCATENATE("CT ", Data_ACS_2022_BG_Calculated!I23,", BG ",Data_ACS_2022_BG_Calculated!J23))) ->  | C26: =Data_ACS_2022_BG_Calculated!AC23 -> 0 | D26: 0 | F26: =Data_ACS_2022_BG_Calculated!AF23 -> 0
B27: =IF(Data_ACS_2022_BG_Calculated!I24="","",(CONCATENATE("CT ", Data_ACS_2022_BG_Calculated!I24,", BG ",Data_ACS_2022_BG_Calculated!J24))) ->  | C27: =Data_ACS_2022_BG_Calculated!AC24 -> 0 | D27: 0 | F27: =Data_ACS_2022_BG_Calculated!AF24 -> 0
B28: =IF(Data_ACS_2022_BG_Calculated!I25="","",(CONCATENATE("CT ", Data_ACS_2022_BG_Calculated!I25,", BG ",Data_ACS_2022_BG_Calculated!J25))) ->  | C28: =Data_ACS_2022_BG_Calculated!AC25 -> 0 | D28: =C28-F28 -> 0 | E28: =IFERROR(D28/C28,"") ->  | F28: =Data_ACS_2022_BG_Calculated!AF25 -> 0 | G28: =IFERROR(F28/C28,"") -> 
B29: =IF(Data_ACS_2022_BG_Calculated!I26="","",(CONCATENATE("CT ", Data_ACS_2022_BG_Calculated!I26,", BG ",Data_ACS_2022_BG_Calculated!J26))) ->  | C29: =Data_ACS_2022_BG_Calculated!AC26 -> 0 | D29: 0 | F29: =Data_ACS_2022_BG_Calculated!AF26 -> 0
B30: =IF(Data_ACS_2022_BG_Calculated!I27="","",(CONCATENATE("CT ", Data_ACS_2022_BG_Calculated!I27,", BG ",Data_ACS_2022_BG_Calculated!J27))) ->  | C30: =Data_ACS_2022_BG_Calculated!AC27 -> 0 | D30: 0 | F30: =Data_ACS_2022_BG_Calculated!AF27 -> 0
B31: =IF(Data_ACS_2022_BG_Calculated!I28="","",(CONCATENATE("CT ", Data_ACS_2022_BG_Calculated!I28,", BG ",Data_ACS_2022_BG_Calculated!J28))) ->  | C31: =Data_ACS_2022_BG_Calculated!AC28 -> 0 | D31: 0 | F31: =Data_ACS_2022_BG_Calculated!AF28 -> 0
B32: =IF(Data_ACS_2022_BG_Calculated!I29="","",(CONCATENATE("CT ", Data_ACS_2022_BG_Calculated!I29,", BG ",Data_ACS_2022_BG_Calculated!J29))) ->  | C32: =Data_ACS_2022_BG_Calculated!AC29 -> 0 | D32: 0 | F32: =Data_ACS_2022_BG_Calculated!AF29 -> 0
B33: =IF(Data_ACS_2022_BG_Calculated!I30="","",(CONCATENATE("CT ", Data_ACS_2022_BG_Calculated!I30,", BG ",Data_ACS_2022_BG_Calculated!J30))) ->  | C33: =Data_ACS_2022_BG_Calculated!AC30 -> 0 | D33: 0 | F33: =Data_ACS_2022_BG_Calculated!AF30 -> 0
B34: =IF(Data_ACS_2022_BG_Calculated!I31="","",(CONCATENATE("CT ", Data_ACS_2022_BG_Calculated!I31,", BG ",Data_ACS_2022_BG_Calculated!J31))) ->  | C34: =Data_ACS_2022_BG_Calculated!AC31 -> 0 | D34: 0 | F34: =Data_ACS_2022_BG_Calculated!AF31 -> 0
B35: =IF(Data_ACS_2022_BG_Calculated!I32="","",(CONCATENATE("CT ", Data_ACS_2022_BG_Calculated!I32,", BG ",Data_ACS_2022_BG_Calculated!J32))) ->  | C35: =Data_ACS_2022_BG_Calculated!AC32 -> 0 | D35: 0 | F35: =Data_ACS_2022_BG_Calculated!AF32 -> 0
B36: =IF(Data_ACS_2022_BG_Calculated!I33="","",(CONCATENATE("CT ", Data_ACS_2022_BG_Calculated!I33,", BG ",Data_ACS_2022_BG_Calculated!J33))) ->  | C36: =Data_ACS_2022_BG_Calculated!AC33 -> 0 | D36: 0 | F36: =Data_ACS_2022_BG_Calculated!AF33 -> 0
B37: =IF(Data_ACS_2022_BG_Calculated!I34="","",(CONCATENATE("CT ", Data_ACS_2022_BG_Calculated!I34,", BG ",Data_ACS_2022_BG_Calculated!J34))) ->  | C37: =Data_ACS_2022_BG_Calculated!AC34 -> 0 | D37: 0 | F37: =Data_ACS_2022_BG_Calculated!AF34 -> 0
B38: =IF(Data_ACS_2022_BG_Calculated!I35="","",(CONCATENATE("CT ", Data_ACS_2022_BG_Calculated!I35,", BG ",Data_ACS_2022_BG_Calculated!J35))) ->  | C38: =Data_ACS_2022_BG_Calculated!AC35 -> 0 | D38: 0 | F38: =Data_ACS_2022_BG_Calculated!AF35 -> 0
B39: =IF(Data_ACS_2022_BG_Calculated!I36="","",(CONCATENATE("CT ", Data_ACS_2022_BG_Calculated!I36,", BG ",Data_ACS_2022_BG_Calculated!J36))) ->  | C39: =Data_ACS_2022_BG_Calculated!AC36 -> 0 | D39: 0 | F39: =Data_ACS_2022_BG_Calculated!AF36 -> 0
B40: =IF(Data_ACS_2022_BG_Calculated!I37="","",(CONCATENATE("CT ", Data_ACS_2022_BG_Calculated!I37,", BG ",Data_ACS_2022_BG_Calculated!J37))) ->  | C40: =Data_ACS_2022_BG_Calculated!AC37 -> 0 | D40: 0 | F40: =Data_ACS_2022_BG_Calculated!AF37 -> 0
B41: =IF(Data_ACS_2022_BG_Calculated!I38="","",(CONCATENATE("CT ", Data_ACS_2022_BG_Calculated!I38,", BG ",Data_ACS_2022_BG_Calculated!J38))) ->  | C41: =Data_ACS_2022_BG_Calculated!AC38 -> 0 | D41: 0 | F41: =Data_ACS_2022_BG_Calculated!AF38 -> 0
B42: =IF(Data_ACS_2022_BG_Calculated!I39="","",(CONCATENATE("CT ", Data_ACS_2022_BG_Calculated!I39,", BG ",Data_ACS_2022_BG_Calculated!J39))) ->  | C42: =Data_ACS_2022_BG_Calculated!AC39 -> 0 | D42: 0 | F42: =Data_ACS_2022_BG_Calculated!AF39 -> 0
B43: =IF(Data_ACS_2022_BG_Calculated!I40="","",(CONCATENATE("CT ", Data_ACS_2022_BG_Calculated!I40,", BG ",Data_ACS_2022_BG_Calculated!J40))) ->  | C43: =Data_ACS_2022_BG_Calculated!AC40 -> 0 | D43: 0 | F43: =Data_ACS_2022_BG_Calculated!AF40 -> 0
B44: =IF(Data_ACS_2022_BG_Calculated!I41="","",(CONCATENATE("CT ", Data_ACS_2022_BG_Calculated!I41,", BG ",Data_ACS_2022_BG_Calculated!J41))) ->  | C44: =Data_ACS_2022_BG_Calculated!AC41 -> 0 | D44: 0 | F44: =Data_ACS_2022_BG_Calculated!AF41 -> 0
B45: =IF(Data_ACS_2022_BG_Calculated!I42="","",(CONCATENATE("CT ", Data_ACS_2022_BG_Calculated!I42,", BG ",Data_ACS_2022_BG_Calculated!J42))) ->  | C45: =Data_ACS_2022_BG_Calculated!AC42 -> 0 | D45: 0 | F45: =Data_ACS_2022_BG_Calculated!AF42 -> 0
B46: =IF(Data_ACS_2022_BG_Calculated!I43="","",(CONCATENATE("CT ", Data_ACS_2022_BG_Calculated!I43,", BG ",Data_ACS_2022_BG_Calculated!J43))) ->  | C46: =Data_ACS_2022_BG_Calculated!AC43 -> 0 | D46: 0 | F46: =Data_ACS_2022_BG_Calculated!AF43 -> 0
B47: =IF(Data_ACS_2022_BG_Calculated!I44="","",(CONCATENATE("CT ", Data_ACS_2022_BG_Calculated!I44,", BG ",Data_ACS_2022_BG_Calculated!J44))) ->  | C47: =Data_ACS_2022_BG_Calculated!AC44 -> 0 | D47: 0 | F47: =Data_ACS_2022_BG_Calculated!AF44 -> 0
B48: =IF(Data_ACS_2022_BG_Calculated!I45="","",(CONCATENATE("CT ", Data_ACS_2022_BG_Calculated!I45,", BG ",Data_ACS_2022_BG_Calculated!J45))) ->  | C48: =Data_ACS_2022_BG_Calculated!AC45 -> 0 | D48: 0 | F48: =Data_ACS_2022_BG_Calculated!AF45 -> 0
B49: =IF(Data_ACS_2022_BG_Calculated!I46="","",(CONCATENATE("CT ", Data_ACS_2022_BG_Calculated!I46,", BG ",Data_ACS_2022_BG_Calculated!J46))) ->  | C49: =Data_ACS_2022_BG_Calculated!AC46 -> 0 | D49: 0 | F49: =Data_ACS_2022_BG_Calculated!AF46 -> 0
B50: =IF(Data_ACS_2022_BG_Calculated!I47="","",(CONCATENATE("CT ", Data_ACS_2022_BG_Calculated!I47,", BG ",Data_ACS_2022_BG_Calculated!J47))) ->  | C50: =Data_ACS_2022_BG_Calculated!AC47 -> 0 | D50: 0 | F50: =Data_ACS_2022_BG_Calculated!AF47 -> 0
B51: =IF(Data_ACS_2022_BG_Calculated!I48="","",(CONCATENATE("CT ", Data_ACS_2022_BG_Calculated!I48,", BG ",Data_ACS_2022_BG_Calculated!J48))) ->  | C51: =Data_ACS_2022_BG_Calculated!AC48 -> 0 | D51: 0 | F51: =Data_ACS_2022_BG_Calculated!AF48 -> 0
B52: =IF(Data_ACS_2022_BG_Calculated!I49="","",(CONCATENATE("CT ", Data_ACS_2022_BG_Calculated!I49,", BG ",Data_ACS_2022_BG_Calculated!J49))) ->  | C52: =Data_ACS_2022_BG_Calculated!AC49 -> 0 | D52: 0 | F52: =Data_ACS_2022_BG_Calculated!AF49 -> 0
B53: =IF(Data_ACS_2022_BG_Calculated!I50="","",(CONCATENATE("CT ", Data_ACS_2022_BG_Calculated!I50,", BG ",Data_ACS_2022_BG_Calculated!J50))) ->  | C53: =Data_ACS_2022_BG_Calculated!AC50 -> 0 | D53: 0 | F53: =Data_ACS_2022_BG_Calculated!AF50 -> 0
B54: =IF(Data_ACS_2022_BG_Calculated!I51="","",(CONCATENATE("CT ", Data_ACS_2022_BG_Calculated!I51,", BG ",Data_ACS_2022_BG_Calculated!J51))) ->  | C54: =Data_ACS_2022_BG_Calculated!AC51 -> 0 | D54: 0 | F54: =Data_ACS_2022_BG_Calculated!AF51 -> 0
B55: =IF(Data_ACS_2022_BG_Calculated!I52="","",(CONCATENATE("CT ", Data_ACS_2022_BG_Calculated!I52,", BG ",Data_ACS_2022_BG_Calculated!J52))) ->  | C55: =Data_ACS_2022_BG_Calculated!AC52 -> 0 | D55: 0 | F55: =Data_ACS_2022_BG_Calculated!AF52 -> 0
B56: =IF(Data_ACS_2022_BG_Calculated!I53="","",(CONCATENATE("CT ", Data_ACS_2022_BG_Calculated!I53,", BG ",Data_ACS_2022_BG_Calculated!J53))) ->  | C56: =Data_ACS_2022_BG_Calculated!AC53 -> 0 | D56: 0 | F56: =Data_ACS_2022_BG_Calculated!AF53 -> 0
B57: =IF(Data_ACS_2022_BG_Calculated!I54="","",(CONCATENATE("CT ", Data_ACS_2022_BG_Calculated!I54,", BG ",Data_ACS_2022_BG_Calculated!J54))) ->  | C57: =Data_ACS_2022_BG_Calculated!AC54 -> 0 | D57: 0 | F57: =Data_ACS_2022_BG_Calculated!AF54 -> 0
B58: =IF(Data_ACS_2022_BG_Calculated!I55="","",(CONCATENATE("CT ", Data_ACS_2022_BG_Calculated!I55,", BG ",Data_ACS_2022_BG_Calculated!J55))) ->  | C58: =Data_ACS_2022_BG_Calculated!AC55 -> 0 | D58: 0 | F58: =Data_ACS_2022_BG_Calculated!AF55 -> 0
B59: =IF(Data_ACS_2022_BG_Calculated!I56="","",(CONCATENATE("CT ", Data_ACS_2022_BG_Calculated!I56,", BG ",Data_ACS_2022_BG_Calculated!J56))) ->  | C59: =Data_ACS_2022_BG_Calculated!AC56 -> 0 | D59: 0 | F59: =Data_ACS_2022_BG_Calculated!AF56 -> 0
B60: =IF(Data_ACS_2022_BG_Calculated!I57="","",(CONCATENATE("CT ", Data_ACS_2022_BG_Calculated!I57,", BG ",Data_ACS_2022_BG_Calculated!J57))) ->  | C60: =Data_ACS_2022_BG_Calculated!AC57 -> 0 | D60: 0 | F60: =Data_ACS_2022_BG_Calculated!AF57 -> 0
B61: =IF(Data_ACS_2022_BG_Calculated!I58="","",(CONCATENATE("CT ", Data_ACS_2022_BG_Calculated!I58,", BG ",Data_ACS_2022_BG_Calculated!J58))) ->  | C61: =Data_ACS_2022_BG_Calculated!AC58 -> 0 | D61: 0 | F61: =Data_ACS_2022_BG_Calculated!AF58 -> 0
B62: =IF(Data_ACS_2022_BG_Calculated!I59="","",(CONCATENATE("CT ", Data_ACS_2022_BG_Calculated!I59,", BG ",Data_ACS_2022_BG_Calculated!J59))) ->  | C62: =Data_ACS_2022_BG_Calculated!AC59 -> 0 | D62: 0 | F62: =Data_ACS_2022_BG_Calculated!AF59 -> 0
B63: =IF(Data_ACS_2022_BG_Calculated!I60="","",(CONCATENATE("CT ", Data_ACS_2022_BG_Calculated!I60,", BG ",Data_ACS_2022_BG_Calculated!J60))) ->  | C63: =Data_ACS_2022_BG_Calculated!AC60 -> 0 | D63: 0 | F63: =Data_ACS_2022_BG_Calculated!AF60 -> 0
B64: =IF(Data_ACS_2022_BG_Calculated!I61="","",(CONCATENATE("CT ", Data_ACS_2022_BG_Calculated!I61,", BG ",Data_ACS_2022_BG_Calculated!J61))) ->  | C64: =Data_ACS_2022_BG_Calculated!AC61 -> 0 | D64: 0 | F64: =Data_ACS_2022_BG_Calculated!AF61 -> 0
B65: =IF(Data_ACS_2022_BG_Calculated!I62="","",(CONCATENATE("CT ", Data_ACS_2022_BG_Calculated!I62,", BG ",Data_ACS_2022_BG_Calculated!J62))) ->  | C65: =Data_ACS_2022_BG_Calculated!AC62 -> 0 | D65: 0 | F65: =Data_ACS_2022_BG_Calculated!AF62 -> 0
B66: =IF(Data_ACS_2022_BG_Calculated!I63="","",(CONCATENATE("CT ", Data_ACS_2022_BG_Calculated!I63,", BG ",Data_ACS_2022_BG_Calculated!J63))) ->  | C66: =Data_ACS_2022_BG_Calculated!AC63 -> 0 | D66: 0 | F66: =Data_ACS_2022_BG_Calculated!AF63 -> 0
B67: =IF(Data_ACS_2022_BG_Calculated!I64="","",(CONCATENATE("CT ", Data_ACS_2022_BG_Calculated!I64,", BG ",Data_ACS_2022_BG_Calculated!J64))) ->  | C67: =Data_ACS_2022_BG_Calculated!AC64 -> 0 | D67: 0 | F67: =Data_ACS_2022_BG_Calculated!AF64 -> 0
B68: =IF(Data_ACS_2022_BG_Calculated!I65="","",(CONCATENATE("CT ", Data_ACS_2022_BG_Calculated!I65,", BG ",Data_ACS_2022_BG_Calculated!J65))) ->  | C68: =Data_ACS_2022_BG_Calculated!AC65 -> 0 | D68: 0 | F68: =Data_ACS_2022_BG_Calculated!AF65 -> 0
B69: =IF(Data_ACS_2022_BG_Calculated!I66="","",(CONCATENATE("CT ", Data_ACS_2022_BG_Calculated!I66,", BG ",Data_ACS_2022_BG_Calculated!J66))) ->  | C69: =Data_ACS_2022_BG_Calculated!AC66 -> 0 | D69: 0 | F69: =Data_ACS_2022_BG_Calculated!AF66 -> 0
B70: =IF(Data_ACS_2022_BG_Calculated!I67="","",(CONCATENATE("CT ", Data_ACS_2022_BG_Calculated!I67,", BG ",Data_ACS_2022_BG_Calculated!J67))) ->  | C70: =Data_ACS_2022_BG_Calculated!AC67 -> 0 | D70: 0 | F70: =Data_ACS_2022_BG_Calculated!AF67 -> 0
B71: =IF(Data_ACS_2022_BG_Calculated!I68="","",(CONCATENATE("CT ", Data_ACS_2022_BG_Calculated!I68,", BG ",Data_ACS_2022_BG_Calculated!J68))) ->  | C71: =Data_ACS_2022_BG_Calculated!AC68 -> 0 | D71: 0 | F71: =Data_ACS_2022_BG_Calculated!AF68 -> 0
B72: =IF(Data_ACS_2022_BG_Calculated!I69="","",(CONCATENATE("CT ", Data_ACS_2022_BG_Calculated!I69,", BG ",Data_ACS_2022_BG_Calculated!J69))) ->  | C72: =Data_ACS_2022_BG_Calculated!AC69 -> 0 | D72: 0 | F72: =Data_ACS_2022_BG_Calculated!AF69 -> 0
B73: =IF(Data_ACS_2022_BG_Calculated!I70="","",(CONCATENATE("CT ", Data_ACS_2022_BG_Calculated!I70,", BG ",Data_ACS_2022_BG_Calculated!J70))) ->  | C73: =Data_ACS_2022_BG_Calculated!AC70 -> 0 | D73: 0 | F73: =Data_ACS_2022_BG_Calculated!AF70 -> 0
B74: =IF(Data_ACS_2022_BG_Calculated!I71="","",(CONCATENATE("CT ", Data_ACS_2022_BG_Calculated!I71,", BG ",Data_ACS_2022_BG_Calculated!J71))) ->  | C74: =Data_ACS_2022_BG_Calculated!AC71 -> 0 | D74: 0 | F74: =Data_ACS_2022_BG_Calculated!AF71 -> 0
B75: =IF(Data_ACS_2022_BG_Calculated!I72="","",(CONCATENATE("CT ", Data_ACS_2022_BG_Calculated!I72,", BG ",Data_ACS_2022_BG_Calculated!J72))) ->  | C75: =Data_ACS_2022_BG_Calculated!AC72 -> 0 | D75: 0 | F75: =Data_ACS_2022_BG_Calculated!AF72 -> 0
B76: =IF(Data_ACS_2022_BG_Calculated!I73="","",(CONCATENATE("CT ", Data_ACS_2022_BG_Calculated!I73,", BG ",Data_ACS_2022_BG_Calculated!J73))) ->  | C76: =Data_ACS_2022_BG_Calculated!AC73 -> 0 | D76: 0 | F76: =Data_ACS_2022_BG_Calculated!AF73 -> 0
B77: =IF(Data_ACS_2022_BG_Calculated!I74="","",(CONCATENATE("CT ", Data_ACS_2022_BG_Calculated!I74,", BG ",Data_ACS_2022_BG_Calculated!J74))) ->  | C77: =Data_ACS_2022_BG_Calculated!AC74 -> 0 | D77: 0 | F77: =Data_ACS_2022_BG_Calculated!AF74 -> 0
B78: =IF(Data_ACS_2022_BG_Calculated!I75="","",(CONCATENATE("CT ", Data_ACS_2022_BG_Calculated!I75,", BG ",Data_ACS_2022_BG_Calculated!J75))) ->  | C78: =Data_ACS_2022_BG_Calculated!AC75 -> 0 | D78: 0 | F78: =Data_ACS_2022_BG_Calculated!AF75 -> 0
B79: =IF(Data_ACS_2022_BG_Calculated!I76="","",(CONCATENATE("CT ", Data_ACS_2022_BG_Calculated!I76,", BG ",Data_ACS_2022_BG_Calculated!J76))) ->  | C79: =Data_ACS_2022_BG_Calculated!AC76 -> 0 | D79: 0 | F79: =Data_ACS_2022_BG_Calculated!AF76 -> 0
B80: =IF(Data_ACS_2022_BG_Calculated!I77="","",(CONCATENATE("CT ", Data_ACS_2022_BG_Calculated!I77,", BG ",Data_ACS_2022_BG_Calculated!J77))) ->  | C80: =Data_ACS_2022_BG_Calculated!AC77 -> 0 | D80: 0 | F80: =Data_ACS_2022_BG_Calculated!AF77 -> 0
B81: =IF(Data_ACS_2022_BG_Calculated!I78="","",(CONCATENATE("CT ", Data_ACS_2022_BG_Calculated!I78,", BG ",Data_ACS_2022_BG_Calculated!J78))) ->  | C81: =Data_ACS_2022_BG_Calculated!AC78 -> 0 | D81: 0 | F81: =Data_ACS_2022_BG_Calculated!AF78 -> 0
B82: =IF(Data_ACS_2022_BG_Calculated!I79="","",(CONCATENATE("CT ", Data_ACS_2022_BG_Calculated!I79,", BG ",Data_ACS_2022_BG_Calculated!J79))) ->  | C82: =Data_ACS_2022_BG_Calculated!AC79 -> 0 | D82: 0 | F82: =Data_ACS_2022_BG_Calculated!AF79 -> 0
B83: =IF(Data_ACS_2022_BG_Calculated!I80="","",(CONCATENATE("CT ", Data_ACS_2022_BG_Calculated!I80,", BG ",Data_ACS_2022_BG_Calculated!J80))) ->  | C83: =Data_ACS_2022_BG_Calculated!AC80 -> 0 | D83: 0 | F83: =Data_ACS_2022_BG_Calculated!AF80 -> 0
B84: =IF(Data_ACS_2022_BG_Calculated!I81="","",(CONCATENATE("CT ", Data_ACS_2022_BG_Calculated!I81,", BG ",Data_ACS_2022_BG_Calculated!J81))) ->  | C84: =Data_ACS_2022_BG_Calculated!AC81 -> 0 | D84: 0 | F84: =Data_ACS_2022_BG_Calculated!AF81 -> 0
B85: =IF(Data_ACS_2022_BG_Calculated!I82="","",(CONCATENATE("CT ", Data_ACS_2022_BG_Calculated!I82,", BG ",Data_ACS_2022_BG_Calculated!J82))) ->  | C85: =Data_ACS_2022_BG_Calculated!AC82 -> 0 | D85: 0 | F85: =Data_ACS_2022_BG_Calculated!AF82 -> 0
B86: =IF(Data_ACS_2022_BG_Calculated!I83="","",(CONCATENATE("CT ", Data_ACS_2022_BG_Calculated!I83,", BG ",Data_ACS_2022_BG_Calculated!J83))) ->  | C86: =Data_ACS_2022_BG_Calculated!AC83 -> 0 | D86: 0 | F86: =Data_ACS_2022_BG_Calculated!AF83 -> 0
B87: =IF(Data_ACS_2022_BG_Calculated!I84="","",(CONCATENATE("CT ", Data_ACS_2022_BG_Calculated!I84,", BG ",Data_ACS_2022_BG_Calculated!J84))) ->  | C87: =Data_ACS_2022_BG_Calculated!AC84 -> 0 | D87: 0 | F87: =Data_ACS_2022_BG_Calculated!AF84 -> 0
B88: =IF(Data_ACS_2022_BG_Calculated!I85="","",(CONCATENATE("CT ", Data_ACS_2022_BG_Calculated!I85,", BG ",Data_ACS_2022_BG_Calculated!J85))) ->  | C88: =Data_ACS_2022_BG_Calculated!AC85 -> 0 | D88: 0 | F88: =Data_ACS_2022_BG_Calculated!AF85 -> 0
B89: =IF(Data_ACS_2022_BG_Calculated!I86="","",(CONCATENATE("CT ", Data_ACS_2022_BG_Calculated!I86,", BG ",Data_ACS_2022_BG_Calculated!J86))) ->  | C89: =Data_ACS_2022_BG_Calculated!AC86 -> 0 | D89: 0 | F89: =Data_ACS_2022_BG_Calculated!AF86 -> 0
B90: =IF(Data_ACS_2022_BG_Calculated!I87="","",(CONCATENATE("CT ", Data_ACS_2022_BG_Calculated!I87,", BG ",Data_ACS_2022_BG_Calculated!J87))) ->  | C90: =Data_ACS_2022_BG_Calculated!AC87 -> 0 | D90: 0 | F90: =Data_ACS_2022_BG_Calculated!AF87 -> 0
B91: =IF(Data_ACS_2022_BG_Calculated!I88="","",(CONCATENATE("CT ", Data_ACS_2022_BG_Calculated!I88,", BG ",Data_ACS_2022_BG_Calculated!J88))) ->  | C91: =Data_ACS_2022_BG_Calculated!AC88 -> 0 | D91: 0 | F91: =Data_ACS_2022_BG_Calculated!AF88 -> 0
B92: =IF(Data_ACS_2022_BG_Calculated!I89="","",(CONCATENATE("CT ", Data_ACS_2022_BG_Calculated!I89,", BG ",Data_ACS_2022_BG_Calculated!J89))) ->  | C92: =Data_ACS_2022_BG_Calculated!AC89 -> 0 | D92: =C92-F92 -> 0 | E92: =IFERROR(D92/C92,"") ->  | F92: =Data_ACS_2022_BG_Calculated!AF89 -> 0 | G92: =IFERROR(F92/C92,"") -> 
B93: =IF(Data_ACS_2022_BG_Calculated!I90="","",(CONCATENATE("CT ", Data_ACS_2022_BG_Calculated!I90,", BG ",Data_ACS_2022_BG_Calculated!J90))) ->  | C93: =Data_ACS_2022_BG_Calculated!AC90 -> 0 | D93: 0 | F93: =Data_ACS_2022_BG_Calculated!AF90 -> 0
B94: =IF(Data_ACS_2022_BG_Calculated!I91="","",(CONCATENATE("CT ", Data_ACS_2022_BG_Calculated!I91,", BG ",Data_ACS_2022_BG_Calculated!J91))) ->  | C94: =Data_ACS_2022_BG_Calculated!AC91 -> 0 | D94: 0 | F94: =Data_ACS_2022_BG_Calculated!AF91 -> 0
B95: =IF(Data_ACS_2022_BG_Calculated!I92="","",(CONCATENATE("CT ", Data_ACS_2022_BG_Calculated!I92,", BG ",Data_ACS_2022_BG_Calculated!J92))) ->  | C95: =Data_ACS_2022_BG_Calculated!AC92 -> 0 | D95: 0 | F95: =Data_ACS_2022_BG_Calculated!AF92 -> 0
B96: =IF(Data_ACS_2022_BG_Calculated!I93="","",(CONCATENATE("CT ", Data_ACS_2022_BG_Calculated!I93,", BG ",Data_ACS_2022_BG_Calculated!J93))) ->  | C96: =Data_ACS_2022_BG_Calculated!AC93 -> 0 | D96: 0 | F96: =Data_ACS_2022_BG_Calculated!AF93 -> 0
B97: =IF(Data_ACS_2022_BG_Calculated!I94="","",(CONCATENATE("CT ", Data_ACS_2022_BG_Calculated!I94,", BG ",Data_ACS_2022_BG_Calculated!J94))) ->  | C97: =Data_ACS_2022_BG_Calculated!AC94 -> 0 | D97: 0 | F97: =Data_ACS_2022_BG_Calculated!AF94 -> 0
B98: =IF(Data_ACS_2022_BG_Calculated!I95="","",(CONCATENATE("CT ", Data_ACS_2022_BG_Calculated!I95,", BG ",Data_ACS_2022_BG_Calculated!J95))) ->  | C98: =Data_ACS_2022_BG_Calculated!AC95 -> 0 | D98: 0 | F98: =Data_ACS_2022_BG_Calculated!AF95 -> 0
B99: =IF(Data_ACS_2022_BG_Calculated!I96="","",(CONCATENATE("CT ", Data_ACS_2022_BG_Calculated!I96,", BG ",Data_ACS_2022_BG_Calculated!J96))) ->  | C99: =Data_ACS_2022_BG_Calculated!AC96 -> 0 | D99: 0 | F99: =Data_ACS_2022_BG_Calculated!AF96 -> 0
B100: =IF(Data_ACS_2022_BG_Calculated!I97="","",(CONCATENATE("CT ", Data_ACS_2022_BG_Calculated!I97,", BG ",Data_ACS_2022_BG_Calculated!J97))) ->  | C100: =Data_ACS_2022_BG_Calculated!AC97 -> 0 | D100: 0 | F100: =Data_ACS_2022_BG_Calculated!AF97 -> 0
B101: =IF(Data_ACS_2022_BG_Calculated!I98="","",(CONCATENATE("CT ", Data_ACS_2022_BG_Calculated!I98,", BG ",Data_ACS_2022_BG_Calculated!J98))) ->  | C101: =Data_ACS_2022_BG_Calculated!AC98 -> 0 | D101: 0 | F101: =Data_ACS_2022_BG_Calculated!AF98 -> 0
B102: =IF(Data_ACS_2022_BG_Calculated!I99="","",(CONCATENATE("CT ", Data_ACS_2022_BG_Calculated!I99,", BG ",Data_ACS_2022_BG_Calculated!J99))) ->  | C102: =Data_ACS_2022_BG_Calculated!AC99 -> 0 | D102: 0 | F102: =Data_ACS_2022_BG_Calculated!AF99 -> 0
B103: =IF(Data_ACS_2022_BG_Calculated!I100="","",(CONCATENATE("CT ", Data_ACS_2022_BG_Calculated!I100,", BG ",Data_ACS_2022_BG_Calculated!J100))) ->  | C103: =Data_ACS_2022_BG_Calculated!AC100 -> 0 | D103: 0 | F103: =Data_ACS_2022_BG_Calculated!AF100 -> 0
B104: =IF(Data_ACS_2022_BG_Calculated!I101="","",(CONCATENATE("CT ", Data_ACS_2022_BG_Calculated!I101,", BG ",Data_ACS_2022_BG_Calculated!J101))) ->  | C104: =Data_ACS_2022_BG_Calculated!AC101 -> 0 | D104: 0 | F104: =Data_ACS_2022_BG_Calculated!AF101 -> 0
B105: =IF(Data_ACS_2022_BG_Calculated!I102="","",(CONCATENATE("CT ", Data_ACS_2022_BG_Calculated!I102,", BG ",Data_ACS_2022_BG_Calculated!J102))) ->  | C105: =Data_ACS_2022_BG_Calculated!AC102 -> 0 | D105: 0 | F105: =Data_ACS_2022_BG_Calculated!AF102 -> 0
B106: =IF(Data_ACS_2022_BG_Calculated!I103="","",(CONCATENATE("CT ", Data_ACS_2022_BG_Calculated!I103,", BG ",Data_ACS_2022_BG_Calculated!J103))) ->  | C106: =Data_ACS_2022_BG_Calculated!AC103 -> 0 | D106: 0 | F106: =Data_ACS_2022_BG_Calculated!AF103 -> 0
B107: =IF(Data_ACS_2022_BG_Calculated!I104="","",(CONCATENATE("CT ", Data_ACS_2022_BG_Calculated!I104,", BG ",Data_ACS_2022_BG_Calculated!J104))) ->  | C107: =Data_ACS_2022_BG_Calculated!AC104 -> 0 | D107: 0 | F107: =Data_ACS_2022_BG_Calculated!AF104 -> 0
B108: =IF(Data_ACS_2022_BG_Calculated!I105="","",(CONCATENATE("CT ", Data_ACS_2022_BG_Calculated!I105,", BG ",Data_ACS_2022_BG_Calculated!J105))) ->  | C108: =Data_ACS_2022_BG_Calculated!AC105 -> 0 | D108: 0 | F108: =Data_ACS_2022_BG_Calculated!AF105 -> 0
B109: =IF(Data_ACS_2022_BG_Calculated!I106="","",(CONCATENATE("CT ", Data_ACS_2022_BG_Calculated!I106,", BG ",Data_ACS_2022_BG_Calculated!J106))) ->  | C109: =Data_ACS_2022_BG_Calculated!AC106 -> 0 | D109: 0 | F109: =Data_ACS_2022_BG_Calculated!AF106 -> 0
B110: =IF(Data_ACS_2022_BG_Calculated!I107="","",(CONCATENATE("CT ", Data_ACS_2022_BG_Calculated!I107,", BG ",Data_ACS_2022_BG_Calculated!J107))) ->  | C110: =Data_ACS_2022_BG_Calculated!AC107 -> 0 | D110: 0 | F110: =Data_ACS_2022_BG_Calculated!AF107 -> 0
B111: =IF(Data_ACS_2022_BG_Calculated!I108="","",(CONCATENATE("CT ", Data_ACS_2022_BG_Calculated!I108,", BG ",Data_ACS_2022_BG_Calculated!J108))) ->  | C111: =Data_ACS_2022_BG_Calculated!AC108 -> 0 | D111: 0 | F111: =Data_ACS_2022_BG_Calculated!AF108 -> 0
B112: =IF(Data_ACS_2022_BG_Calculated!I109="","",(CONCATENATE("CT ", Data_ACS_2022_BG_Calculated!I109,", BG ",Data_ACS_2022_BG_Calculated!J109))) ->  | C112: =Data_ACS_2022_BG_Calculated!AC109 -> 0 | D112: 0 | F112: =Data_ACS_2022_BG_Calculated!AF109 -> 0
B113: =IF(Data_ACS_2022_BG_Calculated!I110="","",(CONCATENATE("CT ", Data_ACS_2022_BG_Calculated!I110,", BG ",Data_ACS_2022_BG_Calculated!J110))) ->  | C113: =Data_ACS_2022_BG_Calculated!AC110 -> 0 | D113: 0 | F113: =Data_ACS_2022_BG_Calculated!AF110 -> 0
B114: =IF(Data_ACS_2022_BG_Calculated!I111="","",(CONCATENATE("CT ", Data_ACS_2022_BG_Calculated!I111,", BG ",Data_ACS_2022_BG_Calculated!J111))) ->  | C114: =Data_ACS_2022_BG_Calculated!AC111 -> 0 | D114: 0 | F114: =Data_ACS_2022_BG_Calculated!AF111 -> 0
B115: =IF(Data_ACS_2022_BG_Calculated!I112="","",(CONCATENATE("CT ", Data_ACS_2022_BG_Calculated!I112,", BG ",Data_ACS_2022_BG_Calculated!J112))) ->  | C115: =Data_ACS_2022_BG_Calculated!AC112 -> 0 | D115: 0 | F115: =Data_ACS_2022_BG_Calculated!AF112 -> 0
B116: =IF(Data_ACS_2022_BG_Calculated!I113="","",(CONCATENATE("CT ", Data_ACS_2022_BG_Calculated!I113,", BG ",Data_ACS_2022_BG_Calculated!J113))) ->  | C116: =Data_ACS_2022_BG_Calculated!AC113 -> 0 | D116: 0 | F116: =Data_ACS_2022_BG_Calculated!AF113 -> 0
B117: =IF(Data_ACS_2022_BG_Calculated!I114="","",(CONCATENATE("CT ", Data_ACS_2022_BG_Calculated!I114,", BG ",Data_ACS_2022_BG_Calculated!J114))) ->  | C117: =Data_ACS_2022_BG_Calculated!AC114 -> 0 | D117: 0 | F117: =Data_ACS_2022_BG_Calculated!AF114 -> 0
B118: =IF(Data_ACS_2022_BG_Calculated!I115="","",(CONCATENATE("CT ", Data_ACS_2022_BG_Calculated!I115,", BG ",Data_ACS_2022_BG_Calculated!J115))) ->  | C118: =Data_ACS_2022_BG_Calculated!AC115 -> 0 | D118: 0 | F118: =Data_ACS_2022_BG_Calculated!AF115 -> 0
B119: =IF(Data_ACS_2022_BG_Calculated!I116="","",(CONCATENATE("CT ", Data_ACS_2022_BG_Calculated!I116,", BG ",Data_ACS_2022_BG_Calculated!J116))) ->  | C119: =Data_ACS_2022_BG_Calculated!AC116 -> 0 | D119: 0 | F119: =Data_ACS_2022_BG_Calculated!AF116 -> 0
B120: =IF(Data_ACS_2022_BG_Calculated!I117="","",(CONCATENATE("CT ", Data_ACS_2022_BG_Calculated!I117,", BG ",Data_ACS_2022_BG_Calculated!J117))) ->  | C120: =Data_ACS_2022_BG_Calculated!AC117 -> 0 | D120: 0 | F120: =Data_ACS_2022_BG_Calculated!AF117 -> 0
B121: =IF(Data_ACS_2022_BG_Calculated!I118="","",(CONCATENATE("CT ", Data_ACS_2022_BG_Calculated!I118,", BG ",Data_ACS_2022_BG_Calculated!J118))) ->  | C121: =Data_ACS_2022_BG_Calculated!AC118 -> 0 | D121: 0 | F121: =Data_ACS_2022_BG_Calculated!AF118 -> 0
B122: =IF(Data_ACS_2022_BG_Calculated!I119="","",(CONCATENATE("CT ", Data_ACS_2022_BG_Calculated!I119,", BG ",Data_ACS_2022_BG_Calculated!J119))) ->  | C122: =Data_ACS_2022_BG_Calculated!AC119 -> 0 | D122: 0 | F122: =Data_ACS_2022_BG_Calculated!AF119 -> 0
B123: =IF(Data_ACS_2022_BG_Calculated!I120="","",(CONCATENATE("CT ", Data_ACS_2022_BG_Calculated!I120,", BG ",Data_ACS_2022_BG_Calculated!J120))) ->  | C123: =Data_ACS_2022_BG_Calculated!AC120 -> 0 | D123: 0 | F123: =Data_ACS_2022_BG_Calculated!AF120 -> 0
B124: =IF(Data_ACS_2022_BG_Calculated!I121="","",(CONCATENATE("CT ", Data_ACS_2022_BG_Calculated!I121,", BG ",Data_ACS_2022_BG_Calculated!J121))) ->  | C124: =Data_ACS_2022_BG_Calculated!AC121 -> 0 | D124: 0 | F124: =Data_ACS_2022_BG_Calculated!AF121 -> 0
B125: =IF(Data_ACS_2022_BG_Calculated!I122="","",(CONCATENATE("CT ", Data_ACS_2022_BG_Calculated!I122,", BG ",Data_ACS_2022_BG_Calculated!J122))) ->  | C125: =Data_ACS_2022_BG_Calculated!AC122 -> 0 | D125: 0 | F125: =Data_ACS_2022_BG_Calculated!AF122 -> 0
B126: =IF(Data_ACS_2022_BG_Calculated!I123="","",(CONCATENATE("CT ", Data_ACS_2022_BG_Calculated!I123,", BG ",Data_ACS_2022_BG_Calculated!J123))) ->  | C126: =Data_ACS_2022_BG_Calculated!AC123 -> 0 | D126: 0 | F126: =Data_ACS_2022_BG_Calculated!AF123 -> 0
B127: =IF(Data_ACS_2022_BG_Calculated!I124="","",(CONCATENATE("CT ", Data_ACS_2022_BG_Calculated!I124,", BG ",Data_ACS_2022_BG_Calculated!J124))) ->  | C127: =Data_ACS_2022_BG_Calculated!AC124 -> 0 | D127: 0 | F127: =Data_ACS_2022_BG_Calculated!AF124 -> 0
B128: =IF(Data_ACS_2022_BG_Calculated!I125="","",(CONCATENATE("CT ", Data_ACS_2022_BG_Calculated!I125,", BG ",Data_ACS_2022_BG_Calculated!J125))) ->  | C128: =Data_ACS_2022_BG_Calculated!AC125 -> 0 | D128: 0 | F128: =Data_ACS_2022_BG_Calculated!AF125 -> 0
B129: =IF(Data_ACS_2022_BG_Calculated!I126="","",(CONCATENATE("CT ", Data_ACS_2022_BG_Calculated!I126,", BG ",Data_ACS_2022_BG_Calculated!J126))) ->  | C129: =Data_ACS_2022_BG_Calculated!AC126 -> 0 | D129: 0 | F129: =Data_ACS_2022_BG_Calculated!AF126 -> 0
B130: =IF(Data_ACS_2022_BG_Calculated!I127="","",(CONCATENATE("CT ", Data_ACS_2022_BG_Calculated!I127,", BG ",Data_ACS_2022_BG_Calculated!J127))) ->  | C130: =Data_ACS_2022_BG_Calculated!AC127 -> 0 | D130: 0 | F130: =Data_ACS_2022_BG_Calculated!AF127 -> 0
B131: =IF(Data_ACS_2022_BG_Calculated!I128="","",(CONCATENATE("CT ", Data_ACS_2022_BG_Calculated!I128,", BG ",Data_ACS_2022_BG_Calculated!J128))) ->  | C131: =Data_ACS_2022_BG_Calculated!AC128 -> 0 | D131: 0 | F131: =Data_ACS_2022_BG_Calculated!AF128 -> 0
B132: =IF(Data_ACS_2022_BG_Calculated!I129="","",(CONCATENATE("CT ", Data_ACS_2022_BG_Calculated!I129,", BG ",Data_ACS_2022_BG_Calculated!J129))) ->  | C132: =Data_ACS_2022_BG_Calculated!AC129 -> 0 | D132: 0 | F132: =Data_ACS_2022_BG_Calculated!AF129 -> 0
B133: =IF(Data_ACS_2022_BG_Calculated!I130="","",(CONCATENATE("CT ", Data_ACS_2022_BG_Calculated!I130,", BG ",Data_ACS_2022_BG_Calculated!J130))) ->  | C133: =Data_ACS_2022_BG_Calculated!AC130 -> 0 | D133: 0 | F133: =Data_ACS_2022_BG_Calculated!AF130 -> 0
B134: =IF(Data_ACS_2022_BG_Calculated!I131="","",(CONCATENATE("CT ", Data_ACS_2022_BG_Calculated!I131,", BG ",Data_ACS_2022_BG_Calculated!J131))) ->  | C134: =Data_ACS_2022_BG_Calculated!AC131 -> 0 | D134: 0 | F134: =Data_ACS_2022_BG_Calculated!AF131 -> 0
B135: =IF(Data_ACS_2022_BG_Calculated!I132="","",(CONCATENATE("CT ", Data_ACS_2022_BG_Calculated!I132,", BG ",Data_ACS_2022_BG_Calculated!J132))) ->  | C135: =Data_ACS_2022_BG_Calculated!AC132 -> 0 | D135: 0 | F135: =Data_ACS_2022_BG_Calculated!AF132 -> 0
B136: =IF(Data_ACS_2022_BG_Calculated!I133="","",(CONCATENATE("CT ", Data_ACS_2022_BG_Calculated!I133,", BG ",Data_ACS_2022_BG_Calculated!J133))) ->  | C136: =Data_ACS_2022_BG_Calculated!AC133 -> 0 | D136: 0 | F136: =Data_ACS_2022_BG_Calculated!AF133 -> 0
B137: =IF(Data_ACS_2022_BG_Calculated!I134="","",(CONCATENATE("CT ", Data_ACS_2022_BG_Calculated!I134,", BG ",Data_ACS_2022_BG_Calculated!J134))) ->  | C137: =Data_ACS_2022_BG_Calculated!AC134 -> 0 | D137: 0 | F137: =Data_ACS_2022_BG_Calculated!AF134 -> 0
B138: =IF(Data_ACS_2022_BG_Calculated!I135="","",(CONCATENATE("CT ", Data_ACS_2022_BG_Calculated!I135,", BG ",Data_ACS_2022_BG_Calculated!J135))) ->  | C138: =Data_ACS_2022_BG_Calculated!AC135 -> 0 | D138: 0 | F138: =Data_ACS_2022_BG_Calculated!AF135 -> 0
B139: =IF(Data_ACS_2022_BG_Calculated!I136="","",(CONCATENATE("CT ", Data_ACS_2022_BG_Calculated!I136,", BG ",Data_ACS_2022_BG_Calculated!J136))) ->  | C139: =Data_ACS_2022_BG_Calculated!AC136 -> 0 | D139: 0 | F139: =Data_ACS_2022_BG_Calculated!AF136 -> 0
B140: =IF(Data_ACS_2022_BG_Calculated!I137="","",(CONCATENATE("CT ", Data_ACS_2022_BG_Calculated!I137,", BG ",Data_ACS_2022_BG_Calculated!J137))) ->  | C140: =Data_ACS_2022_BG_Calculated!AC137 -> 0 | D140: 0 | F140: =Data_ACS_2022_BG_Calculated!AF137 -> 0
B141: =IF(Data_ACS_2022_BG_Calculated!I138="","",(CONCATENATE("CT ", Data_ACS_2022_BG_Calculated!I138,", BG ",Data_ACS_2022_BG_Calculated!J138))) ->  | C141: =Data_ACS_2022_BG_Calculated!AC138 -> 0 | D141: 0 | F141: =Data_ACS_2022_BG_Calculated!AF138 -> 0
B142: =IF(Data_ACS_2022_BG_Calculated!I139="","",(CONCATENATE("CT ", Data_ACS_2022_BG_Calculated!I139,", BG ",Data_ACS_2022_BG_Calculated!J139))) ->  | C142: =Data_ACS_2022_BG_Calculated!AC139 -> 0 | D142: 0 | F142: =Data_ACS_2022_BG_Calculated!AF139 -> 0
B143: =IF(Data_ACS_2022_BG_Calculated!I140="","",(CONCATENATE("CT ", Data_ACS_2022_BG_Calculated!I140,", BG ",Data_ACS_2022_BG_Calculated!J140))) ->  | C143: =Data_ACS_2022_BG_Calculated!AC140 -> 0 | D143: 0 | F143: =Data_ACS_2022_BG_Calculated!AF140 -> 0
B144: =IF(Data_ACS_2022_BG_Calculated!I141="","",(CONCATENATE("CT ", Data_ACS_2022_BG_Calculated!I141,", BG ",Data_ACS_2022_BG_Calculated!J141))) ->  | C144: =Data_ACS_2022_BG_Calculated!AC141 -> 0 | D144: 0 | F144: =Data_ACS_2022_BG_Calculated!AF141 -> 0
B145: =IF(Data_ACS_2022_BG_Calculated!I142="","",(CONCATENATE("CT ", Data_ACS_2022_BG_Calculated!I142,", BG ",Data_ACS_2022_BG_Calculated!J142))) ->  | C145: =Data_ACS_2022_BG_Calculated!AC142 -> 0 | D145: 0 | F145: =Data_ACS_2022_BG_Calculated!AF142 -> 0
B146: =IF(Data_ACS_2022_BG_Calculated!I143="","",(CONCATENATE("CT ", Data_ACS_2022_BG_Calculated!I143,", BG ",Data_ACS_2022_BG_Calculated!J143))) ->  | C146: =Data_ACS_2022_BG_Calculated!AC143 -> 0 | D146: 0 | F146: =Data_ACS_2022_BG_Calculated!AF143 -> 0
B147: =IF(Data_ACS_2022_BG_Calculated!I144="","",(CONCATENATE("CT ", Data_ACS_2022_BG_Calculated!I144,", BG ",Data_ACS_2022_BG_Calculated!J144))) ->  | C147: =Data_ACS_2022_BG_Calculated!AC144 -> 0 | D147: 0 | F147: =Data_ACS_2022_BG_Calculated!AF144 -> 0
B148: =IF(Data_ACS_2022_BG_Calculated!I145="","",(CONCATENATE("CT ", Data_ACS_2022_BG_Calculated!I145,", BG ",Data_ACS_2022_BG_Calculated!J145))) ->  | C148: =Data_ACS_2022_BG_Calculated!AC145 -> 0 | D148: 0 | F148: =Data_ACS_2022_BG_Calculated!AF145 -> 0
B149: =IF(Data_ACS_2022_BG_Calculated!I146="","",(CONCATENATE("CT ", Data_ACS_2022_BG_Calculated!I146,", BG ",Data_ACS_2022_BG_Calculated!J146))) ->  | C149: =Data_ACS_2022_BG_Calculated!AC146 -> 0 | D149: 0 | F149: =Data_ACS_2022_BG_Calculated!AF146 -> 0
B150: =IF(Data_ACS_2022_BG_Calculated!I147="","",(CONCATENATE("CT ", Data_ACS_2022_BG_Calculated!I147,", BG ",Data_ACS_2022_BG_Calculated!J147))) ->  | C150: =Data_ACS_2022_BG_Calculated!AC147 -> 0 | D150: 0 | F150: =Data_ACS_2022_BG_Calculated!AF147 -> 0
B151: =IF(Data_ACS_2022_BG_Calculated!I148="","",(CONCATENATE("CT ", Data_ACS_2022_BG_Calculated!I148,", BG ",Data_ACS_2022_BG_Calculated!J148))) ->  | C151: =Data_ACS_2022_BG_Calculated!AC148 -> 0 | D151: 0 | F151: =Data_ACS_2022_BG_Calculated!AF148 -> 0
B152: =IF(Data_ACS_2022_BG_Calculated!I149="","",(CONCATENATE("CT ", Data_ACS_2022_BG_Calculated!I149,", BG ",Data_ACS_2022_BG_Calculated!J149))) ->  | C152: =Data_ACS_2022_BG_Calculated!AC149 -> 0 | D152: 0 | F152: =Data_ACS_2022_BG_Calculated!AF149 -> 0
B153: =IF(Data_ACS_2022_BG_Calculated!I150="","",(CONCATENATE("CT ", Data_ACS_2022_BG_Calculated!I150,", BG ",Data_ACS_2022_BG_Calculated!J150))) ->  | C153: =Data_ACS_2022_BG_Calculated!AC150 -> 0 | D153: 0 | F153: =Data_ACS_2022_BG_Calculated!AF150 -> 0
B154: =IF(Data_ACS_2022_BG_Calculated!I151="","",(CONCATENATE("CT ", Data_ACS_2022_BG_Calculated!I151,", BG ",Data_ACS_2022_BG_Calculated!J151))) ->  | C154: =Data_ACS_2022_BG_Calculated!AC151 -> 0 | D154: 0 | F154: =Data_ACS_2022_BG_Calculated!AF151 -> 0
B155: =IF(Data_ACS_2022_BG_Calculated!I152="","",(CONCATENATE("CT ", Data_ACS_2022_BG_Calculated!I152,", BG ",Data_ACS_2022_BG_Calculated!J152))) ->  | C155: =Data_ACS_2022_BG_Calculated!AC152 -> 0 | D155: 0 | F155: =Data_ACS_2022_BG_Calculated!AF152 -> 0
B156: =IF(Data_ACS_2022_BG_Calculated!I153="","",(CONCATENATE("CT ", Data_ACS_2022_BG_Calculated!I153,", BG ",Data_ACS_2022_BG_Calculated!J153))) ->  | C156: =Data_ACS_2022_BG_Calculated!AC153 -> 0 | D156: =C156-F156 -> 0 | E156: =IFERROR(D156/C156,"") ->  | F156: =Data_ACS_2022_BG_Calculated!AF153 -> 0 | G156: =IFERROR(F156/C156,"") -> 
B157: =IF(Data_ACS_2022_BG_Calculated!I154="","",(CONCATENATE("CT ", Data_ACS_2022_BG_Calculated!I154,", BG ",Data_ACS_2022_BG_Calculated!J154))) ->  | C157: =Data_ACS_2022_BG_Calculated!AC154 -> 0 | D157: 0 | F157: =Data_ACS_2022_BG_Calculated!AF154 -> 0
B158: =IF(Data_ACS_2022_BG_Calculated!I155="","",(CONCATENATE("CT ", Data_ACS_2022_BG_Calculated!I155,", BG ",Data_ACS_2022_BG_Calculated!J155))) ->  | C158: =Data_ACS_2022_BG_Calculated!AC155 -> 0 | D158: 0 | F158: =Data_ACS_2022_BG_Calculated!AF155 -> 0
B159: =IF(Data_ACS_2022_BG_Calculated!I156="","",(CONCATENATE("CT ", Data_ACS_2022_BG_Calculated!I156,", BG ",Data_ACS_2022_BG_Calculated!J156))) ->  | C159: =Data_ACS_2022_BG_Calculated!AC156 -> 0 | D159: 0 | F159: =Data_ACS_2022_BG_Calculated!AF156 -> 0
B160: =IF(Data_ACS_2022_BG_Calculated!I157="","",(CONCATENATE("CT ", Data_ACS_2022_BG_Calculated!I157,", BG ",Data_ACS_2022_BG_Calculated!J157))) ->  | C160: =Data_ACS_2022_BG_Calculated!AC157 -> 0 | D160: 0 | F160: =Data_ACS_2022_BG_Calculated!AF157 -> 0
B161: =IF(Data_ACS_2022_BG_Calculated!I158="","",(CONCATENATE("CT ", Data_ACS_2022_BG_Calculated!I158,", BG ",Data_ACS_2022_BG_Calculated!J158))) ->  | C161: =Data_ACS_2022_BG_Calculated!AC158 -> 0 | D161: 0 | F161: =Data_ACS_2022_BG_Calculated!AF158 -> 0
B162: =IF(Data_ACS_2022_BG_Calculated!I159="","",(CONCATENATE("CT ", Data_ACS_2022_BG_Calculated!I159,", BG ",Data_ACS_2022_BG_Calculated!J159))) ->  | C162: =Data_ACS_2022_BG_Calculated!AC159 -> 0 | D162: 0 | F162: =Data_ACS_2022_BG_Calculated!AF159 -> 0
B163: =IF(Data_ACS_2022_BG_Calculated!I160="","",(CONCATENATE("CT ", Data_ACS_2022_BG_Calculated!I160,", BG ",Data_ACS_2022_BG_Calculated!J160))) ->  | C163: =Data_ACS_2022_BG_Calculated!AC160 -> 0 | D163: 0 | F163: =Data_ACS_2022_BG_Calculated!AF160 -> 0
B164: =IF(Data_ACS_2022_BG_Calculated!I161="","",(CONCATENATE("CT ", Data_ACS_2022_BG_Calculated!I161,", BG ",Data_ACS_2022_BG_Calculated!J161))) ->  | C164: =Data_ACS_2022_BG_Calculated!AC161 -> 0 | D164: 0 | F164: =Data_ACS_2022_BG_Calculated!AF161 -> 0
B165: =IF(Data_ACS_2022_BG_Calculated!I162="","",(CONCATENATE("CT ", Data_ACS_2022_BG_Calculated!I162,", BG ",Data_ACS_2022_BG_Calculated!J162))) ->  | C165: =Data_ACS_2022_BG_Calculated!AC162 -> 0 | D165: 0 | F165: =Data_ACS_2022_BG_Calculated!AF162 -> 0
B166: =IF(Data_ACS_2022_BG_Calculated!I163="","",(CONCATENATE("CT ", Data_ACS_2022_BG_Calculated!I163,", BG ",Data_ACS_2022_BG_Calculated!J163))) ->  | C166: =Data_ACS_2022_BG_Calculated!AC163 -> 0 | D166: 0 | F166: =Data_ACS_2022_BG_Calculated!AF163 -> 0
B167: =IF(Data_ACS_2022_BG_Calculated!I164="","",(CONCATENATE("CT ", Data_ACS_2022_BG_Calculated!I164,", BG ",Data_ACS_2022_BG_Calculated!J164))) ->  | C167: =Data_ACS_2022_BG_Calculated!AC164 -> 0 | D167: 0 | F167: =Data_ACS_2022_BG_Calculated!AF164 -> 0
B168: =IF(Data_ACS_2022_BG_Calculated!I165="","",(CONCATENATE("CT ", Data_ACS_2022_BG_Calculated!I165,", BG ",Data_ACS_2022_BG_Calculated!J165))) ->  | C168: =Data_ACS_2022_BG_Calculated!AC165 -> 0 | D168: 0 | F168: =Data_ACS_2022_BG_Calculated!AF165 -> 0
B169: =IF(Data_ACS_2022_BG_Calculated!I166="","",(CONCATENATE("CT ", Data_ACS_2022_BG_Calculated!I166,", BG ",Data_ACS_2022_BG_Calculated!J166))) ->  | C169: =Data_ACS_2022_BG_Calculated!AC166 -> 0 | D169: 0 | F169: =Data_ACS_2022_BG_Calculated!AF166 -> 0
B170: =IF(Data_ACS_2022_BG_Calculated!I167="","",(CONCATENATE("CT ", Data_ACS_2022_BG_Calculated!I167,", BG ",Data_ACS_2022_BG_Calculated!J167))) ->  | C170: =Data_ACS_2022_BG_Calculated!AC167 -> 0 | D170: 0 | F170: =Data_ACS_2022_BG_Calculated!AF167 -> 0
B171: =IF(Data_ACS_2022_BG_Calculated!I168="","",(CONCATENATE("CT ", Data_ACS_2022_BG_Calculated!I168,", BG ",Data_ACS_2022_BG_Calculated!J168))) ->  | C171: =Data_ACS_2022_BG_Calculated!AC168 -> 0 | D171: 0 | F171: =Data_ACS_2022_BG_Calculated!AF168 -> 0
B172: =IF(Data_ACS_2022_BG_Calculated!I169="","",(CONCATENATE("CT ", Data_ACS_2022_BG_Calculated!I169,", BG ",Data_ACS_2022_BG_Calculated!J169))) ->  | C172: =Data_ACS_2022_BG_Calculated!AC169 -> 0 | D172: 0 | F172: =Data_ACS_2022_BG_Calculated!AF169 -> 0
B173: =IF(Data_ACS_2022_BG_Calculated!I170="","",(CONCATENATE("CT ", Data_ACS_2022_BG_Calculated!I170,", BG ",Data_ACS_2022_BG_Calculated!J170))) ->  | C173: =Data_ACS_2022_BG_Calculated!AC170 -> 0 | D173: 0 | F173: =Data_ACS_2022_BG_Calculated!AF170 -> 0
B174: =IF(Data_ACS_2022_BG_Calculated!I171="","",(CONCATENATE("CT ", Data_ACS_2022_BG_Calculated!I171,", BG ",Data_ACS_2022_BG_Calculated!J171))) ->  | C174: =Data_ACS_2022_BG_Calculated!AC171 -> 0 | D174: 0 | F174: =Data_ACS_2022_BG_Calculated!AF171 -> 0
B175: =IF(Data_ACS_2022_BG_Calculated!I172="","",(CONCATENATE("CT ", Data_ACS_2022_BG_Calculated!I172,", BG ",Data_ACS_2022_BG_Calculated!J172))) ->  | C175: =Data_ACS_2022_BG_Calculated!AC172 -> 0 | D175: 0 | F175: =Data_ACS_2022_BG_Calculated!AF172 -> 0
B176: =IF(Data_ACS_2022_BG_Calculated!I173="","",(CONCATENATE("CT ", Data_ACS_2022_BG_Calculated!I173,", BG ",Data_ACS_2022_BG_Calculated!J173))) ->  | C176: =Data_ACS_2022_BG_Calculated!AC173 -> 0 | D176: 0 | F176: =Data_ACS_2022_BG_Calculated!AF173 -> 0
B177: =IF(Data_ACS_2022_BG_Calculated!I174="","",(CONCATENATE("CT ", Data_ACS_2022_BG_Calculated!I174,", BG ",Data_ACS_2022_BG_Calculated!J174))) ->  | C177: =Data_ACS_2022_BG_Calculated!AC174 -> 0 | D177: 0 | F177: =Data_ACS_2022_BG_Calculated!AF174 -> 0
B178: =IF(Data_ACS_2022_BG_Calculated!I175="","",(CONCATENATE("CT ", Data_ACS_2022_BG_Calculated!I175,", BG ",Data_ACS_2022_BG_Calculated!J175))) ->  | C178: =Data_ACS_2022_BG_Calculated!AC175 -> 0 | D178: 0 | F178: =Data_ACS_2022_BG_Calculated!AF175 -> 0
B179: =IF(Data_ACS_2022_BG_Calculated!I176="","",(CONCATENATE("CT ", Data_ACS_2022_BG_Calculated!I176,", BG ",Data_ACS_2022_BG_Calculated!J176))) ->  | C179: =Data_ACS_2022_BG_Calculated!AC176 -> 0 | D179: 0 | F179: =Data_ACS_2022_BG_Calculated!AF176 -> 0
B180: =IF(Data_ACS_2022_BG_Calculated!I177="","",(CONCATENATE("CT ", Data_ACS_2022_BG_Calculated!I177,", BG ",Data_ACS_2022_BG_Calculated!J177))) ->  | C180: =Data_ACS_2022_BG_Calculated!AC177 -> 0 | D180: 0 | F180: =Data_ACS_2022_BG_Calculated!AF177 -> 0
B181: =IF(Data_ACS_2022_BG_Calculated!I178="","",(CONCATENATE("CT ", Data_ACS_2022_BG_Calculated!I178,", BG ",Data_ACS_2022_BG_Calculated!J178))) ->  | C181: =Data_ACS_2022_BG_Calculated!AC178 -> 0 | D181: 0 | F181: =Data_ACS_2022_BG_Calculated!AF178 -> 0
B182: =IF(Data_ACS_2022_BG_Calculated!I179="","",(CONCATENATE("CT ", Data_ACS_2022_BG_Calculated!I179,", BG ",Data_ACS_2022_BG_Calculated!J179))) ->  | C182: =Data_ACS_2022_BG_Calculated!AC179 -> 0 | D182: 0 | F182: =Data_ACS_2022_BG_Calculated!AF179 -> 0
B183: =IF(Data_ACS_2022_BG_Calculated!I180="","",(CONCATENATE("CT ", Data_ACS_2022_BG_Calculated!I180,", BG ",Data_ACS_2022_BG_Calculated!J180))) ->  | C183: =Data_ACS_2022_BG_Calculated!AC180 -> 0 | D183: 0 | F183: =Data_ACS_2022_BG_Calculated!AF180 -> 0
B184: =IF(Data_ACS_2022_BG_Calculated!I181="","",(CONCATENATE("CT ", Data_ACS_2022_BG_Calculated!I181,", BG ",Data_ACS_2022_BG_Calculated!J181))) ->  | C184: =Data_ACS_2022_BG_Calculated!AC181 -> 0 | D184: 0 | F184: =Data_ACS_2022_BG_Calculated!AF181 -> 0
B185: =IF(Data_ACS_2022_BG_Calculated!I182="","",(CONCATENATE("CT ", Data_ACS_2022_BG_Calculated!I182,", BG ",Data_ACS_2022_BG_Calculated!J182))) ->  | C185: =Data_ACS_2022_BG_Calculated!AC182 -> 0 | D185: 0 | F185: =Data_ACS_2022_BG_Calculated!AF182 -> 0
B186: =IF(Data_ACS_2022_BG_Calculated!I183="","",(CONCATENATE("CT ", Data_ACS_2022_BG_Calculated!I183,", BG ",Data_ACS_2022_BG_Calculated!J183))) ->  | C186: =Data_ACS_2022_BG_Calculated!AC183 -> 0 | D186: 0 | F186: =Data_ACS_2022_BG_Calculated!AF183 -> 0
B187: =IF(Data_ACS_2022_BG_Calculated!I184="","",(CONCATENATE("CT ", Data_ACS_2022_BG_Calculated!I184,", BG ",Data_ACS_2022_BG_Calculated!J184))) ->  | C187: =Data_ACS_2022_BG_Calculated!AC184 -> 0 | D187: 0 | F187: =Data_ACS_2022_BG_Calculated!AF184 -> 0
B188: =IF(Data_ACS_2022_BG_Calculated!I185="","",(CONCATENATE("CT ", Data_ACS_2022_BG_Calculated!I185,", BG ",Data_ACS_2022_BG_Calculated!J185))) ->  | C188: =Data_ACS_2022_BG_Calculated!AC185 -> 0 | D188: 0 | F188: =Data_ACS_2022_BG_Calculated!AF185 -> 0
B189: =IF(Data_ACS_2022_BG_Calculated!I186="","",(CONCATENATE("CT ", Data_ACS_2022_BG_Calculated!I186,", BG ",Data_ACS_2022_BG_Calculated!J186))) ->  | C189: =Data_ACS_2022_BG_Calculated!AC186 -> 0 | D189: 0 | F189: =Data_ACS_2022_BG_Calculated!AF186 -> 0
B190: =IF(Data_ACS_2022_BG_Calculated!I187="","",(CONCATENATE("CT ", Data_ACS_2022_BG_Calculated!I187,", BG ",Data_ACS_2022_BG_Calculated!J187))) ->  | C190: =Data_ACS_2022_BG_Calculated!AC187 -> 0 | D190: 0 | F190: =Data_ACS_2022_BG_Calculated!AF187 -> 0
B191: =IF(Data_ACS_2022_BG_Calculated!I188="","",(CONCATENATE("CT ", Data_ACS_2022_BG_Calculated!I188,", BG ",Data_ACS_2022_BG_Calculated!J188))) ->  | C191: =Data_ACS_2022_BG_Calculated!AC188 -> 0 | D191: 0 | F191: =Data_ACS_2022_BG_Calculated!AF188 -> 0
B192: =IF(Data_ACS_2022_BG_Calculated!I189="","",(CONCATENATE("CT ", Data_ACS_2022_BG_Calculated!I189,", BG ",Data_ACS_2022_BG_Calculated!J189))) ->  | C192: =Data_ACS_2022_BG_Calculated!AC189 -> 0 | D192: 0 | F192: =Data_ACS_2022_BG_Calculated!AF189 -> 0
B193: =IF(Data_ACS_2022_BG_Calculated!I190="","",(CONCATENATE("CT ", Data_ACS_2022_BG_Calculated!I190,", BG ",Data_ACS_2022_BG_Calculated!J190))) ->  | C193: =Data_ACS_2022_BG_Calculated!AC190 -> 0 | D193: 0 | F193: =Data_ACS_2022_BG_Calculated!AF190 -> 0
B194: =IF(Data_ACS_2022_BG_Calculated!I191="","",(CONCATENATE("CT ", Data_ACS_2022_BG_Calculated!I191,", BG ",Data_ACS_2022_BG_Calculated!J191))) ->  | C194: =Data_ACS_2022_BG_Calculated!AC191 -> 0 | D194: 0 | F194: =Data_ACS_2022_BG_Calculated!AF191 -> 0
B195: =IF(Data_ACS_2022_BG_Calculated!I192="","",(CONCATENATE("CT ", Data_ACS_2022_BG_Calculated!I192,", BG ",Data_ACS_2022_BG_Calculated!J192))) ->  | C195: =Data_ACS_2022_BG_Calculated!AC192 -> 0 | D195: 0 | F195: =Data_ACS_2022_BG_Calculated!AF192 -> 0
B196: =IF(Data_ACS_2022_BG_Calculated!I193="","",(CONCATENATE("CT ", Data_ACS_2022_BG_Calculated!I193,", BG ",Data_ACS_2022_BG_Calculated!J193))) ->  | C196: =Data_ACS_2022_BG_Calculated!AC193 -> 0 | D196: 0 | F196: =Data_ACS_2022_BG_Calculated!AF193 -> 0
B197: =IF(Data_ACS_2022_BG_Calculated!I194="","",(CONCATENATE("CT ", Data_ACS_2022_BG_Calculated!I194,", BG ",Data_ACS_2022_BG_Calculated!J194))) ->  | C197: =Data_ACS_2022_BG_Calculated!AC194 -> 0 | D197: 0 | F197: =Data_ACS_2022_BG_Calculated!AF194 -> 0
B198: =IF(Data_ACS_2022_BG_Calculated!I195="","",(CONCATENATE("CT ", Data_ACS_2022_BG_Calculated!I195,", BG ",Data_ACS_2022_BG_Calculated!J195))) ->  | C198: =Data_ACS_2022_BG_Calculated!AC195 -> 0 | D198: 0 | F198: =Data_ACS_2022_BG_Calculated!AF195 -> 0
B199: =IF(Data_ACS_2022_BG_Calculated!I196="","",(CONCATENATE("CT ", Data_ACS_2022_BG_Calculated!I196,", BG ",Data_ACS_2022_BG_Calculated!J196))) ->  | C199: =Data_ACS_2022_BG_Calculated!AC196 -> 0 | D199: 0 | F199: =Data_ACS_2022_BG_Calculated!AF196 -> 0
B200: =IF(Data_ACS_2022_BG_Calculated!I197="","",(CONCATENATE("CT ", Data_ACS_2022_BG_Calculated!I197,", BG ",Data_ACS_2022_BG_Calculated!J197))) ->  | C200: =Data_ACS_2022_BG_Calculated!AC197 -> 0 | D200: 0 | F200: =Data_ACS_2022_BG_Calculated!AF197 -> 0
B201: =IF(Data_ACS_2022_BG_Calculated!I198="","",(CONCATENATE("CT ", Data_ACS_2022_BG_Calculated!I198,", BG ",Data_ACS_2022_BG_Calculated!J198))) ->  | C201: =Data_ACS_2022_BG_Calculated!AC198 -> 0 | D201: 0 | F201: =Data_ACS_2022_BG_Calculated!AF198 -> 0
... 112 more rows

Sheet Minority
B1: Minority Population
B2: The ACS Census data should be used to calculate the minority populations. The tables are linked to the Data tabs and will automatically populate once the Data tabs are completed. Once complete, you can copy the table and source directly into your report.
B4: Geography | C4: Total Population | D4: White, Non-Hispanic | F4: Minority Population* | H4: Meets Thresholds
D5: # | E5: % | F5: # | G5: % | H5: 0.5 | I5: 10% over County
B6: =IF(Data_ACS_2022_BG_Calculated!I3="","",(CONCATENATE("CT ", Data_ACS_2022_BG_Calculated!I3,", BG ",Data_ACS_2022_BG_Calculated!J3))) -> CT 108, BG 1 | C6: =Data_ACS_2022_BG_Calculated!AC3 -> 959 | D6: =Data_ACS_2022_BG_Calculated!AH3 -> 850 | E6: =IFERROR(D6/C6,"") -> 0.8863399374 | F6: =C6-D6 -> 109 | G6: =IFERROR(F6/C6,"") -> 0.1136600626 | H6: =IFERROR(IF(SUM(C6,D6,F6)=0,"N/A",IF(IF(G6>=50%,TRUE, FALSE),"Yes","No")),"N/A") -> No | I6: =IFERROR(IF(C6=0,"N/A",IF(IF(G6>=(VLOOKUP(Data_ACS_2022_BG_Calculated!G3,Data_ACS_2022_CO_Calculated!G:BD,29,FALSE))/100+10%,TRUE, FALSE),"Yes","No")),"N/A") -> No
B7: =IF(Data_ACS_2022_BG_Calculated!I4="","",(CONCATENATE("CT ", Data_ACS_2022_BG_Calculated!I4,", BG ",Data_ACS_2022_BG_Calculated!J4))) -> CT 108, BG 2 | C7: =Data_ACS_2022_BG_Calculated!AC4 -> 277 | D7: =Data_ACS_2022_BG_Calculated!AH4 -> 201 | E7: =IFERROR(D7/C7,"") -> 0.725631769 | F7: =C7-D7 -> 76 | G7: =IFERROR(F7/C7,"") -> 0.274368231 | H7: =IFERROR(IF(SUM(C7,D7,F7)=0,"N/A",IF(IF(G7>=50%,TRUE, FALSE),"Yes","No")),"N/A") -> No | I7: =IFERROR(IF(C7=0,"N/A",IF(IF(G7>=(VLOOKUP(Data_ACS_2022_BG_Calculated!G3,Data_ACS_2022_CO_Calculated!G:BD,29,FALSE))/100+10%,TRUE, FALSE),"Yes","No")),"N/A") -> No
B8: =IF(Data_ACS_2022_BG_Calculated!I5="","",(CONCATENATE("CT ", Data_ACS_2022_BG_Calculated!I5,", BG ",Data_ACS_2022_BG_Calculated!J5))) -> CT 108, BG 3 | C8: =Data_ACS_2022_BG_Calculated!AC5 -> 1875 | D8: =Data_ACS_2022_BG_Calculated!AH5 -> 954 | E8: 0.5088 | F8: =C8-D8 -> 921 | G8: 0.4912 | H8: =IFERROR(IF(SUM(C8,D8,F8)=0,"N/A",IF(IF(G8>=50%,TRUE, FALSE),"Yes","No")),"N/A") -> No | I8: =IFERROR(IF(C8=0,"N/A",IF(IF(G8>=(VLOOKUP(Data_ACS_2022_BG_Calculated!G4,Data_ACS_2022_CO_Calculated!G:BD,29,FALSE))/100+10%,TRUE, FALSE),"Yes","No")),"N/A") -> No
B9: =IF(Data_ACS_2022_BG_Calculated!I6="","",(CONCATENATE("CT ", Data_ACS_2022_BG_Calculated!I6,", BG ",Data_ACS_2022_BG_Calculated!J6))) -> CT 110, BG 1 | C9: =Data_ACS_2022_BG_Calculated!AC6 -> 786 | D9: =Data_ACS_2022_BG_Calculated!AH6 -> 45 | E9: 0.0572519084 | F9: 741 | G9: 0.9427480916 | H9: Yes | I9: =IFERROR(IF(C9=0,"N/A",IF(IF(G9>=(VLOOKUP(Data_ACS_2022_BG_Calculated!G5,Data_ACS_2022_CO_Calculated!G:BD,29,FALSE))/100+10%,TRUE, FALSE),"Yes","No")),"N/A") -> Yes
B10: =IF(Data_ACS_2022_BG_Calculated!I7="","",(CONCATENATE("CT ", Data_ACS_2022_BG_Calculated!I7,", BG ",Data_ACS_2022_BG_Calculated!J7))) -> CT 110, BG 2 | C10: =Data_ACS_2022_BG_Calculated!AC7 -> 4617 | D10: =Data_ACS_2022_BG_Calculated!AH7 -> 897 | E10: 0.1942820013 | F10: 3720 | G10: 0.8057179987 | H10: Yes | I10: =IFERROR(IF(C10=0,"N/A",IF(IF(G10>=(VLOOKUP(Data_ACS_2022_BG_Calculated!G6,Data_ACS_2022_CO_Calculated!G:BD,29,FALSE))/100+10%,TRUE, FALSE),"Yes","No")),"N/A") -> Yes
B11: =IF(Data_ACS_2022_BG_Calculated!I8="","",(CONCATENATE("CT ", Data_ACS_2022_BG_Calculated!I8,", BG ",Data_ACS_2022_BG_Calculated!J8))) -> CT 111.01, BG 1 | C11: =Data_ACS_2022_BG_Calculated!AC8 -> 564 | D11: =Data_ACS_2022_BG_Calculated!AH8 -> 4 | E11: 0.007092198582 | F11: 560 | G11: 0.9929078014 | H11: Yes | I11: =IFERROR(IF(C11=0,"N/A",IF(IF(G11>=(VLOOKUP(Data_ACS_2022_BG_Calculated!G7,Data_ACS_2022_CO_Calculated!G:BD,29,FALSE))/100+10%,TRUE, FALSE),"Yes","No")),"N/A") -> Yes
B12: =IF(Data_ACS_2022_BG_Calculated!I9="","",(CONCATENATE("CT ", Data_ACS_2022_BG_Calculated!I9,", BG ",Data_ACS_2022_BG_Calculated!J9))) -> CT 111.01, BG 2 | C12: =Data_ACS_2022_BG_Calculated!AC9 -> 971 | D12: =Data_ACS_2022_BG_Calculated!AH9 -> 31 | E12: 0.03192584964 | F12: 940 | G12: 0.9680741504 | H12: Yes | I12: =IFERROR(IF(C12=0,"N/A",IF(IF(G12>=(VLOOKUP(Data_ACS_2022_BG_Calculated!G8,Data_ACS_2022_CO_Calculated!G:BD,29,FALSE))/100+10%,TRUE, FALSE),"Yes","No")),"N/A") -> Yes
B13: =IF(Data_ACS_2022_BG_Calculated!I10="","",(CONCATENATE("CT ", Data_ACS_2022_BG_Calculated!I10,", BG ",Data_ACS_2022_BG_Calculated!J10))) -> CT 111.01, BG 3 | C13: =Data_ACS_2022_BG_Calculated!AC10 -> 495 | D13: =Data_ACS_2022_BG_Calculated!AH10 -> 35 | E13: 0.07070707071 | F13: 460 | G13: 0.9292929293 | H13: Yes | I13: =IFERROR(IF(C13=0,"N/A",IF(IF(G13>=(VLOOKUP(Data_ACS_2022_BG_Calculated!G9,Data_ACS_2022_CO_Calculated!G:BD,29,FALSE))/100+10%,TRUE, FALSE),"Yes","No")),"N/A") -> Yes
B14: =IF(Data_ACS_2022_BG_Calculated!I11="","",(CONCATENATE("CT ", Data_ACS_2022_BG_Calculated!I11,", BG ",Data_ACS_2022_BG_Calculated!J11))) -> CT 111.01, BG 4 | C14: =Data_ACS_2022_BG_Calculated!AC11 -> 1891 | D14: =Data_ACS_2022_BG_Calculated!AH11 -> 146 | E14: 0.07720782655 | F14: 1745 | G14: 0.9227921735 | H14: Yes | I14: =IFERROR(IF(C14=0,"N/A",IF(IF(G14>=(VLOOKUP(Data_ACS_2022_BG_Calculated!G10,Data_ACS_2022_CO_Calculated!G:BD,29,FALSE))/100+10%,TRUE, FALSE),"Yes","No")),"N/A") -> Yes
B15: =IF(Data_ACS_2022_BG_Calculated!I12="","",(CONCATENATE("CT ", Data_ACS_2022_BG_Calculated!I12,", BG ",Data_ACS_2022_BG_Calculated!J12))) -> CT 111.02, BG 1 | C15: =Data_ACS_2022_BG_Calculated!AC12 -> 1056 | D15: =Data_ACS_2022_BG_Calculated!AH12 -> 0 | E15: 0 | F15: =C15-D15 -> 1056 | G15: 1 | H15: Yes | I15: =IFERROR(IF(C15=0,"N/A",IF(IF(G15>=(VLOOKUP(Data_ACS_2022_BG_Calculated!G11,Data_ACS_2022_CO_Calculated!G:BD,29,FALSE))/100+10%,TRUE, FALSE),"Yes","No")),"N/A") -> Yes
B16: =IF(Data_ACS_2022_BG_Calculated!I13="","",(CONCATENATE("CT ", Data_ACS_2022_BG_Calculated!I13,", BG ",Data_ACS_2022_BG_Calculated!J13))) -> CT 111.02, BG 2 | C16: =Data_ACS_2022_BG_Calculated!AC13 -> 1255 | D16: =Data_ACS_2022_BG_Calculated!AH13 -> 51 | E16: 0.0406374502 | F16: =C16-D16 -> 1204 | G16: 0.9593625498 | H16: Yes | I16: =IFERROR(IF(C16=0,"N/A",IF(IF(G16>=(VLOOKUP(Data_ACS_2022_BG_Calculated!G12,Data_ACS_2022_CO_Calculated!G:BD,29,FALSE))/100+10%,TRUE, FALSE),"Yes","No")),"N/A") -> Yes
B17: =IF(Data_ACS_2022_BG_Calculated!I14="","",(CONCATENATE("CT ", Data_ACS_2022_BG_Calculated!I14,", BG ",Data_ACS_2022_BG_Calculated!J14))) -> CT 112.01, BG 1 | C17: =Data_ACS_2022_BG_Calculated!AC14 -> 1811 | D17: =Data_ACS_2022_BG_Calculated!AH14 -> 232 | E17: 0.1281060188 | F17: =C17-D17 -> 1579 | G17: 0.8718939812 | H17: Yes | I17: =IFERROR(IF(C17=0,"N/A",IF(IF(G17>=(VLOOKUP(Data_ACS_2022_BG_Calculated!G13,Data_ACS_2022_CO_Calculated!G:BD,29,FALSE))/100+10%,TRUE, FALSE),"Yes","No")),"N/A") -> Yes
B18: =IF(Data_ACS_2022_BG_Calculated!I15="","",(CONCATENATE("CT ", Data_ACS_2022_BG_Calculated!I15,", BG ",Data_ACS_2022_BG_Calculated!J15))) -> CT 112.01, BG 2 | C18: =Data_ACS_2022_BG_Calculated!AC15 -> 1389 | D18: =Data_ACS_2022_BG_Calculated!AH15 -> 647 | E18: =IFERROR(D18/C18,"") -> 0.4658027358 | F18: =C18-D18 -> 742 | G18: =IFERROR(F18/C18,"") -> 0.5341972642 | H18: Yes | I18: =IFERROR(IF(C18=0,"N/A",IF(IF(G18>=(VLOOKUP(Data_ACS_2022_BG_Calculated!G14,Data_ACS_2022_CO_Calculated!G:BD,29,FALSE))/100+10%,TRUE, FALSE),"Yes","No")),"N/A") -> No
B19: =IF(Data_ACS_2022_BG_Calculated!I16="","",(CONCATENATE("CT ", Data_ACS_2022_BG_Calculated!I16,", BG ",Data_ACS_2022_BG_Calculated!J16))) -> CT 112.02, BG 1 | C19: =Data_ACS_2022_BG_Calculated!AC16 -> 1462 | D19: =Data_ACS_2022_BG_Calculated!AH16 -> 66 | E19: 0.04514363885 | F19: 1396 | G19: 0.9548563611 | H19: Yes | I19: =IFERROR(IF(C19=0,"N/A",IF(IF(G19>=(VLOOKUP(Data_ACS_2022_BG_Calculated!G15,Data_ACS_2022_CO_Calculated!G:BD,29,FALSE))/100+10%,TRUE, FALSE),"Yes","No")),"N/A") -> Yes
B20: =IF(Data_ACS_2022_BG_Calculated!I17="","",(CONCATENATE("CT ", Data_ACS_2022_BG_Calculated!I17,", BG ",Data_ACS_2022_BG_Calculated!J17))) -> CT 112.02, BG 2 | C20: =Data_ACS_2022_BG_Calculated!AC17 -> 1583 | D20: =Data_ACS_2022_BG_Calculated!AH17 -> 0 | E20: 0 | F20: 1583 | G20: 1 | H20: Yes | I20: =IFERROR(IF(C20=0,"N/A",IF(IF(G20>=(VLOOKUP(Data_ACS_2022_BG_Calculated!G16,Data_ACS_2022_CO_Calculated!G:BD,29,FALSE))/100+10%,TRUE, FALSE),"Yes","No")),"N/A") -> Yes
B21: =IF(Data_ACS_2022_BG_Calculated!I18="","",(CONCATENATE("CT ", Data_ACS_2022_BG_Calculated!I18,", BG ",Data_ACS_2022_BG_Calculated!J18))) -> CT 127.07, BG 1 | C21: =Data_ACS_2022_BG_Calculated!AC18 -> 1313 | D21: =Data_ACS_2022_BG_Calculated!AH18 -> 117 | E21: 0.08910891089 | F21: 1196 | G21: 0.9108910891 | H21: Yes | I21: =IFERROR(IF(C21=0,"N/A",IF(IF(G21>=(VLOOKUP(Data_ACS_2022_BG_Calculated!G17,Data_ACS_2022_CO_Calculated!G:BD,29,FALSE))/100+10%,TRUE, FALSE),"Yes","No")),"N/A") -> Yes
B22: =IF(Data_ACS_2022_BG_Calculated!I19="","",(CONCATENATE("CT ", Data_ACS_2022_BG_Calculated!I19,", BG ",Data_ACS_2022_BG_Calculated!J19))) -> CT 127.07, BG 2 | C22: =Data_ACS_2022_BG_Calculated!AC19 -> 1334 | D22: =Data_ACS_2022_BG_Calculated!AH19 -> 38 | E22: 0.02848575712 | F22: 1296 | G22: 0.9715142429 | H22: Yes | I22: =IFERROR(IF(C22=0,"N/A",IF(IF(G22>=(VLOOKUP(Data_ACS_2022_BG_Calculated!G18,Data_ACS_2022_CO_Calculated!G:BD,29,FALSE))/100+10%,TRUE, FALSE),"Yes","No")),"N/A") -> Yes
B23: =IF(Data_ACS_2022_BG_Calculated!I20="","",(CONCATENATE("CT ", Data_ACS_2022_BG_Calculated!I20,", BG ",Data_ACS_2022_BG_Calculated!J20))) -> CT 128.03, BG 1 | C23: =Data_ACS_2022_BG_Calculated!AC20 -> 2999 | D23: =Data_ACS_2022_BG_Calculated!AH20 -> 375 | E23: 0.1250416806 | F23: 2624 | G23: 0.8749583194 | H23: Yes | I23: =IFERROR(IF(C23=0,"N/A",IF(IF(G23>=(VLOOKUP(Data_ACS_2022_BG_Calculated!G19,Data_ACS_2022_CO_Calculated!G:BD,29,FALSE))/100+10%,TRUE, FALSE),"Yes","No")),"N/A") -> Yes
B24: =IF(Data_ACS_2022_BG_Calculated!I21="","",(CONCATENATE("CT ", Data_ACS_2022_BG_Calculated!I21,", BG ",Data_ACS_2022_BG_Calculated!J21))) -> CT 128.03, BG 2 | C24: =Data_ACS_2022_BG_Calculated!AC21 -> 3827 | D24: =Data_ACS_2022_BG_Calculated!AH21 -> 663 | E24: 0.1732427489 | F24: 3164 | G24: 0.8267572511 | H24: Yes | I24: =IFERROR(IF(C24=0,"N/A",IF(IF(G24>=(VLOOKUP(Data_ACS_2022_BG_Calculated!G20,Data_ACS_2022_CO_Calculated!G:BD,29,FALSE))/100+10%,TRUE, FALSE),"Yes","No")),"N/A") -> Yes
B25: =IF(Data_ACS_2022_BG_Calculated!I22="","",(CONCATENATE("CT ", Data_ACS_2022_BG_Calculated!I22,", BG ",Data_ACS_2022_BG_Calculated!J22))) -> CT 128.03, BG 3 | C25: =Data_ACS_2022_BG_Calculated!AC22 -> 2513 | D25: =Data_ACS_2022_BG_Calculated!AH22 -> 390 | E25: 0.1551929964 | F25: 2123 | G25: 0.8448070036 | H25: Yes | I25: =IFERROR(IF(C25=0,"N/A",IF(IF(G25>=(VLOOKUP(Data_ACS_2022_BG_Calculated!G21,Data_ACS_2022_CO_Calculated!G:BD,29,FALSE))/100+10%,TRUE, FALSE),"Yes","No")),"N/A") -> Yes
B26: =IF(Data_ACS_2022_BG_Calculated!I23="","",(CONCATENATE("CT ", Data_ACS_2022_BG_Calculated!I23,", BG ",Data_ACS_2022_BG_Calculated!J23))) ->  | C26: =Data_ACS_2022_BG_Calculated!AC23 -> 0 | D26: =Data_ACS_2022_BG_Calculated!AH23 -> 0 | F26: 0 | H26: N/A | I26: =IFERROR(IF(C26=0,"N/A",IF(IF(G26>=(VLOOKUP(Data_ACS_2022_BG_Calculated!G22,Data_ACS_2022_CO_Calculated!G:BD,29,FALSE))/100+10%,TRUE, FALSE),"Yes","No")),"N/A") -> N/A
B27: =IF(Data_ACS_2022_BG_Calculated!I24="","",(CONCATENATE("CT ", Data_ACS_2022_BG_Calculated!I24,", BG ",Data_ACS_2022_BG_Calculated!J24))) ->  | C27: =Data_ACS_2022_BG_Calculated!AC24 -> 0 | D27: =Data_ACS_2022_BG_Calculated!AH24 -> 0 | F27: 0 | H27: N/A | I27: =IFERROR(IF(C27=0,"N/A",IF(IF(G27>=(VLOOKUP(Data_ACS_2022_BG_Calculated!G23,Data_ACS_2022_CO_Calculated!G:BD,29,FALSE))/100+10%,TRUE, FALSE),"Yes","No")),"N/A") -> N/A
B28: =IF(Data_ACS_2022_BG_Calculated!I25="","",(CONCATENATE("CT ", Data_ACS_2022_BG_Calculated!I25,", BG ",Data_ACS_2022_BG_Calculated!J25))) ->  | C28: =Data_ACS_2022_BG_Calculated!AC25 -> 0 | D28: =Data_ACS_2022_BG_Calculated!AH25 -> 0 | F28: 0 | H28: N/A | I28: =IFERROR(IF(C28=0,"N/A",IF(IF(G28>=(VLOOKUP(Data_ACS_2022_BG_Calculated!G24,Data_ACS_2022_CO_Calculated!G:BD,29,FALSE))/100+10%,TRUE, FALSE),"Yes","No")),"N/A") -> N/A
B29: =IF(Data_ACS_2022_BG_Calculated!I26="","",(CONCATENATE("CT ", Data_ACS_2022_BG_Calculated!I26,", BG ",Data_ACS_2022_BG_Calculated!J26))) ->  | C29: =Data_ACS_2022_BG_Calculated!AC26 -> 0 | D29: =Data_ACS_2022_BG_Calculated!AH26 -> 0 | F29: 0 | H29: N/A | I29: =IFERROR(IF(C29=0,"N/A",IF(IF(G29>=(VLOOKUP(Data_ACS_2022_BG_Calculated!G25,Data_ACS_2022_CO_Calculated!G:BD,29,FALSE))/100+10%,TRUE, FALSE),"Yes","No")),"N/A") -> N/A
B30: =IF(Data_ACS_2022_BG_Calculated!I27="","",(CONCATENATE("CT ", Data_ACS_2022_BG_Calculated!I27,", BG ",Data_ACS_2022_BG_Calculated!J27))) ->  | C30: =Data_ACS_2022_BG_Calculated!AC27 -> 0 | D30: =Data_ACS_2022_BG_Calculated!AH27 -> 0 | F30: 0 | H30: N/A | I30: =IFERROR(IF(C30=0,"N/A",IF(IF(G30>=(VLOOKUP(Data_ACS_2022_BG_Calculated!G26,Data_ACS_2022_CO_Calculated!G:BD,29,FALSE))/100+10%,TRUE, FALSE),"Yes","No")),"N/A") -> N/A
B31: =IF(Data_ACS_2022_BG_Calculated!I28="","",(CONCATENATE("CT ", Data_ACS_2022_BG_Calculated!I28,", BG ",Data_ACS_2022_BG_Calculated!J28))) ->  | C31: =Data_ACS_2022_BG_Calculated!AC28 -> 0 | D31: =Data_ACS_2022_BG_Calculated!AH28 -> 0 | F31: 0 | H31: N/A | I31: =IFERROR(IF(C31=0,"N/A",IF(IF(G31>=(VLOOKUP(Data_ACS_2022_BG_Calculated!G27,Data_ACS_2022_CO_Calculated!G:BD,29,FALSE))/100+10%,TRUE, FALSE),"Yes","No")),"N/A") -> N/A
B32: =IF(Data_ACS_2022_BG_Calculated!I29="","",(CONCATENATE("CT ", Data_ACS_2022_BG_Calculated!I29,", BG ",Data_ACS_2022_BG_Calculated!J29))) ->  | C32: =Data_ACS_2022_BG_Calculated!AC29 -> 0 | D32: =Data_ACS_2022_BG_Calculated!AH29 -> 0 | F32: 0 | H32: N/A | I32: =IFERROR(IF(C32=0,"N/A",IF(IF(G32>=(VLOOKUP(Data_ACS_2022_BG_Calculated!G28,Data_ACS_2022_CO_Calculated!G:BD,29,FALSE))/100+10%,TRUE, FALSE),"Yes","No")),"N/A") -> N/A
B33: =IF(Data_ACS_2022_BG_Calculated!I30="","",(CONCATENATE("CT ", Data_ACS_2022_BG_Calculated!I30,", BG ",Data_ACS_2022_BG_Calculated!J30))) ->  | C33: =Data_ACS_2022_BG_Calculated!AC30 -> 0 | D33: =Data_ACS_2022_BG_Calculated!AH30 -> 0 | F33: 0 | H33: N/A | I33: =IFERROR(IF(C33=0,"N/A",IF(IF(G33>=(VLOOKUP(Data_ACS_2022_BG_Calculated!G29,Data_ACS_2022_CO_Calculated!G:BD,29,FALSE))/100+10%,TRUE, FALSE),"Yes","No")),"N/A") -> N/A
B34: =IF(Data_ACS_2022_BG_Calculated!I31="","",(CONCATENATE("CT ", Data_ACS_2022_BG_Calculated!I31,", BG ",Data_ACS_2022_BG_Calculated!J31))) ->  | C34: =Data_ACS_2022_BG_Calculated!AC31 -> 0 | D34: =Data_ACS_2022_BG_Calculated!AH31 -> 0 | F34: 0 | H34: N/A | I34: =IFERROR(IF(C34=0,"N/A",IF(IF(G34>=(VLOOKUP(Data_ACS_2022_BG_Calculated!G30,Data_ACS_2022_CO_Calculated!G:BD,29,FALSE))/100+10%,TRUE, FALSE),"Yes","No")),"N/A") -> N/A
B35: =IF(Data_ACS_2022_BG_Calculated!I32="","",(CONCATENATE("CT ", Data_ACS_2022_BG_Calculated!I32,", BG ",Data_ACS_2022_BG_Calculated!J32))) ->  | C35: =Data_ACS_2022_BG_Calculated!AC32 -> 0 | D35: =Data_ACS_2022_BG_Calculated!AH32 -> 0 | F35: 0 | H35: N/A | I35: =IFERROR(IF(C35=0,"N/A",IF(IF(G35>=(VLOOKUP(Data_ACS_2022_BG_Calculated!G31,Data_ACS_2022_CO_Calculated!G:BD,29,FALSE))/100+10%,TRUE, FALSE),"Yes","No")),"N/A") -> N/A
B36: =IF(Data_ACS_2022_BG_Calculated!I33="","",(CONCATENATE("CT ", Data_ACS_2022_BG_Calculated!I33,", BG ",Data_ACS_2022_BG_Calculated!J33))) ->  | C36: =Data_ACS_2022_BG_Calculated!AC33 -> 0 | D36: =Data_ACS_2022_BG_Calculated!AH33 -> 0 | F36: 0 | H36: N/A | I36: =IFERROR(IF(C36=0,"N/A",IF(IF(G36>=(VLOOKUP(Data_ACS_2022_BG_Calculated!G32,Data_ACS_2022_CO_Calculated!G:BD,29,FALSE))/100+10%,TRUE, FALSE),"Yes","No")),"N/A") -> N/A
B37: =IF(Data_ACS_2022_BG_Calculated!I34="","",(CONCATENATE("CT ", Data_ACS_2022_BG_Calculated!I34,", BG ",Data_ACS_2022_BG_Calculated!J34))) ->  | C37: =Data_ACS_2022_BG_Calculated!AC34 -> 0 | D37: =Data_ACS_2022_BG_Calculated!AH34 -> 0 | F37: 0 | H37: N/A | I37: =IFERROR(IF(C37=0,"N/A",IF(IF(G37>=(VLOOKUP(Data_ACS_2022_BG_Calculated!G33,Data_ACS_2022_CO_Calculated!G:BD,29,FALSE))/100+10%,TRUE, FALSE),"Yes","No")),"N/A") -> N/A
B38: =IF(Data_ACS_2022_BG_Calculated!I35="","",(CONCATENATE("CT ", Data_ACS_2022_BG_Calculated!I35,", BG ",Data_ACS_2022_BG_Calculated!J35))) ->  | C38: =Data_ACS_2022_BG_Calculated!AC35 -> 0 | D38: =Data_ACS_2022_BG_Calculated!AH35 -> 0 | F38: 0 | H38: N/A | I38: =IFERROR(IF(C38=0,"N/A",IF(IF(G38>=(VLOOKUP(Data_ACS_2022_BG_Calculated!G34,Data_ACS_2022_CO_Calculated!G:BD,29,FALSE))/100+10%,TRUE, FALSE),"Yes","No")),"N/A") -> N/A
B39: =IF(Data_ACS_2022_BG_Calculated!I36="","",(CONCATENATE("CT ", Data_ACS_2022_BG_Calculated!I36,", BG ",Data_ACS_2022_BG_Calculated!J36))) ->  | C39: =Data_ACS_2022_BG_Calculated!AC36 -> 0 | D39: =Data_ACS_2022_BG_Calculated!AH36 -> 0 | F39: 0 | H39: N/A | I39: =IFERROR(IF(C39=0,"N/A",IF(IF(G39>=(VLOOKUP(Data_ACS_2022_BG_Calculated!G35,Data_ACS_2022_CO_Calculated!G:BD,29,FALSE))/100+10%,TRUE, FALSE),"Yes","No")),"N/A") -> N/A
B40: =IF(Data_ACS_2022_BG_Calculated!I37="","",(CONCATENATE("CT ", Data_ACS_2022_BG_Calculated!I37,", BG ",Data_ACS_2022_BG_Calculated!J37))) ->  | C40: =Data_ACS_2022_BG_Calculated!AC37 -> 0 | D40: =Data_ACS_2022_BG_Calculated!AH37 -> 0 | F40: 0 | H40: N/A | I40: =IFERROR(IF(C40=0,"N/A",IF(IF(G40>=(VLOOKUP(Data_ACS_2022_BG_Calculated!G36,Data_ACS_2022_CO_Calculated!G:BD,29,FALSE))/100+10%,TRUE, FALSE),"Yes","No")),"N/A") -> N/A
B41: =IF(Data_ACS_2022_BG_Calculated!I38="","",(CONCATENATE("CT ", Data_ACS_2022_BG_Calculated!I38,", BG ",Data_ACS_2022_BG_Calculated!J38))) ->  | C41: =Data_ACS_2022_BG_Calculated!AC38 -> 0 | D41: =Data_ACS_2022_BG_Calculated!AH38 -> 0 | F41: 0 | H41: N/A | I41: =IFERROR(IF(C41=0,"N/A",IF(IF(G41>=(VLOOKUP(Data_ACS_2022_BG_Calculated!G37,Data_ACS_2022_CO_Calculated!G:BD,29,FALSE))/100+10%,TRUE, FALSE),"Yes","No")),"N/A") -> N/A
B42: =IF(Data_ACS_2022_BG_Calculated!I39="","",(CONCATENATE("CT ", Data_ACS_2022_BG_Calculated!I39,", BG ",Data_ACS_2022_BG_Calculated!J39))) ->  | C42: =Data_ACS_2022_BG_Calculated!AC39 -> 0 | D42: =Data_ACS_2022_BG_Calculated!AH39 -> 0 | F42: 0 | H42: N/A | I42: =IFERROR(IF(C42=0,"N/A",IF(IF(G42>=(VLOOKUP(Data_ACS_2022_BG_Calculated!G38,Data_ACS_2022_CO_Calculated!G:BD,29,FALSE))/100+10%,TRUE, FALSE),"Yes","No")),"N/A") -> N/A
B43: =IF(Data_ACS_2022_BG_Calculated!I40="","",(CONCATENATE("CT ", Data_ACS_2022_BG_Calculated!I40,", BG ",Data_ACS_2022_BG_Calculated!J40))) ->  | C43: =Data_ACS_2022_BG_Calculated!AC40 -> 0 | D43: =Data_ACS_2022_BG_Calculated!AH40 -> 0 | F43: 0 | H43: N/A | I43: =IFERROR(IF(C43=0,"N/A",IF(IF(G43>=(VLOOKUP(Data_ACS_2022_BG_Calculated!G39,Data_ACS_2022_CO_Calculated!G:BD,29,FALSE))/100+10%,TRUE, FALSE),"Yes","No")),"N/A") -> N/A
B44: =IF(Data_ACS_2022_BG_Calculated!I41="","",(CONCATENATE("CT ", Data_ACS_2022_BG_Calculated!I41,", BG ",Data_ACS_2022_BG_Calculated!J41))) ->  | C44: =Data_ACS_2022_BG_Calculated!AC41 -> 0 | D44: =Data_ACS_2022_BG_Calculated!AH41 -> 0 | F44: 0 | H44: N/A | I44: =IFERROR(IF(C44=0,"N/A",IF(IF(G44>=(VLOOKUP(Data_ACS_2022_BG_Calculated!G40,Data_ACS_2022_CO_Calculated!G:BD,29,FALSE))/100+10%,TRUE, FALSE),"Yes","No")),"N/A") -> N/A
B45: =IF(Data_ACS_2022_BG_Calculated!I42="","",(CONCATENATE("CT ", Data_ACS_2022_BG_Calculated!I42,", BG ",Data_ACS_2022_BG_Calculated!J42))) ->  | C45: =Data_ACS_2022_BG_Calculated!AC42 -> 0 | D45: =Data_ACS_2022_BG_Calculated!AH42 -> 0 | F45: 0 | H45: N/A | I45: =IFERROR(IF(C45=0,"N/A",IF(IF(G45>=(VLOOKUP(Data_ACS_2022_BG_Calculated!G41,Data_ACS_2022_CO_Calculated!G:BD,29,FALSE))/100+10%,TRUE, FALSE),"Yes","No")),"N/A") -> N/A
B46: =IF(Data_ACS_2022_BG_Calculated!I43="","",(CONCATENATE("CT ", Data_ACS_2022_BG_Calculated!I43,", BG ",Data_ACS_2022_BG_Calculated!J43))) ->  | C46: =Data_ACS_2022_BG_Calculated!AC43 -> 0 | D46: =Data_ACS_2022_BG_Calculated!AH43 -> 0 | F46: 0 | H46: N/A | I46: =IFERROR(IF(C46=0,"N/A",IF(IF(G46>=(VLOOKUP(Data_ACS_2022_BG_Calculated!G42,Data_ACS_2022_CO_Calculated!G:BD,29,FALSE))/100+10%,TRUE, FALSE),"Yes","No")),"N/A") -> N/A
B47: =IF(Data_ACS_2022_BG_Calculated!I44="","",(CONCATENATE("CT ", Data_ACS_2022_BG_Calculated!I44,", BG ",Data_ACS_2022_BG_Calculated!J44))) ->  | C47: =Data_ACS_2022_BG_Calculated!AC44 -> 0 | D47: =Data_ACS_2022_BG_Calculated!AH44 -> 0 | F47: 0 | H47: N/A | I47: =IFERROR(IF(C47=0,"N/A",IF(IF(G47>=(VLOOKUP(Data_ACS_2022_BG_Calculated!G43,Data_ACS_2022_CO_Calculated!G:BD,29,FALSE))/100+10%,TRUE, FALSE),"Yes","No")),"N/A") -> N/A
B48: =IF(Data_ACS_2022_BG_Calculated!I45="","",(CONCATENATE("CT ", Data_ACS_2022_BG_Calculated!I45,", BG ",Data_ACS_2022_BG_Calculated!J45))) ->  | C48: =Data_ACS_2022_BG_Calculated!AC45 -> 0 | D48: =Data_ACS_2022_BG_Calculated!AH45 -> 0 | F48: 0 | H48: N/A | I48: =IFERROR(IF(C48=0,"N/A",IF(IF(G48>=(VLOOKUP(Data_ACS_2022_BG_Calculated!G44,Data_ACS_2022_CO_Calculated!G:BD,29,FALSE))/100+10%,TRUE, FALSE),"Yes","No")),"N/A") -> N/A
B49: =IF(Data_ACS_2022_BG_Calculated!I46="","",(CONCATENATE("CT ", Data_ACS_2022_BG_Calculated!I46,", BG ",Data_ACS_2022_BG_Calculated!J46))) ->  | C49: =Data_ACS_2022_BG_Calculated!AC46 -> 0 | D49: =Data_ACS_2022_BG_Calculated!AH46 -> 0 | F49: 0 | H49: N/A | I49: =IFERROR(IF(C49=0,"N/A",IF(IF(G49>=(VLOOKUP(Data_ACS_2022_BG_Calculated!G45,Data_ACS_2022_CO_Calculated!G:BD,29,FALSE))/100+10%,TRUE, FALSE),"Yes","No")),"N/A") -> N/A
B50: =IF(Data_ACS_2022_BG_Calculated!I47="","",(CONCATENATE("CT ", Data_ACS_2022_BG_Calculated!I47,", BG ",Data_ACS_2022_BG_Calculated!J47))) ->  | C50: =Data_ACS_2022_BG_Calculated!AC47 -> 0 | D50: =Data_ACS_2022_BG_Calculated!AH47 -> 0 | F50: 0 | H50: N/A | I50: =IFERROR(IF(C50=0,"N/A",IF(IF(G50>=(VLOOKUP(Data_ACS_2022_BG_Calculated!G46,Data_ACS_2022_CO_Calculated!G:BD,29,FALSE))/100+10%,TRUE, FALSE),"Yes","No")),"N/A") -> N/A
B51: =IF(Data_ACS_2022_BG_Calculated!I48="","",(CONCATENATE("CT ", Data_ACS_2022_BG_Calculated!I48,", BG ",Data_ACS_2022_BG_Calculated!J48))) ->  | C51: =Data_ACS_2022_BG_Calculated!AC48 -> 0 | D51: =Data_ACS_2022_BG_Calculated!AH48 -> 0 | F51: 0 | H51: N/A | I51: =IFERROR(IF(C51=0,"N/A",IF(IF(G51>=(VLOOKUP(Data_ACS_2022_BG_Calculated!G47,Data_ACS_2022_CO_Calculated!G:BD,29,FALSE))/100+10%,TRUE, FALSE),"Yes","No")),"N/A") -> N/A
B52: =IF(Data_ACS_2022_BG_Calculated!I49="","",(CONCATENATE("CT ", Data_ACS_2022_BG_Calculated!I49,", BG ",Data_ACS_2022_BG_Calculated!J49))) ->  | C52: =Data_ACS_2022_BG_Calculated!AC49 -> 0 | D52: =Data_ACS_2022_BG_Calculated!AH49 -> 0 | F52: 0 | H52: N/A | I52: =IFERROR(IF(C52=0,"N/A",IF(IF(G52>=(VLOOKUP(Data_ACS_2022_BG_Calculated!G48,Data_ACS_2022_CO_Calculated!G:BD,29,FALSE))/100+10%,TRUE, FALSE),"Yes","No")),"N/A") -> N/A
B53: =IF(Data_ACS_2022_BG_Calculated!I50="","",(CONCATENATE("CT ", Data_ACS_2022_BG_Calculated!I50,", BG ",Data_ACS_2022_BG_Calculated!J50))) ->  | C53: =Data_ACS_2022_BG_Calculated!AC50 -> 0 | D53: =Data_ACS_2022_BG_Calculated!AH50 -> 0 | F53: 0 | H53: N/A | I53: =IFERROR(IF(C53=0,"N/A",IF(IF(G53>=(VLOOKUP(Data_ACS_2022_BG_Calculated!G49,Data_ACS_2022_CO_Calculated!G:BD,29,FALSE))/100+10%,TRUE, FALSE),"Yes","No")),"N/A") -> N/A
B54: =IF(Data_ACS_2022_BG_Calculated!I51="","",(CONCATENATE("CT ", Data_ACS_2022_BG_Calculated!I51,", BG ",Data_ACS_2022_BG_Calculated!J51))) ->  | C54: =Data_ACS_2022_BG_Calculated!AC51 -> 0 | D54: =Data_ACS_2022_BG_Calculated!AH51 -> 0 | F54: 0 | H54: N/A | I54: =IFERROR(IF(C54=0,"N/A",IF(IF(G54>=(VLOOKUP(Data_ACS_2022_BG_Calculated!G50,Data_ACS_2022_CO_Calculated!G:BD,29,FALSE))/100+10%,TRUE, FALSE),"Yes","No")),"N/A") -> N/A
B55: =IF(Data_ACS_2022_BG_Calculated!I52="","",(CONCATENATE("CT ", Data_ACS_2022_BG_Calculated!I52,", BG ",Data_ACS_2022_BG_Calculated!J52))) ->  | C55: =Data_ACS_2022_BG_Calculated!AC52 -> 0 | D55: =Data_ACS_2022_BG_Calculated!AH52 -> 0 | F55: 0 | H55: N/A | I55: =IFERROR(IF(C55=0,"N/A",IF(IF(G55>=(VLOOKUP(Data_ACS_2022_BG_Calculated!G51,Data_ACS_2022_CO_Calculated!G:BD,29,FALSE))/100+10%,TRUE, FALSE),"Yes","No")),"N/A") -> N/A
B56: =IF(Data_ACS_2022_BG_Calculated!I53="","",(CONCATENATE("CT ", Data_ACS_2022_BG_Calculated!I53,", BG ",Data_ACS_2022_BG_Calculated!J53))) ->  | C56: =Data_ACS_2022_BG_Calculated!AC53 -> 0 | D56: =Data_ACS_2022_BG_Calculated!AH53 -> 0 | F56: 0 | H56: N/A | I56: =IFERROR(IF(C56=0,"N/A",IF(IF(G56>=(VLOOKUP(Data_ACS_2022_BG_Calculated!G52,Data_ACS_2022_CO_Calculated!G:BD,29,FALSE))/100+10%,TRUE, FALSE),"Yes","No")),"N/A") -> N/A
B57: =IF(Data_ACS_2022_BG_Calculated!I54="","",(CONCATENATE("CT ", Data_ACS_2022_BG_Calculated!I54,", BG ",Data_ACS_2022_BG_Calculated!J54))) ->  | C57: =Data_ACS_2022_BG_Calculated!AC54 -> 0 | D57: =Data_ACS_2022_BG_Calculated!AH54 -> 0 | F57: 0 | H57: N/A | I57: =IFERROR(IF(C57=0,"N/A",IF(IF(G57>=(VLOOKUP(Data_ACS_2022_BG_Calculated!G53,Data_ACS_2022_CO_Calculated!G:BD,29,FALSE))/100+10%,TRUE, FALSE),"Yes","No")),"N/A") -> N/A
B58: =IF(Data_ACS_2022_BG_Calculated!I55="","",(CONCATENATE("CT ", Data_ACS_2022_BG_Calculated!I55,", BG ",Data_ACS_2022_BG_Calculated!J55))) ->  | C58: =Data_ACS_2022_BG_Calculated!AC55 -> 0 | D58: =Data_ACS_2022_BG_Calculated!AH55 -> 0 | F58: 0 | H58: N/A | I58: =IFERROR(IF(C58=0,"N/A",IF(IF(G58>=(VLOOKUP(Data_ACS_2022_BG_Calculated!G54,Data_ACS_2022_CO_Calculated!G:BD,29,FALSE))/100+10%,TRUE, FALSE),"Yes","No")),"N/A") -> N/A
B59: =IF(Data_ACS_2022_BG_Calculated!I56="","",(CONCATENATE("CT ", Data_ACS_2022_BG_Calculated!I56,", BG ",Data_ACS_2022_BG_Calculated!J56))) ->  | C59: =Data_ACS_2022_BG_Calculated!AC56 -> 0 | D59: =Data_ACS_2022_BG_Calculated!AH56 -> 0 | F59: 0 | H59: N/A | I59: =IFERROR(IF(C59=0,"N/A",IF(IF(G59>=(VLOOKUP(Data_ACS_2022_BG_Calculated!G55,Data_ACS_2022_CO_Calculated!G:BD,29,FALSE))/100+10%,TRUE, FALSE),"Yes","No")),"N/A") -> N/A
B60: =IF(Data_ACS_2022_BG_Calculated!I57="","",(CONCATENATE("CT ", Data_ACS_2022_BG_Calculated!I57,", BG ",Data_ACS_2022_BG_Calculated!J57))) ->  | C60: =Data_ACS_2022_BG_Calculated!AC57 -> 0 | D60: =Data_ACS_2022_BG_Calculated!AH57 -> 0 | F60: 0 | H60: N/A | I60: =IFERROR(IF(C60=0,"N/A",IF(IF(G60>=(VLOOKUP(Data_ACS_2022_BG_Calculated!G56,Data_ACS_2022_CO_Calculated!G:BD,29,FALSE))/100+10%,TRUE, FALSE),"Yes","No")),"N/A") -> N/A
B61: =IF(Data_ACS_2022_BG_Calculated!I58="","",(CONCATENATE("CT ", Data_ACS_2022_BG_Calculated!I58,", BG ",Data_ACS_2022_BG_Calculated!J58))) ->  | C61: =Data_ACS_2022_BG_Calculated!AC58 -> 0 | D61: =Data_ACS_2022_BG_Calculated!AH58 -> 0 | F61: 0 | H61: N/A | I61: =IFERROR(IF(C61=0,"N/A",IF(IF(G61>=(VLOOKUP(Data_ACS_2022_BG_Calculated!G57,Data_ACS_2022_CO_Calculated!G:BD,29,FALSE))/100+10%,TRUE, FALSE),"Yes","No")),"N/A") -> N/A
B62: =IF(Data_ACS_2022_BG_Calculated!I59="","",(CONCATENATE("CT ", Data_ACS_2022_BG_Calculated!I59,", BG ",Data_ACS_2022_BG_Calculated!J59))) ->  | C62: =Data_ACS_2022_BG_Calculated!AC59 -> 0 | D62: =Data_ACS_2022_BG_Calculated!AH59 -> 0 | F62: 0 | H62: N/A | I62: =IFERROR(IF(C62=0,"N/A",IF(IF(G62>=(VLOOKUP(Data_ACS_2022_BG_Calculated!G58,Data_ACS_2022_CO_Calculated!G:BD,29,FALSE))/100+10%,TRUE, FALSE),"Yes","No")),"N/A") -> N/A
B63: =IF(Data_ACS_2022_BG_Calculated!I60="","",(CONCATENATE("CT ", Data_ACS_2022_BG_Calculated!I60,", BG ",Data_ACS_2022_BG_Calculated!J60))) ->  | C63: =Data_ACS_2022_BG_Calculated!AC60 -> 0 | D63: =Data_ACS_2022_BG_Calculated!AH60 -> 0 | F63: 0 | H63: N/A | I63: =IFERROR(IF(C63=0,"N/A",IF(IF(G63>=(VLOOKUP(Data_ACS_2022_BG_Calculated!G59,Data_ACS_2022_CO_Calculated!G:BD,29,FALSE))/100+10%,TRUE, FALSE),"Yes","No")),"N/A") -> N/A
B64: =IF(Data_ACS_2022_BG_Calculated!I61="","",(CONCATENATE("CT ", Data_ACS_2022_BG_Calculated!I61,", BG ",Data_ACS_2022_BG_Calculated!J61))) ->  | C64: =Data_ACS_2022_BG_Calculated!AC61 -> 0 | D64: =Data_ACS_2022_BG_Calculated!AH61 -> 0 | F64: 0 | H64: N/A | I64: =IFERROR(IF(C64=0,"N/A",IF(IF(G64>=(VLOOKUP(Data_ACS_2022_BG_Calculated!G60,Data_ACS_2022_CO_Calculated!G:BD,29,FALSE))/100+10%,TRUE, FALSE),"Yes","No")),"N/A") -> N/A
B65: =IF(Data_ACS_2022_BG_Calculated!I62="","",(CONCATENATE("CT ", Data_ACS_2022_BG_Calculated!I62,", BG ",Data_ACS_2022_BG_Calculated!J62))) ->  | C65: =Data_ACS_2022_BG_Calculated!AC62 -> 0 | D65: =Data_ACS_2022_BG_Calculated!AH62 -> 0 | F65: 0 | H65: N/A | I65: =IFERROR(IF(C65=0,"N/A",IF(IF(G65>=(VLOOKUP(Data_ACS_2022_BG_Calculated!G61,Data_ACS_2022_CO_Calculated!G:BD,29,FALSE))/100+10%,TRUE, FALSE),"Yes","No")),"N/A") -> N/A
B66: =IF(Data_ACS_2022_BG_Calculated!I63="","",(CONCATENATE("CT ", Data_ACS_2022_BG_Calculated!I63,", BG ",Data_ACS_2022_BG_Calculated!J63))) ->  | C66: =Data_ACS_2022_BG_Calculated!AC63 -> 0 | D66: =Data_ACS_2022_BG_Calculated!AH63 -> 0 | F66: 0 | H66: N/A | I66: =IFERROR(IF(C66=0,"N/A",IF(IF(G66>=(VLOOKUP(Data_ACS_2022_BG_Calculated!G62,Data_ACS_2022_CO_Calculated!G:BD,29,FALSE))/100+10%,TRUE, FALSE),"Yes","No")),"N/A") -> N/A
B67: =IF(Data_ACS_2022_BG_Calculated!I64="","",(CONCATENATE("CT ", Data_ACS_2022_BG_Calculated!I64,", BG ",Data_ACS_2022_BG_Calculated!J64))) ->  | C67: =Data_ACS_2022_BG_Calculated!AC64 -> 0 | D67: =Data_ACS_2022_BG_Calculated!AH64 -> 0 | F67: 0 | H67: N/A | I67: =IFERROR(IF(C67=0,"N/A",IF(IF(G67>=(VLOOKUP(Data_ACS_2022_BG_Calculated!G63,Data_ACS_2022_CO_Calculated!G:BD,29,FALSE))/100+10%,TRUE, FALSE),"Yes","No")),"N/A") -> N/A
B68: =IF(Data_ACS_2022_BG_Calculated!I65="","",(CONCATENATE("CT ", Data_ACS_2022_BG_Calculated!I65,", BG ",Data_ACS_2022_BG_Calculated!J65))) ->  | C68: =Data_ACS_2022_BG_Calculated!AC65 -> 0 | D68: =Data_ACS_2022_BG_Calculated!AH65 -> 0 | F68: 0 | H68: N/A | I68: =IFERROR(IF(C68=0,"N/A",IF(IF(G68>=(VLOOKUP(Data_ACS_2022_BG_Calculated!G64,Data_ACS_2022_CO_Calculated!G:BD,29,FALSE))/100+10%,TRUE, FALSE),"Yes","No")),"N/A") -> N/A
B69: =IF(Data_ACS_2022_BG_Calculated!I66="","",(CONCATENATE("CT ", Data_ACS_2022_BG_Calculated!I66,", BG ",Data_ACS_2022_BG_Calculated!J66))) ->  | C69: =Data_ACS_2022_BG_Calculated!AC66 -> 0 | D69: =Data_ACS_2022_BG_Calculated!AH66 -> 0 | F69: 0 | H69: N/A | I69: =IFERROR(IF(C69=0,"N/A",IF(IF(G69>=(VLOOKUP(Data_ACS_2022_BG_Calculated!G65,Data_ACS_2022_CO_Calculated!G:BD,29,FALSE))/100+10%,TRUE, FALSE),"Yes","No")),"N/A") -> N/A
B70: =IF(Data_ACS_2022_BG_Calculated!I67="","",(CONCATENATE("CT ", Data_ACS_2022_BG_Calculated!I67,", BG ",Data_ACS_2022_BG_Calculated!J67))) ->  | C70: =Data_ACS_2022_BG_Calculated!AC67 -> 0 | D70: =Data_ACS_2022_BG_Calculated!AH67 -> 0 | F70: 0 | H70: N/A | I70: =IFERROR(IF(C70=0,"N/A",IF(IF(G70>=(VLOOKUP(Data_ACS_2022_BG_Calculated!G66,Data_ACS_2022_CO_Calculated!G:BD,29,FALSE))/100+10%,TRUE, FALSE),"Yes","No")),"N/A") -> N/A
B71: =IF(Data_ACS_2022_BG_Calculated!I68="","",(CONCATENATE("CT ", Data_ACS_2022_BG_Calculated!I68,", BG ",Data_ACS_2022_BG_Calculated!J68))) ->  | C71: =Data_ACS_2022_BG_Calculated!AC68 -> 0 | D71: =Data_ACS_2022_BG_Calculated!AH68 -> 0 | F71: 0 | H71: N/A | I71: =IFERROR(IF(C71=0,"N/A",IF(IF(G71>=(VLOOKUP(Data_ACS_2022_BG_Calculated!G67,Data_ACS_2022_CO_Calculated!G:BD,29,FALSE))/100+10%,TRUE, FALSE),"Yes","No")),"N/A") -> N/A
B72: =IF(Data_ACS_2022_BG_Calculated!I69="","",(CONCATENATE("CT ", Data_ACS_2022_BG_Calculated!I69,", BG ",Data_ACS_2022_BG_Calculated!J69))) ->  | C72: =Data_ACS_2022_BG_Calculated!AC69 -> 0 | D72: =Data_ACS_2022_BG_Calculated!AH69 -> 0 | F72: 0 | H72: =IFERROR(IF(SUM(C72,D72,F72)=0,"N/A",IF(IF(G72>=50%,TRUE, FALSE),"Yes","No")),"N/A") -> N/A | I72: =IFERROR(IF(C72=0,"N/A",IF(IF(G72>=(VLOOKUP(Data_ACS_2022_BG_Calculated!G68,Data_ACS_2022_CO_Calculated!G:BD,29,FALSE))/100+10%,TRUE, FALSE),"Yes","No")),"N/A") -> N/A
B73: =IF(Data_ACS_2022_BG_Calculated!I70="","",(CONCATENATE("CT ", Data_ACS_2022_BG_Calculated!I70,", BG ",Data_ACS_2022_BG_Calculated!J70))) ->  | C73: =Data_ACS_2022_BG_Calculated!AC70 -> 0 | D73: =Data_ACS_2022_BG_Calculated!AH70 -> 0 | F73: 0 | H73: N/A | I73: =IFERROR(IF(C73=0,"N/A",IF(IF(G73>=(VLOOKUP(Data_ACS_2022_BG_Calculated!G69,Data_ACS_2022_CO_Calculated!G:BD,29,FALSE))/100+10%,TRUE, FALSE),"Yes","No")),"N/A") -> N/A
B74: =IF(Data_ACS_2022_BG_Calculated!I71="","",(CONCATENATE("CT ", Data_ACS_2022_BG_Calculated!I71,", BG ",Data_ACS_2022_BG_Calculated!J71))) ->  | C74: =Data_ACS_2022_BG_Calculated!AC71 -> 0 | D74: =Data_ACS_2022_BG_Calculated!AH71 -> 0 | F74: 0 | H74: N/A | I74: =IFERROR(IF(C74=0,"N/A",IF(IF(G74>=(VLOOKUP(Data_ACS_2022_BG_Calculated!G70,Data_ACS_2022_CO_Calculated!G:BD,29,FALSE))/100+10%,TRUE, FALSE),"Yes","No")),"N/A") -> N/A
B75: =IF(Data_ACS_2022_BG_Calculated!I72="","",(CONCATENATE("CT ", Data_ACS_2022_BG_Calculated!I72,", BG ",Data_ACS_2022_BG_Calculated!J72))) ->  | C75: =Data_ACS_2022_BG_Calculated!AC72 -> 0 | D75: =Data_ACS_2022_BG_Calculated!AH72 -> 0 | F75: 0 | H75: N/A | I75: =IFERROR(IF(C75=0,"N/A",IF(IF(G75>=(VLOOKUP(Data_ACS_2022_BG_Calculated!G71,Data_ACS_2022_CO_Calculated!G:BD,29,FALSE))/100+10%,TRUE, FALSE),"Yes","No")),"N/A") -> N/A
B76: =IF(Data_ACS_2022_BG_Calculated!I73="","",(CONCATENATE("CT ", Data_ACS_2022_BG_Calculated!I73,", BG ",Data_ACS_2022_BG_Calculated!J73))) ->  | C76: =Data_ACS_2022_BG_Calculated!AC73 -> 0 | D76: =Data_ACS_2022_BG_Calculated!AH73 -> 0 | F76: 0 | H76: N/A | I76: =IFERROR(IF(C76=0,"N/A",IF(IF(G76>=(VLOOKUP(Data_ACS_2022_BG_Calculated!G72,Data_ACS_2022_CO_Calculated!G:BD,29,FALSE))/100+10%,TRUE, FALSE),"Yes","No")),"N/A") -> N/A
B77: =IF(Data_ACS_2022_BG_Calculated!I74="","",(CONCATENATE("CT ", Data_ACS_2022_BG_Calculated!I74,", BG ",Data_ACS_2022_BG_Calculated!J74))) ->  | C77: =Data_ACS_2022_BG_Calculated!AC74 -> 0 | D77: =Data_ACS_2022_BG_Calculated!AH74 -> 0 | F77: 0 | H77: N/A | I77: =IFERROR(IF(C77=0,"N/A",IF(IF(G77>=(VLOOKUP(Data_ACS_2022_BG_Calculated!G73,Data_ACS_2022_CO_Calculated!G:BD,29,FALSE))/100+10%,TRUE, FALSE),"Yes","No")),"N/A") -> N/A
B78: =IF(Data_ACS_2022_BG_Calculated!I75="","",(CONCATENATE("CT ", Data_ACS_2022_BG_Calculated!I75,", BG ",Data_ACS_2022_BG_Calculated!J75))) ->  | C78: =Data_ACS_2022_BG_Calculated!AC75 -> 0 | D78: =Data_ACS_2022_BG_Calculated!AH75 -> 0 | F78: 0 | H78: N/A | I78: =IFERROR(IF(C78=0,"N/A",IF(IF(G78>=(VLOOKUP(Data_ACS_2022_BG_Calculated!G74,Data_ACS_2022_CO_Calculated!G:BD,29,FALSE))/100+10%,TRUE, FALSE),"Yes","No")),"N/A") -> N/A
B79: =IF(Data_ACS_2022_BG_Calculated!I76="","",(CONCATENATE("CT ", Data_ACS_2022_BG_Calculated!I76,", BG ",Data_ACS_2022_BG_Calculated!J76))) ->  | C79: =Data_ACS_2022_BG_Calculated!AC76 -> 0 | D79: =Data_ACS_2022_BG_Calculated!AH76 -> 0 | F79: 0 | H79: N/A | I79: =IFERROR(IF(C79=0,"N/A",IF(IF(G79>=(VLOOKUP(Data_ACS_2022_BG_Calculated!G75,Data_ACS_2022_CO_Calculated!G:BD,29,FALSE))/100+10%,TRUE, FALSE),"Yes","No")),"N/A") -> N/A
B80: =IF(Data_ACS_2022_BG_Calculated!I77="","",(CONCATENATE("CT ", Data_ACS_2022_BG_Calculated!I77,", BG ",Data_ACS_2022_BG_Calculated!J77))) ->  | C80: =Data_ACS_2022_BG_Calculated!AC77 -> 0 | D80: =Data_ACS_2022_BG_Calculated!AH77 -> 0 | F80: 0 | H80: N/A | I80: =IFERROR(IF(C80=0,"N/A",IF(IF(G80>=(VLOOKUP(Data_ACS_2022_BG_Calculated!G76,Data_ACS_2022_CO_Calculated!G:BD,29,FALSE))/100+10%,TRUE, FALSE),"Yes","No")),"N/A") -> N/A
B81: =IF(Data_ACS_2022_BG_Calculated!I78="","",(CONCATENATE("CT ", Data_ACS_2022_BG_Calculated!I78,", BG ",Data_ACS_2022_BG_Calculated!J78))) ->  | C81: =Data_ACS_2022_BG_Calculated!AC78 -> 0 | D81: =Data_ACS_2022_BG_Calculated!AH78 -> 0 | F81: 0 | H81: N/A | I81: =IFERROR(IF(C81=0,"N/A",IF(IF(G81>=(VLOOKUP(Data_ACS_2022_BG_Calculated!G77,Data_ACS_2022_CO_Calculated!G:BD,29,FALSE))/100+10%,TRUE, FALSE),"Yes","No")),"N/A") -> N/A
B82: =IF(Data_ACS_2022_BG_Calculated!I79="","",(CONCATENATE("CT ", Data_ACS_2022_BG_Calculated!I79,", BG ",Data_ACS_2022_BG_Calculated!J79))) ->  | C82: =Data_ACS_2022_BG_Calculated!AC79 -> 0 | D82: =Data_ACS_2022_BG_Calculated!AH79 -> 0 | E82: =IFERROR(D82/C82,"") ->  | F82: =C82-D82 -> 0 | G82: =IFERROR(F82/C82,"") ->  | H82: N/A | I82: =IFERROR(IF(C82=0,"N/A",IF(IF(G82>=(VLOOKUP(Data_ACS_2022_BG_Calculated!G78,Data_ACS_2022_CO_Calculated!G:BD,29,FALSE))/100+10%,TRUE, FALSE),"Yes","No")),"N/A") -> N/A
B83: =IF(Data_ACS_2022_BG_Calculated!I80="","",(CONCATENATE("CT ", Data_ACS_2022_BG_Calculated!I80,", BG ",Data_ACS_2022_BG_Calculated!J80))) ->  | C83: =Data_ACS_2022_BG_Calculated!AC80 -> 0 | D83: =Data_ACS_2022_BG_Calculated!AH80 -> 0 | F83: 0 | H83: N/A | I83: =IFERROR(IF(C83=0,"N/A",IF(IF(G83>=(VLOOKUP(Data_ACS_2022_BG_Calculated!G79,Data_ACS_2022_CO_Calculated!G:BD,29,FALSE))/100+10%,TRUE, FALSE),"Yes","No")),"N/A") -> N/A
B84: =IF(Data_ACS_2022_BG_Calculated!I81="","",(CONCATENATE("CT ", Data_ACS_2022_BG_Calculated!I81,", BG ",Data_ACS_2022_BG_Calculated!J81))) ->  | C84: =Data_ACS_2022_BG_Calculated!AC81 -> 0 | D84: =Data_ACS_2022_BG_Calculated!AH81 -> 0 | F84: 0 | H84: N/A | I84: =IFERROR(IF(C84=0,"N/A",IF(IF(G84>=(VLOOKUP(Data_ACS_2022_BG_Calculated!G80,Data_ACS_2022_CO_Calculated!G:BD,29,FALSE))/100+10%,TRUE, FALSE),"Yes","No")),"N/A") -> N/A
B85: =IF(Data_ACS_2022_BG_Calculated!I82="","",(CONCATENATE("CT ", Data_ACS_2022_BG_Calculated!I82,", BG ",Data_ACS_2022_BG_Calculated!J82))) ->  | C85: =Data_ACS_2022_BG_Calculated!AC82 -> 0 | D85: =Data_ACS_2022_BG_Calculated!AH82 -> 0 | F85: 0 | H85: N/A | I85: =IFERROR(IF(C85=0,"N/A",IF(IF(G85>=(VLOOKUP(Data_ACS_2022_BG_Calculated!G81,Data_ACS_2022_CO_Calculated!G:BD,29,FALSE))/100+10%,TRUE, FALSE),"Yes","No")),"N/A") -> N/A
B86: =IF(Data_ACS_2022_BG_Calculated!I83="","",(CONCATENATE("CT ", Data_ACS_2022_BG_Calculated!I83,", BG ",Data_ACS_2022_BG_Calculated!J83))) ->  | C86: =Data_ACS_2022_BG_Calculated!AC83 -> 0 | D86: =Data_ACS_2022_BG_Calculated!AH83 -> 0 | F86: 0 | H86: N/A | I86: =IFERROR(IF(C86=0,"N/A",IF(IF(G86>=(VLOOKUP(Data_ACS_2022_BG_Calculated!G82,Data_ACS_2022_CO_Calculated!G:BD,29,FALSE))/100+10%,TRUE, FALSE),"Yes","No")),"N/A") -> N/A
B87: =IF(Data_ACS_2022_BG_Calculated!I84="","",(CONCATENATE("CT ", Data_ACS_2022_BG_Calculated!I84,", BG ",Data_ACS_2022_BG_Calculated!J84))) ->  | C87: =Data_ACS_2022_BG_Calculated!AC84 -> 0 | D87: =Data_ACS_2022_BG_Calculated!AH84 -> 0 | F87: 0 | H87: N/A | I87: =IFERROR(IF(C87=0,"N/A",IF(IF(G87>=(VLOOKUP(Data_ACS_2022_BG_Calculated!G83,Data_ACS_2022_CO_Calculated!G:BD,29,FALSE))/100+10%,TRUE, FALSE),"Yes","No")),"N/A") -> N/A
B88: =IF(Data_ACS_2022_BG_Calculated!I85="","",(CONCATENATE("CT ", Data_ACS_2022_BG_Calculated!I85,", BG ",Data_ACS_2022_BG_Calculated!J85))) ->  | C88: =Data_ACS_2022_BG_Calculated!AC85 -> 0 | D88: =Data_ACS_2022_BG_Calculated!AH85 -> 0 | F88: 0 | H88: N/A | I88: =IFERROR(IF(C88=0,"N/A",IF(IF(G88>=(VLOOKUP(Data_ACS_2022_BG_Calculated!G84,Data_ACS_2022_CO_Calculated!G:BD,29,FALSE))/100+10%,TRUE, FALSE),"Yes","No")),"N/A") -> N/A
B89: =IF(Data_ACS_2022_BG_Calculated!I86="","",(CONCATENATE("CT ", Data_ACS_2022_BG_Calculated!I86,", BG ",Data_ACS_2022_BG_Calculated!J86))) ->  | C89: =Data_ACS_2022_BG_Calculated!AC86 -> 0 | D89: =Data_ACS_2022_BG_Calculated!AH86 -> 0 | F89: 0 | H89: N/A | I89: =IFERROR(IF(C89=0,"N/A",IF(IF(G89>=(VLOOKUP(Data_ACS_2022_BG_Calculated!G85,Data_ACS_2022_CO_Calculated!G:BD,29,FALSE))/100+10%,TRUE, FALSE),"Yes","No")),"N/A") -> N/A
B90: =IF(Data_ACS_2022_BG_Calculated!I87="","",(CONCATENATE("CT ", Data_ACS_2022_BG_Calculated!I87,", BG ",Data_ACS_2022_BG_Calculated!J87))) ->  | C90: =Data_ACS_2022_BG_Calculated!AC87 -> 0 | D90: =Data_ACS_2022_BG_Calculated!AH87 -> 0 | F90: 0 | H90: N/A | I90: =IFERROR(IF(C90=0,"N/A",IF(IF(G90>=(VLOOKUP(Data_ACS_2022_BG_Calculated!G86,Data_ACS_2022_CO_Calculated!G:BD,29,FALSE))/100+10%,TRUE, FALSE),"Yes","No")),"N/A") -> N/A
B91: =IF(Data_ACS_2022_BG_Calculated!I88="","",(CONCATENATE("CT ", Data_ACS_2022_BG_Calculated!I88,", BG ",Data_ACS_2022_BG_Calculated!J88))) ->  | C91: =Data_ACS_2022_BG_Calculated!AC88 -> 0 | D91: =Data_ACS_2022_BG_Calculated!AH88 -> 0 | F91: 0 | H91: N/A | I91: =IFERROR(IF(C91=0,"N/A",IF(IF(G91>=(VLOOKUP(Data_ACS_2022_BG_Calculated!G87,Data_ACS_2022_CO_Calculated!G:BD,29,FALSE))/100+10%,TRUE, FALSE),"Yes","No")),"N/A") -> N/A
B92: =IF(Data_ACS_2022_BG_Calculated!I89="","",(CONCATENATE("CT ", Data_ACS_2022_BG_Calculated!I89,", BG ",Data_ACS_2022_BG_Calculated!J89))) ->  | C92: =Data_ACS_2022_BG_Calculated!AC89 -> 0 | D92: =Data_ACS_2022_BG_Calculated!AH89 -> 0 | F92: 0 | H92: N/A | I92: =IFERROR(IF(C92=0,"N/A",IF(IF(G92>=(VLOOKUP(Data_ACS_2022_BG_Calculated!G88,Data_ACS_2022_CO_Calculated!G:BD,29,FALSE))/100+10%,TRUE, FALSE),"Yes","No")),"N/A") -> N/A
B93: =IF(Data_ACS_2022_BG_Calculated!I90="","",(CONCATENATE("CT ", Data_ACS_2022_BG_Calculated!I90,", BG ",Data_ACS_2022_BG_Calculated!J90))) ->  | C93: =Data_ACS_2022_BG_Calculated!AC90 -> 0 | D93: =Data_ACS_2022_BG_Calculated!AH90 -> 0 | F93: 0 | H93: N/A | I93: =IFERROR(IF(C93=0,"N/A",IF(IF(G93>=(VLOOKUP(Data_ACS_2022_BG_Calculated!G89,Data_ACS_2022_CO_Calculated!G:BD,29,FALSE))/100+10%,TRUE, FALSE),"Yes","No")),"N/A") -> N/A
B94: =IF(Data_ACS_2022_BG_Calculated!I91="","",(CONCATENATE("CT ", Data_ACS_2022_BG_Calculated!I91,", BG ",Data_ACS_2022_BG_Calculated!J91))) ->  | C94: =Data_ACS_2022_BG_Calculated!AC91 -> 0 | D94: =Data_ACS_2022_BG_Calculated!AH91 -> 0 | F94: 0 | H94: N/A | I94: =IFERROR(IF(C94=0,"N/A",IF(IF(G94>=(VLOOKUP(Data_ACS_2022_BG_Calculated!G90,Data_ACS_2022_CO_Calculated!G:BD,29,FALSE))/100+10%,TRUE, FALSE),"Yes","No")),"N/A") -> N/A
B95: =IF(Data_ACS_2022_BG_Calculated!I92="","",(CONCATENATE("CT ", Data_ACS_2022_BG_Calculated!I92,", BG ",Data_ACS_2022_BG_Calculated!J92))) ->  | C95: =Data_ACS_2022_BG_Calculated!AC92 -> 0 | D95: =Data_ACS_2022_BG_Calculated!AH92 -> 0 | F95: 0 | H95: N/A | I95: =IFERROR(IF(C95=0,"N/A",IF(IF(G95>=(VLOOKUP(Data_ACS_2022_BG_Calculated!G91,Data_ACS_2022_CO_Calculated!G:BD,29,FALSE))/100+10%,TRUE, FALSE),"Yes","No")),"N/A") -> N/A
B96: =IF(Data_ACS_2022_BG_Calculated!I93="","",(CONCATENATE("CT ", Data_ACS_2022_BG_Calculated!I93,", BG ",Data_ACS_2022_BG_Calculated!J93))) ->  | C96: =Data_ACS_2022_BG_Calculated!AC93 -> 0 | D96: =Data_ACS_2022_BG_Calculated!AH93 -> 0 | F96: 0 | H96: N/A | I96: =IFERROR(IF(C96=0,"N/A",IF(IF(G96>=(VLOOKUP(Data_ACS_2022_BG_Calculated!G92,Data_ACS_2022_CO_Calculated!G:BD,29,FALSE))/100+10%,TRUE, FALSE),"Yes","No")),"N/A") -> N/A
B97: =IF(Data_ACS_2022_BG_Calculated!I94="","",(CONCATENATE("CT ", Data_ACS_2022_BG_Calculated!I94,", BG ",Data_ACS_2022_BG_Calculated!J94))) ->  | C97: =Data_ACS_2022_BG_Calculated!AC94 -> 0 | D97: =Data_ACS_2022_BG_Calculated!AH94 -> 0 | F97: 0 | H97: N/A | I97: =IFERROR(IF(C97=0,"N/A",IF(IF(G97>=(VLOOKUP(Data_ACS_2022_BG_Calculated!G93,Data_ACS_2022_CO_Calculated!G:BD,29,FALSE))/100+10%,TRUE, FALSE),"Yes","No")),"N/A") -> N/A
B98: =IF(Data_ACS_2022_BG_Calculated!I95="","",(CONCATENATE("CT ", Data_ACS_2022_BG_Calculated!I95,", BG ",Data_ACS_2022_BG_Calculated!J95))) ->  | C98: =Data_ACS_2022_BG_Calculated!AC95 -> 0 | D98: =Data_ACS_2022_BG_Calculated!AH95 -> 0 | F98: 0 | H98: N/A | I98: =IFERROR(IF(C98=0,"N/A",IF(IF(G98>=(VLOOKUP(Data_ACS_2022_BG_Calculated!G94,Data_ACS_2022_CO_Calculated!G:BD,29,FALSE))/100+10%,TRUE, FALSE),"Yes","No")),"N/A") -> N/A
B99: =IF(Data_ACS_2022_BG_Calculated!I96="","",(CONCATENATE("CT ", Data_ACS_2022_BG_Calculated!I96,", BG ",Data_ACS_2022_BG_Calculated!J96))) ->  | C99: =Data_ACS_2022_BG_Calculated!AC96 -> 0 | D99: =Data_ACS_2022_BG_Calculated!AH96 -> 0 | F99: 0 | H99: N/A | I99: =IFERROR(IF(C99=0,"N/A",IF(IF(G99>=(VLOOKUP(Data_ACS_2022_BG_Calculated!G95,Data_ACS_2022_CO_Calculated!G:BD,29,FALSE))/100+10%,TRUE, FALSE),"Yes","No")),"N/A") -> N/A
B100: =IF(Data_ACS_2022_BG_Calculated!I97="","",(CONCATENATE("CT ", Data_ACS_2022_BG_Calculated!I97,", BG ",Data_ACS_2022_BG_Calculated!J97))) ->  | C100: =Data_ACS_2022_BG_Calculated!AC97 -> 0 | D100: =Data_ACS_2022_BG_Calculated!AH97 -> 0 | F100: 0 | H100: N/A | I100: =IFERROR(IF(C100=0,"N/A",IF(IF(G100>=(VLOOKUP(Data_ACS_2022_BG_Calculated!G96,Data_ACS_2022_CO_Calculated!G:BD,29,FALSE))/100+10%,TRUE, FALSE),"Yes","No")),"N/A") -> N/A
B101: =IF(Data_ACS_2022_BG_Calculated!I98="","",(CONCATENATE("CT ", Data_ACS_2022_BG_Calculated!I98,", BG ",Data_ACS_2022_BG_Calculated!J98))) ->  | C101: =Data_ACS_2022_BG_Calculated!AC98 -> 0 | D101: =Data_ACS_2022_BG_Calculated!AH98 -> 0 | F101: 0 | H101: N/A | I101: =IFERROR(IF(C101=0,"N/A",IF(IF(G101>=(VLOOKUP(Data_ACS_2022_BG_Calculated!G97,Data_ACS_2022_CO_Calculated!G:BD,29,FALSE))/100+10%,TRUE, FALSE),"Yes","No")),"N/A") -> N/A
B102: =IF(Data_ACS_2022_BG_Calculated!I99="","",(CONCATENATE("CT ", Data_ACS_2022_BG_Calculated!I99,", BG ",Data_ACS_2022_BG_Calculated!J99))) ->  | C102: =Data_ACS_2022_BG_Calculated!AC99 -> 0 | D102: =Data_ACS_2022_BG_Calculated!AH99 -> 0 | F102: 0 | H102: N/A | I102: =IFERROR(IF(C102=0,"N/A",IF(IF(G102>=(VLOOKUP(Data_ACS_2022_BG_Calculated!G98,Data_ACS_2022_CO_Calculated!G:BD,29,FALSE))/100+10%,TRUE, FALSE),"Yes","No")),"N/A") -> N/A
B103: =IF(Data_ACS_2022_BG_Calculated!I100="","",(CONCATENATE("CT ", Data_ACS_2022_BG_Calculated!I100,", BG ",Data_ACS_2022_BG_Calculated!J100))) ->  | C103: =Data_ACS_2022_BG_Calculated!AC100 -> 0 | D103: =Data_ACS_2022_BG_Calculated!AH100 -> 0 | F103: 0 | H103: N/A | I103: =IFERROR(IF(C103=0,"N/A",IF(IF(G103>=(VLOOKUP(Data_ACS_2022_BG_Calculated!G99,Data_ACS_2022_CO_Calculated!G:BD,29,FALSE))/100+10%,TRUE, FALSE),"Yes","No")),"N/A") -> N/A
B104: =IF(Data_ACS_2022_BG_Calculated!I101="","",(CONCATENATE("CT ", Data_ACS_2022_BG_Calculated!I101,", BG ",Data_ACS_2022_BG_Calculated!J101))) ->  | C104: =Data_ACS_2022_BG_Calculated!AC101 -> 0 | D104: =Data_ACS_2022_BG_Calculated!AH101 -> 0 | F104: 0 | H104: N/A | I104: =IFERROR(IF(C104=0,"N/A",IF(IF(G104>=(VLOOKUP(Data_ACS_2022_BG_Calculated!G100,Data_ACS_2022_CO_Calculated!G:BD,29,FALSE))/100+10%,TRUE, FALSE),"Yes","No")),"N/A") -> N/A
B105: =IF(Data_ACS_2022_BG_Calculated!I102="","",(CONCATENATE("CT ", Data_ACS_2022_BG_Calculated!I102,", BG ",Data_ACS_2022_BG_Calculated!J102))) ->  | C105: =Data_ACS_2022_BG_Calculated!AC102 -> 0 | D105: =Data_ACS_2022_BG_Calculated!AH102 -> 0 | F105: 0 | H105: N/A | I105: =IFERROR(IF(C105=0,"N/A",IF(IF(G105>=(VLOOKUP(Data_ACS_2022_BG_Calculated!G101,Data_ACS_2022_CO_Calculated!G:BD,29,FALSE))/100+10%,TRUE, FALSE),"Yes","No")),"N/A") -> N/A
B106: =IF(Data_ACS_2022_BG_Calculated!I103="","",(CONCATENATE("CT ", Data_ACS_2022_BG_Calculated!I103,", BG ",Data_ACS_2022_BG_Calculated!J103))) ->  | C106: =Data_ACS_2022_BG_Calculated!AC103 -> 0 | D106: =Data_ACS_2022_BG_Calculated!AH103 -> 0 | F106: 0 | H106: N/A | I106: =IFERROR(IF(C106=0,"N/A",IF(IF(G106>=(VLOOKUP(Data_ACS_2022_BG_Calculated!G102,Data_ACS_2022_CO_Calculated!G:BD,29,FALSE))/100+10%,TRUE, FALSE),"Yes","No")),"N/A") -> N/A
B107: =IF(Data_ACS_2022_BG_Calculated!I104="","",(CONCATENATE("CT ", Data_ACS_2022_BG_Calculated!I104,", BG ",Data_ACS_2022_BG_Calculated!J104))) ->  | C107: =Data_ACS_2022_BG_Calculated!AC104 -> 0 | D107: =Data_ACS_2022_BG_Calculated!AH104 -> 0 | F107: 0 | H107: N/A | I107: =IFERROR(IF(C107=0,"N/A",IF(IF(G107>=(VLOOKUP(Data_ACS_2022_BG_Calculated!G103,Data_ACS_2022_CO_Calculated!G:BD,29,FALSE))/100+10%,TRUE, FALSE),"Yes","No")),"N/A") -> N/A
B108: =IF(Data_ACS_2022_BG_Calculated!I105="","",(CONCATENATE("CT ", Data_ACS_2022_BG_Calculated!I105,", BG ",Data_ACS_2022_BG_Calculated!J105))) ->  | C108: =Data_ACS_2022_BG_Calculated!AC105 -> 0 | D108: =Data_ACS_2022_BG_Calculated!AH105 -> 0 | F108: 0 | H108: N/A | I108: =IFERROR(IF(C108=0,"N/A",IF(IF(G108>=(VLOOKUP(Data_ACS_2022_BG_Calculated!G104,Data_ACS_2022_CO_Calculated!G:BD,29,FALSE))/100+10%,TRUE, FALSE),"Yes","No")),"N/A") -> N/A
B109: =IF(Data_ACS_2022_BG_Calculated!I106="","",(CONCATENATE("CT ", Data_ACS_2022_BG_Calculated!I106,", BG ",Data_ACS_2022_BG_Calculated!J106))) ->  | C109: =Data_ACS_2022_BG_Calculated!AC106 -> 0 | D109: =Data_ACS_2022_BG_Calculated!AH106 -> 0 | F109: 0 | H109: N/A | I109: =IFERROR(IF(C109=0,"N/A",IF(IF(G109>=(VLOOKUP(Data_ACS_2022_BG_Calculated!G105,Data_ACS_2022_CO_Calculated!G:BD,29,FALSE))/100+10%,TRUE, FALSE),"Yes","No")),"N/A") -> N/A
B110: =IF(Data_ACS_2022_BG_Calculated!I107="","",(CONCATENATE("CT ", Data_ACS_2022_BG_Calculated!I107,", BG ",Data_ACS_2022_BG_Calculated!J107))) ->  | C110: =Data_ACS_2022_BG_Calculated!AC107 -> 0 | D110: =Data_ACS_2022_BG_Calculated!AH107 -> 0 | F110: 0 | H110: N/A | I110: =IFERROR(IF(C110=0,"N/A",IF(IF(G110>=(VLOOKUP(Data_ACS_2022_BG_Calculated!G106,Data_ACS_2022_CO_Calculated!G:BD,29,FALSE))/100+10%,TRUE, FALSE),"Yes","No")),"N/A") -> N/A
B111: =IF(Data_ACS_2022_BG_Calculated!I108="","",(CONCATENATE("CT ", Data_ACS_2022_BG_Calculated!I108,", BG ",Data_ACS_2022_BG_Calculated!J108))) ->  | C111: =Data_ACS_2022_BG_Calculated!AC108 -> 0 | D111: =Data_ACS_2022_BG_Calculated!AH108 -> 0 | F111: 0 | H111: N/A | I111: =IFERROR(IF(C111=0,"N/A",IF(IF(G111>=(VLOOKUP(Data_ACS_2022_BG_Calculated!G107,Data_ACS_2022_CO_Calculated!G:BD,29,FALSE))/100+10%,TRUE, FALSE),"Yes","No")),"N/A") -> N/A
B112: =IF(Data_ACS_2022_BG_Calculated!I109="","",(CONCATENATE("CT ", Data_ACS_2022_BG_Calculated!I109,", BG ",Data_ACS_2022_BG_Calculated!J109))) ->  | C112: =Data_ACS_2022_BG_Calculated!AC109 -> 0 | D112: =Data_ACS_2022_BG_Calculated!AH109 -> 0 | F112: 0 | H112: N/A | I112: =IFERROR(IF(C112=0,"N/A",IF(IF(G112>=(VLOOKUP(Data_ACS_2022_BG_Calculated!G108,Data_ACS_2022_CO_Calculated!G:BD,29,FALSE))/100+10%,TRUE, FALSE),"Yes","No")),"N/A") -> N/A
B113: =IF(Data_ACS_2022_BG_Calculated!I110="","",(CONCATENATE("CT ", Data_ACS_2022_BG_Calculated!I110,", BG ",Data_ACS_2022_BG_Calculated!J110))) ->  | C113: =Data_ACS_2022_BG_Calculated!AC110 -> 0 | D113: =Data_ACS_2022_BG_Calculated!AH110 -> 0 | F113: 0 | H113: N/A | I113: =IFERROR(IF(C113=0,"N/A",IF(IF(G113>=(VLOOKUP(Data_ACS_2022_BG_Calculated!G109,Data_ACS_2022_CO_Calculated!G:BD,29,FALSE))/100+10%,TRUE, FALSE),"Yes","No")),"N/A") -> N/A
B114: =IF(Data_ACS_2022_BG_Calculated!I111="","",(CONCATENATE("CT ", Data_ACS_2022_BG_Calculated!I111,", BG ",Data_ACS_2022_BG_Calculated!J111))) ->  | C114: =Data_ACS_2022_BG_Calculated!AC111 -> 0 | D114: =Data_ACS_2022_BG_Calculated!AH111 -> 0 | F114: 0 | H114: N/A | I114: =IFERROR(IF(C114=0,"N/A",IF(IF(G114>=(VLOOKUP(Data_ACS_2022_BG_Calculated!G110,Data_ACS_2022_CO_Calculated!G:BD,29,FALSE))/100+10%,TRUE, FALSE),"Yes","No")),"N/A") -> N/A
B115: =IF(Data_ACS_2022_BG_Calculated!I112="","",(CONCATENATE("CT ", Data_ACS_2022_BG_Calculated!I112,", BG ",Data_ACS_2022_BG_Calculated!J112))) ->  | C115: =Data_ACS_2022_BG_Calculated!AC112 -> 0 | D115: =Data_ACS_2022_BG_Calculated!AH112 -> 0 | F115: 0 | H115: N/A | I115: =IFERROR(IF(C115=0,"N/A",IF(IF(G115>=(VLOOKUP(Data_ACS_2022_BG_Calculated!G111,Data_ACS_2022_CO_Calculated!G:BD,29,FALSE))/100+10%,TRUE, FALSE),"Yes","No")),"N/A") -> N/A
B116: =IF(Data_ACS_2022_BG_Calculated!I113="","",(CONCATENATE("CT ", Data_ACS_2022_BG_Calculated!I113,", BG ",Data_ACS_2022_BG_Calculated!J113))) ->  | C116: =Data_ACS_2022_BG_Calculated!AC113 -> 0 | D116: =Data_ACS_2022_BG_Calculated!AH113 -> 0 | F116: 0 | H116: N/A | I116: =IFERROR(IF(C116=0,"N/A",IF(IF(G116>=(VLOOKUP(Data_ACS_2022_BG_Calculated!G112,Data_ACS_2022_CO_Calculated!G:BD,29,FALSE))/100+10%,TRUE, FALSE),"Yes","No")),"N/A") -> N/A
B117: =IF(Data_ACS_2022_BG_Calculated!I114="","",(CONCATENATE("CT ", Data_ACS_2022_BG_Calculated!I114,", BG ",Data_ACS_2022_BG_Calculated!J114))) ->  | C117: =Data_ACS_2022_BG_Calculated!AC114 -> 0 | D117: =Data_ACS_2022_BG_Calculated!AH114 -> 0 | F117: 0 | H117: N/A | I117: =IFERROR(IF(C117=0,"N/A",IF(IF(G117>=(VLOOKUP(Data_ACS_2022_BG_Calculated!G113,Data_ACS_2022_CO_Calculated!G:BD,29,FALSE))/100+10%,TRUE, FALSE),"Yes","No")),"N/A") -> N/A
B118: =IF(Data_ACS_2022_BG_Calculated!I115="","",(CONCATENATE("CT ", Data_ACS_2022_BG_Calculated!I115,", BG ",Data_ACS_2022_BG_Calculated!J115))) ->  | C118: =Data_ACS_2022_BG_Calculated!AC115 -> 0 | D118: =Data_ACS_2022_BG_Calculated!AH115 -> 0 | F118: 0 | H118: N/A | I118: =IFERROR(IF(C118=0,"N/A",IF(IF(G118>=(VLOOKUP(Data_ACS_2022_BG_Calculated!G114,Data_ACS_2022_CO_Calculated!G:BD,29,FALSE))/100+10%,TRUE, FALSE),"Yes","No")),"N/A") -> N/A
B119: =IF(Data_ACS_2022_BG_Calculated!I116="","",(CONCATENATE("CT ", Data_ACS_2022_BG_Calculated!I116,", BG ",Data_ACS_2022_BG_Calculated!J116))) ->  | C119: =Data_ACS_2022_BG_Calculated!AC116 -> 0 | D119: =Data_ACS_2022_BG_Calculated!AH116 -> 0 | F119: 0 | H119: N/A | I119: =IFERROR(IF(C119=0,"N/A",IF(IF(G119>=(VLOOKUP(Data_ACS_2022_BG_Calculated!G115,Data_ACS_2022_CO_Calculated!G:BD,29,FALSE))/100+10%,TRUE, FALSE),"Yes","No")),"N/A") -> N/A
B120: =IF(Data_ACS_2022_BG_Calculated!I117="","",(CONCATENATE("CT ", Data_ACS_2022_BG_Calculated!I117,", BG ",Data_ACS_2022_BG_Calculated!J117))) ->  | C120: =Data_ACS_2022_BG_Calculated!AC117 -> 0 | D120: =Data_ACS_2022_BG_Calculated!AH117 -> 0 | F120: 0 | H120: N/A | I120: =IFERROR(IF(C120=0,"N/A",IF(IF(G120>=(VLOOKUP(Data_ACS_2022_BG_Calculated!G116,Data_ACS_2022_CO_Calculated!G:BD,29,FALSE))/100+10%,TRUE, FALSE),"Yes","No")),"N/A") -> N/A
B121: =IF(Data_ACS_2022_BG_Calculated!I118="","",(CONCATENATE("CT ", Data_ACS_2022_BG_Calculated!I118,", BG ",Data_ACS_2022_BG_Calculated!J118))) ->  | C121: =Data_ACS_2022_BG_Calculated!AC118 -> 0 | D121: =Data_ACS_2022_BG_Calculated!AH118 -> 0 | F121: 0 | H121: N/A | I121: =IFERROR(IF(C121=0,"N/A",IF(IF(G121>=(VLOOKUP(Data_ACS_2022_BG_Calculated!G117,Data_ACS_2022_CO_Calculated!G:BD,29,FALSE))/100+10%,TRUE, FALSE),"Yes","No")),"N/A") -> N/A
B122: =IF(Data_ACS_2022_BG_Calculated!I119="","",(CONCATENATE("CT ", Data_ACS_2022_BG_Calculated!I119,", BG ",Data_ACS_2022_BG_Calculated!J119))) ->  | C122: =Data_ACS_2022_BG_Calculated!AC119 -> 0 | D122: =Data_ACS_2022_BG_Calculated!AH119 -> 0 | F122: 0 | H122: N/A | I122: =IFERROR(IF(C122=0,"N/A",IF(IF(G122>=(VLOOKUP(Data_ACS_2022_BG_Calculated!G118,Data_ACS_2022_CO_Calculated!G:BD,29,FALSE))/100+10%,TRUE, FALSE),"Yes","No")),"N/A") -> N/A
B123: =IF(Data_ACS_2022_BG_Calculated!I120="","",(CONCATENATE("CT ", Data_ACS_2022_BG_Calculated!I120,", BG ",Data_ACS_2022_BG_Calculated!J120))) ->  | C123: =Data_ACS_2022_BG_Calculated!AC120 -> 0 | D123: =Data_ACS_2022_BG_Calculated!AH120 -> 0 | F123: 0 | H123: N/A | I123: =IFERROR(IF(C123=0,"N/A",IF(IF(G123>=(VLOOKUP(Data_ACS_2022_BG_Calculated!G119,Data_ACS_2022_CO_Calculated!G:BD,29,FALSE))/100+10%,TRUE, FALSE),"Yes","No")),"N/A") -> N/A
B124: =IF(Data_ACS_2022_BG_Calculated!I121="","",(CONCATENATE("CT ", Data_ACS_2022_BG_Calculated!I121,", BG ",Data_ACS_2022_BG_Calculated!J121))) ->  | C124: =Data_ACS_2022_BG_Calculated!AC121 -> 0 | D124: =Data_ACS_2022_BG_Calculated!AH121 -> 0 | F124: 0 | H124: N/A | I124: =IFERROR(IF(C124=0,"N/A",IF(IF(G124>=(VLOOKUP(Data_ACS_2022_BG_Calculated!G120,Data_ACS_2022_CO_Calculated!G:BD,29,FALSE))/100+10%,TRUE, FALSE),"Yes","No")),"N/A") -> N/A
B125: =IF(Data_ACS_2022_BG_Calculated!I122="","",(CONCATENATE("CT ", Data_ACS_2022_BG_Calculated!I122,", BG ",Data_ACS_2022_BG_Calculated!J122))) ->  | C125: =Data_ACS_2022_BG_Calculated!AC122 -> 0 | D125: =Data_ACS_2022_BG_Calculated!AH122 -> 0 | F125: 0 | H125: N/A | I125: =IFERROR(IF(C125=0,"N/A",IF(IF(G125>=(VLOOKUP(Data_ACS_2022_BG_Calculated!G121,Data_ACS_2022_CO_Calculated!G:BD,29,FALSE))/100+10%,TRUE, FALSE),"Yes","No")),"N/A") -> N/A
B126: =IF(Data_ACS_2022_BG_Calculated!I123="","",(CONCATENATE("CT ", Data_ACS_2022_BG_Calculated!I123,", BG ",Data_ACS_2022_BG_Calculated!J123))) ->  | C126: =Data_ACS_2022_BG_Calculated!AC123 -> 0 | D126: =Data_ACS_2022_BG_Calculated!AH123 -> 0 | F126: 0 | H126: N/A | I126: =IFERROR(IF(C126=0,"N/A",IF(IF(G126>=(VLOOKUP(Data_ACS_2022_BG_Calculated!G122,Data_ACS_2022_CO_Calculated!G:BD,29,FALSE))/100+10%,TRUE, FALSE),"Yes","No")),"N/A") -> N/A
B127: =IF(Data_ACS_2022_BG_Calculated!I124="","",(CONCATENATE("CT ", Data_ACS_2022_BG_Calculated!I124,", BG ",Data_ACS_2022_BG_Calculated!J124))) ->  | C127: =Data_ACS_2022_BG_Calculated!AC124 -> 0 | D127: =Data_ACS_2022_BG_Calculated!AH124 -> 0 | F127: 0 | H127: N/A | I127: =IFERROR(IF(C127=0,"N/A",IF(IF(G127>=(VLOOKUP(Data_ACS_2022_BG_Calculated!G123,Data_ACS_2022_CO_Calculated!G:BD,29,FALSE))/100+10%,TRUE, FALSE),"Yes","No")),"N/A") -> N/A
B128: =IF(Data_ACS_2022_BG_Calculated!I125="","",(CONCATENATE("CT ", Data_ACS_2022_BG_Calculated!I125,", BG ",Data_ACS_2022_BG_Calculated!J125))) ->  | C128: =Data_ACS_2022_BG_Calculated!AC125 -> 0 | D128: =Data_ACS_2022_BG_Calculated!AH125 -> 0 | F128: 0 | H128: N/A | I128: =IFERROR(IF(C128=0,"N/A",IF(IF(G128>=(VLOOKUP(Data_ACS_2022_BG_Calculated!G124,Data_ACS_2022_CO_Calculated!G:BD,29,FALSE))/100+10%,TRUE, FALSE),"Yes","No")),"N/A") -> N/A
B129: =IF(Data_ACS_2022_BG_Calculated!I126="","",(CONCATENATE("CT ", Data_ACS_2022_BG_Calculated!I126,", BG ",Data_ACS_2022_BG_Calculated!J126))) ->  | C129: =Data_ACS_2022_BG_Calculated!AC126 -> 0 | D129: =Data_ACS_2022_BG_Calculated!AH126 -> 0 | F129: 0 | H129: N/A | I129: =IFERROR(IF(C129=0,"N/A",IF(IF(G129>=(VLOOKUP(Data_ACS_2022_BG_Calculated!G125,Data_ACS_2022_CO_Calculated!G:BD,29,FALSE))/100+10%,TRUE, FALSE),"Yes","No")),"N/A") -> N/A
B130: =IF(Data_ACS_2022_BG_Calculated!I127="","",(CONCATENATE("CT ", Data_ACS_2022_BG_Calculated!I127,", BG ",Data_ACS_2022_BG_Calculated!J127))) ->  | C130: =Data_ACS_2022_BG_Calculated!AC127 -> 0 | D130: =Data_ACS_2022_BG_Calculated!AH127 -> 0 | F130: 0 | H130: N/A | I130: =IFERROR(IF(C130=0,"N/A",IF(IF(G130>=(VLOOKUP(Data_ACS_2022_BG_Calculated!G126,Data_ACS_2022_CO_Calculated!G:BD,29,FALSE))/100+10%,TRUE, FALSE),"Yes","No")),"N/A") -> N/A
B131: =IF(Data_ACS_2022_BG_Calculated!I128="","",(CONCATENATE("CT ", Data_ACS_2022_BG_Calculated!I128,", BG ",Data_ACS_2022_BG_Calculated!J128))) ->  | C131: =Data_ACS_2022_BG_Calculated!AC128 -> 0 | D131: =Data_ACS_2022_BG_Calculated!AH128 -> 0 | F131: 0 | H131: N/A | I131: =IFERROR(IF(C131=0,"N/A",IF(IF(G131>=(VLOOKUP(Data_ACS_2022_BG_Calculated!G127,Data_ACS_2022_CO_Calculated!G:BD,29,FALSE))/100+10%,TRUE, FALSE),"Yes","No")),"N/A") -> N/A
B132: =IF(Data_ACS_2022_BG_Calculated!I129="","",(CONCATENATE("CT ", Data_ACS_2022_BG_Calculated!I129,", BG ",Data_ACS_2022_BG_Calculated!J129))) ->  | C132: =Data_ACS_2022_BG_Calculated!AC129 -> 0 | D132: =Data_ACS_2022_BG_Calculated!AH129 -> 0 | F132: 0 | H132: N/A | I132: =IFERROR(IF(C132=0,"N/A",IF(IF(G132>=(VLOOKUP(Data_ACS_2022_BG_Calculated!G128,Data_ACS_2022_CO_Calculated!G:BD,29,FALSE))/100+10%,TRUE, FALSE),"Yes","No")),"N/A") -> N/A
B133: =IF(Data_ACS_2022_BG_Calculated!I130="","",(CONCATENATE("CT ", Data_ACS_2022_BG_Calculated!I130,", BG ",Data_ACS_2022_BG_Calculated!J130))) ->  | C133: =Data_ACS_2022_BG_Calculated!AC130 -> 0 | D133: =Data_ACS_2022_BG_Calculated!AH130 -> 0 | F133: 0 | H133: N/A | I133: =IFERROR(IF(C133=0,"N/A",IF(IF(G133>=(VLOOKUP(Data_ACS_2022_BG_Calculated!G129,Data_ACS_2022_CO_Calculated!G:BD,29,FALSE))/100+10%,TRUE, FALSE),"Yes","No")),"N/A") -> N/A
B134: =IF(Data_ACS_2022_BG_Calculated!I131="","",(CONCATENATE("CT ", Data_ACS_2022_BG_Calculated!I131,", BG ",Data_ACS_2022_BG_Calculated!J131))) ->  | C134: =Data_ACS_2022_BG_Calculated!AC131 -> 0 | D134: =Data_ACS_2022_BG_Calculated!AH131 -> 0 | F134: 0 | H134: N/A | I134: =IFERROR(IF(C134=0,"N/A",IF(IF(G134>=(VLOOKUP(Data_ACS_2022_BG_Calculated!G130,Data_ACS_2022_CO_Calculated!G:BD,29,FALSE))/100+10%,TRUE, FALSE),"Yes","No")),"N/A") -> N/A
B135: =IF(Data_ACS_2022_BG_Calculated!I132="","",(CONCATENATE("CT ", Data_ACS_2022_BG_Calculated!I132,", BG ",Data_ACS_2022_BG_Calculated!J132))) ->  | C135: =Data_ACS_2022_BG_Calculated!AC132 -> 0 | D135: =Data_ACS_2022_BG_Calculated!AH132 -> 0 | F135: 0 | H135: N/A | I135: =IFERROR(IF(C135=0,"N/A",IF(IF(G135>=(VLOOKUP(Data_ACS_2022_BG_Calculated!G131,Data_ACS_2022_CO_Calculated!G:BD,29,FALSE))/100+10%,TRUE, FALSE),"Yes","No")),"N/A") -> N/A
B136: =IF(Data_ACS_2022_BG_Calculated!I133="","",(CONCATENATE("CT ", Data_ACS_2022_BG_Calculated!I133,", BG ",Data_ACS_2022_BG_Calculated!J133))) ->  | C136: =Data_ACS_2022_BG_Calculated!AC133 -> 0 | D136: =Data_ACS_2022_BG_Calculated!AH133 -> 0 | F136: 0 | H136: =IFERROR(IF(SUM(C136,D136,F136)=0,"N/A",IF(IF(G136>=50%,TRUE, FALSE),"Yes","No")),"N/A") -> N/A | I136: =IFERROR(IF(C136=0,"N/A",IF(IF(G136>=(VLOOKUP(Data_ACS_2022_BG_Calculated!G132,Data_ACS_2022_CO_Calculated!G:BD,29,FALSE))/100+10%,TRUE, FALSE),"Yes","No")),"N/A") -> N/A
B137: =IF(Data_ACS_2022_BG_Calculated!I134="","",(CONCATENATE("CT ", Data_ACS_2022_BG_Calculated!I134,", BG ",Data_ACS_2022_BG_Calculated!J134))) ->  | C137: =Data_ACS_2022_BG_Calculated!AC134 -> 0 | D137: =Data_ACS_2022_BG_Calculated!AH134 -> 0 | F137: 0 | H137: N/A | I137: =IFERROR(IF(C137=0,"N/A",IF(IF(G137>=(VLOOKUP(Data_ACS_2022_BG_Calculated!G133,Data_ACS_2022_CO_Calculated!G:BD,29,FALSE))/100+10%,TRUE, FALSE),"Yes","No")),"N/A") -> N/A
B138: =IF(Data_ACS_2022_BG_Calculated!I135="","",(CONCATENATE("CT ", Data_ACS_2022_BG_Calculated!I135,", BG ",Data_ACS_2022_BG_Calculated!J135))) ->  | C138: =Data_ACS_2022_BG_Calculated!AC135 -> 0 | D138: =Data_ACS_2022_BG_Calculated!AH135 -> 0 | F138: 0 | H138: N/A | I138: =IFERROR(IF(C138=0,"N/A",IF(IF(G138>=(VLOOKUP(Data_ACS_2022_BG_Calculated!G134,Data_ACS_2022_CO_Calculated!G:BD,29,FALSE))/100+10%,TRUE, FALSE),"Yes","No")),"N/A") -> N/A
B139: =IF(Data_ACS_2022_BG_Calculated!I136="","",(CONCATENATE("CT ", Data_ACS_2022_BG_Calculated!I136,", BG ",Data_ACS_2022_BG_Calculated!J136))) ->  | C139: =Data_ACS_2022_BG_Calculated!AC136 -> 0 | D139: =Data_ACS_2022_BG_Calculated!AH136 -> 0 | F139: 0 | H139: N/A | I139: =IFERROR(IF(C139=0,"N/A",IF(IF(G139>=(VLOOKUP(Data_ACS_2022_BG_Calculated!G135,Data_ACS_2022_CO_Calculated!G:BD,29,FALSE))/100+10%,TRUE, FALSE),"Yes","No")),"N/A") -> N/A
B140: =IF(Data_ACS_2022_BG_Calculated!I137="","",(CONCATENATE("CT ", Data_ACS_2022_BG_Calculated!I137,", BG ",Data_ACS_2022_BG_Calculated!J137))) ->  | C140: =Data_ACS_2022_BG_Calculated!AC137 -> 0 | D140: =Data_ACS_2022_BG_Calculated!AH137 -> 0 | F140: 0 | H140: N/A | I140: =IFERROR(IF(C140=0,"N/A",IF(IF(G140>=(VLOOKUP(Data_ACS_2022_BG_Calculated!G136,Data_ACS_2022_CO_Calculated!G:BD,29,FALSE))/100+10%,TRUE, FALSE),"Yes","No")),"N/A") -> N/A
B141: =IF(Data_ACS_2022_BG_Calculated!I138="","",(CONCATENATE("CT ", Data_ACS_2022_BG_Calculated!I138,", BG ",Data_ACS_2022_BG_Calculated!J138))) ->  | C141: =Data_ACS_2022_BG_Calculated!AC138 -> 0 | D141: =Data_ACS_2022_BG_Calculated!AH138 -> 0 | F141: 0 | H141: N/A | I141: =IFERROR(IF(C141=0,"N/A",IF(IF(G141>=(VLOOKUP(Data_ACS_2022_BG_Calculated!G137,Data_ACS_2022_CO_Calculated!G:BD,29,FALSE))/100+10%,TRUE, FALSE),"Yes","No")),"N/A") -> N/A
B142: =IF(Data_ACS_2022_BG_Calculated!I139="","",(CONCATENATE("CT ", Data_ACS_2022_BG_Calculated!I139,", BG ",Data_ACS_2022_BG_Calculated!J139))) ->  | C142: =Data_ACS_2022_BG_Calculated!AC139 -> 0 | D142: =Data_ACS_2022_BG_Calculated!AH139 -> 0 | F142: 0 | H142: N/A | I142: =IFERROR(IF(C142=0,"N/A",IF(IF(G142>=(VLOOKUP(Data_ACS_2022_BG_Calculated!G138,Data_ACS_2022_CO_Calculated!G:BD,29,FALSE))/100+10%,TRUE, FALSE),"Yes","No")),"N/A") -> N/A
B143: =IF(Data_ACS_2022_BG_Calculated!I140="","",(CONCATENATE("CT ", Data_ACS_2022_BG_Calculated!I140,", BG ",Data_ACS_2022_BG_Calculated!J140))) ->  | C143: =Data_ACS_2022_BG_Calculated!AC140 -> 0 | D143: =Data_ACS_2022_BG_Calculated!AH140 -> 0 | F143: 0 | H143: N/A | I143: =IFERROR(IF(C143=0,"N/A",IF(IF(G143>=(VLOOKUP(Data_ACS_2022_BG_Calculated!G139,Data_ACS_2022_CO_Calculated!G:BD,29,FALSE))/100+10%,TRUE, FALSE),"Yes","No")),"N/A") -> N/A
B144: =IF(Data_ACS_2022_BG_Calculated!I141="","",(CONCATENATE("CT ", Data_ACS_2022_BG_Calculated!I141,", BG ",Data_ACS_2022_BG_Calculated!J141))) ->  | C144: =Data_ACS_2022_BG_Calculated!AC141 -> 0 | D144: =Data_ACS_2022_BG_Calculated!AH141 -> 0 | F144: 0 | H144: N/A | I144: =IFERROR(IF(C144=0,"N/A",IF(IF(G144>=(VLOOKUP(Data_ACS_2022_BG_Calculated!G140,Data_ACS_2022_CO_Calculated!G:BD,29,FALSE))/100+10%,TRUE, FALSE),"Yes","No")),"N/A") -> N/A
B145: =IF(Data_ACS_2022_BG_Calculated!I142="","",(CONCATENATE("CT ", Data_ACS_2022_BG_Calculated!I142,", BG ",Data_ACS_2022_BG_Calculated!J142))) ->  | C145: =Data_ACS_2022_BG_Calculated!AC142 -> 0 | D145: =Data_ACS_2022_BG_Calculated!AH142 -> 0 | F145: 0 | H145: N/A | I145: =IFERROR(IF(C145=0,"N/A",IF(IF(G145>=(VLOOKUP(Data_ACS_2022_BG_Calculated!G141,Data_ACS_2022_CO_Calculated!G:BD,29,FALSE))/100+10%,TRUE, FALSE),"Yes","No")),"N/A") -> N/A
B146: =IF(Data_ACS_2022_BG_Calculated!I143="","",(CONCATENATE("CT ", Data_ACS_2022_BG_Calculated!I143,", BG ",Data_ACS_2022_BG_Calculated!J143))) ->  | C146: =Data_ACS_2022_BG_Calculated!AC143 -> 0 | D146: =Data_ACS_2022_BG_Calculated!AH143 -> 0 | E146: =IFERROR(D146/C146,"") ->  | F146: =C146-D146 -> 0 | G146: =IFERROR(F146/C146,"") ->  | H146: N/A | I146: =IFERROR(IF(C146=0,"N/A",IF(IF(G146>=(VLOOKUP(Data_ACS_2022_BG_Calculated!G142,Data_ACS_2022_CO_Calculated!G:BD,29,FALSE))/100+10%,TRUE, FALSE),"Yes","No")),"N/A") -> N/A
B147: =IF(Data_ACS_2022_BG_Calculated!I144="","",(CONCATENATE("CT ", Data_ACS_2022_BG_Calculated!I144,", BG ",Data_ACS_2022_BG_Calculated!J144))) ->  | C147: =Data_ACS_2022_BG_Calculated!AC144 -> 0 | D147: =Data_ACS_2022_BG_Calculated!AH144 -> 0 | F147: 0 | H147: N/A | I147: =IFERROR(IF(C147=0,"N/A",IF(IF(G147>=(VLOOKUP(Data_ACS_2022_BG_Calculated!G143,Data_ACS_2022_CO_Calculated!G:BD,29,FALSE))/100+10%,TRUE, FALSE),"Yes","No")),"N/A") -> N/A
B148: =IF(Data_ACS_2022_BG_Calculated!I145="","",(CONCATENATE("CT ", Data_ACS_2022_BG_Calculated!I145,", BG ",Data_ACS_2022_BG_Calculated!J145))) ->  | C148: =Data_ACS_2022_BG_Calculated!AC145 -> 0 | D148: =Data_ACS_2022_BG_Calculated!AH145 -> 0 | F148: 0 | H148: N/A | I148: =IFERROR(IF(C148=0,"N/A",IF(IF(G148>=(VLOOKUP(Data_ACS_2022_BG_Calculated!G144,Data_ACS_2022_CO_Calculated!G:BD,29,FALSE))/100+10%,TRUE, FALSE),"Yes","No")),"N/A") -> N/A
B149: =IF(Data_ACS_2022_BG_Calculated!I146="","",(CONCATENATE("CT ", Data_ACS_2022_BG_Calculated!I146,", BG ",Data_ACS_2022_BG_Calculated!J146))) ->  | C149: =Data_ACS_2022_BG_Calculated!AC146 -> 0 | D149: =Data_ACS_2022_BG_Calculated!AH146 -> 0 | F149: 0 | H149: N/A | I149: =IFERROR(IF(C149=0,"N/A",IF(IF(G149>=(VLOOKUP(Data_ACS_2022_BG_Calculated!G145,Data_ACS_2022_CO_Calculated!G:BD,29,FALSE))/100+10%,TRUE, FALSE),"Yes","No")),"N/A") -> N/A
B150: =IF(Data_ACS_2022_BG_Calculated!I147="","",(CONCATENATE("CT ", Data_ACS_2022_BG_Calculated!I147,", BG ",Data_ACS_2022_BG_Calculated!J147))) ->  | C150: =Data_ACS_2022_BG_Calculated!AC147 -> 0 | D150: =Data_ACS_2022_BG_Calculated!AH147 -> 0 | F150: 0 | H150: N/A | I150: =IFERROR(IF(C150=0,"N/A",IF(IF(G150>=(VLOOKUP(Data_ACS_2022_BG_Calculated!G146,Data_ACS_2022_CO_Calculated!G:BD,29,FALSE))/100+10%,TRUE, FALSE),"Yes","No")),"N/A") -> N/A
B151: =IF(Data_ACS_2022_BG_Calculated!I148="","",(CONCATENATE("CT ", Data_ACS_2022_BG_Calculated!I148,", BG ",Data_ACS_2022_BG_Calculated!J148))) ->  | C151: =Data_ACS_2022_BG_Calculated!AC148 -> 0 | D151: =Data_ACS_2022_BG_Calculated!AH148 -> 0 | F151: 0 | H151: N/A | I151: =IFERROR(IF(C151=0,"N/A",IF(IF(G151>=(VLOOKUP(Data_ACS_2022_BG_Calculated!G147,Data_ACS_2022_CO_Calculated!G:BD,29,FALSE))/100+10%,TRUE, FALSE),"Yes","No")),"N/A") -> N/A
B152: =IF(Data_ACS_2022_BG_Calculated!I149="","",(CONCATENATE("CT ", Data_ACS_2022_BG_Calculated!I149,", BG ",Data_ACS_2022_BG_Calculated!J149))) ->  | C152: =Data_ACS_2022_BG_Calculated!AC149 -> 0 | D152: =Data_ACS_2022_BG_Calculated!AH149 -> 0 | F152: 0 | H152: N/A | I152: =IFERROR(IF(C152=0,"N/A",IF(IF(G152>=(VLOOKUP(Data_ACS_2022_BG_Calculated!G148,Data_ACS_2022_CO_Calculated!G:BD,29,FALSE))/100+10%,TRUE, FALSE),"Yes","No")),"N/A") -> N/A
B153: =IF(Data_ACS_2022_BG_Calculated!I150="","",(CONCATENATE("CT ", Data_ACS_2022_BG_Calculated!I150,", BG ",Data_ACS_2022_BG_Calculated!J150))) ->  | C153: =Data_ACS_2022_BG_Calculated!AC150 -> 0 | D153: =Data_ACS_2022_BG_Calculated!AH150 -> 0 | F153: 0 | H153: N/A | I153: =IFERROR(IF(C153=0,"N/A",IF(IF(G153>=(VLOOKUP(Data_ACS_2022_BG_Calculated!G149,Data_ACS_2022_CO_Calculated!G:BD,29,FALSE))/100+10%,TRUE, FALSE),"Yes","No")),"N/A") -> N/A
B154: =IF(Data_ACS_2022_BG_Calculated!I151="","",(CONCATENATE("CT ", Data_ACS_2022_BG_Calculated!I151,", BG ",Data_ACS_2022_BG_Calculated!J151))) ->  | C154: =Data_ACS_2022_BG_Calculated!AC151 -> 0 | D154: =Data_ACS_2022_BG_Calculated!AH151 -> 0 | F154: 0 | H154: N/A | I154: =IFERROR(IF(C154=0,"N/A",IF(IF(G154>=(VLOOKUP(Data_ACS_2022_BG_Calculated!G150,Data_ACS_2022_CO_Calculated!G:BD,29,FALSE))/100+10%,TRUE, FALSE),"Yes","No")),"N/A") -> N/A
B155: =IF(Data_ACS_2022_BG_Calculated!I152="","",(CONCATENATE("CT ", Data_ACS_2022_BG_Calculated!I152,", BG ",Data_ACS_2022_BG_Calculated!J152))) ->  | C155: =Data_ACS_2022_BG_Calculated!AC152 -> 0 | D155: =Data_ACS_2022_BG_Calculated!AH152 -> 0 | F155: 0 | H155: N/A | I155: =IFERROR(IF(C155=0,"N/A",IF(IF(G155>=(VLOOKUP(Data_ACS_2022_BG_Calculated!G151,Data_ACS_2022_CO_Calculated!G:BD,29,FALSE))/100+10%,TRUE, FALSE),"Yes","No")),"N/A") -> N/A
B156: =IF(Data_ACS_2022_BG_Calculated!I153="","",(CONCATENATE("CT ", Data_ACS_2022_BG_Calculated!I153,", BG ",Data_ACS_2022_BG_Calculated!J153))) ->  | C156: =Data_ACS_2022_BG_Calculated!AC153 -> 0 | D156: =Data_ACS_2022_BG_Calculated!AH153 -> 0 | F156: 0 | H156: N/A | I156: =IFERROR(IF(C156=0,"N/A",IF(IF(G156>=(VLOOKUP(Data_ACS_2022_BG_Calculated!G152,Data_ACS_2022_CO_Calculated!G:BD,29,FALSE))/100+10%,TRUE, FALSE),"Yes","No")),"N/A") -> N/A
B157: =IF(Data_ACS_2022_BG_Calculated!I154="","",(CONCATENATE("CT ", Data_ACS_2022_BG_Calculated!I154,", BG ",Data_ACS_2022_BG_Calculated!J154))) ->  | C157: =Data_ACS_2022_BG_Calculated!AC154 -> 0 | D157: =Data_ACS_2022_BG_Calculated!AH154 -> 0 | F157: 0 | H157: N/A | I157: =IFERROR(IF(C157=0,"N/A",IF(IF(G157>=(VLOOKUP(Data_ACS_2022_BG_Calculated!G153,Data_ACS_2022_CO_Calculated!G:BD,29,FALSE))/100+10%,TRUE, FALSE),"Yes","No")),"N/A") -> N/A
B158: =IF(Data_ACS_2022_BG_Calculated!I155="","",(CONCATENATE("CT ", Data_ACS_2022_BG_Calculated!I155,", BG ",Data_ACS_2022_BG_Calculated!J155))) ->  | C158: =Data_ACS_2022_BG_Calculated!AC155 -> 0 | D158: =Data_ACS_2022_BG_Calculated!AH155 -> 0 | F158: 0 | H158: N/A | I158: =IFERROR(IF(C158=0,"N/A",IF(IF(G158>=(VLOOKUP(Data_ACS_2022_BG_Calculated!G154,Data_ACS_2022_CO_Calculated!G:BD,29,FALSE))/100+10%,TRUE, FALSE),"Yes","No")),"N/A") -> N/A
B159: =IF(Data_ACS_2022_BG_Calculated!I156="","",(CONCATENATE("CT ", Data_ACS_2022_BG_Calculated!I156,", BG ",Data_ACS_2022_BG_Calculated!J156))) ->  | C159: =Data_ACS_2022_BG_Calculated!AC156 -> 0 | D159: =Data_ACS_2022_BG_Calculated!AH156 -> 0 | F159: 0 | H159: N/A | I159: =IFERROR(IF(C159=0,"N/A",IF(IF(G159>=(VLOOKUP(Data_ACS_2022_BG_Calculated!G155,Data_ACS_2022_CO_Calculated!G:BD,29,FALSE))/100+10%,TRUE, FALSE),"Yes","No")),"N/A") -> N/A
B160: =IF(Data_ACS_2022_BG_Calculated!I157="","",(CONCATENATE("CT ", Data_ACS_2022_BG_Calculated!I157,", BG ",Data_ACS_2022_BG_Calculated!J157))) ->  | C160: =Data_ACS_2022_BG_Calculated!AC157 -> 0 | D160: =Data_ACS_2022_BG_Calculated!AH157 -> 0 | F160: 0 | H160: N/A | I160: =IFERROR(IF(C160=0,"N/A",IF(IF(G160>=(VLOOKUP(Data_ACS_2022_BG_Calculated!G156,Data_ACS_2022_CO_Calculated!G:BD,29,FALSE))/100+10%,TRUE, FALSE),"Yes","No")),"N/A") -> N/A
B161: =IF(Data_ACS_2022_BG_Calculated!I158="","",(CONCATENATE("CT ", Data_ACS_2022_BG_Calculated!I158,", BG ",Data_ACS_2022_BG_Calculated!J158))) ->  | C161: =Data_ACS_2022_BG_Calculated!AC158 -> 0 | D161: =Data_ACS_2022_BG_Calculated!AH158 -> 0 | F161: 0 | H161: N/A | I161: =IFERROR(IF(C161=0,"N/A",IF(IF(G161>=(VLOOKUP(Data_ACS_2022_BG_Calculated!G157,Data_ACS_2022_CO_Calculated!G:BD,29,FALSE))/100+10%,TRUE, FALSE),"Yes","No")),"N/A") -> N/A
B162: =IF(Data_ACS_2022_BG_Calculated!I159="","",(CONCATENATE("CT ", Data_ACS_2022_BG_Calculated!I159,", BG ",Data_ACS_2022_BG_Calculated!J159))) ->  | C162: =Data_ACS_2022_BG_Calculated!AC159 -> 0 | D162: =Data_ACS_2022_BG_Calculated!AH159 -> 0 | F162: 0 | H162: N/A | I162: =IFERROR(IF(C162=0,"N/A",IF(IF(G162>=(VLOOKUP(Data_ACS_2022_BG_Calculated!G158,Data_ACS_2022_CO_Calculated!G:BD,29,FALSE))/100+10%,TRUE, FALSE),"Yes","No")),"N/A") -> N/A
B163: =IF(Data_ACS_2022_BG_Calculated!I160="","",(CONCATENATE("CT ", Data_ACS_2022_BG_Calculated!I160,", BG ",Data_ACS_2022_BG_Calculated!J160))) ->  | C163: =Data_ACS_2022_BG_Calculated!AC160 -> 0 | D163: =Data_ACS_2022_BG_Calculated!AH160 -> 0 | F163: 0 | H163: N/A | I163: =IFERROR(IF(C163=0,"N/A",IF(IF(G163>=(VLOOKUP(Data_ACS_2022_BG_Calculated!G159,Data_ACS_2022_CO_Calculated!G:BD,29,FALSE))/100+10%,TRUE, FALSE),"Yes","No")),"N/A") -> N/A
B164: =IF(Data_ACS_2022_BG_Calculated!I161="","",(CONCATENATE("CT ", Data_ACS_2022_BG_Calculated!I161,", BG ",Data_ACS_2022_BG_Calculated!J161))) ->  | C164: =Data_ACS_2022_BG_Calculated!AC161 -> 0 | D164: =Data_ACS_2022_BG_Calculated!AH161 -> 0 | F164: 0 | H164: N/A | I164: =IFERROR(IF(C164=0,"N/A",IF(IF(G164>=(VLOOKUP(Data_ACS_2022_BG_Calculated!G160,Data_ACS_2022_CO_Calculated!G:BD,29,FALSE))/100+10%,TRUE, FALSE),"Yes","No")),"N/A") -> N/A
B165: =IF(Data_ACS_2022_BG_Calculated!I162="","",(CONCATENATE("CT ", Data_ACS_2022_BG_Calculated!I162,", BG ",Data_ACS_2022_BG_Calculated!J162))) ->  | C165: =Data_ACS_2022_BG_Calculated!AC162 -> 0 | D165: =Data_ACS_2022_BG_Calculated!AH162 -> 0 | F165: 0 | H165: N/A | I165: =IFERROR(IF(C165=0,"N/A",IF(IF(G165>=(VLOOKUP(Data_ACS_2022_BG_Calculated!G161,Data_ACS_2022_CO_Calculated!G:BD,29,FALSE))/100+10%,TRUE, FALSE),"Yes","No")),"N/A") -> N/A
B166: =IF(Data_ACS_2022_BG_Calculated!I163="","",(CONCATENATE("CT ", Data_ACS_2022_BG_Calculated!I163,", BG ",Data_ACS_2022_BG_Calculated!J163))) ->  | C166: =Data_ACS_2022_BG_Calculated!AC163 -> 0 | D166: =Data_ACS_2022_BG_Calculated!AH163 -> 0 | F166: 0 | H166: N/A | I166: =IFERROR(IF(C166=0,"N/A",IF(IF(G166>=(VLOOKUP(Data_ACS_2022_BG_Calculated!G162,Data_ACS_2022_CO_Calculated!G:BD,29,FALSE))/100+10%,TRUE, FALSE),"Yes","No")),"N/A") -> N/A
B167: =IF(Data_ACS_2022_BG_Calculated!I164="","",(CONCATENATE("CT ", Data_ACS_2022_BG_Calculated!I164,", BG ",Data_ACS_2022_BG_Calculated!J164))) ->  | C167: =Data_ACS_2022_BG_Calculated!AC164 -> 0 | D167: =Data_ACS_2022_BG_Calculated!AH164 -> 0 | F167: 0 | H167: N/A | I167: =IFERROR(IF(C167=0,"N/A",IF(IF(G167>=(VLOOKUP(Data_ACS_2022_BG_Calculated!G163,Data_ACS_2022_CO_Calculated!G:BD,29,FALSE))/100+10%,TRUE, FALSE),"Yes","No")),"N/A") -> N/A
B168: =IF(Data_ACS_2022_BG_Calculated!I165="","",(CONCATENATE("CT ", Data_ACS_2022_BG_Calculated!I165,", BG ",Data_ACS_2022_BG_Calculated!J165))) ->  | C168: =Data_ACS_2022_BG_Calculated!AC165 -> 0 | D168: =Data_ACS_2022_BG_Calculated!AH165 -> 0 | F168: 0 | H168: N/A | I168: =IFERROR(IF(C168=0,"N/A",IF(IF(G168>=(VLOOKUP(Data_ACS_2022_BG_Calculated!G164,Data_ACS_2022_CO_Calculated!G:BD,29,FALSE))/100+10%,TRUE, FALSE),"Yes","No")),"N/A") -> N/A
B169: =IF(Data_ACS_2022_BG_Calculated!I166="","",(CONCATENATE("CT ", Data_ACS_2022_BG_Calculated!I166,", BG ",Data_ACS_2022_BG_Calculated!J166))) ->  | C169: =Data_ACS_2022_BG_Calculated!AC166 -> 0 | D169: =Data_ACS_2022_BG_Calculated!AH166 -> 0 | F169: 0 | H169: N/A | I169: =IFERROR(IF(C169=0,"N/A",IF(IF(G169>=(VLOOKUP(Data_ACS_2022_BG_Calculated!G165,Data_ACS_2022_CO_Calculated!G:BD,29,FALSE))/100+10%,TRUE, FALSE),"Yes","No")),"N/A") -> N/A
B170: =IF(Data_ACS_2022_BG_Calculated!I167="","",(CONCATENATE("CT ", Data_ACS_2022_BG_Calculated!I167,", BG ",Data_ACS_2022_BG_Calculated!J167))) ->  | C170: =Data_ACS_2022_BG_Calculated!AC167 -> 0 | D170: =Data_ACS_2022_BG_Calculated!AH167 -> 0 | F170: 0 | H170: N/A | I170: =IFERROR(IF(C170=0,"N/A",IF(IF(G170>=(VLOOKUP(Data_ACS_2022_BG_Calculated!G166,Data_ACS_2022_CO_Calculated!G:BD,29,FALSE))/100+10%,TRUE, FALSE),"Yes","No")),"N/A") -> N/A
B171: =IF(Data_ACS_2022_BG_Calculated!I168="","",(CONCATENATE("CT ", Data_ACS_2022_BG_Calculated!I168,", BG ",Data_ACS_2022_BG_Calculated!J168))) ->  | C171: =Data_ACS_2022_BG_Calculated!AC168 -> 0 | D171: =Data_ACS_2022_BG_Calculated!AH168 -> 0 | F171: 0 | H171: N/A | I171: =IFERROR(IF(C171=0,"N/A",IF(IF(G171>=(VLOOKUP(Data_ACS_2022_BG_Calculated!G167,Data_ACS_2022_CO_Calculated!G:BD,29,FALSE))/100+10%,TRUE, FALSE),"Yes","No")),"N/A") -> N/A
B172: =IF(Data_ACS_2022_BG_Calculated!I169="","",(CONCATENATE("CT ", Data_ACS_2022_BG_Calculated!I169,", BG ",Data_ACS_2022_BG_Calculated!J169))) ->  | C172: =Data_ACS_2022_BG_Calculated!AC169 -> 0 | D172: =Data_ACS_2022_BG_Calculated!AH169 -> 0 | F172: 0 | H172: N/A | I172: =IFERROR(IF(C172=0,"N/A",IF(IF(G172>=(VLOOKUP(Data_ACS_2022_BG_Calculated!G168,Data_ACS_2022_CO_Calculated!G:BD,29,FALSE))/100+10%,TRUE, FALSE),"Yes","No")),"N/A") -> N/A
B173: =IF(Data_ACS_2022_BG_Calculated!I170="","",(CONCATENATE("CT ", Data_ACS_2022_BG_Calculated!I170,", BG ",Data_ACS_2022_BG_Calculated!J170))) ->  | C173: =Data_ACS_2022_BG_Calculated!AC170 -> 0 | D173: =Data_ACS_2022_BG_Calculated!AH170 -> 0 | F173: 0 | H173: N/A | I173: =IFERROR(IF(C173=0,"N/A",IF(IF(G173>=(VLOOKUP(Data_ACS_2022_BG_Calculated!G169,Data_ACS_2022_CO_Calculated!G:BD,29,FALSE))/100+10%,TRUE, FALSE),"Yes","No")),"N/A") -> N/A
